Workbook

Sheet Navigation Pane
B2: Brisbane City Council
B3: Local Government Infrastructure Plan (LGIP)
B6: Version No | D6: 1 | F6: Date | G6: 2021-12-10 | J6: Author | K6: BCC
B8: Comments | D8: Version for LGIP amendment 1a adoption. Effective as at 10 December 2021.
D10: Inputs | I10: Calculation | N10: Outputs
C12: General Input Sheet | H12: Calculation Function | M12: Summary Cost Schedule
C13: l General inputs l Financial inputs | H13: Catchment based summary of demand, infrastructure (existing and new) and cost allocation Infrastructure Cost calculation for each catchment Optional Discounted Cashflow | M13: l Summary of demand and cost allocation by catchment l Final costs by catchment
M15: Summary Cash flow Projections
C16: l Unit Cost of Passive Assets l Unit Cost of Land | M16: l Summary of forecast Capital Expenditure and anticipated IC revenues. Refer to Revenue and Cash Flow model for output.
C19: l Estimates of current and future demand (per cost catchment)
C21: Asset Inputs
C22: Existing Trunk Assets (& Catchments Served)
C23: Future Trunk Assets (& Catchments Served)

Sheet General Input Sheet
B2: ='Navigation Pane'!B2 -> Brisbane City Council
A3: Return to Navigation Pane
B4: General Input Sheet
B6: General Inputs | E6: Reference | G6: Value | I6: Comments
C8: Base Year | E8: YEAR | G8: 2016
G9: =YEAR -> 2016
C10: Term (between 15 and 30 years) | E10: TERM | G10: 10
B12: Application of Discounted Cash flow
C14: Calculate charges using Discounted Cash flow? (Y/N) | E14: DCFTRIGGER | G14: Yes
B16: General Financial Inputs
B18: Discount Rate (WACC):
C19: Average 10 Year Bond Rate | E19: TenYr
B21: Option 1 | C21: Basic Margin on 10 Yr. Bond Rate | E21: Margin | I21: 3.5% is the baseline figure quoted in LG Bulletin 06/01
C23: WACC: | E23: WACC1 | G23: 0.0591
B25: Option 2 | C25: Capital Structure (% Debt) | E25: Capstr
C26: Market Risk Premium | E26: Risk
C27: Asset Beta | E27: AssetBeta
C28: Cost of Debt | E28: Debt
C30: WACC: | E30: WACC2 | G30: 0.0591
C32: WACC Option to be applied in the calculation? | E32: WACC1 | G32: =IF(G14="No",0,IF(E32="WACC1",WACC1,IF(E32="WACC2",WACC2,"Error"))) -> 0.0591
B34: Escalation Rates
C35: Capital Escalation - Future Cap X | E35: PPI | G35: =(G38/G43)^(1/(E38-E43))-1 -> 0.01871653255 | I35: ten (10) yr. average Roads and Bridges Index (ABS 6427, Table 15, Index 3101)
C37: Capital Indexation Rates - Historical (June Qtr.)
E38: =YEAR -> 2016 | G38: 110.56 | I38: Roads and Bridges Index (ABS 6427, Table 15, Index 3101)
E39: =E38-1 -> 2015
E40: =E39-1 -> 2014
E41: 2013
E42: 2012
E43: 2011 | G43: 100.77
E44: 2010
C46: Land Escalation | E46: LandInd | G46: 0.025
C48: Charges Escalation Rate | E48: Chargeind | G48: 0
G49: =Chargeind -> 0
G51: =Chargeind -> 0

Sheet Exist Trunk Assets - Parks
B2: ='Navigation Pane'!B2 -> Brisbane City Council
B3: Parks
B5: EXISTING TRUNK ASSETS
B7: Land Valuation Type | D7: Location
H9: Asset Data | U9: Catchment Asset Allocation | AB9: Asset Usage | AI9: Cost Allocation
B10: Basic Asset Data | G10: Asset Attributes | I10: Basic Asset Valuation | N10: Land Attributes | R10: Refined Asset Value | U10: ='Catchment Demand - Parks'!$C8 -> East | V10: ='Catchment Demand - Parks'!$C9 -> North | W10: ='Catchment Demand - Parks'!$C10 -> South | X10: ='Catchment Demand - Parks'!$C11 -> West | Y10: ='Catchment Demand - Parks'!$C12 -> Brisbane wide (district & metro) | AA10: =U10 -> East | AB10: =V10 -> North | AC10: =W10 -> South | AD10: =X10 -> West | AE10: =Y10 -> Brisbane wide (district & metro) | AF10: TOTALS | AH10: =U10 -> East | AI10: =V10 -> North | AJ10: =W10 -> South | AK10: =X10 -> West | AL10: =Y10 -> Brisbane wide (district & metro)
B11: Asset ID | C11: LGIP ID | D11: Asset Class | E11: Sector | F11: Description | G11: Unit Rate Type (*) | H11: Unit (*) | I11: Unit Rate | J11: Baseline Valuation | K11: Site/Condition | L11: Multiplier | M11: Gross Value | N11: Land Location/Type | O11: Size of land (m2) (*) | P11: Average Land Rate (m2) | Q11: Land Value | R11: Valuation Year | S11: Escalation | T11: Current Replacement Cost
U12: 1 | V12: =U12+1 -> 2 | W12: =V12+1 -> 3 | X12: 4 | Y12: 5
B13: Councils ID (from GIS, FAR, AMA etc.) | C13: ID from the LGIP drawings | D13: Local/District Park | J13: May be calculated from unit rates OR unique values can be direct entered | U13: =IFERROR(VLOOKUP(U10,Parkscatch,6,FALSE),"") -> 0 | V13: 0 | W13: 0 | X13: 0 | Y13: 0 | AA13: 1 | AB13: 1 | AC13: 1 | AD13: 1 | AE13: =Y13 -> 0 | AH13: =SUM(AH14:AH2487) -> 445870051.8 | AI13: =SUM(AI14:AI2487) -> 287880561.8 | AJ13: =SUM(AJ14:AJ2487) -> 494693920.2 | AK13: =SUM(AK14:AK2487) -> 558218315.8 | AL13: =SUM(AL14:AL2487) -> 5703353575
B14: D0001 Local West | D14: Local | E14: West | F14: Access / Recreation Corridor | H14: 11253.55 | I14: =IFERROR(J14/H14,0) -> 52.45328612 | J14: 590285.678 | L14: 1 | M14: =IFERROR(J14/100*100*L14,0) -> 590285.678 | O14: 16228.76215 | P14: =Q14/O14 -> 113.2612816 | Q14: 1838090.4 | R14: 2016 | S14: =IFERROR(('General Input Sheet'!$G$38/(VLOOKUP(R14,'General Input Sheet'!$E$38:$G$44,3,FALSE))),1) -> 1 | T14: 2428376.078 | U14: =IF(AND(U$10=$E14,$D14="Local"),"y","") ->  | V14: =IF(AND(V$10=$E14,$D14="Local"),"y","") ->  | X14: y | Y14: =IF($D14<>"Local","y","") ->  | AA14: =IF(U14="y",1,"") ->  | AB14: =IF(V14="y",1,"") ->  | AC14: =IF(W14="y",AC$13,IF(AND(W14>0,W14<=1),W14*AC$13,"")) ->  | AD14: =IF(X14="y",AD$13,IF(AND(X14>0,X14<=1),X14*AD$13,"")) -> 1 | AE14: =IF(Y14="y",AE$13,IF(AND(Y14>0,Y14<=1),Y14*AE$13,"")) ->  | AF14: =SUM(AA14:AE14) -> 1 | AH14: =IF(AA14="","",(AA14/$AF14)*$T14) ->  | AI14: =IF(AB14="","",(AB14/$AF14)*$T14) ->  | AJ14: =IF(AC14="","",(AC14/$AF14)*$T14) ->  | AK14: =IF(AD14="","",(AD14/$AF14)*$T14) -> 2428376.078 | AL14: =IF(AE14="","",(AE14/$AF14)*$T14) -> 
B15: D0001 Local West | D15: Local | E15: West | F15: General Recreation | H15: 5816 | I15: 104.7862523 | J15: 609436.8432 | L15: 1 | M15: 609436.8432 | P15: =IFERROR(Q15/O15,0) -> 0 | R15: 2016 | S15: =IFERROR(('General Input Sheet'!$G$38/(VLOOKUP(R15,'General Input Sheet'!$E$38:$G$44,3,FALSE))),1) -> 1 | T15: 609436.8432 | U15: =IF(AND(U$10=$E15,$D15="Local"),"y","") ->  | X15: y | Y15: =IF($D15<>"Local","y","") ->  | AC15: =IF(W15="y",1,"") ->  | AD15: =IF(X15="y",1,"") -> 1 | AE15: =IF(Y15="y",1,"") ->  | AF15: 1 | AK15: 609436.8432
B16: D0002 Local East | D16: Local | E16: East | F16: General Recreation | H16: 7579.87 | I16: 88.9851066 | J16: 674495.5399 | L16: 1 | M16: 674495.5399 | P16: =IFERROR(Q16/O16,0) -> 0 | R16: 2016 | S16: =IFERROR(('General Input Sheet'!$G$38/(VLOOKUP(R16,'General Input Sheet'!$E$38:$G$44,3,FALSE))),1) -> 1 | T16: 674495.5399 | U16: y | AA16: 1 | AF16: 1 | AH16: 674495.5399
B17: D0002 Metropolitan East | D17: Metropolitan | E17: East | F17: Access / Recreation Corridor | H17: 1368.04 | I17: 759.1447377 | J17: 1038540.367 | L17: 1 | M17: 1038540.367 | P17: 0 | R17: 2016 | S17: =IFERROR(('General Input Sheet'!$G$38/(VLOOKUP(R17,'General Input Sheet'!$E$38:$G$44,3,FALSE))),1) -> 1 | T17: 1038540.367 | Y17: y | AE17: 1 | AF17: 1 | AL17: 1038540.367
B18: D0003 Local East | D18: Local | E18: East | F18: General Recreation | H18: 14688.67 | I18: 46.97441242 | J18: 689991.6424 | L18: 1 | M18: 689991.6424 | O18: 14688.57856 | P18: 84.4829876 | Q18: 1240935 | R18: 2016 | S18: =IFERROR(('General Input Sheet'!$G$38/(VLOOKUP(R18,'General Input Sheet'!$E$38:$G$44,3,FALSE))),1) -> 1 | T18: 1930926.642 | U18: y | AA18: 1 | AF18: 1 | AH18: 1930926.642
B19: D0004 Local South | D19: Local | E19: South | F19: General Recreation | H19: 7366.95 | I19: 90.49093379 | J19: 666642.1847 | L19: 1 | M19: 666642.1847 | O19: 7366.895315 | P19: 247.0370383 | Q19: 1819896 | R19: 2016 | S19: =IFERROR(('General Input Sheet'!$G$38/(VLOOKUP(R19,'General Input Sheet'!$E$38:$G$44,3,FALSE))),1) -> 1 | T19: 2486538.185 | W19: y | AC19: 1 | AF19: 1 | AJ19: 2486538.185
B20: D0005 District West | D20: District | E20: West | F20: Access / Recreation Corridor | H20: 11110.58 | I20: 132.1752134 | J20: 1468543.282 | L20: 1 | M20: 1468543.282 | O20: 17088.77248 | P20: 63.02067636 | Q20: 1076946 | R20: 2016 | S20: =IFERROR(('General Input Sheet'!$G$38/(VLOOKUP(R20,'General Input Sheet'!$E$38:$G$44,3,FALSE))),1) -> 1 | T20: 2545489.282 | Y20: y | AE20: 1 | AF20: 1 | AL20: 2545489.282
B21: D0005 Local West | D21: Local | E21: West | F21: General Recreation | H21: 5978.23 | I21: 102.9436046 | J21: 615420.5451 | L21: 1 | M21: 615420.5451 | P21: 0 | R21: 2016 | S21: =IFERROR(('General Input Sheet'!$G$38/(VLOOKUP(R21,'General Input Sheet'!$E$38:$G$44,3,FALSE))),1) -> 1 | T21: 615420.5451 | X21: y | AD21: 1 | AF21: 1 | AK21: 615420.5451
B22: D0006 District East | D22: District | E22: East | F22: General Outdoor Sport | H22: 41744.53 | I22: 201.2299083 | J22: 8400247.946 | L22: 1 | M22: 8400247.946 | O22: 484.7819057 | P22: 26478.38906 | Q22: 12836243.91 | R22: 2016 | S22: =IFERROR(('General Input Sheet'!$G$38/(VLOOKUP(R22,'General Input Sheet'!$E$38:$G$44,3,FALSE))),1) -> 1 | T22: 21236491.86 | Y22: y | AE22: 1 | AF22: 1 | AL22: 21236491.86
B23: D0006 District East | D23: District | E23: East | F23: Specialised Outdoor Sport | H23: 34785.37 | I23: 259.7193327 | J23: 9034433.082 | L23: 1 | M23: 9034433.082 | P23: 0 | R23: 2016 | S23: =IFERROR(('General Input Sheet'!$G$38/(VLOOKUP(R23,'General Input Sheet'!$E$38:$G$44,3,FALSE))),1) -> 1 | T23: 9034433.082 | Y23: y | AE23: 1 | AF23: 1 | AL23: 9034433.082
B24: D0006 Local East | D24: Local | E24: East | F24: General Recreation | H24: 13131.11 | I24: 52.54633024 | J24: 689991.6424 | L24: 1 | M24: 689991.6424 | P24: 0 | R24: 2016 | S24: =IFERROR(('General Input Sheet'!$G$38/(VLOOKUP(R24,'General Input Sheet'!$E$38:$G$44,3,FALSE))),1) -> 1 | T24: 689991.6424 | U24: y | AA24: 1 | AF24: 1 | AH24: 689991.6424
B25: D0007 District East | D25: District | E25: East | F25: General Outdoor Sport | H25: 57162.8 | I25: 146.9530524 | J25: 8400247.946 | L25: 1 | M25: 8400247.946 | P25: 0 | R25: 2016 | S25: =IFERROR(('General Input Sheet'!$G$38/(VLOOKUP(R25,'General Input Sheet'!$E$38:$G$44,3,FALSE))),1) -> 1 | T25: 8400247.946 | Y25: y | AE25: 1 | AF25: 1 | AL25: 8400247.946
B26: D0007 Local East | D26: Local | E26: East | F26: General Recreation | H26: 20258.43 | I26: 34.05948252 | J26: 689991.6424 | L26: 1 | M26: 689991.6424 | O26: 77421.08591 | P26: 97.97870051 | Q26: 7585617.39 | R26: 2016 | S26: =IFERROR(('General Input Sheet'!$G$38/(VLOOKUP(R26,'General Input Sheet'!$E$38:$G$44,3,FALSE))),1) -> 1 | T26: 8275609.032 | U26: y | AA26: 1 | AF26: 1 | AH26: 8275609.032
B27: D0008 Local North | D27: Local | E27: North | F27: General Recreation | H27: 30422.87 | I27: 22.68003125 | J27: 689991.6424 | L27: 1 | M27: 689991.6424 | O27: 30422.87428 | P27: 35.93723558 | Q27: 1093314 | R27: 2016 | S27: =IFERROR(('General Input Sheet'!$G$38/(VLOOKUP(R27,'General Input Sheet'!$E$38:$G$44,3,FALSE))),1) -> 1 | T27: 1783305.642 | V27: y | AB27: 1 | AF27: 1 | AI27: 1783305.642
B28: D0009 Local South | D28: Local | E28: South | F28: General Recreation | H28: 9676.08 | I28: 71.30900555 | J28: 689991.6424 | L28: 1 | M28: 689991.6424 | O28: 9676.029357 | P28: 84.74550559 | Q28: 820000 | R28: 2016 | S28: =IFERROR(('General Input Sheet'!$G$38/(VLOOKUP(R28,'General Input Sheet'!$E$38:$G$44,3,FALSE))),1) -> 1 | T28: 1509991.642 | W28: y | AC28: 1 | AF28: 1 | AJ28: 1509991.642
B29: D0010 District South | D29: District | E29: South | F29: Access / Recreation Corridor | H29: 13652.78 | I29: 115.8578902 | J29: 1581782.287 | L29: 1 | M29: 1581782.287 | O29: 104022.4737 | P29: 148.4568618 | Q29: 15442850 | R29: 2016 | S29: =IFERROR(('General Input Sheet'!$G$38/(VLOOKUP(R29,'General Input Sheet'!$E$38:$G$44,3,FALSE))),1) -> 1 | T29: 17024632.29 | Y29: y | AE29: 1 | AF29: 1 | AL29: 17024632.29
B30: D0010 District South | D30: District | E30: South | F30: General Outdoor Sport | H30: 25351.46 | I30: 305.1144731 | J30: 7735097.359 | L30: 1 | M30: 7735097.359 | P30: 0 | R30: 2016 | S30: =IFERROR(('General Input Sheet'!$G$38/(VLOOKUP(R30,'General Input Sheet'!$E$38:$G$44,3,FALSE))),1) -> 1 | T30: 7735097.359 | Y30: y | AE30: 1 | AF30: 1 | AL30: 7735097.359
B31: D0010 District South | D31: District | E31: South | F31: General Recreation | H31: 74888.6 | I31: 108.9827813 | J31: 8161567.914 | L31: 1 | M31: 8161567.914 | P31: 0 | R31: 2016 | S31: =IFERROR(('General Input Sheet'!$G$38/(VLOOKUP(R31,'General Input Sheet'!$E$38:$G$44,3,FALSE))),1) -> 1 | T31: 8161567.914 | Y31: y | AE31: 1 | AF31: 1 | AL31: 8161567.914
B32: D0010 Local South | D32: Local | E32: South | I32: 0 | L32: 1 | M32: 0 | O32: 963.800242 | P32: 258.2497276 | Q32: 248901.15 | R32: 2016 | S32: =IFERROR(('General Input Sheet'!$G$38/(VLOOKUP(R32,'General Input Sheet'!$E$38:$G$44,3,FALSE))),1) -> 1 | T32: 248901.15 | W32: y | AC32: 1 | AF32: 1 | AJ32: 248901.15
B33: D0011 District South | D33: District | E33: South | F33: General Recreation | H33: 28369.63 | I33: 284.5506421 | J33: 8072596.433 | L33: 1 | M33: 8072596.433 | O33: 28369.59961 | P33: 90.51400213 | Q33: 2567846 | R33: 2016 | S33: =IFERROR(('General Input Sheet'!$G$38/(VLOOKUP(R33,'General Input Sheet'!$E$38:$G$44,3,FALSE))),1) -> 1 | T33: 10640442.43 | Y33: y | AE33: 1 | AF33: 1 | AL33: 10640442.43
B34: D0012 Local South | D34: Local | E34: South | F34: General Recreation | H34: 12410.6 | I34: 55.59696086 | J34: 689991.6424 | L34: 1 | M34: 689991.6424 | O34: 12410.60796 | P34: 151.7795104 | Q34: 1883676 | R34: 2016 | S34: =IFERROR(('General Input Sheet'!$G$38/(VLOOKUP(R34,'General Input Sheet'!$E$38:$G$44,3,FALSE))),1) -> 1 | T34: 2573667.642 | W34: y | AC34: 1 | AF34: 1 | AJ34: 2573667.642
B35: D0013 District West | D35: District | E35: West | F35: General Recreation | H35: 42436.84 | I35: 192.3227063 | J35: 8161567.914 | L35: 1 | M35: 8161567.914 | O35: 27265.61462 | P35: 87.21271255 | Q35: 2377908.21 | R35: 2016 | S35: =IFERROR(('General Input Sheet'!$G$38/(VLOOKUP(R35,'General Input Sheet'!$E$38:$G$44,3,FALSE))),1) -> 1 | T35: 10539476.12 | Y35: y | AE35: 1 | AF35: 1 | AL35: 10539476.12
B36: D0014 District West | D36: District | E36: West | F36: Specialised Outdoor Sport | H36: 8225.04 | I36: 946.22416 | J36: 7782731.565 | L36: 1 | M36: 7782731.565 | O36: 0 | P36: 0 | Q36: 0 | R36: 2016 | S36: =IFERROR(('General Input Sheet'!$G$38/(VLOOKUP(R36,'General Input Sheet'!$E$38:$G$44,3,FALSE))),1) -> 1 | T36: 7782731.565 | Y36: y | AE36: 1 | AF36: 1 | AL36: 7782731.565
B37: D0014 Local West | D37: Local | E37: West | F37: General Recreation | H37: 8548.27 | I37: 80.71710912 | J37: 689991.6424 | L37: 1 | M37: 689991.6424 | O37: 16773.34318 | P37: 158.4037304 | Q37: 2656960.13 | R37: 2016 | S37: =IFERROR(('General Input Sheet'!$G$38/(VLOOKUP(R37,'General Input Sheet'!$E$38:$G$44,3,FALSE))),1) -> 1 | T37: 3346951.772 | X37: y | AD37: 1 | AF37: 1 | AK37: 3346951.772
B38: D0015 District West | D38: District | E38: West | I38: 0 | L38: 1 | M38: 0 | O38: 9271.696361 | P38: 638.4399952 | Q38: 5919421.78 | R38: 2016 | S38: =IFERROR(('General Input Sheet'!$G$38/(VLOOKUP(R38,'General Input Sheet'!$E$38:$G$44,3,FALSE))),1) -> 1 | T38: 5919421.78 | Y38: y | AE38: 1 | AF38: 1 | AL38: 5919421.78
B39: D0015 Local West | D39: Local | E39: West | F39: General Recreation | H39: 11021.41 | I39: 62.60466151 | J39: 689991.6424 | L39: 1 | M39: 689991.6424 | O39: 1602.441183 | P39: 810.6381776 | Q39: 1299000 | R39: 2016 | S39: =IFERROR(('General Input Sheet'!$G$38/(VLOOKUP(R39,'General Input Sheet'!$E$38:$G$44,3,FALSE))),1) -> 1 | T39: 1988991.642 | X39: y | AD39: 1 | AF39: 1 | AK39: 1988991.642
B40: D0016 Local North | D40: Local | E40: North | F40: General Recreation | H40: 12453.7 | I40: 55.40454985 | J40: 689991.6424 | L40: 1 | M40: 689991.6424 | O40: 12453.72782 | P40: 164.8106518 | Q40: 2052507 | R40: 2016 | S40: =IFERROR(('General Input Sheet'!$G$38/(VLOOKUP(R40,'General Input Sheet'!$E$38:$G$44,3,FALSE))),1) -> 1 | T40: 2742498.642 | V40: y | AB40: 1 | AF40: 1 | AI40: 2742498.642
B41: D0017 District West | D41: District | E41: West | F41: General Recreation | H41: 6816.12 | I41: 1011.776854 | J41: 6896392.448 | L41: 1 | M41: 6896392.448 | O41: 1052.286498 | P41: 510.7924513 | Q41: 537500 | R41: 2016 | S41: =IFERROR(('General Input Sheet'!$G$38/(VLOOKUP(R41,'General Input Sheet'!$E$38:$G$44,3,FALSE))),1) -> 1 | T41: 7433892.448 | Y41: y | AE41: 1 | AF41: 1 | AL41: 7433892.448
B42: D0017 Local West | D42: Local | E42: West | F42: General Outdoor Sport | H42: 10254.42 | I42: 104.2426802 | J42: 1068948.225 | L42: 1 | M42: 1068948.225 | O42: 13532.78347 | P42: 489.6893542 | Q42: 6626860 | R42: 2016 | S42: =IFERROR(('General Input Sheet'!$G$38/(VLOOKUP(R42,'General Input Sheet'!$E$38:$G$44,3,FALSE))),1) -> 1 | T42: 7695808.225 | X42: y | AD42: 1 | AF42: 1 | AK42: 7695808.225
B43: D0018 District North | D43: District | E43: North | F43: General Outdoor Sport | H43: 33324.77 | I43: 242.9767348 | J43: 8097143.804 | L43: 1 | M43: 8097143.804 | O43: 41472.58314 | P43: 65.83099058 | Q43: 2730181.23 | R43: 2016 | S43: =IFERROR(('General Input Sheet'!$G$38/(VLOOKUP(R43,'General Input Sheet'!$E$38:$G$44,3,FALSE))),1) -> 1 | T43: 10827325.03 | Y43: y | AE43: 1 | AF43: 1 | AL43: 10827325.03
B44: D0018 Local North | D44: Local | E44: North | F44: General Recreation | H44: 8147.93 | I44: 84.68305967 | J44: 689991.6424 | L44: 1 | M44: 689991.6424 | P44: 0 | R44: 2016 | S44: =IFERROR(('General Input Sheet'!$G$38/(VLOOKUP(R44,'General Input Sheet'!$E$38:$G$44,3,FALSE))),1) -> 1 | T44: 689991.6424 | V44: y | AB44: 1 | AF44: 1 | AI44: 689991.6424
B45: D0019 Local North | D45: Local | E45: North | F45: General Recreation | H45: 11396.83 | I45: 60.54241771 | J45: 689991.6424 | L45: 1 | M45: 689991.6424 | O45: 11396.82227 | P45: 448.3705965 | Q45: 5110000 | R45: 2016 | S45: =IFERROR(('General Input Sheet'!$G$38/(VLOOKUP(R45,'General Input Sheet'!$E$38:$G$44,3,FALSE))),1) -> 1 | T45: 5799991.642 | V45: y | AB45: 1 | AF45: 1 | AI45: 5799991.642
B46: D0020 Local West | D46: Local | E46: West | F46: General Recreation | H46: 15336.47 | I46: 44.9902515 | J46: 689991.6424 | L46: 1 | M46: 689991.6424 | O46: 15336.46911 | P46: 411.1526423 | Q46: 6305629.8 | R46: 2016 | S46: =IFERROR(('General Input Sheet'!$G$38/(VLOOKUP(R46,'General Input Sheet'!$E$38:$G$44,3,FALSE))),1) -> 1 | T46: 6995621.442 | X46: y | AD46: 1 | AF46: 1 | AK46: 6995621.442
B47: D0021 District East | D47: District | E47: East | F47: Access / Recreation Corridor | H47: 17055.05 | I47: 101.6315986 | J47: 1733331.995 | L47: 1 | M47: 1733331.995 | O47: 10744.0898 | P47: 420.6965025 | Q47: 4520001 | R47: 2016 | S47: =IFERROR(('General Input Sheet'!$G$38/(VLOOKUP(R47,'General Input Sheet'!$E$38:$G$44,3,FALSE))),1) -> 1 | T47: 6253332.995 | Y47: y | AE47: 1 | AF47: 1 | AL47: 6253332.995
B48: D0021 Local East | D48: Local | E48: East | F48: General Outdoor Sport | H48: 6660.71 | I48: 144.7162966 | J48: 963913.2836 | L48: 1 | M48: 963913.2836 | O48: 12971.73228 | P48: 353.0759733 | Q48: 4580007 | R48: 2016 | S48: =IFERROR(('General Input Sheet'!$G$38/(VLOOKUP(R48,'General Input Sheet'!$E$38:$G$44,3,FALSE))),1) -> 1 | T48: 5543920.284 | U48: y | AA48: 1 | AF48: 1 | AH48: 5543920.284
B49: D0022 District South | D49: District | E49: South | F49: General Outdoor Sport | H49: 31954.41 | I49: 251.4494701 | J49: 8034919.462 | L49: 1 | M49: 8034919.462 | O49: 36733.19582 | P49: 53.62452016 | Q49: 1969800 | R49: 2016 | S49: =IFERROR(('General Input Sheet'!$G$38/(VLOOKUP(R49,'General Input Sheet'!$E$38:$G$44,3,FALSE))),1) -> 1 | T49: 10004719.46 | Y49: y | AE49: 1 | AF49: 1 | AL49: 10004719.46
B50: D0022 District South | D50: District | E50: South | F50: General Recreation | H50: 4778.79 | I50: 1419.859968 | J50: 6785212.614 | L50: 1 | M50: 6785212.614 | P50: 0 | R50: 2016 | S50: =IFERROR(('General Input Sheet'!$G$38/(VLOOKUP(R50,'General Input Sheet'!$E$38:$G$44,3,FALSE))),1) -> 1 | T50: 6785212.614 | Y50: y | AE50: 1 | AF50: 1 | AL50: 6785212.614
B51: D0023 District South | D51: District | E51: South | F51: General Recreation | H51: 18066.41 | I51: 415.7071539 | J51: 7510335.882 | L51: 1 | M51: 7510335.882 | O51: 18066.42305 | P51: 82.32952343 | Q51: 1487400 | R51: 2016 | S51: =IFERROR(('General Input Sheet'!$G$38/(VLOOKUP(R51,'General Input Sheet'!$E$38:$G$44,3,FALSE))),1) -> 1 | T51: 8997735.882 | Y51: y | AE51: 1 | AF51: 1 | AL51: 8997735.882
B52: D0024 Local West | D52: Local | E52: West | F52: General Recreation | H52: 6374.05 | I52: 98.84139534 | J52: 630019.996 | L52: 1 | M52: 630019.996 | P52: 0 | R52: 2016 | S52: =IFERROR(('General Input Sheet'!$G$38/(VLOOKUP(R52,'General Input Sheet'!$E$38:$G$44,3,FALSE))),1) -> 1 | T52: 630019.996 | X52: y | AD52: 1 | AF52: 1 | AK52: 630019.996
B53: D0025 District East | D53: District | E53: East | F53: Access / Recreation Corridor | H53: 6789.4 | I53: 187.949144 | J53: 1276061.919 | L53: 1 | M53: 1276061.919 | O53: 10501.08981 | P53: 188.3092169 | Q53: 1977452 | R53: 2016 | S53: =IFERROR(('General Input Sheet'!$G$38/(VLOOKUP(R53,'General Input Sheet'!$E$38:$G$44,3,FALSE))),1) -> 1 | T53: 3253513.919 | Y53: y | AE53: 1 | AF53: 1 | AL53: 3253513.919
B54: D0025 District East | D54: District | E54: East | F54: Specialised Outdoor Sport | H54: 45343.5 | I54: 204.6639881 | J54: 9280181.546 | L54: 1 | M54: 9280181.546 | P54: 0 | R54: 2016 | S54: =IFERROR(('General Input Sheet'!$G$38/(VLOOKUP(R54,'General Input Sheet'!$E$38:$G$44,3,FALSE))),1) -> 1 | T54: 9280181.546 | Y54: y | AE54: 1 | AF54: 1 | AL54: 9280181.546
B55: D0025 Local East | D55: Local | E55: East | F55: General Recreation | H55: 13406.04 | I55: 51.46871428 | J55: 689991.6424 | L55: 1 | M55: 689991.6424 | O55: 53468.25595 | P55: 114.6247412 | Q55: 6128785 | R55: 2016 | S55: =IFERROR(('General Input Sheet'!$G$38/(VLOOKUP(R55,'General Input Sheet'!$E$38:$G$44,3,FALSE))),1) -> 1 | T55: 6818776.642 | U55: y | AA55: 1 | AF55: 1 | AH55: 6818776.642
B56: D0026 Local East | D56: Local | E56: East | F56: General Recreation | H56: 2137.82 | I56: 221.6138921 | J56: 473770.6108 | L56: 1 | M56: 473770.6108 | P56: 0 | R56: 2016 | S56: =IFERROR(('General Input Sheet'!$G$38/(VLOOKUP(R56,'General Input Sheet'!$E$38:$G$44,3,FALSE))),1) -> 1 | T56: 473770.6108 | U56: y | AA56: 1 | AF56: 1 | AH56: 473770.6108
B57: D0027 District East | D57: District | E57: East | F57: Specialised Outdoor Sport | H57: 8620.8 | I57: 904.9487796 | J57: 7801382.44 | L57: 1 | M57: 7801382.44 | O57: 26914.26125 | P57: 249.913603 | Q57: 6726240 | R57: 2016 | S57: =IFERROR(('General Input Sheet'!$G$38/(VLOOKUP(R57,'General Input Sheet'!$E$38:$G$44,3,FALSE))),1) -> 1 | T57: 14527622.44 | Y57: y | AE57: 1 | AF57: 1 | AL57: 14527622.44
B58: D0027 Local East | D58: Local | E58: East | F58: General Recreation | H58: 18293.51 | I58: 37.71783777 | J58: 689991.6424 | L58: 1 | M58: 689991.6424 | P58: 0 | R58: 2016 | S58: =IFERROR(('General Input Sheet'!$G$38/(VLOOKUP(R58,'General Input Sheet'!$E$38:$G$44,3,FALSE))),1) -> 1 | T58: 689991.6424 | U58: y | AA58: 1 | AF58: 1 | AH58: 689991.6424
B59: D0028 District East | D59: District | E59: East | F59: Specialised Outdoor Sport | H59: 9903.74 | I59: 793.8256868 | J59: 7861843.207 | L59: 1 | M59: 7861843.207 | P59: 0 | R59: 2016 | S59: =IFERROR(('General Input Sheet'!$G$38/(VLOOKUP(R59,'General Input Sheet'!$E$38:$G$44,3,FALSE))),1) -> 1 | T59: 7861843.207 | Y59: y | AE59: 1 | AF59: 1 | AL59: 7861843.207
B60: D0028 Local East | D60: Local | E60: East | F60: General Outdoor Sport | H60: 3171.19 | I60: 269.3477738 | J60: 854152.9669 | L60: 1 | M60: 854152.9669 | P60: 0 | R60: 2016 | S60: =IFERROR(('General Input Sheet'!$G$38/(VLOOKUP(R60,'General Input Sheet'!$E$38:$G$44,3,FALSE))),1) -> 1 | T60: 854152.9669 | U60: y | AA60: 1 | AF60: 1 | AH60: 854152.9669
B61: D0028 Local East | D61: Local | E61: East | F61: General Recreation | H61: 19452.83 | I61: 35.46998778 | J61: 689991.6424 | L61: 1 | M61: 689991.6424 | P61: 0 | R61: 2016 | S61: =IFERROR(('General Input Sheet'!$G$38/(VLOOKUP(R61,'General Input Sheet'!$E$38:$G$44,3,FALSE))),1) -> 1 | T61: 689991.6424 | U61: y | AA61: 1 | AF61: 1 | AH61: 689991.6424
B62: D0028 Local East | D62: Local | E62: East | F62: Nature Recreation | H62: 67611.37 | I62: 5.641612224 | J62: 381437.1314 | L62: 1 | M62: 381437.1314 | P62: 0 | R62: 2016 | S62: =IFERROR(('General Input Sheet'!$G$38/(VLOOKUP(R62,'General Input Sheet'!$E$38:$G$44,3,FALSE))),1) -> 1 | T62: 381437.1314 | U62: y | AA62: 1 | AF62: 1 | AH62: 381437.1314
B63: D0029 District East | D63: District | E63: East | F63: General Outdoor Sport | H63: 27891.74 | I63: 281.4612715 | J63: 7850444.604 | L63: 1 | M63: 7850444.604 | P63: 0 | R63: 2016 | S63: =IFERROR(('General Input Sheet'!$G$38/(VLOOKUP(R63,'General Input Sheet'!$E$38:$G$44,3,FALSE))),1) -> 1 | T63: 7850444.604 | Y63: y | AE63: 1 | AF63: 1 | AL63: 7850444.604
B64: D0029 Local East | D64: Local | E64: East | F64: General Recreation | H64: 6876.3 | I64: 94.31598649 | J64: 648545.0179 | L64: 1 | M64: 648545.0179 | O64: 34768.13722 | P64: 464.9596749 | Q64: 16165781.78 | R64: 2016 | S64: =IFERROR(('General Input Sheet'!$G$38/(VLOOKUP(R64,'General Input Sheet'!$E$38:$G$44,3,FALSE))),1) -> 1 | T64: 16814326.8 | U64: y | AA64: 1 | AF64: 1 | AH64: 16814326.8
B65: D0030 District East | D65: District | E65: East | F65: General Outdoor Sport | H65: 29771.93 | I65: 266.5537285 | J65: 7935818.948 | L65: 1 | M65: 7935818.948 | O65: 39087.5716 | P65: 170.5397349 | Q65: 6665984.1 | R65: 2016 | S65: =IFERROR(('General Input Sheet'!$G$38/(VLOOKUP(R65,'General Input Sheet'!$E$38:$G$44,3,FALSE))),1) -> 1 | T65: 14601803.05 | Y65: y | AE65: 1 | AF65: 1 | AL65: 14601803.05
B66: D0030 District East | D66: District | E66: East | F66: General Recreation | H66: 11134.98 | I66: 640.5111135 | J66: 7132078.438 | L66: 1 | M66: 7132078.438 | P66: 0 | R66: 2016 | S66: =IFERROR(('General Input Sheet'!$G$38/(VLOOKUP(R66,'General Input Sheet'!$E$38:$G$44,3,FALSE))),1) -> 1 | T66: 7132078.438 | Y66: y | AE66: 1 | AF66: 1 | AL66: 7132078.438
B67: D0031 District East | D67: District | E67: East | I67: 0 | L67: 1 | M67: 0 | O67: 13116.22057 | P67: 54.73451183 | Q67: 717909.93 | R67: 2016 | S67: =IFERROR(('General Input Sheet'!$G$38/(VLOOKUP(R67,'General Input Sheet'!$E$38:$G$44,3,FALSE))),1) -> 1 | T67: 717909.93 | Y67: y | AE67: 1 | AF67: 1 | AL67: 717909.93
B68: D0031 Local East | D68: Local | E68: East | F68: General Outdoor Sport | H68: 10781.94 | I68: 99.14247574 | J68: 1068948.225 | L68: 1 | M68: 1068948.225 | O68: 19458.88919 | P68: 61.57596862 | Q68: 1198199.95 | R68: 2016 | S68: =IFERROR(('General Input Sheet'!$G$38/(VLOOKUP(R68,'General Input Sheet'!$E$38:$G$44,3,FALSE))),1) -> 1 | T68: 2267148.175 | U68: y | AA68: 1 | AF68: 1 | AH68: 2267148.175
B69: D0031 Local East | D69: Local | E69: East | F69: General Recreation | H69: 21793.21 | I69: 31.66085411 | J69: 689991.6424 | L69: 1 | M69: 689991.6424 | P69: 0 | R69: 2016 | S69: =IFERROR(('General Input Sheet'!$G$38/(VLOOKUP(R69,'General Input Sheet'!$E$38:$G$44,3,FALSE))),1) -> 1 | T69: 689991.6424 | U69: y | AA69: 1 | AF69: 1 | AH69: 689991.6424
B70: D0032 Local East | D70: Local | E70: East | F70: General Outdoor Sport | H70: 11036.69 | I70: 96.85405904 | J70: 1068948.225 | L70: 1 | M70: 1068948.225 | O70: 23832.9358 | P70: 310.7736731 | Q70: 7406649 | R70: 2016 | S70: =IFERROR(('General Input Sheet'!$G$38/(VLOOKUP(R70,'General Input Sheet'!$E$38:$G$44,3,FALSE))),1) -> 1 | T70: 8475597.225 | U70: y | AA70: 1 | AF70: 1 | AH70: 8475597.225
B71: D0032 Local East | D71: Local | E71: East | F71: General Recreation | H71: 17896.24 | I71: 38.55511786 | J71: 689991.6424 | L71: 1 | M71: 689991.6424 | P71: 0 | R71: 2016 | S71: =IFERROR(('General Input Sheet'!$G$38/(VLOOKUP(R71,'General Input Sheet'!$E$38:$G$44,3,FALSE))),1) -> 1 | T71: 689991.6424 | U71: y | AA71: 1 | AF71: 1 | AH71: 689991.6424
B72: D0033 District East | D72: District | E72: East | F72: Specialised Outdoor Sport | H72: 9585.78 | I72: 818.593666 | J72: 7846858.792 | L72: 1 | M72: 7846858.792 | O72: 10224.78837 | P72: 517.2697083 | Q72: 5288973.3 | R72: 2016 | S72: =IFERROR(('General Input Sheet'!$G$38/(VLOOKUP(R72,'General Input Sheet'!$E$38:$G$44,3,FALSE))),1) -> 1 | T72: 13135832.09 | Y72: y | AE72: 1 | AF72: 1 | AL72: 13135832.09
B73: D0033 Local East | D73: Local | E73: East | F73: General Outdoor Sport | H73: 5037.8 | I73: 181.203269 | J73: 912865.8285 | L73: 1 | M73: 912865.8285 | O73: 5540.487104 | P73: 399.1639649 | Q73: 2211562.8 | R73: 2016 | S73: =IFERROR(('General Input Sheet'!$G$38/(VLOOKUP(R73,'General Input Sheet'!$E$38:$G$44,3,FALSE))),1) -> 1 | T73: 3124428.628 | U73: y | AA73: 1 | AF73: 1 | AH73: 3124428.628
B74: D0033 Local East | D74: Local | E74: East | F74: General Recreation | H74: 16129.21 | I74: 42.7790104 | J74: 689991.6424 | L74: 1 | M74: 689991.6424 | P74: 0 | R74: 2016 | S74: =IFERROR(('General Input Sheet'!$G$38/(VLOOKUP(R74,'General Input Sheet'!$E$38:$G$44,3,FALSE))),1) -> 1 | T74: 689991.6424 | U74: y | AA74: 1 | AF74: 1 | AH74: 689991.6424
B75: D0034 District East | D75: District | E75: East | F75: General Outdoor Sport | H75: 22509.64 | I75: 337.9022498 | J75: 7606057.998 | L75: 1 | M75: 7606057.998 | P75: 0 | R75: 2016 | S75: =IFERROR(('General Input Sheet'!$G$38/(VLOOKUP(R75,'General Input Sheet'!$E$38:$G$44,3,FALSE))),1) -> 1 | T75: 7606057.998 | Y75: y | AE75: 1 | AF75: 1 | AL75: 7606057.998
B76: D0034 Local East | D76: Local | E76: East | F76: General Recreation | H76: 18455.03 | I76: 37.38772803 | J76: 689991.6424 | L76: 1 | M76: 689991.6424 | O76: 40964.64604 | P76: 93.45881559 | Q76: 3828507.3 | R76: 2016 | S76: =IFERROR(('General Input Sheet'!$G$38/(VLOOKUP(R76,'General Input Sheet'!$E$38:$G$44,3,FALSE))),1) -> 1 | T76: 4518498.942 | U76: y | AA76: 1 | AF76: 1 | AH76: 4518498.942
B77: D0035 District East | D77: District | E77: East | F77: General Outdoor Sport | H77: 54586.98 | I77: 153.8873912 | J77: 8400247.946 | L77: 1 | M77: 8400247.946 | P77: 0 | R77: 2016 | S77: =IFERROR(('General Input Sheet'!$G$38/(VLOOKUP(R77,'General Input Sheet'!$E$38:$G$44,3,FALSE))),1) -> 1 | T77: 8400247.946 | Y77: y | AE77: 1 | AF77: 1 | AL77: 8400247.946
B78: D0035 Local East | D78: Local | E78: East | F78: General Recreation | H78: 25517.86 | I78: 27.03955749 | J78: 689991.6424 | L78: 1 | M78: =IFERROR(J78/100*100*L78,0) -> 689991.6424 | P78: 0 | R78: 2016 | S78: =IFERROR(('General Input Sheet'!$G$38/(VLOOKUP(R78,'General Input Sheet'!$E$38:$G$44,3,FALSE))),1) -> 1 | T78: 689991.6424 | U78: y | AA78: =IF(U78="y",1,"") -> 1 | AB78: =IF(V78="y",1,"") ->  | AF78: =SUM(AA78:AE78) -> 1 | AH78: =IF(AA78="","",(AA78/$AF78)*$T78) -> 689991.6424 | AI78: =IF(AB78="","",(AB78/$AF78)*$T78) ->  | AJ78: =IF(AC78="","",(AC78/$AF78)*$T78) ->  | AK78: =IF(AD78="","",(AD78/$AF78)*$T78) ->  | AL78: =IF(AE78="","",(AE78/$AF78)*$T78) -> 
B79: D0035 Metropolitan East | D79: Metropolitan | E79: East | F79: General Recreation | H79: 43940 | I79: =IFERROR(J79/H79,0) -> 264.2053986 | J79: 11609185.22 | L79: =IF(K79="",1,VLOOKUP(K79,PArksitecond,2,FALSE)) -> 1 | M79: 6833085.325 | P79: 0 | R79: 2016 | S79: =IFERROR(('General Input Sheet'!$G$38/(VLOOKUP(R79,'General Input Sheet'!$E$38:$G$44,3,FALSE))),1) -> 1 | T79: 11609185.22 | U79: =IF(AND(U$10=$E79,$D79="Local"),"y","") ->  | Y79: =IF($D79<>"Local","y","") -> y | AC79: =IF(W79="y",1,"") ->  | AD79: =IF(X79="y",1,"") ->  | AE79: =IF(Y79="y",1,"") -> 1 | AF79: 1 | AL79: 11609185.22
B80: D0035 Metropolitan East | D80: Metropolitan | E80: East | F80: Specialised Outdoor Sport | H80: 35973.12 | I80: 401.9743251 | J80: 14460270.63 | L80: 1 | M80: 7798856.468 | P80: =IFERROR(Q80/O80,0) -> 0 | R80: 2016 | S80: =IFERROR(('General Input Sheet'!$G$38/(VLOOKUP(R80,'General Input Sheet'!$E$38:$G$44,3,FALSE))),1) -> 1 | T80: 14460270.63 | Y80: y | AE80: 1 | AF80: 1 | AL80: 14460270.63
B81: D0036 District East | D81: District | E81: East | F81: General Recreation | H81: 5656.04 | I81: 1208.104137 | J81: 6833085.325 | L81: 1 | M81: =IFERROR(J81/100*100*L81,0) -> 6833085.325 | O81: 5656.0086 | P81: 712.5165969 | Q81: 4030000 | R81: 2016 | S81: =IFERROR(('General Input Sheet'!$G$38/(VLOOKUP(R81,'General Input Sheet'!$E$38:$G$44,3,FALSE))),1) -> 1 | T81: 10863085.32 | Y81: y | AE81: 1 | AF81: 1 | AL81: 10863085.32
B82: D0037 District East | D82: District | E82: East | F82: General Outdoor Sport | H82: 26755.62 | I82: 291.4847971 | J82: 7798856.468 | L82: 1 | M82: 7798856.468 | P82: 0 | R82: 2016 | S82: =IFERROR(('General Input Sheet'!$G$38/(VLOOKUP(R82,'General Input Sheet'!$E$38:$G$44,3,FALSE))),1) -> 1 | T82: 7798856.468 | Y82: y | AE82: 1 | AF82: 1 | AL82: 7798856.468
B83: D0037 District East | D83: District | E83: East | F83: General Recreation | H83: 31093.22 | I83: 262.4870603 | J83: 8161567.914 | L83: 1 | M83: 8161567.914 | P83: 0 | R83: 2016 | S83: =IFERROR(('General Input Sheet'!$G$38/(VLOOKUP(R83,'General Input Sheet'!$E$38:$G$44,3,FALSE))),1) -> 1 | T83: 8161567.914 | Y83: y | AE83: 1 | AF83: 1 | AL83: 8161567.914
B84: D0037 Local East | D84: Local | E84: East | F84: General Outdoor Sport | H84: 12658.5 | I84: 84.44509419 | J84: 1068948.225 | L84: 1 | M84: 1068948.225 | O84: 70507.35389 | P84: 109.1733691 | Q84: 7697525.37 | R84: 2016 | S84: =IFERROR(('General Input Sheet'!$G$38/(VLOOKUP(R84,'General Input Sheet'!$E$38:$G$44,3,FALSE))),1) -> 1 | T84: 8766473.595 | U84: y | AA84: 1 | AF84: 1 | AH84: 8766473.595
B85: D0038 Local East | D85: Local | E85: East | F85: General Recreation | H85: 7534.59 | I85: 89.2982139 | J85: 672825.4294 | L85: 1 | M85: 672825.4294 | O85: 7534.538555 | P85: 320.8439352 | Q85: 2417411 | R85: 2016 | S85: =IFERROR(('General Input Sheet'!$G$38/(VLOOKUP(R85,'General Input Sheet'!$E$38:$G$44,3,FALSE))),1) -> 1 | T85: 3090236.429 | U85: y | AA85: 1 | AF85: 1 | AH85: 3090236.429
B86: D0039 District East | D86: District | E86: East | F86: Access / Recreation Corridor | H86: 2206.84 | I86: 485.734227 | J86: 1071937.722 | L86: 1 | M86: 1071937.722 | P86: 0 | R86: 2016 | S86: =IFERROR(('General Input Sheet'!$G$38/(VLOOKUP(R86,'General Input Sheet'!$E$38:$G$44,3,FALSE))),1) -> 1 | T86: 1071937.722 | Y86: y | AE86: 1 | AF86: 1 | AL86: 1071937.722
B87: D0039 District East | D87: District | E87: East | F87: Specialised Outdoor Sport | H87: 42319.24 | I87: 219.2898915 | J87: 9280181.546 | L87: 1 | M87: 9280181.546 | P87: 0 | R87: 2016 | S87: =IFERROR(('General Input Sheet'!$G$38/(VLOOKUP(R87,'General Input Sheet'!$E$38:$G$44,3,FALSE))),1) -> 1 | T87: 9280181.546 | Y87: y | AE87: 1 | AF87: 1 | AL87: 9280181.546
B88: D0039 Local East | D88: Local | E88: East | F88: General Recreation | H88: 7518.31 | I88: 89.41171046 | J88: 672224.9569 | L88: 1 | M88: 672224.9569 | O88: 719.4488901 | P88: 1304.986376 | Q88: 938871 | R88: 2016 | S88: =IFERROR(('General Input Sheet'!$G$38/(VLOOKUP(R88,'General Input Sheet'!$E$38:$G$44,3,FALSE))),1) -> 1 | T88: 1611095.957 | U88: y | AA88: 1 | AF88: 1 | AH88: 1611095.957
B89: D0040 District East | D89: District | E89: East | F89: General Recreation | H89: 103910.62 | I89: 78.54411718 | J89: 8161567.914 | L89: 1 | M89: 8161567.914 | O89: 457581.4379 | P89: 10.32476198 | Q89: 4724419.43 | R89: 2016 | S89: =IFERROR(('General Input Sheet'!$G$38/(VLOOKUP(R89,'General Input Sheet'!$E$38:$G$44,3,FALSE))),1) -> 1 | T89: 12885987.34 | Y89: y | AE89: 1 | AF89: 1 | AL89: 12885987.34
B90: D0040 Metropolitan East | D90: Metropolitan | E90: East | F90: Specialised Outdoor Sport | H90: 162582.89 | I90: 98.96713993 | J90: 16090363.62 | L90: 1 | M90: 473022.2331 | P90: 0 | R90: 2016 | S90: =IFERROR(('General Input Sheet'!$G$38/(VLOOKUP(R90,'General Input Sheet'!$E$38:$G$44,3,FALSE))),1) -> 1 | T90: 16090363.62 | Y90: y | AE90: 1 | AF90: 1 | AL90: 16090363.62
B91: D0041 Local East | D91: Local | E91: East | I91: 0 | L91: 1 | M91: =IFERROR(J91/100*100*L91,0) -> 0 | O91: 0 | P91: 0 | Q91: 0 | R91: 2016 | S91: =IFERROR(('General Input Sheet'!$G$38/(VLOOKUP(R91,'General Input Sheet'!$E$38:$G$44,3,FALSE))),1) -> 1 | T91: 0 | U91: y | AA91: 1 | AF91: 1 | AH91: 0
B92: D0042 Local East | D92: Local | E92: East | F92: General Recreation | H92: 9690.43 | I92: 71.20340815 | J92: 689991.6424 | L92: 1 | M92: 689991.6424 | O92: 9690.419803 | P92: 297.4827777 | Q92: 2882733 | R92: 2016 | S92: =IFERROR(('General Input Sheet'!$G$38/(VLOOKUP(R92,'General Input Sheet'!$E$38:$G$44,3,FALSE))),1) -> 1 | T92: 3572724.642 | U92: y | AA92: 1 | AF92: 1 | AH92: 3572724.642
B93: D0044 Local East | D93: Local | E93: East | F93: General Recreation | H93: 2117.53 | I93: 223.3839582 | J93: 473022.2331 | L93: 1 | M93: 473022.2331 | O93: 2032.196153 | P93: 321.9972143 | Q93: 654361.5 | R93: 2016 | S93: =IFERROR(('General Input Sheet'!$G$38/(VLOOKUP(R93,'General Input Sheet'!$E$38:$G$44,3,FALSE))),1) -> 1 | T93: 1127383.733 | U93: y | AA93: 1 | AF93: 1 | AH93: 1127383.733
B94: D0045 District East | D94: District | E94: East | F94: Specialised Outdoor Sport | H94: 8614.5 | I94: 905.5761264 | J94: 7801085.541 | L94: 1 | M94: 7801085.541 | O94: 7699.740466 | P94: 207.1989656 | Q94: 1595378.26 | R94: 2016 | S94: =IFERROR(('General Input Sheet'!$G$38/(VLOOKUP(R94,'General Input Sheet'!$E$38:$G$44,3,FALSE))),1) -> 1 | T94: 9396463.801 | Y94: y | AE94: 1 | AF94: 1 | AL94: 9396463.801
B95: D0045 Local East | D95: Local | E95: East | F95: General Recreation | H95: 41109.4416 | I95: 16.78426209 | J95: 689991.6424 | L95: 1 | M95: 689991.6424 | O95: 11258.9697 | P95: 97.72324014 | Q95: 1100263 | R95: 2016 | S95: =IFERROR(('General Input Sheet'!$G$38/(VLOOKUP(R95,'General Input Sheet'!$E$38:$G$44,3,FALSE))),1) -> 1 | T95: 1790254.642 | U95: y | AA95: 1 | AF95: 1 | AH95: 1790254.642
B96: D0046 Local East | D96: Local | E96: East | F96: General Recreation | H96: 14288.91 | I96: 48.28861281 | J96: 689991.6424 | L96: 1 | M96: 689991.6424 | O96: 14288.91041 | P96: 133.8553428 | Q96: 1912647 | R96: 2016 | S96: =IFERROR(('General Input Sheet'!$G$38/(VLOOKUP(R96,'General Input Sheet'!$E$38:$G$44,3,FALSE))),1) -> 1 | T96: 2602638.642 | U96: y | AA96: 1 | AF96: 1 | AH96: 2602638.642
B97: D0047 Local East | D97: Local | E97: East | I97: 0 | L97: 1 | M97: 0 | O97: 0 | P97: 0 | Q97: 0 | R97: 2016 | S97: =IFERROR(('General Input Sheet'!$G$38/(VLOOKUP(R97,'General Input Sheet'!$E$38:$G$44,3,FALSE))),1) -> 1 | T97: 0 | U97: y | AA97: 1 | AF97: 1 | AH97: 0
B98: D0049 Local East | D98: Local | E98: East | F98: Access / Recreation Corridor | H98: 5558.33 | I98: 84.78767298 | J98: 471277.8664 | L98: 1 | M98: 471277.8664 | O98: 3760.107106 | P98: 61.22963882 | Q98: 230230 | R98: 2016 | S98: =IFERROR(('General Input Sheet'!$G$38/(VLOOKUP(R98,'General Input Sheet'!$E$38:$G$44,3,FALSE))),1) -> 1 | T98: 701507.8664 | U98: y | AA98: 1 | AF98: 1 | AH98: 701507.8664
B99: D0050 District East | D99: District | E99: East | F99: General Outdoor Sport | H99: 17295.35 | I99: 426.0851148 | J99: 7369291.191 | L99: 1 | M99: 7369291.191 | O99: 48275.75631 | P99: 112.0191179 | Q99: 5407807.64 | R99: 2016 | S99: =IFERROR(('General Input Sheet'!$G$38/(VLOOKUP(R99,'General Input Sheet'!$E$38:$G$44,3,FALSE))),1) -> 1 | T99: 12777098.83 | Y99: y | AE99: 1 | AF99: 1 | AL99: 12777098.83
B100: D0050 District East | D100: District | E100: East | F100: General Recreation | H100: 31786.96 | I100: 256.7583661 | J100: 8161567.914 | L100: 1 | M100: 8161567.914 | P100: 0 | R100: 2016 | S100: =IFERROR(('General Input Sheet'!$G$38/(VLOOKUP(R100,'General Input Sheet'!$E$38:$G$44,3,FALSE))),1) -> 1 | T100: 8161567.914 | Y100: y | AE100: 1 | AF100: 1 | AL100: 8161567.914
B101: D0051 District East | D101: District | E101: East | F101: General Outdoor Sport | H101: 154767.43 | I101: 54.27658743 | J101: 8400247.946 | L101: 1 | M101: 8400247.946 | O101: 288712.2523 | P101: 18.89389081 | Q101: 5454897.77 | R101: 2016 | S101: =IFERROR(('General Input Sheet'!$G$38/(VLOOKUP(R101,'General Input Sheet'!$E$38:$G$44,3,FALSE))),1) -> 1 | T101: 13855145.72 | Y101: y | AE101: 1 | AF101: 1 | AL101: 13855145.72
B102: D0051 District East | D102: District | E102: East | F102: General Recreation | H102: 100322.84 | I102: 81.35303899 | J102: 8161567.914 | L102: 1 | M102: 8161567.914 | P102: 0 | R102: 2016 | S102: =IFERROR(('General Input Sheet'!$G$38/(VLOOKUP(R102,'General Input Sheet'!$E$38:$G$44,3,FALSE))),1) -> 1 | T102: 8161567.914 | Y102: y | AE102: 1 | AF102: 1 | AL102: 8161567.914
B103: D0051 District East | D103: District | E103: East | F103: Specialised Outdoor Sport | H103: 33621.78 | I103: 267.0767845 | J103: 8979596.89 | L103: 1 | M103: 8979596.89 | P103: 0 | R103: 2016 | S103: =IFERROR(('General Input Sheet'!$G$38/(VLOOKUP(R103,'General Input Sheet'!$E$38:$G$44,3,FALSE))),1) -> 1 | T103: 8979596.89 | Y103: y | AE103: 1 | AF103: 1 | AL103: 8979596.89
B104: D0052 Local East | D104: Local | E104: East | F104: General Recreation | H104: 2018.81 | I104: 232.5038206 | J104: 469381.0381 | L104: 1 | M104: 469381.0381 | P104: 0 | R104: 2016 | S104: =IFERROR(('General Input Sheet'!$G$38/(VLOOKUP(R104,'General Input Sheet'!$E$38:$G$44,3,FALSE))),1) -> 1 | T104: 469381.0381 | U104: y | AA104: 1 | AF104: 1 | AH104: 469381.0381
B105: D0053 Local East | D105: Local | E105: East | F105: General Recreation | H105: 4032.45 | I105: 134.8193451 | J105: 543652.268 | L105: 1 | M105: 543652.268 | O105: 4032.463474 | P105: 468.4878144 | Q105: 1889160 | R105: 2016 | S105: =IFERROR(('General Input Sheet'!$G$38/(VLOOKUP(R105,'General Input Sheet'!$E$38:$G$44,3,FALSE))),1) -> 1 | T105: 2432812.268 | U105: y | AA105: 1 | AF105: 1 | AH105: 2432812.268
B106: D0054 Local East | D106: Local | E106: East | F106: General Recreation | H106: 19970.68 | I106: 34.55023276 | J106: 689991.6424 | L106: 1 | M106: 689991.6424 | O106: 19970.7353 | P106: 130.4598935 | Q106: 2605380 | R106: 2016 | S106: =IFERROR(('General Input Sheet'!$G$38/(VLOOKUP(R106,'General Input Sheet'!$E$38:$G$44,3,FALSE))),1) -> 1 | T106: 3295371.642 | U106: y | AA106: 1 | AF106: 1 | AH106: 3295371.642
B107: D0055 Local East | D107: Local | E107: East | F107: General Recreation | H107: 4022.42 | I107: 135.063549 | J107: 543282.3208 | L107: 1 | M107: 543282.3208 | O107: 4022.419895 | P107: 151.1826254 | Q107: 608120 | R107: 2016 | S107: =IFERROR(('General Input Sheet'!$G$38/(VLOOKUP(R107,'General Input Sheet'!$E$38:$G$44,3,FALSE))),1) -> 1 | T107: 1151402.321 | U107: y | AA107: 1 | AF107: 1 | AH107: 1151402.321
B108: D0056 District East | D108: District | E108: East | F108: General Outdoor Sport | H108: 152404.19 | I108: 55.11822179 | J108: 8400247.946 | L108: 1 | M108: 8400247.946 | O108: 377865.7329 | P108: 25.25048772 | Q108: 9541294.05 | R108: 2016 | S108: =IFERROR(('General Input Sheet'!$G$38/(VLOOKUP(R108,'General Input Sheet'!$E$38:$G$44,3,FALSE))),1) -> 1 | T108: 17941542 | Y108: y | AE108: 1 | AF108: 1 | AL108: 17941542
B109: D0056 District East | D109: District | E109: East | F109: General Recreation | H109: 74598.17 | I109: 109.4070795 | J109: 8161567.914 | L109: 1 | M109: 8161567.914 | P109: 0 | R109: 2016 | S109: =IFERROR(('General Input Sheet'!$G$38/(VLOOKUP(R109,'General Input Sheet'!$E$38:$G$44,3,FALSE))),1) -> 1 | T109: 8161567.914 | Y109: y | AE109: 1 | AF109: 1 | AL109: 8161567.914
B110: D0056;D0867 District East | D110: District | E110: East | I110: 0 | L110: 1 | M110: 0 | O110: 148.2033401 | P110: 38.31890695 | Q110: 5678.99 | R110: 2016 | S110: =IFERROR(('General Input Sheet'!$G$38/(VLOOKUP(R110,'General Input Sheet'!$E$38:$G$44,3,FALSE))),1) -> 1 | T110: 5678.99 | Y110: y | AE110: 1 | AF110: 1 | AL110: 5678.99
B111: D0057 Local East | D111: Local | E111: East | F111: Access / Recreation Corridor | H111: 8901.8 | I111: 66.3108223 | J111: 590285.678 | L111: 1 | M111: 590285.678 | P111: 0 | R111: 2016 | S111: =IFERROR(('General Input Sheet'!$G$38/(VLOOKUP(R111,'General Input Sheet'!$E$38:$G$44,3,FALSE))),1) -> 1 | T111: 590285.678 | U111: y | AA111: 1 | AF111: 1 | AH111: 590285.678
B112: D0059 Local East | D112: Local | E112: East | F112: General Recreation | H112: 48045.68 | I112: 14.36115885 | J112: 689991.6424 | L112: 1 | M112: 689991.6424 | O112: 21004.90068 | P112: 84.5643494 | Q112: 1776265.76 | R112: 2016 | S112: =IFERROR(('General Input Sheet'!$G$38/(VLOOKUP(R112,'General Input Sheet'!$E$38:$G$44,3,FALSE))),1) -> 1 | T112: 2466257.402 | U112: y | AA112: 1 | AF112: 1 | AH112: 2466257.402
B113: D0060 Local East | D113: Local | E113: East | F113: General Recreation | H113: 1284.19 | I113: 344.407966 | J113: 442285.2659 | L113: 1 | M113: 442285.2659 | P113: 0 | R113: 2016 | S113: =IFERROR(('General Input Sheet'!$G$38/(VLOOKUP(R113,'General Input Sheet'!$E$38:$G$44,3,FALSE))),1) -> 1 | T113: 442285.2659 | U113: y | AA113: 1 | AF113: 1 | AH113: 442285.2659
B114: D0061 Local East | D114: Local | E114: East | F114: General Recreation | H114: 18212.94 | I114: 37.8846931 | J114: 689991.6424 | L114: 1 | M114: 689991.6424 | P114: 0 | R114: 2016 | S114: =IFERROR(('General Input Sheet'!$G$38/(VLOOKUP(R114,'General Input Sheet'!$E$38:$G$44,3,FALSE))),1) -> 1 | T114: 689991.6424 | U114: y | AA114: 1 | AF114: 1 | AH114: 689991.6424
B115: D0062 District East | D115: District | E115: East | F115: General Outdoor Sport | H115: 3132.46 | I115: 2147.255721 | J115: 6726192.657 | L115: 1 | M115: 6726192.657 | O115: 51548.5117 | P115: 110.684401 | Q115: 5705616.14 | R115: 2016 | S115: =IFERROR(('General Input Sheet'!$G$38/(VLOOKUP(R115,'General Input Sheet'!$E$38:$G$44,3,FALSE))),1) -> 1 | T115: 12431808.8 | Y115: y | AE115: 1 | AF115: 1 | AL115: 12431808.8
B116: D0062 District East | D116: District | E116: East | F116: General Recreation | H116: 48415.92 | I116: 168.5719886 | J116: 8161567.914 | L116: 1 | M116: 8161567.914 | P116: 0 | R116: 2016 | S116: =IFERROR(('General Input Sheet'!$G$38/(VLOOKUP(R116,'General Input Sheet'!$E$38:$G$44,3,FALSE))),1) -> 1 | T116: 8161567.914 | Y116: y | AE116: 1 | AF116: 1 | AL116: 8161567.914
B117: D0063 Local East | D117: Local | E117: East | F117: General Recreation | H117: 6635.14 | I117: 96.40340018 | J117: 639650.0566 | L117: 1 | M117: 639650.0566 | O117: 6635.123792 | P117: 268.1226539 | Q117: 1779027 | R117: 2016 | S117: =IFERROR(('General Input Sheet'!$G$38/(VLOOKUP(R117,'General Input Sheet'!$E$38:$G$44,3,FALSE))),1) -> 1 | T117: 2418677.057 | U117: y | AA117: 1 | AF117: 1 | AH117: 2418677.057
B118: D0064 District East | D118: District | E118: East | F118: General Recreation | H118: 69337.38 | I118: 117.7080518 | J118: 8161567.914 | L118: 1 | M118: 8161567.914 | O118: 56013.29509 | P118: 84.1128877 | Q118: 4711440 | R118: 2016 | S118: =IFERROR(('General Input Sheet'!$G$38/(VLOOKUP(R118,'General Input Sheet'!$E$38:$G$44,3,FALSE))),1) -> 1 | T118: 12873007.91 | Y118: y | AE118: 1 | AF118: 1 | AL118: 12873007.91
B119: D0065 District East | D119: District | E119: East | I119: 0 | L119: 1 | M119: 0 | O119: 0 | P119: 0 | Q119: 0 | R119: 2016 | S119: =IFERROR(('General Input Sheet'!$G$38/(VLOOKUP(R119,'General Input Sheet'!$E$38:$G$44,3,FALSE))),1) -> 1 | T119: 0 | Y119: y | AE119: 1 | AF119: 1 | AL119: 0
B120: D0066 Local East | D120: Local | E120: East | F120: General Recreation | H120: 3124.42 | I120: 163.2816426 | J120: 510160.4299 | L120: 1 | M120: 510160.4299 | O120: 3124.427999 | P120: 213.8445822 | Q120: 668142 | R120: 2016 | S120: =IFERROR(('General Input Sheet'!$G$38/(VLOOKUP(R120,'General Input Sheet'!$E$38:$G$44,3,FALSE))),1) -> 1 | T120: 1178302.43 | U120: y | AA120: 1 | AF120: 1 | AH120: 1178302.43
B121: D0067 District East | D121: District | E121: East | F121: General Recreation | H121: 9212.18 | I121: 762.8106116 | J121: 7027148.66 | L121: 1 | M121: 7027148.66 | P121: 0 | R121: 2016 | S121: =IFERROR(('General Input Sheet'!$G$38/(VLOOKUP(R121,'General Input Sheet'!$E$38:$G$44,3,FALSE))),1) -> 1 | T121: 7027148.66 | Y121: y | AE121: 1 | AF121: 1 | AL121: 7027148.66
B122: D0067 District East | D122: District | E122: East | F122: Specialised Outdoor Sport | H122: 9933.56 | I122: 791.5841377 | J122: 7863248.526 | L122: 1 | M122: 7863248.526 | P122: 0 | R122: 2016 | S122: =IFERROR(('General Input Sheet'!$G$38/(VLOOKUP(R122,'General Input Sheet'!$E$38:$G$44,3,FALSE))),1) -> 1 | T122: 7863248.526 | Y122: y | AE122: 1 | AF122: 1 | AL122: 7863248.526
B123: D0067 Local East | D123: Local | E123: East | F123: General Recreation | H123: 5672.41 | I123: 106.5051116 | J123: 604140.6602 | L123: 1 | M123: 604140.6602 | P123: 0 | R123: 2016 | S123: =IFERROR(('General Input Sheet'!$G$38/(VLOOKUP(R123,'General Input Sheet'!$E$38:$G$44,3,FALSE))),1) -> 1 | T123: 604140.6602 | U123: y | AA123: 1 | AF123: 1 | AH123: 604140.6602
B124: D0069 Local East | D124: Local | E124: East | F124: General Recreation | H124: 4799.98 | I124: 119.1592246 | J124: 571961.8948 | L124: 1 | M124: 571961.8948 | P124: 0 | R124: 2016 | S124: =IFERROR(('General Input Sheet'!$G$38/(VLOOKUP(R124,'General Input Sheet'!$E$38:$G$44,3,FALSE))),1) -> 1 | T124: 571961.8948 | U124: y | AA124: 1 | AF124: 1 | AH124: 571961.8948
B125: D0071 Metropolitan West | D125: Metropolitan | E125: West | F125: General Recreation | H125: 19130.88 | I125: 569.8754426 | J125: 10902218.71 | L125: 1 | M125: 7572814.026 | P125: 0 | R125: 2016 | S125: =IFERROR(('General Input Sheet'!$G$38/(VLOOKUP(R125,'General Input Sheet'!$E$38:$G$44,3,FALSE))),1) -> 1 | T125: 10902218.71 | Y125: y | AE125: 1 | AF125: 1 | AL125: 10902218.71
B126: D0074 District West | D126: District | E126: West | F126: General Recreation | H126: 11679.68 | I126: 613.1849031 | J126: 7161803.449 | L126: 1 | M126: =IFERROR(J126/100*100*L126,0) -> 7161803.449 | P126: 0 | R126: 2016 | S126: =IFERROR(('General Input Sheet'!$G$38/(VLOOKUP(R126,'General Input Sheet'!$E$38:$G$44,3,FALSE))),1) -> 1 | T126: 7161803.449 | Y126: y | AE126: 1 | AF126: 1 | AL126: 7161803.449
B127: D0075 Metropolitan East | D127: Metropolitan | E127: East | F127: General Recreation | H127: 19829.21 | I127: 552.096659 | J127: 10947640.59 | L127: 1 | M127: 7251685.841 | O127: 13279.33923 | P127: 1007.472719 | Q127: 13378572 | R127: 2016 | S127: =IFERROR(('General Input Sheet'!$G$38/(VLOOKUP(R127,'General Input Sheet'!$E$38:$G$44,3,FALSE))),1) -> 1 | T127: 24326212.59 | Y127: y | AE127: 1 | AF127: 1 | AL127: 24326212.59
B128: D0078 District North | D128: District | E128: North | I128: 0 | L128: 1 | M128: =IFERROR(J128/100*100*L128,0) -> 0 | O128: 21164.69463 | P128: 629.9837447 | Q128: 13333413.58 | R128: 2016 | S128: =IFERROR(('General Input Sheet'!$G$38/(VLOOKUP(R128,'General Input Sheet'!$E$38:$G$44,3,FALSE))),1) -> 1 | T128: 13333413.58 | Y128: y | AE128: 1 | AF128: 1 | AL128: 13333413.58
B129: D0078 Local North | D129: Local | E129: North | F129: General Recreation | H129: 29195.75 | I129: 23.63329054 | J129: 689991.6424 | L129: 1 | M129: 689991.6424 | O129: 8031.058664 | P129: 751.7591705 | Q129: 6037422 | R129: 2016 | S129: =IFERROR(('General Input Sheet'!$G$38/(VLOOKUP(R129,'General Input Sheet'!$E$38:$G$44,3,FALSE))),1) -> 1 | T129: 6727413.642 | V129: y | AB129: 1 | AF129: 1 | AI129: 6727413.642
B130: D0080 District North | D130: District | E130: North | F130: Specialised Outdoor Sport | H130: 3770.72 | I130: 2008.320434 | J130: 7572814.026 | L130: 1 | M130: 7572814.026 | O130: 4740.691727 | P130: 1305.419932 | Q130: 6188593.47 | R130: 2016 | S130: =IFERROR(('General Input Sheet'!$G$38/(VLOOKUP(R130,'General Input Sheet'!$E$38:$G$44,3,FALSE))),1) -> 1 | T130: 13761407.5 | Y130: y | AE130: 1 | AF130: 1 | AL130: 13761407.5
B131: D0080 Metropolitan North | D131: Metropolitan | E131: North | F131: Access / Recreation Corridor | H131: 26261.34 | I131: 81.64380744 | J131: 2144075.786 | L131: 1 | M131: 6716759.959 | O131: 1471.868336 | P131: 1514.960235 | Q131: 2229822 | R131: 2016 | S131: =IFERROR(('General Input Sheet'!$G$38/(VLOOKUP(R131,'General Input Sheet'!$E$38:$G$44,3,FALSE))),1) -> 1 | T131: 4373897.786 | Y131: y | AE131: 1 | AF131: 1 | AL131: 4373897.786
B132: D0081 Local West | D132: Local | E132: West | F132: General Recreation | H132: 372.5591156 | I132: 1096.901392 | J132: 408660.6125 | L132: 1 | M132: =IFERROR(J132/100*100*L132,0) -> 408660.6125 | O132: 372.5776491 | P132: 951.2460042 | Q132: 354413 | R132: 2016 | S132: =IFERROR(('General Input Sheet'!$G$38/(VLOOKUP(R132,'General Input Sheet'!$E$38:$G$44,3,FALSE))),1) -> 1 | T132: 763073.6125 | X132: y | AD132: 1 | AF132: 1 | AK132: 763073.6125
B133: D0082 Metropolitan West | D133: Metropolitan | E133: West | F133: Urban Common | H133: 5227.17 | I133: 344.406506 | J133: 1800271.356 | L133: 1 | M133: 7395738.67 | P133: 0 | R133: 2016 | S133: =IFERROR(('General Input Sheet'!$G$38/(VLOOKUP(R133,'General Input Sheet'!$E$38:$G$44,3,FALSE))),1) -> 1 | T133: 1800271.356 | Y133: y | AE133: 1 | AF133: 1 | AL133: 1800271.356
B134: D0083 Metropolitan West | D134: Metropolitan | E134: West | F134: Access / Recreation Corridor | H134: 19512.13 | I134: 94.52258017 | J134: 1844336.872 | L134: 1 | M134: 7521556.637 | P134: 0 | R134: 2016 | S134: =IFERROR(('General Input Sheet'!$G$38/(VLOOKUP(R134,'General Input Sheet'!$E$38:$G$44,3,FALSE))),1) -> 1 | T134: 1844336.872 | Y134: y | AE134: 1 | AF134: 1 | AL134: 1844336.872
B135: D0083 Metropolitan West | D135: Metropolitan | E135: West | F135: General Outdoor Sport | H135: 32890.49 | I135: 385.9343395 | J135: 12693569.53 | L135: 1 | M135: 1068948.225 | P135: 0 | R135: 2016 | S135: =IFERROR(('General Input Sheet'!$G$38/(VLOOKUP(R135,'General Input Sheet'!$E$38:$G$44,3,FALSE))),1) -> 1 | T135: 12693569.53 | Y135: y | AE135: 1 | AF135: 1 | AL135: 12693569.53
B136: D0083 Metropolitan West | D136: Metropolitan | E136: West | F136: General Recreation | H136: 151565.7 | I136: 76.59506877 | J136: 11609185.22 | L136: 1 | M136: 689991.6424 | P136: 0 | R136: 2016 | S136: =IFERROR(('General Input Sheet'!$G$38/(VLOOKUP(R136,'General Input Sheet'!$E$38:$G$44,3,FALSE))),1) -> 1 | T136: 11609185.22 | Y136: y | AE136: 1 | AF136: 1 | AL136: 11609185.22
B137: D0083 Metropolitan West | D137: Metropolitan | E137: West | F137: Specialised Outdoor Sport | H137: 370030.7 | I137: 43.48386127 | J137: 16090363.62 | L137: 1 | P137: 0 | R137: 2016 | S137: =IFERROR(('General Input Sheet'!$G$38/(VLOOKUP(R137,'General Input Sheet'!$E$38:$G$44,3,FALSE))),1) -> 1 | T137: 16090363.62 | Y137: y | AE137: 1 | AF137: 1 | AL137: 16090363.62
B138: D0084 Metropolitan North | D138: Metropolitan | E138: North | F138: General Recreation | H138: 29625.09 | I138: 391.046904 | J138: 11584799.73 | L138: 1 | O138: 27194.77077 | P138: 633.6276947 | Q138: 17231359.91 | R138: 2016 | S138: =IFERROR(('General Input Sheet'!$G$38/(VLOOKUP(R138,'General Input Sheet'!$E$38:$G$44,3,FALSE))),1) -> 1 | T138: 28816159.64 | Y138: y | AE138: 1 | AF138: 1 | AL138: 28816159.64
B139: D0085 District North | D139: District | E139: North | F139: General Outdoor Sport | H139: 14705.34 | I139: 493.1328239 | J139: 7251685.841 | L139: 1 | M139: =IFERROR(J139/100*100*L139,0) -> 7251685.841 | O139: 92027.59936 | P139: 203.7011117 | Q139: 18746124.3 | R139: 2016 | S139: =IFERROR(('General Input Sheet'!$G$38/(VLOOKUP(R139,'General Input Sheet'!$E$38:$G$44,3,FALSE))),1) -> 1 | T139: 25997810.14 | Y139: y | AE139: 1 | AF139: 1 | AL139: 25997810.14
B140: D0085 District North | D140: District | E140: North | F140: Specialised Outdoor Sport | H140: 27766.26 | I140: 313.4612071 | J140: 8703645.376 | L140: 1 | M140: 8703645.376 | P140: 0 | R140: 2016 | S140: =IFERROR(('General Input Sheet'!$G$38/(VLOOKUP(R140,'General Input Sheet'!$E$38:$G$44,3,FALSE))),1) -> 1 | T140: 8703645.376 | Y140: y | AE140: 1 | AF140: 1 | AL140: 8703645.376
B141: D0085 Local North | D141: Local | E141: North | F141: General Recreation | H141: 3542.21 | I141: 148.3735362 | J141: 525570.2237 | L141: 1 | M141: 525570.2237 | P141: 0 | R141: 2016 | S141: =IFERROR(('General Input Sheet'!$G$38/(VLOOKUP(R141,'General Input Sheet'!$E$38:$G$44,3,FALSE))),1) -> 1 | T141: 525570.2237 | V141: y | AB141: 1 | AF141: 1 | AI141: 525570.2237
B142: D0086 District North | D142: District | E142: North | F142: Specialised Outdoor Sport | H142: 5126.44 | I142: 1489.670156 | J142: 7636704.677 | L142: 1 | M142: 7636704.677 | P142: 0 | R142: 2016 | S142: =IFERROR(('General Input Sheet'!$G$38/(VLOOKUP(R142,'General Input Sheet'!$E$38:$G$44,3,FALSE))),1) -> 1 | T142: 7636704.677 | X142: =IF(AND(X$10=$E142,$D142="Local"),"y","") ->  | Y142: y | AA142: =IF(U142="y",1,"") ->  | AB142: =IF(V142="y",1,"") ->  | AE142: 1 | AF142: =SUM(AA142:AE142) -> 1 | AH142: =IF(AA142="","",(AA142/$AF142)*$T142) ->  | AI142: =IF(AB142="","",(AB142/$AF142)*$T142) ->  | AJ142: =IF(AC142="","",(AC142/$AF142)*$T142) ->  | AK142: =IF(AD142="","",(AD142/$AF142)*$T142) ->  | AL142: =IF(AE142="","",(AE142/$AF142)*$T142) -> 7636704.677
B143: D0087 Metropolitan North | D143: Metropolitan | E143: North | F143: General Recreation | H143: 18021.03 | I143: =IFERROR(J143/H143,0) -> 600.9662093 | J143: 10830030.09 | L143: =IF(K143="",1,VLOOKUP(K143,PArksitecond,2,FALSE)) -> 1 | M143: 689991.6424 | O143: 18020.99821 | P143: 735.2533885 | Q143: 13250000 | R143: 2016 | S143: =IFERROR(('General Input Sheet'!$G$38/(VLOOKUP(R143,'General Input Sheet'!$E$38:$G$44,3,FALSE))),1) -> 1 | T143: 24080030.09 | U143: =IF(AND(U$10=$E143,$D143="Local"),"y","") ->  | Y143: =IF($D143<>"Local","y","") -> y | AC143: =IF(W143="y",1,"") ->  | AD143: =IF(X143="y",1,"") ->  | AE143: =IF(Y143="y",1,"") -> 1 | AF143: 1 | AL143: 24080030.09
B144: D0088 District East | D144: District | E144: East | F144: General Recreation | H144: 3524.42 | I144: 1905.777393 | J144: 6716759.959 | L144: 1 | M144: =IFERROR(J144/100*100*L144,0) -> 6716759.959 | O144: 3524.373736 | P144: =IFERROR(Q144/O144,0) -> 1103.103215 | Q144: 3887748 | R144: 2016 | S144: =IFERROR(('General Input Sheet'!$G$38/(VLOOKUP(R144,'General Input Sheet'!$E$38:$G$44,3,FALSE))),1) -> 1 | T144: 10604507.96 | Y144: y | AE144: 1 | AF144: 1 | AL144: 10604507.96
B145: D0089 Metropolitan North | D145: Metropolitan | E145: North | F145: Access / Recreation Corridor | H145: 3487.02 | I145: 324.8178413 | J145: 1132646.309 | L145: 1 | M145: 544637.0725 | O145: 1062.308784 | P145: 372.8247437 | Q145: 396055 | R145: 2016 | S145: =IFERROR(('General Input Sheet'!$G$38/(VLOOKUP(R145,'General Input Sheet'!$E$38:$G$44,3,FALSE))),1) -> 1 | T145: 1528701.309 | Y145: y | AE145: 1 | AF145: 1 | AL145: 1528701.309
B146: D0090 District East | D146: District | E146: East | F146: General Recreation | H146: 14089.24 | I146: 517.6500914 | J146: 7293296.374 | L146: 1 | M146: =IFERROR(J146/100*100*L146,0) -> 7293296.374 | O146: 16230.26672 | P146: 1112.897423 | Q146: 18062622 | R146: 2016 | S146: =IFERROR(('General Input Sheet'!$G$38/(VLOOKUP(R146,'General Input Sheet'!$E$38:$G$44,3,FALSE))),1) -> 1 | T146: 25355918.37 | Y146: y | AE146: 1 | AF146: 1 | AL146: 25355918.37
B147: D0090 Metropolitan East | D147: Metropolitan | E147: East | F147: Access / Recreation Corridor | H147: 5154.75 | I147: 234.0970568 | J147: 1206711.804 | L147: 1 | M147: 8161567.914 | P147: 0 | R147: 2016 | S147: =IFERROR(('General Input Sheet'!$G$38/(VLOOKUP(R147,'General Input Sheet'!$E$38:$G$44,3,FALSE))),1) -> 1 | T147: 1206711.804 | Y147: y | AE147: 1 | AF147: 1 | AL147: 1206711.804
B148: D0092 Metropolitan West | D148: Metropolitan | E148: West | F148: General Recreation | H148: 4870.67 | I148: 2047.907897 | J148: 9974683.556 | L148: 1 | M148: 7818488.5 | P148: 0 | R148: 2016 | S148: =IFERROR(('General Input Sheet'!$G$38/(VLOOKUP(R148,'General Input Sheet'!$E$38:$G$44,3,FALSE))),1) -> 1 | T148: 9974683.556 | Y148: y | AE148: 1 | AF148: 1 | AL148: 9974683.556
B149: D0093 Metropolitan West | D149: Metropolitan | E149: West | F149: Urban Common | H149: 8995.6 | I149: 217.136051 | J149: 1953269.06 | L149: 1 | O149: 8995.536125 | P149: 2839.761816 | Q149: 25545180 | R149: 2016 | S149: =IFERROR(('General Input Sheet'!$G$38/(VLOOKUP(R149,'General Input Sheet'!$E$38:$G$44,3,FALSE))),1) -> 1 | T149: 27498449.06 | Y149: y | AE149: 1 | AF149: 1 | AL149: 27498449.06
B150: D0094 Metropolitan West | D150: Metropolitan | E150: West | F150: Urban Common | H150: 6365.07 | I150: 306.8731467 | J150: 1953269.06 | L150: 1 | M150: 689991.6424 | P150: 0 | R150: 2016 | S150: =IFERROR(('General Input Sheet'!$G$38/(VLOOKUP(R150,'General Input Sheet'!$E$38:$G$44,3,FALSE))),1) -> 1 | T150: 1953269.06 | Y150: y | AE150: 1 | AF150: 1 | AL150: 1953269.06
B151: D0095 District North | D151: District | E151: North | F151: General Outdoor Sport | H151: 17877.8 | I151: 413.6828172 | J151: 7395738.67 | L151: 1 | M151: =IFERROR(J151/100*100*L151,0) -> 7395738.67 | O151: 148063.5096 | P151: 850.2461154 | Q151: 125890423.9 | R151: 2016 | S151: =IFERROR(('General Input Sheet'!$G$38/(VLOOKUP(R151,'General Input Sheet'!$E$38:$G$44,3,FALSE))),1) -> 1 | T151: 133286162.6 | Y151: y | AE151: 1 | AF151: 1 | AL151: 133286162.6
B152: D0095 District North | D152: District | E152: North | F152: Specialised Outdoor Sport | H152: 2683.07 | I152: 2803.339696 | J152: 7521556.637 | L152: 1 | M152: 7521556.637 | P152: 0 | R152: 2016 | S152: =IFERROR(('General Input Sheet'!$G$38/(VLOOKUP(R152,'General Input Sheet'!$E$38:$G$44,3,FALSE))),1) -> 1 | T152: 7521556.637 | Y152: y | AE152: 1 | AF152: 1 | AL152: 7521556.637
B153: D0095 Metropolitan North | D153: Metropolitan | E153: North | F153: General Recreation | H153: 132544.53 | I153: 87.58705633 | J153: 11609185.22 | L153: 1 | M153: 1135030.76 | P153: 0 | R153: 2016 | S153: =IFERROR(('General Input Sheet'!$G$38/(VLOOKUP(R153,'General Input Sheet'!$E$38:$G$44,3,FALSE))),1) -> 1 | T153: 11609185.22 | Y153: y | AE153: 1 | AF153: 1 | AL153: 11609185.22
B154: D0096 Metropolitan West | D154: Metropolitan | E154: West | F154: Botanic Garden / Arboretum | H154: 183555.86 | I154: 47.77733724 | J154: 8769810.227 | L154: 1 | M154: 7803657.835 | P154: 0 | R154: 2016 | S154: =IFERROR(('General Input Sheet'!$G$38/(VLOOKUP(R154,'General Input Sheet'!$E$38:$G$44,3,FALSE))),1) -> 1 | T154: 8769810.227 | Y154: y | AE154: 1 | AF154: 1 | AL154: 8769810.227
B155: D0097 Local East | D155: Local | E155: East | F155: General Outdoor Sport | H155: 15915.49 | I155: 67.16401599 | J155: 1068948.225 | L155: 1 | M155: =IFERROR(J155/100*100*L155,0) -> 1068948.225 | O155: 50620.12035 | P155: 436.8719193 | Q155: 22114509.13 | R155: 2016 | S155: =IFERROR(('General Input Sheet'!$G$38/(VLOOKUP(R155,'General Input Sheet'!$E$38:$G$44,3,FALSE))),1) -> 1 | T155: 23183457.35 | U155: y | AA155: 1 | AF155: 1 | AH155: 23183457.35
B156: D0097 Local East | D156: Local | E156: East | F156: General Recreation | H156: 34810.3509 | I156: 19.82145036 | J156: 689991.6424 | L156: 1 | M156: 689991.6424 | P156: 0 | R156: 2016 | S156: =IFERROR(('General Input Sheet'!$G$38/(VLOOKUP(R156,'General Input Sheet'!$E$38:$G$44,3,FALSE))),1) -> 1 | T156: 689991.6424 | U156: y | AA156: 1 | AF156: 1 | AH156: 689991.6424
B157: D0099 Metropolitan West | D157: Metropolitan | E157: West | F157: Urban Common | H157: 7003.85 | I157: 278.8850504 | J157: 1953269.06 | L157: 1 | M157: 961615.5489 | O157: 21011.57435 | P157: 793.8771186 | Q157: 16680608.1 | R157: 2016 | S157: =IFERROR(('General Input Sheet'!$G$38/(VLOOKUP(R157,'General Input Sheet'!$E$38:$G$44,3,FALSE))),1) -> 1 | T157: 18633877.16 | Y157: y | AE157: 1 | AF157: 1 | AL157: 18633877.16
B158: D0100 District East | D158: District | E158: East | I158: 0 | L158: 1 | M158: =IFERROR(J158/100*100*L158,0) -> 0 | O158: 0 | P158: 0 | Q158: 0 | R158: 2016 | S158: =IFERROR(('General Input Sheet'!$G$38/(VLOOKUP(R158,'General Input Sheet'!$E$38:$G$44,3,FALSE))),1) -> 1 | T158: 0 | Y158: y | AE158: 1 | AF158: 1 | AL158: 0
B159: D0101 Local West | D159: Local | E159: West | I159: 0 | L159: 1 | M159: 0 | O159: 0 | P159: 0 | Q159: 0 | R159: 2016 | S159: =IFERROR(('General Input Sheet'!$G$38/(VLOOKUP(R159,'General Input Sheet'!$E$38:$G$44,3,FALSE))),1) -> 1 | T159: 0 | X159: y | AD159: 1 | AF159: 1 | AK159: 0
B160: D0103 Local West | D160: Local | E160: West | F160: General Recreation | H160: 12888.09 | I160: 53.53715271 | J160: 689991.6424 | L160: 1 | M160: 689991.6424 | O160: 10709.35274 | P160: 202.9340878 | Q160: 2173292.73 | R160: 2016 | S160: =IFERROR(('General Input Sheet'!$G$38/(VLOOKUP(R160,'General Input Sheet'!$E$38:$G$44,3,FALSE))),1) -> 1 | T160: 2863284.372 | X160: y | AD160: 1 | AF160: 1 | AK160: 2863284.372
B161: D0104 Metropolitan West | D161: Metropolitan | E161: West | I161: 0 | L161: 1 | M161: 1071144.398 | O161: 0 | P161: 0 | Q161: 0 | R161: 2016 | S161: =IFERROR(('General Input Sheet'!$G$38/(VLOOKUP(R161,'General Input Sheet'!$E$38:$G$44,3,FALSE))),1) -> 1 | T161: 0 | Y161: y | AE161: 1 | AF161: 1 | AL161: 0
B162: D0105 Local East | D162: Local | E162: East | F162: Access / Recreation Corridor | H162: 12688.74 | I162: 46.52043292 | J162: 590285.678 | L162: 1 | M162: =IFERROR(J162/100*100*L162,0) -> 590285.678 | O162: 13029.42385 | P162: 232.410047 | Q162: 3028169.01 | R162: 2016 | S162: =IFERROR(('General Input Sheet'!$G$38/(VLOOKUP(R162,'General Input Sheet'!$E$38:$G$44,3,FALSE))),1) -> 1 | T162: 3618454.688 | U162: y | AA162: 1 | AF162: 1 | AH162: 3618454.688
B163: D0105 Local East | D163: Local | E163: East | F163: General Recreation | H163: 1304.63 | I163: 339.5899038 | J163: 443039.1762 | L163: 1 | M163: 443039.1762 | P163: 0 | R163: 2016 | S163: =IFERROR(('General Input Sheet'!$G$38/(VLOOKUP(R163,'General Input Sheet'!$E$38:$G$44,3,FALSE))),1) -> 1 | T163: 443039.1762 | U163: y | AA163: 1 | AF163: 1 | AH163: 443039.1762
B164: D0106 Local East | D164: Local | E164: East | F164: General Recreation | H164: 5421.87 | I164: 109.7222409 | J164: 594899.7264 | L164: 1 | M164: 594899.7264 | O164: 5421.874074 | P164: 356.0908966 | Q164: 1930680 | R164: 2016 | S164: =IFERROR(('General Input Sheet'!$G$38/(VLOOKUP(R164,'General Input Sheet'!$E$38:$G$44,3,FALSE))),1) -> 1 | T164: 2525579.726 | U164: y | AA164: 1 | AF164: 1 | AH164: 2525579.726
B165: D0109 Local East | D165: Local | E165: East | F165: General Recreation | H165: 84067.68 | I165: 8.20757326 | J165: 689991.6424 | L165: 1 | M165: 689991.6424 | O165: 114835.4329 | P165: 120.7469633 | Q165: 13866029.8 | R165: 2016 | S165: =IFERROR(('General Input Sheet'!$G$38/(VLOOKUP(R165,'General Input Sheet'!$E$38:$G$44,3,FALSE))),1) -> 1 | T165: 14556021.44 | U165: y | AA165: 1 | AF165: 1 | AH165: 14556021.44
B166: D0109 Metropolitan East | D166: Metropolitan | E166: East | F166: General Outdoor Sport | H166: 32998.84 | I166: 384.8253858 | J166: 12698791.34 | L166: 1 | M166: 8400247.946 | O166: 2231.135871 | P166: 355.8501347 | Q166: 793950 | R166: 2016 | S166: =IFERROR(('General Input Sheet'!$G$38/(VLOOKUP(R166,'General Input Sheet'!$E$38:$G$44,3,FALSE))),1) -> 1 | T166: 13492741.34 | Y166: y | AE166: 1 | AF166: 1 | AL166: 13492741.34
B167: D0110 Local East | D167: Local | E167: East | F167: General Recreation | H167: 16658.3 | I167: 41.42029153 | J167: 689991.6424 | L167: 1 | M167: =IFERROR(J167/100*100*L167,0) -> 689991.6424 | O167: 16658.30809 | P167: 137.496392 | Q167: 2290457.26 | R167: 2016 | S167: =IFERROR(('General Input Sheet'!$G$38/(VLOOKUP(R167,'General Input Sheet'!$E$38:$G$44,3,FALSE))),1) -> 1 | T167: 2980448.902 | U167: y | AA167: 1 | AF167: 1 | AH167: 2980448.902
B168: D0111 Local East | D168: Local | E168: East | F168: General Recreation | H168: 4059.15 | I168: 134.1751531 | J168: 544637.0725 | L168: 1 | M168: 544637.0725 | O168: 4059.137947 | P168: 104.4380027 | Q168: 423928.26 | R168: 2016 | S168: =IFERROR(('General Input Sheet'!$G$38/(VLOOKUP(R168,'General Input Sheet'!$E$38:$G$44,3,FALSE))),1) -> 1 | T168: 968565.3325 | U168: y | AA168: 1 | AF168: 1 | AH168: 968565.3325
B169: D0112 Local East | D169: Local | E169: East | F169: General Recreation | H169: 5763.33 | I169: 105.4067977 | J169: 607494.1594 | L169: 1 | M169: 607494.1594 | O169: 5763.321264 | P169: 290.8565952 | Q169: 1676300 | R169: 2016 | S169: =IFERROR(('General Input Sheet'!$G$38/(VLOOKUP(R169,'General Input Sheet'!$E$38:$G$44,3,FALSE))),1) -> 1 | T169: 2283794.159 | U169: y | AA169: 1 | AF169: 1 | AH169: 2283794.159
B170: D0113 District East | D170: District | E170: East | F170: General Recreation | H170: 44125.24 | I170: 184.9637059 | J170: 8161567.914 | L170: 1 | M170: 8161567.914 | O170: 47109.32685 | P170: 120.0034547 | Q170: 5653281.97 | R170: 2016 | S170: =IFERROR(('General Input Sheet'!$G$38/(VLOOKUP(R170,'General Input Sheet'!$E$38:$G$44,3,FALSE))),1) -> 1 | T170: 13814849.88 | Y170: y | AE170: 1 | AF170: 1 | AL170: 13814849.88
B171: D0113 District East | D171: District | E171: East | F171: Specialised Outdoor Sport | H171: 8983.78 | I171: 870.2893994 | J171: 7818488.5 | L171: 1 | M171: 7818488.5 | P171: 0 | R171: 2016 | S171: =IFERROR(('General Input Sheet'!$G$38/(VLOOKUP(R171,'General Input Sheet'!$E$38:$G$44,3,FALSE))),1) -> 1 | T171: 7818488.5 | Y171: y | AE171: 1 | AF171: 1 | AL171: 7818488.5
B172: D0113 Local East | D172: Local | E172: East | I172: 0 | L172: 1 | M172: 0 | O172: 283.4689652 | P172: 192.280026 | Q172: 54505.42 | R172: 2016 | S172: =IFERROR(('General Input Sheet'!$G$38/(VLOOKUP(R172,'General Input Sheet'!$E$38:$G$44,3,FALSE))),1) -> 1 | T172: 54505.42 | U172: y | AA172: 1 | AF172: 1 | AH172: 54505.42
B173: D0114 Local East | D173: Local | E173: East | F173: General Recreation | H173: 9085.71 | I173: 75.94251219 | J173: 689991.6424 | L173: 1 | M173: 689991.6424 | P173: 0 | R173: 2016 | S173: =IFERROR(('General Input Sheet'!$G$38/(VLOOKUP(R173,'General Input Sheet'!$E$38:$G$44,3,FALSE))),1) -> 1 | T173: 689991.6424 | U173: y | AA173: 1 | AF173: 1 | AH173: 689991.6424
B174: D0115 Local East | D174: Local | E174: East | F174: General Recreation | H174: 4345.48 | I174: 127.7645017 | J174: 555198.087 | L174: 1 | M174: 555198.087 | O174: 4327.086686 | P174: 199.6726811 | Q174: 864001 | R174: 2016 | S174: =IFERROR(('General Input Sheet'!$G$38/(VLOOKUP(R174,'General Input Sheet'!$E$38:$G$44,3,FALSE))),1) -> 1 | T174: 1419199.087 | U174: y | AA174: 1 | AF174: 1 | AH174: 1419199.087
B175: D0116 Local East | D175: Local | E175: East | F175: General Recreation | H175: 4176.81 | I175: 131.4344803 | J175: 548976.8517 | L175: 1 | M175: 548976.8517 | O175: 4176.858199 | P175: 272.9324161 | Q175: 1140000 | R175: 2016 | S175: =IFERROR(('General Input Sheet'!$G$38/(VLOOKUP(R175,'General Input Sheet'!$E$38:$G$44,3,FALSE))),1) -> 1 | T175: 1688976.852 | U175: y | AA175: 1 | AF175: 1 | AH175: 1688976.852
B176: D0117 District East | D176: District | E176: East | F176: Access / Recreation Corridor | H176: 3623.27 | I176: 313.2614352 | J176: 1135030.76 | L176: 1 | M176: 1135030.76 | O176: 163.7818598 | P176: 0.01221136457 | Q176: 2 | R176: 2016 | S176: =IFERROR(('General Input Sheet'!$G$38/(VLOOKUP(R176,'General Input Sheet'!$E$38:$G$44,3,FALSE))),1) -> 1 | T176: 1135032.76 | Y176: y | AE176: 1 | AF176: 1 | AL176: 1135032.76
B177: D0117 District East | D177: District | E177: East | F177: General Outdoor Sport | H177: 26861.36 | I177: 290.5161107 | J177: 7803657.835 | L177: 1 | M177: 7803657.835 | P177: 0 | R177: 2016 | S177: =IFERROR(('General Input Sheet'!$G$38/(VLOOKUP(R177,'General Input Sheet'!$E$38:$G$44,3,FALSE))),1) -> 1 | T177: 7803657.835 | Y177: y | AE177: 1 | AF177: 1 | AL177: 7803657.835
B178: D0117 District East | D178: District | E178: East | F178: Specialised Outdoor Sport | H178: 4295.26 | I178: 1768.818158 | J178: 7597533.881 | L178: 1 | M178: 7597533.881 | P178: 0 | R178: 2016 | S178: =IFERROR(('General Input Sheet'!$G$38/(VLOOKUP(R178,'General Input Sheet'!$E$38:$G$44,3,FALSE))),1) -> 1 | T178: 7597533.881 | Y178: y | AE178: 1 | AF178: 1 | AL178: 7597533.881
B179: D0117 Local East | D179: Local | E179: East | F179: General Recreation | H179: 12407.14 | I179: 55.61246528 | J179: 689991.6424 | L179: 1 | M179: 689991.6424 | O179: 7188.714561 | P179: 150.6288379 | Q179: 1082827.72 | R179: 2016 | S179: =IFERROR(('General Input Sheet'!$G$38/(VLOOKUP(R179,'General Input Sheet'!$E$38:$G$44,3,FALSE))),1) -> 1 | T179: 1772819.362 | U179: y | AA179: 1 | AF179: 1 | AH179: 1772819.362
B180: D0118 Local East | D180: Local | E180: East | F180: General Outdoor Sport | H180: 6587.66 | I180: 145.9722495 | J180: 961615.5489 | L180: 1 | M180: 961615.5489 | O180: 14418.65389 | P180: 289.2087591 | Q180: 4170001 | R180: 2016 | S180: =IFERROR(('General Input Sheet'!$G$38/(VLOOKUP(R180,'General Input Sheet'!$E$38:$G$44,3,FALSE))),1) -> 1 | T180: 5131616.549 | U180: y | AA180: 1 | AF180: 1 | AH180: 5131616.549
B181: D0118 Local East | D181: Local | E181: East | F181: General Recreation | H181: 7831.02 | I181: 87.31416508 | J181: 683758.973 | L181: 1 | M181: 683758.973 | P181: 0 | R181: 2016 | S181: =IFERROR(('General Input Sheet'!$G$38/(VLOOKUP(R181,'General Input Sheet'!$E$38:$G$44,3,FALSE))),1) -> 1 | T181: 683758.973 | U181: y | AA181: 1 | AF181: 1 | AH181: 683758.973
B182: D0119 District East | D182: District | E182: East | F182: General Recreation | H182: 42057.58 | I182: 194.0570027 | J182: 8161567.914 | L182: 1 | M182: 8161567.914 | O182: 812.4112491 | P182: 516.9795476 | Q182: 420000 | R182: 2016 | S182: =IFERROR(('General Input Sheet'!$G$38/(VLOOKUP(R182,'General Input Sheet'!$E$38:$G$44,3,FALSE))),1) -> 1 | T182: 8581567.914 | Y182: y | AE182: 1 | AF182: 1 | AL182: 8581567.914
B183: D0119 District East | D183: District | E183: East | F183: Specialised Outdoor Sport | H183: 9533.18 | I183: 822.8502898 | J183: 7844379.926 | L183: 1 | M183: 7844379.926 | P183: 0 | R183: 2016 | S183: =IFERROR(('General Input Sheet'!$G$38/(VLOOKUP(R183,'General Input Sheet'!$E$38:$G$44,3,FALSE))),1) -> 1 | T183: 7844379.926 | Y183: y | AE183: 1 | AF183: 1 | AL183: 7844379.926
B184: D0120 District East | D184: District | E184: East | F184: Access / Recreation Corridor | H184: 2189.03 | I184: 489.3237636 | J184: 1071144.398 | L184: 1 | M184: 1071144.398 | O184: 2189.010647 | P184: 0.0009136547614 | Q184: 2 | R184: 2016 | S184: =IFERROR(('General Input Sheet'!$G$38/(VLOOKUP(R184,'General Input Sheet'!$E$38:$G$44,3,FALSE))),1) -> 1 | T184: 1071146.398 | Y184: y | AE184: 1 | AF184: 1 | AL184: 1071146.398
B185: D0121 District East | D185: District | E185: East | F185: General Outdoor Sport | H185: 19254.73 | I185: 387.3469707 | J185: 7458261.338 | L185: 1 | M185: 7458261.338 | O185: 26643.44439 | P185: 417.1870512 | Q185: 11115300 | R185: 2016 | S185: =IFERROR(('General Input Sheet'!$G$38/(VLOOKUP(R185,'General Input Sheet'!$E$38:$G$44,3,FALSE))),1) -> 1 | T185: 18573561.34 | Y185: y | AE185: 1 | AF185: 1 | AL185: 18573561.34
B186: D0121 Local East | D186: Local | E186: East | F186: General Recreation | H186: 10350.38 | I186: 66.66341162 | J186: 689991.6424 | L186: 1 | M186: 689991.6424 | O186: 2105.940831 | P186: 520.1713096 | Q186: 1095450 | R186: 2016 | S186: =IFERROR(('General Input Sheet'!$G$38/(VLOOKUP(R186,'General Input Sheet'!$E$38:$G$44,3,FALSE))),1) -> 1 | T186: 1785441.642 | U186: y | AA186: 1 | AF186: 1 | AH186: 1785441.642
B187: D0123 Local East | D187: Local | E187: East | F187: Access / Recreation Corridor | H187: 9358.48 | I187: 63.07495213 | J187: 590285.678 | L187: 1 | M187: 590285.678 | O187: 8881.068561 | P187: 42.22611248 | Q187: 375013 | R187: 2016 | S187: =IFERROR(('General Input Sheet'!$G$38/(VLOOKUP(R187,'General Input Sheet'!$E$38:$G$44,3,FALSE))),1) -> 1 | T187: 965298.678 | U187: y | AA187: 1 | AF187: 1 | AH187: 965298.678
B188: D0124 Local East | D188: Local | E188: East | F188: General Recreation | H188: 4896.18 | I188: 117.5426847 | J188: 575510.1419 | L188: 1 | M188: 575510.1419 | O188: 4896.208861 | P188: 251.2147735 | Q188: 1230000 | R188: 2016 | S188: =IFERROR(('General Input Sheet'!$G$38/(VLOOKUP(R188,'General Input Sheet'!$E$38:$G$44,3,FALSE))),1) -> 1 | T188: 1805510.142 | U188: y | AA188: 1 | AF188: 1 | AH188: 1805510.142
B189: D0125 District East | D189: District | E189: East | F189: General Outdoor Sport | H189: 59821.79 | I189: 140.4212068 | J189: 8400247.946 | L189: 1 | M189: 8400247.946 | P189: 0 | R189: 2016 | S189: =IFERROR(('General Input Sheet'!$G$38/(VLOOKUP(R189,'General Input Sheet'!$E$38:$G$44,3,FALSE))),1) -> 1 | T189: 8400247.946 | Y189: y | AE189: 1 | AF189: 1 | AL189: 8400247.946
B190: D0125 Local East | D190: Local | E190: East | F190: General Recreation | H190: 17353.71 | I190: 39.76046865 | J190: 689991.6424 | L190: 1 | M190: 689991.6424 | P190: 0 | R190: 2016 | S190: =IFERROR(('General Input Sheet'!$G$38/(VLOOKUP(R190,'General Input Sheet'!$E$38:$G$44,3,FALSE))),1) -> 1 | T190: 689991.6424 | U190: y | AA190: 1 | AF190: 1 | AH190: 689991.6424
B191: D0126 District West | D191: District | E191: West | F191: General Recreation | H191: 5378.35 | I191: 1267.662277 | J191: 6817931.408 | L191: 1 | M191: 6817931.408 | O191: 8060.402085 | P191: 428.1939714 | Q191: 3451415.58 | R191: 2016 | S191: =IFERROR(('General Input Sheet'!$G$38/(VLOOKUP(R191,'General Input Sheet'!$E$38:$G$44,3,FALSE))),1) -> 1 | T191: 10269346.99 | Y191: y | AE191: 1 | AF191: 1 | AL191: 10269346.99
B192: D0126 District West | D192: District | E192: West | F192: Specialised Outdoor Sport | H192: 2682.03 | I192: 2804.408461 | J192: 7521507.625 | L192: 1 | M192: 7521507.625 | P192: 0 | R192: 2016 | S192: =IFERROR(('General Input Sheet'!$G$38/(VLOOKUP(R192,'General Input Sheet'!$E$38:$G$44,3,FALSE))),1) -> 1 | T192: 7521507.625 | Y192: y | AE192: 1 | AF192: 1 | AL192: 7521507.625
B193: D0127 District West | D193: District | E193: West | F193: General Recreation | H193: 35000.18 | I193: 233.1864554 | J193: 8161567.914 | L193: 1 | M193: 8161567.914 | O193: 35000.19735 | P193: 154.625885 | Q193: 5411936.49 | R193: 2016 | S193: =IFERROR(('General Input Sheet'!$G$38/(VLOOKUP(R193,'General Input Sheet'!$E$38:$G$44,3,FALSE))),1) -> 1 | T193: 13573504.4 | Y193: y | AE193: 1 | AF193: 1 | AL193: 13573504.4
B194: D0128 District West | D194: District | E194: West | F194: General Outdoor Sport | H194: 70270.08 | I194: 119.5423137 | J194: 8400247.946 | L194: 1 | M194: 8400247.946 | O194: 223540.7312 | P194: 40.1752287 | Q194: 8980800 | R194: 2016 | S194: =IFERROR(('General Input Sheet'!$G$38/(VLOOKUP(R194,'General Input Sheet'!$E$38:$G$44,3,FALSE))),1) -> 1 | T194: 17381047.95 | Y194: y | AE194: 1 | AF194: 1 | AL194: 17381047.95
B195: D0128 Local West | D195: Local | E195: West | F195: General Recreation | H195: 4243.64 | I195: 129.9454746 | J195: 551441.8138 | L195: 1 | M195: 551441.8138 | P195: 0 | R195: 2016 | S195: =IFERROR(('General Input Sheet'!$G$38/(VLOOKUP(R195,'General Input Sheet'!$E$38:$G$44,3,FALSE))),1) -> 1 | T195: 551441.8138 | X195: y | AD195: 1 | AF195: 1 | AK195: 551441.8138
B196: D0129 District West | D196: District | E196: West | F196: Access / Recreation Corridor | H196: 16595.94 | I196: 103.2108778 | J196: 1712881.535 | L196: 1 | M196: 1712881.535 | O196: 207428.9225 | P196: 25.50111882 | Q196: 5289669.6 | R196: 2016 | S196: =IFERROR(('General Input Sheet'!$G$38/(VLOOKUP(R196,'General Input Sheet'!$E$38:$G$44,3,FALSE))),1) -> 1 | T196: 7002551.135 | Y196: y | AE196: 1 | AF196: 1 | AL196: 7002551.135
B197: D0129 District West | D197: District | E197: West | F197: General Outdoor Sport | H197: 77659.53 | I197: 108.1676382 | J197: 8400247.946 | L197: 1 | M197: 8400247.946 | P197: 0 | R197: 2016 | S197: =IFERROR(('General Input Sheet'!$G$38/(VLOOKUP(R197,'General Input Sheet'!$E$38:$G$44,3,FALSE))),1) -> 1 | T197: 8400247.946 | Y197: y | AE197: 1 | AF197: 1 | AL197: 8400247.946
B198: D0129 District West | D198: District | E198: West | F198: General Recreation | H198: 10283.44 | I198: 689.0309815 | J198: 7085608.757 | L198: 1 | M198: 7085608.757 | P198: 0 | R198: 2016 | S198: =IFERROR(('General Input Sheet'!$G$38/(VLOOKUP(R198,'General Input Sheet'!$E$38:$G$44,3,FALSE))),1) -> 1 | T198: 7085608.757 | Y198: y | AE198: 1 | AF198: 1 | AL198: 7085608.757
B199: D0130 Local West | D199: Local | E199: West | F199: Access / Recreation Corridor | H199: 3691.5 | I199: 103.0171877 | J199: 380287.9484 | L199: 1 | M199: 380287.9484 | O199: 11816.21336 | P199: 100.709082 | Q199: 1190000 | R199: 2016 | S199: =IFERROR(('General Input Sheet'!$G$38/(VLOOKUP(R199,'General Input Sheet'!$E$38:$G$44,3,FALSE))),1) -> 1 | T199: 1570287.948 | X199: y | AD199: 1 | AF199: 1 | AK199: 1570287.948
B200: D0130 Local West | D200: Local | E200: West | F200: General Recreation | H200: 8124.71 | I200: 84.92507947 | J200: 689991.6424 | L200: 1 | M200: 689991.6424 | P200: 0 | R200: 2016 | S200: =IFERROR(('General Input Sheet'!$G$38/(VLOOKUP(R200,'General Input Sheet'!$E$38:$G$44,3,FALSE))),1) -> 1 | T200: 689991.6424 | X200: y | AD200: 1 | AF200: 1 | AK200: 689991.6424
B201: D0131 Local West | D201: Local | E201: West | F201: Access / Recreation Corridor | H201: 5519.9 | I201: 85.03863753 | J201: 469404.7753 | L201: 1 | M201: 469404.7753 | O201: 5519.884083 | P201: 217.3958695 | Q201: 1200000 | R201: 2016 | S201: =IFERROR(('General Input Sheet'!$G$38/(VLOOKUP(R201,'General Input Sheet'!$E$38:$G$44,3,FALSE))),1) -> 1 | T201: 1669404.775 | X201: y | AD201: 1 | AF201: 1 | AK201: 1669404.775
B202: D0132 Local West | D202: Local | E202: West | F202: Access / Recreation Corridor | H202: 30341.23 | I202: 19.45490272 | J202: 590285.678 | L202: 1 | M202: 590285.678 | O202: 40583.96089 | P202: 55.18146531 | Q202: 2239482.43 | R202: 2016 | S202: =IFERROR(('General Input Sheet'!$G$38/(VLOOKUP(R202,'General Input Sheet'!$E$38:$G$44,3,FALSE))),1) -> 1 | T202: 2829768.108 | X202: y | AD202: 1 | AF202: 1 | AK202: 2829768.108
B203: D0132 Local West | D203: Local | E203: West | F203: General Recreation | H203: 12139.48 | I203: 56.83864897 | J203: 689991.6424 | L203: 1 | M203: 689991.6424 | P203: 0 | R203: 2016 | S203: =IFERROR(('General Input Sheet'!$G$38/(VLOOKUP(R203,'General Input Sheet'!$E$38:$G$44,3,FALSE))),1) -> 1 | T203: 689991.6424 | X203: y | AD203: 1 | AF203: 1 | AK203: 689991.6424
B204: D0133 District West | D204: District | E204: West | F204: Nature Recreation | H204: 309359.37 | I204: 3.863062511 | J204: 1195074.585 | L204: 1 | M204: 1195074.585 | O204: 344241.7468 | P204: 35.38927545 | Q204: 12182466 | R204: 2016 | S204: =IFERROR(('General Input Sheet'!$G$38/(VLOOKUP(R204,'General Input Sheet'!$E$38:$G$44,3,FALSE))),1) -> 1 | T204: 13377540.58 | Y204: y | AE204: 1 | AF204: 1 | AL204: 13377540.58
... 2284 more rows

Sheet Future Trunk Assets - Parks
B2: ='Navigation Pane'!B2 -> Brisbane City Council
B3: Parks
A4: Return to "Unit Rates - Parks"
B5: Future Trunk Assets
B7: Data References | E7: 1. Indirect embellishment costs are on costs or overheads applied to the direct embellishment cost, to deliver the project. Indirect embellishment costs equate to 17% of the direct embellishment cost. 2. Project costs are on costs to undertake detailed design, survey, geotechnical investigations, project management, and supervision of construction works and obtain certification from a Registered Professional Engineer of Queensland. Project costs equate to 13% of the direct and indirect embellishment costs. 3. Contingency costs are based on the project delivery date, and applied to the direct construction cost, indirect construction cost and project cost. Contingencies equate to 7.5% for projects with a delivery date up to 2021 and 15% for projects with a delivery date up to 2026. 4. Total embellishment cost is the sum of direct embellishment cost, indirect embellishment cost, project cost and construction contingency cost. 5. Terminal Value Adjustment is only applicable to items that have an estimated completion date between 2021 and 2026, items value exceeds 20% of the total network value in the same catchment and same year of provision, and items catchment has spare capacity greater than 30%.
B10: Land Valuation Type | D10: Location
I12: Asset Data | AI12: Catchment Asset Allocation | AO12: Asset Usage | AV12: Cost Allocation | BB12: Cost Allocation for Service Cost Schedule
B13: Basic Asset Data | G13: Asset Attributes | J13: Land Cost Valuation | N13: Work Cost Valuation | X13: Refined Asset Value | AI13: ='Catchment Demand - Parks'!$C8 -> East | AJ13: ='Catchment Demand - Parks'!$C9 -> North | AK13: ='Catchment Demand - Parks'!$C10 -> South | AL13: ='Catchment Demand - Parks'!$C11 -> West | AM13: ='Catchment Demand - Parks'!$C12 -> Brisbane wide (district & metro) | AO13: =AI13 -> East | AP13: =AJ13 -> North | AQ13: =AK13 -> South | AR13: =AL13 -> West | AS13: =AM13 -> Brisbane wide (district & metro) | AT13: TOTALS | AV13: =AI13 -> East | AW13: =AJ13 -> North | AX13: =AK13 -> South | AY13: =AL13 -> West | AZ13: =AM13 -> Brisbane wide (district & metro) | BB13: =AO13 -> East | BC13: =AP13 -> North | BD13: =AQ13 -> South | BE13: =AR13 -> West | BF13: =AS13 -> Brisbane wide (district & metro)
B14: Asset ID | C14: LGIP ID | D14: Asset Class | E14: Service Catchment | F14: Description | G14: LGIP Code (*) | H14: Standard Area (M2) | I14: Scaling factor (*) | J14: Land Location/Type | K14: Size of land (m2) | L14: Average Land Rate (m2) | M14: Land Value | N14: Unit Rate | O14: Baseline Embellishment Costs | P14: Valuation Year | Q14: Indirect Cost Escalation % | R14: Indirect Embellishment Costs | S14: Multiplier | T14: Contingency Cost % | U14: Project Owners Cost % | V14: Work Cost (at Base Year) | W14: Contingency Cost ($) | X14: Year of Provision | Y14: Land Cost Escalation | Z14: Work Cost Escalation | AA14: Spare Capacity % | AB14: Share of the total Cost with the same year of provision % | AC14: Terminal Value Analysis | AD14: Terminal Value Adjustment | AE14: Total Assets Cost (at Base Year) | AF14: Total Asset Cost (escalated) | AG14: Net Present Value of Total Asset Cost | AH14: NPV Total Asset Cost after Terminal Value Adjustment
AI15: 1 | AJ15: =AI15+1 -> 2 | AK15: =AJ15+1 -> 3 | AL15: 4 | AM15: 5
B16: Councils ID (from GIS, FAR, AMA etc.) | C16: ID from the LGIP drawings | D16: Local/District Park | N16: Calculated from unit rates | O16: Copied from SOW Master | AA16: Spare Capacity less than 30%, no terminal value adjustment applicable | AF16: Gross cost (used for CF forecasts) | AG16: Adjusted Current Day Value | AI16: =IFERROR(VLOOKUP(AI13,Parkscatch,6,FALSE),"") -> 0 | AJ16: 0 | AK16: 0 | AL16: 0 | AM16: 0 | AO16: =AI16 -> 0 | AP16: =AJ16 -> 0 | AQ16: =AK16 -> 0 | AR16: =AL16 -> 0 | AS16: =AM16 -> 0 | AV16: =SUM(AV17:AV190) -> 29878964 | AW16: 33109889 | AX16: 58832120 | AY16: 6685149 | AZ16: 333715845 | BB16: =SUM(BB17:BB190) -> 29878964 | BC16: 33109889 | BD16: 58832120 | BE16: 6685149 | BF16: 333715845
B17: PCF313 | C17: AGR-A1-002 | D17: Local | E17: South | F17: Acquire and embellish land to provide LOCAL RECREATION infrastructure | G17: =MID(C17,5,2)&"-"&LEFT(D17,1) -> A1-L | H17: =IFERROR(INDEX(UnitRateParks[],MATCH(G17,UnitRateParks[LGIP Code],0),3),"") -> 8000 | I17: =IFERROR(MIN(K17/H17,INDEX(UnitRateParks[],MATCH(FutureTrunkParks[[#This Row],[LGIP Code (*)]], UnitRateParks[LGIP Code],0),4)),"") -> 0.825 | K17: 6600 | L17: =M17/K17 -> 150 | M17: 990000 | N17: =IFERROR((VLOOKUP(FutureTrunkParks[[#This Row],[LGIP Code (*)]],UnitRateParks[],7,FALSE)*FutureTrunkParks[[#This Row],[Scaling factor (*)]]+VLOOKUP(FutureTrunkParks[[#This Row],[LGIP Code (*)]],UnitRateParks[],8,FALSE)-VLOOKUP(FutureTrunkParks[[#This Row],[LGIP Code (*)]],UnitRateParks[],6,FALSE))*18.5%+VLOOKUP(FutureTrunkParks[[#This Row],[LGIP Code (*)]],UnitRateParks[],7,FALSE)*FutureTrunkParks[[#This Row],[Scaling factor (*)]]+VLOOKUP(FutureTrunkParks[[#This Row],[LGIP Code (*)]],UnitRateParks[],8,FALSE),"Error") -> 229425.6499 | O17: 229426 | P17: 2016 | Q17: 0.17 | R17: =ROUND(O17*Q17,0) -> 39002 | S17: 1 | T17: =IF(X17="","",IF(X17<=YEAR+5,0.075,IF(AND(X17>YEAR+5,X17<=YEAR+10),0.15,IF(AND(X17>YEAR+10,X17<=YEAR+20),0.2,IF(X17>YEAR+20,0.25,""))))) -> 0.15 | U17: =ROUND((O17+R17)*13%,0) -> 34896 | V17: =ROUND(O17+R17+U17+(O17+R17+U17)*T17,0) -> 348823 | W17: =ROUND((O17+R17+U17)*T17,0) -> 45499 | X17: 2024 | Y17: =Landind -> 0.025 | Z17: =PPI -> 0.01871653255 | AA17: =IF(FutureTrunkParks[[#This Row],[Asset Class]]="Local",VLOOKUP(FutureTrunkParks[[#This Row],[Service Catchment]],'Catchment Demand - Parks'!$C$8:$M$12,11),'Catchment Demand - Parks'!$M$12) -> 0.2365306507 | AB17: =_xlfn.IFS(FutureTrunkParks[[#This Row],[Year of Provision]]=2019,0,FutureTrunkParks[[#This Row],[Year of Provision]]=2024,FutureTrunkParks[[#This Row],[Total Assets Cost (at Base Year)]]/SUMIFS($AE$17:$AE$189,$X$17:$X$189,"2024",$E$17:$E$189,FutureTrunkParks[[#This Row],[Service Catchment]])) -> 0.008004652137 | AC17: =IF(AND(FutureTrunkParks[[#This Row],[Spare Capacity %]]>30%,FutureTrunkParks[[#This Row],[Share of the total Cost with the same year of provision %]]>20%),1-FutureTrunkParks[[#This Row],[Spare Capacity %]],1) -> 1 | AD17: =IF(FutureTrunkParks[[#This Row],[ Terminal Value Analysis]]<0,0,FutureTrunkParks[[#This Row],[ Terminal Value Analysis]]) -> 1 | AE17: =ROUND(V17+M17,0) -> 1338823 | AF17: =ROUND(V17*(1+Z17)^(X17-YEAR)+M17*(1+Y17)^(X17-YEAR),0) -> 1610825 | AG17: =ROUND(AF17*(1/(1+WACC))^(X17-YEAR),0) -> 1017543 | AH17: =ROUND(FutureTrunkParks[[#This Row],[Net Present Value of Total Asset Cost]]*FutureTrunkParks[[#This Row],[Terminal Value Adjustment]],0) -> 1017543 | AI17: =IF(AND($D17="Local",AI$13=$E17),"y","") ->  | AJ17: =IF(AND($D17="Local",AJ$13=$E17),"y","") ->  | AK17: y | AM17: =IF($D17<>"Local","y","") ->  | AO17: =IF(AI17="y",1,"") ->  | AP17: =IF(AJ17="y",1,"") ->  | AQ17: =IF(AK17="y",1,"") -> 1 | AR17: =IF(AL17="y",1,"") ->  | AS17: =IF(AM17="y",1,"") ->  | AT17: =SUM(AO17:AS17) -> 1 | AV17: =IF(AO17="","",(AO17/$AT17)*$AG17) ->  | AW17: =IF(AP17="","",(AP17/$AT17)*$AG17) ->  | AX17: =IF(AQ17="","",(AQ17/$AT17)*$AG17) -> 1017543 | AY17: =IF(AR17="","",(AR17/$AT17)*$AG17) ->  | AZ17: =IF(AS17="","",(AS17/$AT17)*$AG17) ->  | BB17: =IF(AO17="","",(AO17/$AT17)*$AH17) ->  | BC17: =IF(AP17="","",(AP17/$AT17)*$AH17) ->  | BD17: =IF(AQ17="","",(AQ17/$AT17)*$AH17) -> 1017543 | BE17: =IF(AR17="","",(AR17/$AT17)*$AH17) ->  | BF17: =IF(AS17="","",(AS17/$AT17)*$AH17) -> 
B18: PCF313 | C18: AGR-A1-003 | D18: Local | E18: South | F18: Acquire and embellish land to provide LOCAL RECREATION infrastructure | G18: A1-L | H18: =IFERROR(INDEX(UnitRateParks[],MATCH(G18,UnitRateParks[LGIP Code],0),3),"") -> 8000 | I18: =IFERROR(MIN(K18/H18,INDEX(UnitRateParks[],MATCH(FutureTrunkParks[[#This Row],[LGIP Code (*)]], UnitRateParks[LGIP Code],0),4)),"") -> 1.25 | K18: 10000 | L18: 150 | M18: 1500000 | N18: =IFERROR((VLOOKUP(FutureTrunkParks[[#This Row],[LGIP Code (*)]],UnitRateParks[],7,FALSE)*FutureTrunkParks[[#This Row],[Scaling factor (*)]]+VLOOKUP(FutureTrunkParks[[#This Row],[LGIP Code (*)]],UnitRateParks[],8,FALSE)-VLOOKUP(FutureTrunkParks[[#This Row],[LGIP Code (*)]],UnitRateParks[],6,FALSE))*18.5%+VLOOKUP(FutureTrunkParks[[#This Row],[LGIP Code (*)]],UnitRateParks[],7,FALSE)*FutureTrunkParks[[#This Row],[Scaling factor (*)]]+VLOOKUP(FutureTrunkParks[[#This Row],[LGIP Code (*)]],UnitRateParks[],8,FALSE),"Error") -> 333334.7434 | O18: 333335 | P18: 2016 | Q18: 0.17 | R18: =ROUND(O18*Q18,0) -> 56667 | S18: 1 | T18: 0.15 | U18: =ROUND((O18+R18)*13%,0) -> 50700 | V18: =ROUND(O18+R18+U18+(O18+R18+U18)*T18,0) -> 506807 | W18: 66105 | X18: 2024 | Y18: 0.025 | Z18: 0.01871653255 | AA18: =IF(FutureTrunkParks[[#This Row],[Asset Class]]="Local",VLOOKUP(FutureTrunkParks[[#This Row],[Service Catchment]],'Catchment Demand - Parks'!$C$8:$M$12,11),'Catchment Demand - Parks'!$M$12) -> 0.2365306507 | AB18: =_xlfn.IFS(FutureTrunkParks[[#This Row],[Year of Provision]]=2019,0,FutureTrunkParks[[#This Row],[Year of Provision]]=2024,FutureTrunkParks[[#This Row],[Total Assets Cost (at Base Year)]]/SUMIFS($AE$17:$AE$189,$X$17:$X$189,"2024",$E$17:$E$189,FutureTrunkParks[[#This Row],[Service Catchment]])) -> 0.01199844336 | AC18: =IF(AND(FutureTrunkParks[[#This Row],[Spare Capacity %]]>30%,FutureTrunkParks[[#This Row],[Share of the total Cost with the same year of provision %]]>20%),1-FutureTrunkParks[[#This Row],[Spare Capacity %]],1) -> 1 | AD18: =IF(FutureTrunkParks[[#This Row],[ Terminal Value Analysis]]<0,0,FutureTrunkParks[[#This Row],[ Terminal Value Analysis]]) -> 1 | AE18: =ROUND(V18+M18,0) -> 2006807 | AF18: 2415458 | AG18: 1525822 | AH18: =ROUND(FutureTrunkParks[[#This Row],[Net Present Value of Total Asset Cost]]*FutureTrunkParks[[#This Row],[Terminal Value Adjustment]],0) -> 1525822 | AI18: =IF(AND($D18="Local",AI$13=$E18),"y","") ->  | AK18: y | AM18: =IF($D18<>"Local","y","") ->  | AQ18: 1 | AT18: 1 | AX18: 1525822 | BD18: 1525822
B19: PCF313 | C19: AGR-A1-010 | D19: Local | E19: South | F19: Acquire and embellish land to provide LOCAL RECREATION infrastructure | G19: A1-L | H19: =IFERROR(INDEX(UnitRateParks[],MATCH(G19,UnitRateParks[LGIP Code],0),3),"") -> 8000 | I19: =IFERROR(MIN(K19/H19,INDEX(UnitRateParks[],MATCH(FutureTrunkParks[[#This Row],[LGIP Code (*)]], UnitRateParks[LGIP Code],0),4)),"") -> 1.4622 | K19: 11697.6 | L19: 80 | M19: 935808 | N19: =IFERROR((VLOOKUP(FutureTrunkParks[[#This Row],[LGIP Code (*)]],UnitRateParks[],7,FALSE)*FutureTrunkParks[[#This Row],[Scaling factor (*)]]+VLOOKUP(FutureTrunkParks[[#This Row],[LGIP Code (*)]],UnitRateParks[],8,FALSE)-VLOOKUP(FutureTrunkParks[[#This Row],[LGIP Code (*)]],UnitRateParks[],6,FALSE))*18.5%+VLOOKUP(FutureTrunkParks[[#This Row],[LGIP Code (*)]],UnitRateParks[],7,FALSE)*FutureTrunkParks[[#This Row],[Scaling factor (*)]]+VLOOKUP(FutureTrunkParks[[#This Row],[LGIP Code (*)]],UnitRateParks[],8,FALSE),"Error") -> 385215.9426 | O19: 385216 | P19: 2016 | Q19: 0.17 | R19: 65487 | S19: 1 | T19: 0.15 | U19: 58591 | V19: 585688 | W19: 76394 | X19: 2024 | Y19: 0.025 | Z19: 0.01871653255 | AA19: =IF(FutureTrunkParks[[#This Row],[Asset Class]]="Local",VLOOKUP(FutureTrunkParks[[#This Row],[Service Catchment]],'Catchment Demand - Parks'!$C$8:$M$12,11),'Catchment Demand - Parks'!$M$12) -> 0.2365306507 | AB19: =_xlfn.IFS(FutureTrunkParks[[#This Row],[Year of Provision]]=2019,0,FutureTrunkParks[[#This Row],[Year of Provision]]=2024,FutureTrunkParks[[#This Row],[Total Assets Cost (at Base Year)]]/SUMIFS($AE$17:$AE$189,$X$17:$X$189,"2024",$E$17:$E$189,FutureTrunkParks[[#This Row],[Service Catchment]])) -> 0.009096830729 | AC19: =IF(AND(FutureTrunkParks[[#This Row],[Spare Capacity %]]>30%,FutureTrunkParks[[#This Row],[Share of the total Cost with the same year of provision %]]>20%),1-FutureTrunkParks[[#This Row],[Spare Capacity %]],1) -> 1 | AD19: =IF(FutureTrunkParks[[#This Row],[ Terminal Value Analysis]]<0,0,FutureTrunkParks[[#This Row],[ Terminal Value Analysis]]) -> 1 | AE19: 1521496 | AF19: 1819541 | AG19: 1149387 | AH19: =ROUND(FutureTrunkParks[[#This Row],[Net Present Value of Total Asset Cost]]*FutureTrunkParks[[#This Row],[Terminal Value Adjustment]],0) -> 1149387 | AK19: y | AQ19: 1 | AT19: 1 | AX19: 1149387 | BD19: 1149387
B20: PCF153 | C20: ALB-A1-001 | D20: Local | E20: North | F20: Acquire and embellish land to provide LOCAL RECREATION infrastructure | G20: A1-L | H20: =IFERROR(INDEX(UnitRateParks[],MATCH(G20,UnitRateParks[LGIP Code],0),3),"") -> 8000 | I20: =IFERROR(MIN(K20/H20,INDEX(UnitRateParks[],MATCH(FutureTrunkParks[[#This Row],[LGIP Code (*)]], UnitRateParks[LGIP Code],0),4)),"") -> 0.25 | K20: 2000 | L20: 3000 | M20: 6000000 | N20: =IFERROR((VLOOKUP(FutureTrunkParks[[#This Row],[LGIP Code (*)]],UnitRateParks[],7,FALSE)*FutureTrunkParks[[#This Row],[Scaling factor (*)]]+VLOOKUP(FutureTrunkParks[[#This Row],[LGIP Code (*)]],UnitRateParks[],8,FALSE)-VLOOKUP(FutureTrunkParks[[#This Row],[LGIP Code (*)]],UnitRateParks[],6,FALSE))*18.5%+VLOOKUP(FutureTrunkParks[[#This Row],[LGIP Code (*)]],UnitRateParks[],7,FALSE)*FutureTrunkParks[[#This Row],[Scaling factor (*)]]+VLOOKUP(FutureTrunkParks[[#This Row],[LGIP Code (*)]],UnitRateParks[],8,FALSE),"Error") -> 88842.75869 | O20: 88843 | P20: 2016 | Q20: 0.17 | R20: 15103 | S20: 1 | T20: 0.075 | U20: 13513 | V20: 126268 | W20: 8809 | X20: 2019 | Y20: 0.025 | Z20: 0.01871653255 | AA20: =IF(FutureTrunkParks[[#This Row],[Asset Class]]="Local",VLOOKUP(FutureTrunkParks[[#This Row],[Service Catchment]],'Catchment Demand - Parks'!$C$8:$M$12,11),'Catchment Demand - Parks'!$M$12) -> 0.2179675326 | AB20: =_xlfn.IFS(FutureTrunkParks[[#This Row],[Year of Provision]]=2019,0,FutureTrunkParks[[#This Row],[Year of Provision]]=2024,FutureTrunkParks[[#This Row],[Total Assets Cost (at Base Year)]]/SUMIFS($AE$17:$AE$189,$X$17:$X$189,"2024",$E$17:$E$189,FutureTrunkParks[[#This Row],[Service Catchment]])) -> 0 | AC20: =IF(AND(FutureTrunkParks[[#This Row],[Spare Capacity %]]>30%,FutureTrunkParks[[#This Row],[Share of the total Cost with the same year of provision %]]>20%),1-FutureTrunkParks[[#This Row],[Spare Capacity %]],1) -> 1 | AD20: =IF(FutureTrunkParks[[#This Row],[ Terminal Value Analysis]]<0,0,FutureTrunkParks[[#This Row],[ Terminal Value Analysis]]) -> 1 | AE20: 6126268 | AF20: 6594835 | AG20: 5551279 | AH20: =ROUND(FutureTrunkParks[[#This Row],[Net Present Value of Total Asset Cost]]*FutureTrunkParks[[#This Row],[Terminal Value Adjustment]],0) -> 5551279 | AJ20: y | AP20: 1 | AT20: 1 | AW20: 5551279 | BC20: 5551279
B21: PCF153 | C21: ALB-A1-002 | D21: Local | E21: North | F21: Acquire and embellish land to provide LOCAL RECREATION infrastructure | G21: A1-L | H21: =IFERROR(INDEX(UnitRateParks[],MATCH(G21,UnitRateParks[LGIP Code],0),3),"") -> 8000 | I21: =IFERROR(MIN(K21/H21,INDEX(UnitRateParks[],MATCH(FutureTrunkParks[[#This Row],[LGIP Code (*)]], UnitRateParks[LGIP Code],0),4)),"") -> 0.325 | K21: 2600 | L21: 1000 | M21: 2600000 | N21: =IFERROR((VLOOKUP(FutureTrunkParks[[#This Row],[LGIP Code (*)]],UnitRateParks[],7,FALSE)*FutureTrunkParks[[#This Row],[Scaling factor (*)]]+VLOOKUP(FutureTrunkParks[[#This Row],[LGIP Code (*)]],UnitRateParks[],8,FALSE)-VLOOKUP(FutureTrunkParks[[#This Row],[LGIP Code (*)]],UnitRateParks[],6,FALSE))*18.5%+VLOOKUP(FutureTrunkParks[[#This Row],[LGIP Code (*)]],UnitRateParks[],7,FALSE)*FutureTrunkParks[[#This Row],[Scaling factor (*)]]+VLOOKUP(FutureTrunkParks[[#This Row],[LGIP Code (*)]],UnitRateParks[],8,FALSE),"Error") -> 107179.6575 | O21: 107180 | P21: 2016 | Q21: 0.17 | R21: 18221 | S21: 1 | T21: 0.075 | U21: 16302 | V21: 152331 | W21: 10628 | X21: 2019 | Y21: 0.025 | Z21: 0.01871653255 | AA21: =IF(FutureTrunkParks[[#This Row],[Asset Class]]="Local",VLOOKUP(FutureTrunkParks[[#This Row],[Service Catchment]],'Catchment Demand - Parks'!$C$8:$M$12,11),'Catchment Demand - Parks'!$M$12) -> 0.2179675326 | AB21: =_xlfn.IFS(FutureTrunkParks[[#This Row],[Year of Provision]]=2019,0,FutureTrunkParks[[#This Row],[Year of Provision]]=2024,FutureTrunkParks[[#This Row],[Total Assets Cost (at Base Year)]]/SUMIFS($AE$17:$AE$189,$X$17:$X$189,"2024",$E$17:$E$189,FutureTrunkParks[[#This Row],[Service Catchment]])) -> 0 | AC21: =IF(AND(FutureTrunkParks[[#This Row],[Spare Capacity %]]>30%,FutureTrunkParks[[#This Row],[Share of the total Cost with the same year of provision %]]>20%),1-FutureTrunkParks[[#This Row],[Spare Capacity %]],1) -> 1 | AD21: =IF(FutureTrunkParks[[#This Row],[ Terminal Value Analysis]]<0,0,FutureTrunkParks[[#This Row],[ Terminal Value Analysis]]) -> 1 | AE21: 2752331 | AF21: 2960961 | AG21: 2492423 | AH21: =ROUND(FutureTrunkParks[[#This Row],[Net Present Value of Total Asset Cost]]*FutureTrunkParks[[#This Row],[Terminal Value Adjustment]],0) -> 2492423 | AJ21: y | AP21: 1 | AT21: 1 | AW21: 2492423 | BC21: 2492423
B22: PCF154 | C22: ASC-A1-001 | D22: Local | E22: North | F22: Acquire and embellish land to provide LOCAL RECREATION infrastructure | G22: A1-L | H22: =IFERROR(INDEX(UnitRateParks[],MATCH(G22,UnitRateParks[LGIP Code],0),3),"") -> 8000 | I22: =IFERROR(MIN(K22/H22,INDEX(UnitRateParks[],MATCH(FutureTrunkParks[[#This Row],[LGIP Code (*)]], UnitRateParks[LGIP Code],0),4)),"") -> 1.39025 | K22: 11122 | L22: 10 | M22: 111220 | N22: =IFERROR((VLOOKUP(FutureTrunkParks[[#This Row],[LGIP Code (*)]],UnitRateParks[],7,FALSE)*FutureTrunkParks[[#This Row],[Scaling factor (*)]]+VLOOKUP(FutureTrunkParks[[#This Row],[LGIP Code (*)]],UnitRateParks[],8,FALSE)-VLOOKUP(FutureTrunkParks[[#This Row],[LGIP Code (*)]],UnitRateParks[],6,FALSE))*18.5%+VLOOKUP(FutureTrunkParks[[#This Row],[LGIP Code (*)]],UnitRateParks[],7,FALSE)*FutureTrunkParks[[#This Row],[Scaling factor (*)]]+VLOOKUP(FutureTrunkParks[[#This Row],[LGIP Code (*)]],UnitRateParks[],8,FALSE),"Error") -> 367624.7443 | O22: 367625 | P22: 2016 | Q22: 0.17 | R22: 62496 | S22: 1 | T22: 0.075 | U22: 55916 | V22: 522490 | W22: 36453 | X22: 2019 | Y22: 0.025 | Z22: 0.01871653255 | AA22: =IF(FutureTrunkParks[[#This Row],[Asset Class]]="Local",VLOOKUP(FutureTrunkParks[[#This Row],[Service Catchment]],'Catchment Demand - Parks'!$C$8:$M$12,11),'Catchment Demand - Parks'!$M$12) -> 0.2179675326 | AB22: =_xlfn.IFS(FutureTrunkParks[[#This Row],[Year of Provision]]=2019,0,FutureTrunkParks[[#This Row],[Year of Provision]]=2024,FutureTrunkParks[[#This Row],[Total Assets Cost (at Base Year)]]/SUMIFS($AE$17:$AE$189,$X$17:$X$189,"2024",$E$17:$E$189,FutureTrunkParks[[#This Row],[Service Catchment]])) -> 0 | AC22: =IF(AND(FutureTrunkParks[[#This Row],[Spare Capacity %]]>30%,FutureTrunkParks[[#This Row],[Share of the total Cost with the same year of provision %]]>20%),1-FutureTrunkParks[[#This Row],[Spare Capacity %]],1) -> 1 | AD22: =IF(FutureTrunkParks[[#This Row],[ Terminal Value Analysis]]<0,0,FutureTrunkParks[[#This Row],[ Terminal Value Analysis]]) -> 1 | AE22: 633710 | AF22: 672152 | AG22: 565792 | AH22: =ROUND(FutureTrunkParks[[#This Row],[Net Present Value of Total Asset Cost]]*FutureTrunkParks[[#This Row],[Terminal Value Adjustment]],0) -> 565792 | AJ22: y | AP22: 1 | AT22: 1 | AW22: 565792 | BC22: 565792
B23: PCF154 | C23: ASC-A1-002 | D23: Local | E23: North | F23: Acquire and embellish land to provide LOCAL RECREATION infrastructure | G23: A1-L | H23: =IFERROR(INDEX(UnitRateParks[],MATCH(G23,UnitRateParks[LGIP Code],0),3),"") -> 8000 | I23: =IFERROR(MIN(K23/H23,INDEX(UnitRateParks[],MATCH(FutureTrunkParks[[#This Row],[LGIP Code (*)]], UnitRateParks[LGIP Code],0),4)),"") -> 0.625 | K23: 5000 | L23: 100 | M23: 500000 | N23: =IFERROR((VLOOKUP(FutureTrunkParks[[#This Row],[LGIP Code (*)]],UnitRateParks[],7,FALSE)*FutureTrunkParks[[#This Row],[Scaling factor (*)]]+VLOOKUP(FutureTrunkParks[[#This Row],[LGIP Code (*)]],UnitRateParks[],8,FALSE)-VLOOKUP(FutureTrunkParks[[#This Row],[LGIP Code (*)]],UnitRateParks[],6,FALSE))*18.5%+VLOOKUP(FutureTrunkParks[[#This Row],[LGIP Code (*)]],UnitRateParks[],7,FALSE)*FutureTrunkParks[[#This Row],[Scaling factor (*)]]+VLOOKUP(FutureTrunkParks[[#This Row],[LGIP Code (*)]],UnitRateParks[],8,FALSE),"Error") -> 180527.253 | O23: 180527 | P23: 2016 | Q23: 0.17 | R23: 30690 | S23: 1 | T23: 0.075 | U23: 27458 | V23: 256576 | W23: 17901 | X23: 2019 | Y23: 0.025 | Z23: 0.01871653255 | AA23: =IF(FutureTrunkParks[[#This Row],[Asset Class]]="Local",VLOOKUP(FutureTrunkParks[[#This Row],[Service Catchment]],'Catchment Demand - Parks'!$C$8:$M$12,11),'Catchment Demand - Parks'!$M$12) -> 0.2179675326 | AB23: =_xlfn.IFS(FutureTrunkParks[[#This Row],[Year of Provision]]=2019,0,FutureTrunkParks[[#This Row],[Year of Provision]]=2024,FutureTrunkParks[[#This Row],[Total Assets Cost (at Base Year)]]/SUMIFS($AE$17:$AE$189,$X$17:$X$189,"2024",$E$17:$E$189,FutureTrunkParks[[#This Row],[Service Catchment]])) -> 0 | AC23: =IF(AND(FutureTrunkParks[[#This Row],[Spare Capacity %]]>30%,FutureTrunkParks[[#This Row],[Share of the total Cost with the same year of provision %]]>20%),1-FutureTrunkParks[[#This Row],[Spare Capacity %]],1) -> 1 | AD23: =IF(FutureTrunkParks[[#This Row],[ Terminal Value Analysis]]<0,0,FutureTrunkParks[[#This Row],[ Terminal Value Analysis]]) -> 1 | AE23: 756576 | AF23: 809699 | AG23: 681574 | AH23: =ROUND(FutureTrunkParks[[#This Row],[Net Present Value of Total Asset Cost]]*FutureTrunkParks[[#This Row],[Terminal Value Adjustment]],0) -> 681574 | AJ23: y | AP23: 1 | AT23: 1 | AW23: 681574 | BC23: 681574
B24: PCF92 | C24: ASP-A8-001 | D24: District | E24: North | F24: Acquire and embellish land to provide DISTRICT OR METRO ACCESS/RECREATION CORRIDOR PARK | G24: A8-D | H24: =IFERROR(INDEX(UnitRateParks[],MATCH(G24,UnitRateParks[LGIP Code],0),3),"") -> 30000 | I24: =IFERROR(MIN(K24/H24,INDEX(UnitRateParks[],MATCH(FutureTrunkParks[[#This Row],[LGIP Code (*)]], UnitRateParks[LGIP Code],0),4)),"") -> 0.4 | K24: 12000 | L24: 10 | M24: 120000 | N24: =IFERROR((VLOOKUP(FutureTrunkParks[[#This Row],[LGIP Code (*)]],UnitRateParks[],7,FALSE)*FutureTrunkParks[[#This Row],[Scaling factor (*)]]+VLOOKUP(FutureTrunkParks[[#This Row],[LGIP Code (*)]],UnitRateParks[],8,FALSE)-VLOOKUP(FutureTrunkParks[[#This Row],[LGIP Code (*)]],UnitRateParks[],6,FALSE))*18.5%+VLOOKUP(FutureTrunkParks[[#This Row],[LGIP Code (*)]],UnitRateParks[],7,FALSE)*FutureTrunkParks[[#This Row],[Scaling factor (*)]]+VLOOKUP(FutureTrunkParks[[#This Row],[LGIP Code (*)]],UnitRateParks[],8,FALSE),"Error") -> 282622.7106 | O24: 282623 | P24: 2016 | Q24: 0.17 | R24: 48046 | S24: 1 | T24: 0.15 | U24: 42987 | V24: 429704 | W24: 56048 | X24: 2024 | Y24: 0.025 | Z24: 0.01871653255 | AA24: =IF(FutureTrunkParks[[#This Row],[Asset Class]]="Local",VLOOKUP(FutureTrunkParks[[#This Row],[Service Catchment]],'Catchment Demand - Parks'!$C$8:$M$12,11),'Catchment Demand - Parks'!$M$12) -> 0.2213928202 | AB24: =_xlfn.IFS(FutureTrunkParks[[#This Row],[Year of Provision]]=2019,0,FutureTrunkParks[[#This Row],[Year of Provision]]=2024,FutureTrunkParks[[#This Row],[Total Assets Cost (at Base Year)]]/SUMIFS($AE$17:$AE$189,$X$17:$X$189,"2024",$E$17:$E$189,FutureTrunkParks[[#This Row],[Service Catchment]])) -> 0.01452126125 | AC24: =IF(AND(FutureTrunkParks[[#This Row],[Spare Capacity %]]>30%,FutureTrunkParks[[#This Row],[Share of the total Cost with the same year of provision %]]>20%),1-FutureTrunkParks[[#This Row],[Spare Capacity %]],1) -> 1 | AD24: =IF(FutureTrunkParks[[#This Row],[ Terminal Value Analysis]]<0,0,FutureTrunkParks[[#This Row],[ Terminal Value Analysis]]) -> 1 | AE24: 549704 | AF24: 644629 | AG24: 407206 | AH24: =ROUND(FutureTrunkParks[[#This Row],[Net Present Value of Total Asset Cost]]*FutureTrunkParks[[#This Row],[Terminal Value Adjustment]],0) -> 407206 | AM24: y | AS24: 1 | AT24: 1 | AZ24: 407206 | BF24: 407206
B25: PCF92 | C25: ASP-A8-002 | D25: District | E25: West | F25: Acquire and embellish land to provide DISTRICT OR METRO ACCESS/RECREATION CORRIDOR PARK | G25: A8-D | H25: =IFERROR(INDEX(UnitRateParks[],MATCH(G25,UnitRateParks[LGIP Code],0),3),"") -> 30000 | I25: =IFERROR(MIN(K25/H25,INDEX(UnitRateParks[],MATCH(FutureTrunkParks[[#This Row],[LGIP Code (*)]], UnitRateParks[LGIP Code],0),4)),"") -> 0.2666666667 | K25: 8000 | L25: 40 | M25: 320000 | N25: =IFERROR((VLOOKUP(FutureTrunkParks[[#This Row],[LGIP Code (*)]],UnitRateParks[],7,FALSE)*FutureTrunkParks[[#This Row],[Scaling factor (*)]]+VLOOKUP(FutureTrunkParks[[#This Row],[LGIP Code (*)]],UnitRateParks[],8,FALSE)-VLOOKUP(FutureTrunkParks[[#This Row],[LGIP Code (*)]],UnitRateParks[],6,FALSE))*18.5%+VLOOKUP(FutureTrunkParks[[#This Row],[LGIP Code (*)]],UnitRateParks[],7,FALSE)*FutureTrunkParks[[#This Row],[Scaling factor (*)]]+VLOOKUP(FutureTrunkParks[[#This Row],[LGIP Code (*)]],UnitRateParks[],8,FALSE),"Error") -> 208599.9996 | O25: 208600 | P25: 2016 | Q25: 0.17 | R25: 35462 | S25: 1 | T25: 0.15 | U25: 31728 | V25: 317159 | W25: 41369 | X25: 2024 | Y25: 0.025 | Z25: 0.01871653255 | AA25: =IF(FutureTrunkParks[[#This Row],[Asset Class]]="Local",VLOOKUP(FutureTrunkParks[[#This Row],[Service Catchment]],'Catchment Demand - Parks'!$C$8:$M$12,11),'Catchment Demand - Parks'!$M$12) -> 0.2213928202 | AB25: =_xlfn.IFS(FutureTrunkParks[[#This Row],[Year of Provision]]=2019,0,FutureTrunkParks[[#This Row],[Year of Provision]]=2024,FutureTrunkParks[[#This Row],[Total Assets Cost (at Base Year)]]/SUMIFS($AE$17:$AE$189,$X$17:$X$189,"2024",$E$17:$E$189,FutureTrunkParks[[#This Row],[Service Catchment]])) -> 0.0106088067 | AC25: =IF(AND(FutureTrunkParks[[#This Row],[Spare Capacity %]]>30%,FutureTrunkParks[[#This Row],[Share of the total Cost with the same year of provision %]]>20%),1-FutureTrunkParks[[#This Row],[Spare Capacity %]],1) -> 1 | AD25: =IF(FutureTrunkParks[[#This Row],[ Terminal Value Analysis]]<0,0,FutureTrunkParks[[#This Row],[ Terminal Value Analysis]]) -> 1 | AE25: 637159 | AF25: 757767 | AG25: 478674 | AH25: =ROUND(FutureTrunkParks[[#This Row],[Net Present Value of Total Asset Cost]]*FutureTrunkParks[[#This Row],[Terminal Value Adjustment]],0) -> 478674 | AM25: y | AS25: 1 | AT25: 1 | AZ25: 478674 | BF25: 478674
B26: PCF73 | C26: BDL-A1-002 | D26: Local | E26: North | F26: Acquire and embellish land to provide LOCAL RECREATION infrastructure | G26: A1-L | H26: =IFERROR(INDEX(UnitRateParks[],MATCH(G26,UnitRateParks[LGIP Code],0),3),"") -> 8000 | I26: =IFERROR(MIN(K26/H26,INDEX(UnitRateParks[],MATCH(FutureTrunkParks[[#This Row],[LGIP Code (*)]], UnitRateParks[LGIP Code],0),4)),"") -> 0.6151375 | K26: 4921.1 | L26: 80 | M26: 393688 | N26: =IFERROR((VLOOKUP(FutureTrunkParks[[#This Row],[LGIP Code (*)]],UnitRateParks[],7,FALSE)*FutureTrunkParks[[#This Row],[Scaling factor (*)]]+VLOOKUP(FutureTrunkParks[[#This Row],[LGIP Code (*)]],UnitRateParks[],8,FALSE)-VLOOKUP(FutureTrunkParks[[#This Row],[LGIP Code (*)]],UnitRateParks[],6,FALSE))*18.5%+VLOOKUP(FutureTrunkParks[[#This Row],[LGIP Code (*)]],UnitRateParks[],7,FALSE)*FutureTrunkParks[[#This Row],[Scaling factor (*)]]+VLOOKUP(FutureTrunkParks[[#This Row],[LGIP Code (*)]],UnitRateParks[],8,FALSE),"Error") -> 178115.9508 | O26: 178116 | P26: 2016 | Q26: 0.17 | R26: 30280 | S26: 1 | T26: 0.075 | U26: 27091 | V26: 253149 | W26: 17662 | X26: 2019 | Y26: 0.025 | Z26: 0.01871653255 | AA26: =IF(FutureTrunkParks[[#This Row],[Asset Class]]="Local",VLOOKUP(FutureTrunkParks[[#This Row],[Service Catchment]],'Catchment Demand - Parks'!$C$8:$M$12,11),'Catchment Demand - Parks'!$M$12) -> 0.2179675326 | AB26: =_xlfn.IFS(FutureTrunkParks[[#This Row],[Year of Provision]]=2019,0,FutureTrunkParks[[#This Row],[Year of Provision]]=2024,FutureTrunkParks[[#This Row],[Total Assets Cost (at Base Year)]]/SUMIFS($AE$17:$AE$189,$X$17:$X$189,"2024",$E$17:$E$189,FutureTrunkParks[[#This Row],[Service Catchment]])) -> 0 | AC26: =IF(AND(FutureTrunkParks[[#This Row],[Spare Capacity %]]>30%,FutureTrunkParks[[#This Row],[Share of the total Cost with the same year of provision %]]>20%),1-FutureTrunkParks[[#This Row],[Spare Capacity %]],1) -> 1 | AD26: =IF(FutureTrunkParks[[#This Row],[ Terminal Value Analysis]]<0,0,FutureTrunkParks[[#This Row],[ Terminal Value Analysis]]) -> 1 | AE26: 646837 | AF26: 691590 | AG26: 582154 | AH26: =ROUND(FutureTrunkParks[[#This Row],[Net Present Value of Total Asset Cost]]*FutureTrunkParks[[#This Row],[Terminal Value Adjustment]],0) -> 582154 | AJ26: y | AP26: 1 | AT26: 1 | AW26: 582154 | BC26: 582154
B27: PCF93 | C27: BDL-E1-010 | D27: Local | E27: North | F27: Provide LOCAL RECREATION infrastructure | G27: E1-L | H27: =IFERROR(INDEX(UnitRateParks[],MATCH(G27,UnitRateParks[LGIP Code],0),3),"") -> 8000 | I27: =IFERROR(MIN(K27/H27,INDEX(UnitRateParks[],MATCH(FutureTrunkParks[[#This Row],[LGIP Code (*)]], UnitRateParks[LGIP Code],0),4)),"") -> 0.1875 | K27: 1500 | L27: 0 | M27: 0 | N27: =IFERROR((VLOOKUP(FutureTrunkParks[[#This Row],[LGIP Code (*)]],UnitRateParks[],10,FALSE)*FutureTrunkParks[[#This Row],[Scaling factor (*)]]+VLOOKUP(FutureTrunkParks[[#This Row],[LGIP Code (*)]],UnitRateParks[],11,FALSE))*18.5%+VLOOKUP(FutureTrunkParks[[#This Row],[LGIP Code (*)]],UnitRateParks[],11,FALSE)+VLOOKUP(FutureTrunkParks[[#This Row],[LGIP Code (*)]],UnitRateParks[],10,FALSE)*FutureTrunkParks[[#This Row],[Scaling factor (*)]]+(VLOOKUP(FutureTrunkParks[[#This Row],[LGIP Code (*)]],UnitRateParks[],13,FALSE)*FutureTrunkParks[[#This Row],[Scaling factor (*)]]+VLOOKUP(FutureTrunkParks[[#This Row],[LGIP Code (*)]],UnitRateParks[],14,FALSE))*18.5%+VLOOKUP(FutureTrunkParks[[#This Row],[LGIP Code (*)]],UnitRateParks[],14,FALSE)+VLOOKUP(FutureTrunkParks[[#This Row],[LGIP Code (*)]],UnitRateParks[],13,FALSE)*FutureTrunkParks[[#This Row],[Scaling factor (*)]],"Error") -> 376683.2064 | O27: 376683 | P27: 2016 | Q27: 0.17 | R27: 64036 | S27: 1 | T27: 0.075 | U27: 57293 | V27: 535363 | W27: 37351 | X27: 2019 | Y27: 0.025 | Z27: 0.01871653255 | AA27: =IF(FutureTrunkParks[[#This Row],[Asset Class]]="Local",VLOOKUP(FutureTrunkParks[[#This Row],[Service Catchment]],'Catchment Demand - Parks'!$C$8:$M$12,11),'Catchment Demand - Parks'!$M$12) -> 0.2179675326 | AB27: =_xlfn.IFS(FutureTrunkParks[[#This Row],[Year of Provision]]=2019,0,FutureTrunkParks[[#This Row],[Year of Provision]]=2024,FutureTrunkParks[[#This Row],[Total Assets Cost (at Base Year)]]/SUMIFS($AE$17:$AE$189,$X$17:$X$189,"2024",$E$17:$E$189,FutureTrunkParks[[#This Row],[Service Catchment]])) -> 0 | AC27: =IF(AND(FutureTrunkParks[[#This Row],[Spare Capacity %]]>30%,FutureTrunkParks[[#This Row],[Share of the total Cost with the same year of provision %]]>20%),1-FutureTrunkParks[[#This Row],[Spare Capacity %]],1) -> 1 | AD27: =IF(FutureTrunkParks[[#This Row],[ Terminal Value Analysis]]<0,0,FutureTrunkParks[[#This Row],[ Terminal Value Analysis]]) -> 1 | AE27: 535363 | AF27: 565990 | AG27: 476429 | AH27: =ROUND(FutureTrunkParks[[#This Row],[Net Present Value of Total Asset Cost]]*FutureTrunkParks[[#This Row],[Terminal Value Adjustment]],0) -> 476429 | AJ27: y | AP27: 1 | AT27: 1 | AW27: 476429 | BC27: 476429
B28: PCF52 | C28: BHI-E5-001 | D28: District | E28: North | F28: Provide DISTRICT SPORT infrastructure | G28: E5-D | H28: =IFERROR(INDEX(UnitRateParks[],MATCH(G28,UnitRateParks[LGIP Code],0),3),"") -> 40000 | I28: =IFERROR(MIN(K28/H28,INDEX(UnitRateParks[],MATCH(FutureTrunkParks[[#This Row],[LGIP Code (*)]], UnitRateParks[LGIP Code],0),4)),"") -> 2.5 | K28: 100000 | L28: 0 | M28: 0 | N28: =IFERROR((VLOOKUP(FutureTrunkParks[[#This Row],[LGIP Code (*)]],UnitRateParks[],10,FALSE)*FutureTrunkParks[[#This Row],[Scaling factor (*)]]+VLOOKUP(FutureTrunkParks[[#This Row],[LGIP Code (*)]],UnitRateParks[],11,FALSE))*18.5%+VLOOKUP(FutureTrunkParks[[#This Row],[LGIP Code (*)]],UnitRateParks[],11,FALSE)+VLOOKUP(FutureTrunkParks[[#This Row],[LGIP Code (*)]],UnitRateParks[],10,FALSE)*FutureTrunkParks[[#This Row],[Scaling factor (*)]]+(VLOOKUP(FutureTrunkParks[[#This Row],[LGIP Code (*)]],UnitRateParks[],13,FALSE)*FutureTrunkParks[[#This Row],[Scaling factor (*)]]+VLOOKUP(FutureTrunkParks[[#This Row],[LGIP Code (*)]],UnitRateParks[],14,FALSE))*18.5%+VLOOKUP(FutureTrunkParks[[#This Row],[LGIP Code (*)]],UnitRateParks[],14,FALSE)+VLOOKUP(FutureTrunkParks[[#This Row],[LGIP Code (*)]],UnitRateParks[],13,FALSE)*FutureTrunkParks[[#This Row],[Scaling factor (*)]],"Error") -> 7619541.361 | O28: 7619541 | P28: 2016 | Q28: 0.17 | R28: 1295322 | S28: 1 | T28: 0.075 | U28: 1158932 | V28: 10829330 | W28: 755535 | X28: 2019 | Y28: 0.025 | Z28: 0.01871653255 | AA28: =IF(FutureTrunkParks[[#This Row],[Asset Class]]="Local",VLOOKUP(FutureTrunkParks[[#This Row],[Service Catchment]],'Catchment Demand - Parks'!$C$8:$M$12,11),'Catchment Demand - Parks'!$M$12) -> 0.2213928202 | AB28: =_xlfn.IFS(FutureTrunkParks[[#This Row],[Year of Provision]]=2019,0,FutureTrunkParks[[#This Row],[Year of Provision]]=2024,FutureTrunkParks[[#This Row],[Total Assets Cost (at Base Year)]]/SUMIFS($AE$17:$AE$189,$X$17:$X$189,"2024",$E$17:$E$189,FutureTrunkParks[[#This Row],[Service Catchment]])) -> 0 | AC28: =IF(AND(FutureTrunkParks[[#This Row],[Spare Capacity %]]>30%,FutureTrunkParks[[#This Row],[Share of the total Cost with the same year of provision %]]>20%),1-FutureTrunkParks[[#This Row],[Spare Capacity %]],1) -> 1 | AD28: =IF(FutureTrunkParks[[#This Row],[ Terminal Value Analysis]]<0,0,FutureTrunkParks[[#This Row],[ Terminal Value Analysis]]) -> 1 | AE28: 10829330 | AF28: 11448844 | AG28: 9637197 | AH28: =ROUND(FutureTrunkParks[[#This Row],[Net Present Value of Total Asset Cost]]*FutureTrunkParks[[#This Row],[Terminal Value Adjustment]],0) -> 9637197 | AM28: y | AS28: 1 | AT28: 1 | AZ28: 9637197 | BF28: 9637197
B29: PCF72 | C29: BRD-A1-001 | D29: Local | E29: West | F29: Acquire and embellish land to provide LOCAL RECREATION infrastructure | G29: A1-L | H29: =IFERROR(INDEX(UnitRateParks[],MATCH(G29,UnitRateParks[LGIP Code],0),3),"") -> 8000 | I29: =IFERROR(MIN(K29/H29,INDEX(UnitRateParks[],MATCH(FutureTrunkParks[[#This Row],[LGIP Code (*)]], UnitRateParks[LGIP Code],0),4)),"") -> 1.25 | K29: 10000 | L29: 175 | M29: 1750000 | N29: =IFERROR((VLOOKUP(FutureTrunkParks[[#This Row],[LGIP Code (*)]],UnitRateParks[],7,FALSE)*FutureTrunkParks[[#This Row],[Scaling factor (*)]]+VLOOKUP(FutureTrunkParks[[#This Row],[LGIP Code (*)]],UnitRateParks[],8,FALSE)-VLOOKUP(FutureTrunkParks[[#This Row],[LGIP Code (*)]],UnitRateParks[],6,FALSE))*18.5%+VLOOKUP(FutureTrunkParks[[#This Row],[LGIP Code (*)]],UnitRateParks[],7,FALSE)*FutureTrunkParks[[#This Row],[Scaling factor (*)]]+VLOOKUP(FutureTrunkParks[[#This Row],[LGIP Code (*)]],UnitRateParks[],8,FALSE),"Error") -> 333334.7434 | O29: 333335 | P29: 2016 | Q29: 0.17 | R29: 56667 | S29: 1 | T29: 0.075 | U29: 50700 | V29: 473755 | W29: 33053 | X29: 2019 | Y29: 0.025 | Z29: 0.01871653255 | AA29: =IF(FutureTrunkParks[[#This Row],[Asset Class]]="Local",VLOOKUP(FutureTrunkParks[[#This Row],[Service Catchment]],'Catchment Demand - Parks'!$C$8:$M$12,11),'Catchment Demand - Parks'!$M$12) -> 0.1760134606 | AB29: =_xlfn.IFS(FutureTrunkParks[[#This Row],[Year of Provision]]=2019,0,FutureTrunkParks[[#This Row],[Year of Provision]]=2024,FutureTrunkParks[[#This Row],[Total Assets Cost (at Base Year)]]/SUMIFS($AE$17:$AE$189,$X$17:$X$189,"2024",$E$17:$E$189,FutureTrunkParks[[#This Row],[Service Catchment]])) -> 0 | AC29: =IF(AND(FutureTrunkParks[[#This Row],[Spare Capacity %]]>30%,FutureTrunkParks[[#This Row],[Share of the total Cost with the same year of provision %]]>20%),1-FutureTrunkParks[[#This Row],[Spare Capacity %]],1) -> 1 | AD29: =IF(FutureTrunkParks[[#This Row],[ Terminal Value Analysis]]<0,0,FutureTrunkParks[[#This Row],[ Terminal Value Analysis]]) -> 1 | AE29: 2223755 | AF29: 2385416 | AG29: 2007952 | AH29: =ROUND(FutureTrunkParks[[#This Row],[Net Present Value of Total Asset Cost]]*FutureTrunkParks[[#This Row],[Terminal Value Adjustment]],0) -> 2007952 | AL29: y | AR29: 1 | AT29: 1 | AY29: 2007952 | BE29: 2007952
B30: PCF91 | C30: BRD-A1-002 | D30: Local | E30: West | F30: Acquire and embellish land to provide LOCAL RECREATION infrastructure | G30: A1-L | H30: =IFERROR(INDEX(UnitRateParks[],MATCH(G30,UnitRateParks[LGIP Code],0),3),"") -> 8000 | I30: =IFERROR(MIN(K30/H30,INDEX(UnitRateParks[],MATCH(FutureTrunkParks[[#This Row],[LGIP Code (*)]], UnitRateParks[LGIP Code],0),4)),"") -> 1.25 | K30: 10000 | L30: 10 | M30: 100000 | N30: =IFERROR((VLOOKUP(FutureTrunkParks[[#This Row],[LGIP Code (*)]],UnitRateParks[],7,FALSE)*FutureTrunkParks[[#This Row],[Scaling factor (*)]]+VLOOKUP(FutureTrunkParks[[#This Row],[LGIP Code (*)]],UnitRateParks[],8,FALSE)-VLOOKUP(FutureTrunkParks[[#This Row],[LGIP Code (*)]],UnitRateParks[],6,FALSE))*18.5%+VLOOKUP(FutureTrunkParks[[#This Row],[LGIP Code (*)]],UnitRateParks[],7,FALSE)*FutureTrunkParks[[#This Row],[Scaling factor (*)]]+VLOOKUP(FutureTrunkParks[[#This Row],[LGIP Code (*)]],UnitRateParks[],8,FALSE),"Error") -> 333334.7434 | O30: 333335 | P30: 2016 | Q30: 0.17 | R30: 56667 | S30: 1 | T30: 0.15 | U30: 50700 | V30: 506807 | W30: 66105 | X30: 2024 | Y30: 0.025 | Z30: 0.01871653255 | AA30: =IF(FutureTrunkParks[[#This Row],[Asset Class]]="Local",VLOOKUP(FutureTrunkParks[[#This Row],[Service Catchment]],'Catchment Demand - Parks'!$C$8:$M$12,11),'Catchment Demand - Parks'!$M$12) -> 0.1760134606 | AB30: =_xlfn.IFS(FutureTrunkParks[[#This Row],[Year of Provision]]=2019,0,FutureTrunkParks[[#This Row],[Year of Provision]]=2024,FutureTrunkParks[[#This Row],[Total Assets Cost (at Base Year)]]/SUMIFS($AE$17:$AE$189,$X$17:$X$189,"2024",$E$17:$E$189,FutureTrunkParks[[#This Row],[Service Catchment]])) -> 0.01010344069 | AC30: =IF(AND(FutureTrunkParks[[#This Row],[Spare Capacity %]]>30%,FutureTrunkParks[[#This Row],[Share of the total Cost with the same year of provision %]]>20%),1-FutureTrunkParks[[#This Row],[Spare Capacity %]],1) -> 1 | AD30: =IF(FutureTrunkParks[[#This Row],[ Terminal Value Analysis]]<0,0,FutureTrunkParks[[#This Row],[ Terminal Value Analysis]]) -> 1 | AE30: 606807 | AF30: 709694 | AG30: 448307 | AH30: =ROUND(FutureTrunkParks[[#This Row],[Net Present Value of Total Asset Cost]]*FutureTrunkParks[[#This Row],[Terminal Value Adjustment]],0) -> 448307 | AL30: y | AR30: 1 | AT30: 1 | AY30: 448307 | BE30: 448307
B31: PCF91 | C31: BRD-A8-001 | D31: District | E31: West | F31: Acquire and embellish land to provide DISTRICT OR METRO ACCESS/RECREATION CORRIDOR PARK | G31: A8-D | H31: =IFERROR(INDEX(UnitRateParks[],MATCH(G31,UnitRateParks[LGIP Code],0),3),"") -> 30000 | I31: =IFERROR(MIN(K31/H31,INDEX(UnitRateParks[],MATCH(FutureTrunkParks[[#This Row],[LGIP Code (*)]], UnitRateParks[LGIP Code],0),4)),"") -> 0.6666666667 | K31: 20000 | L31: 10 | M31: 200000 | N31: =IFERROR((VLOOKUP(FutureTrunkParks[[#This Row],[LGIP Code (*)]],UnitRateParks[],7,FALSE)*FutureTrunkParks[[#This Row],[Scaling factor (*)]]+VLOOKUP(FutureTrunkParks[[#This Row],[LGIP Code (*)]],UnitRateParks[],8,FALSE)-VLOOKUP(FutureTrunkParks[[#This Row],[LGIP Code (*)]],UnitRateParks[],6,FALSE))*18.5%+VLOOKUP(FutureTrunkParks[[#This Row],[LGIP Code (*)]],UnitRateParks[],7,FALSE)*FutureTrunkParks[[#This Row],[Scaling factor (*)]]+VLOOKUP(FutureTrunkParks[[#This Row],[LGIP Code (*)]],UnitRateParks[],8,FALSE),"Error") -> 430668.1326 | O31: 430668 | P31: 2016 | Q31: 0.17 | R31: 73214 | S31: 1 | T31: 0.15 | U31: 65505 | V31: 654795 | W31: 85408 | X31: 2024 | Y31: 0.025 | Z31: 0.01871653255 | AA31: =IF(FutureTrunkParks[[#This Row],[Asset Class]]="Local",VLOOKUP(FutureTrunkParks[[#This Row],[Service Catchment]],'Catchment Demand - Parks'!$C$8:$M$12,11),'Catchment Demand - Parks'!$M$12) -> 0.2213928202 | AB31: =_xlfn.IFS(FutureTrunkParks[[#This Row],[Year of Provision]]=2019,0,FutureTrunkParks[[#This Row],[Year of Provision]]=2024,FutureTrunkParks[[#This Row],[Total Assets Cost (at Base Year)]]/SUMIFS($AE$17:$AE$189,$X$17:$X$189,"2024",$E$17:$E$189,FutureTrunkParks[[#This Row],[Service Catchment]])) -> 0.01423248345 | AC31: =IF(AND(FutureTrunkParks[[#This Row],[Spare Capacity %]]>30%,FutureTrunkParks[[#This Row],[Share of the total Cost with the same year of provision %]]>20%),1-FutureTrunkParks[[#This Row],[Spare Capacity %]],1) -> 1 | AD31: =IF(FutureTrunkParks[[#This Row],[ Terminal Value Analysis]]<0,0,FutureTrunkParks[[#This Row],[ Terminal Value Analysis]]) -> 1 | AE31: 854795 | AF31: 1003188 | AG31: 633704 | AH31: =ROUND(FutureTrunkParks[[#This Row],[Net Present Value of Total Asset Cost]]*FutureTrunkParks[[#This Row],[Terminal Value Adjustment]],0) -> 633704 | AM31: y | AS31: 1 | AT31: 1 | AZ31: 633704 | BF31: 633704
B32: PCF91 | C32: BRD-U3-010 | D32: District | E32: West | F32: Upgrade existing park infrastructure to value of up to $500k (District) | G32: =MID(C32,5,2) -> U3 | H32: =IFERROR(INDEX(UnitRateParks[],MATCH(G32,UnitRateParks[LGIP Code],0),3),"") -> 0 | I32: =IFERROR(MIN(K32/H32,INDEX(UnitRateParks[],MATCH(G32,UnitRateParks[LGIP Code],0),4)),"") ->  | K32: 10000 | L32: 0 | M32: 0 | N32: =IFERROR(INDEX(UnitRateParks[],MATCH($G32,UnitRateParks[LGIP Code],0),15),"Error") -> 500000 | O32: 500000 | P32: 2016 | Q32: 0.17 | R32: 85000 | S32: 1 | T32: 0.075 | U32: 76050 | V32: 710629 | W32: 49579 | X32: 2019 | Y32: 0.025 | Z32: 0.01871653255 | AA32: =IF(FutureTrunkParks[[#This Row],[Asset Class]]="Local",VLOOKUP(FutureTrunkParks[[#This Row],[Service Catchment]],'Catchment Demand - Parks'!$C$8:$M$12,11),'Catchment Demand - Parks'!$M$12) -> 0.2213928202 | AB32: =_xlfn.IFS(FutureTrunkParks[[#This Row],[Year of Provision]]=2019,0,FutureTrunkParks[[#This Row],[Year of Provision]]=2024,FutureTrunkParks[[#This Row],[Total Assets Cost (at Base Year)]]/SUMIFS($AE$17:$AE$189,$X$17:$X$189,"2024",$E$17:$E$189,FutureTrunkParks[[#This Row],[Service Catchment]])) -> 0 | AC32: =IF(AND(FutureTrunkParks[[#This Row],[Spare Capacity %]]>30%,FutureTrunkParks[[#This Row],[Share of the total Cost with the same year of provision %]]>20%),1-FutureTrunkParks[[#This Row],[Spare Capacity %]],1) -> 1 | AD32: =IF(FutureTrunkParks[[#This Row],[ Terminal Value Analysis]]<0,0,FutureTrunkParks[[#This Row],[ Terminal Value Analysis]]) -> 1 | AE32: 710629 | AF32: 751282 | AG32: 632400 | AH32: =ROUND(FutureTrunkParks[[#This Row],[Net Present Value of Total Asset Cost]]*FutureTrunkParks[[#This Row],[Terminal Value Adjustment]],0) -> 632400 | AM32: y | AS32: 1 | AT32: 1 | AZ32: 632400 | BF32: 632400
B33: PCF53 | C33: BRG-A1-001 | D33: Local | E33: North | F33: Acquire and embellish land to provide LOCAL RECREATION infrastructure | G33: =MID(C33,5,2)&"-"&LEFT(D33,1) -> A1-L | H33: =IFERROR(INDEX(UnitRateParks[],MATCH(G33,UnitRateParks[LGIP Code],0),3),"") -> 8000 | I33: =IFERROR(MIN(K33/H33,INDEX(UnitRateParks[],MATCH(FutureTrunkParks[[#This Row],[LGIP Code (*)]], UnitRateParks[LGIP Code],0),4)),"") -> 1.25 | K33: 10000 | L33: 120 | M33: 1200000 | N33: =IFERROR((VLOOKUP(FutureTrunkParks[[#This Row],[LGIP Code (*)]],UnitRateParks[],7,FALSE)*FutureTrunkParks[[#This Row],[Scaling factor (*)]]+VLOOKUP(FutureTrunkParks[[#This Row],[LGIP Code (*)]],UnitRateParks[],8,FALSE)-VLOOKUP(FutureTrunkParks[[#This Row],[LGIP Code (*)]],UnitRateParks[],6,FALSE))*18.5%+VLOOKUP(FutureTrunkParks[[#This Row],[LGIP Code (*)]],UnitRateParks[],7,FALSE)*FutureTrunkParks[[#This Row],[Scaling factor (*)]]+VLOOKUP(FutureTrunkParks[[#This Row],[LGIP Code (*)]],UnitRateParks[],8,FALSE),"Error") -> 333334.7434 | O33: 333335 | P33: 2016 | Q33: 0.17 | R33: 56667 | S33: 1 | T33: 0.15 | U33: 50700 | V33: 506807 | W33: 66105 | X33: 2024 | Y33: 0.025 | Z33: 0.01871653255 | AA33: =IF(FutureTrunkParks[[#This Row],[Asset Class]]="Local",VLOOKUP(FutureTrunkParks[[#This Row],[Service Catchment]],'Catchment Demand - Parks'!$C$8:$M$12,11),'Catchment Demand - Parks'!$M$12) -> 0.2179675326 | AB33: =_xlfn.IFS(FutureTrunkParks[[#This Row],[Year of Provision]]=2019,0,FutureTrunkParks[[#This Row],[Year of Provision]]=2024,FutureTrunkParks[[#This Row],[Total Assets Cost (at Base Year)]]/SUMIFS($AE$17:$AE$189,$X$17:$X$189,"2024",$E$17:$E$189,FutureTrunkParks[[#This Row],[Service Catchment]])) -> 0.04508788429 | AC33: =IF(AND(FutureTrunkParks[[#This Row],[Spare Capacity %]]>30%,FutureTrunkParks[[#This Row],[Share of the total Cost with the same year of provision %]]>20%),1-FutureTrunkParks[[#This Row],[Spare Capacity %]],1) -> 1 | AD33: =IF(FutureTrunkParks[[#This Row],[ Terminal Value Analysis]]<0,0,FutureTrunkParks[[#This Row],[ Terminal Value Analysis]]) -> 1 | AE33: 1706807 | AF33: 2049937 | AG33: 1294925 | AH33: =ROUND(FutureTrunkParks[[#This Row],[Net Present Value of Total Asset Cost]]*FutureTrunkParks[[#This Row],[Terminal Value Adjustment]],0) -> 1294925 | AJ33: y | AP33: 1 | AT33: 1 | AW33: 1294925 | BC33: 1294925
B34: PCF174 | C34: BUL-A1-001 | D34: Local | E34: East | F34: Acquire and embellish land to provide LOCAL RECREATION infrastructure | G34: =MID(C34,5,2)&"-"&LEFT(D34,1) -> A1-L | H34: =IFERROR(INDEX(UnitRateParks[],MATCH(G34,UnitRateParks[LGIP Code],0),3),"") -> 8000 | I34: =IFERROR(MIN(K34/H34,INDEX(UnitRateParks[],MATCH(FutureTrunkParks[[#This Row],[LGIP Code (*)]], UnitRateParks[LGIP Code],0),4)),"") -> 1 | K34: 8000 | L34: 340 | M34: 2720000 | N34: =IFERROR((VLOOKUP(FutureTrunkParks[[#This Row],[LGIP Code (*)]],UnitRateParks[],7,FALSE)*FutureTrunkParks[[#This Row],[Scaling factor (*)]]+VLOOKUP(FutureTrunkParks[[#This Row],[LGIP Code (*)]],UnitRateParks[],8,FALSE)-VLOOKUP(FutureTrunkParks[[#This Row],[LGIP Code (*)]],UnitRateParks[],6,FALSE))*18.5%+VLOOKUP(FutureTrunkParks[[#This Row],[LGIP Code (*)]],UnitRateParks[],7,FALSE)*FutureTrunkParks[[#This Row],[Scaling factor (*)]]+VLOOKUP(FutureTrunkParks[[#This Row],[LGIP Code (*)]],UnitRateParks[],8,FALSE),"Error") -> 272211.7473 | O34: 272212 | P34: 2016 | Q34: 0.17 | R34: 46276 | S34: 1 | T34: 0.15 | U34: 41403 | V34: 413875 | W34: 53984 | X34: 2024 | Y34: 0.025 | Z34: 0.01871653255 | AA34: =IF(FutureTrunkParks[[#This Row],[Asset Class]]="Local",VLOOKUP(FutureTrunkParks[[#This Row],[Service Catchment]],'Catchment Demand - Parks'!$C$8:$M$12,11),'Catchment Demand - Parks'!$M$12) -> 0.2396431883 | AB34: =_xlfn.IFS(FutureTrunkParks[[#This Row],[Year of Provision]]=2019,0,FutureTrunkParks[[#This Row],[Year of Provision]]=2024,FutureTrunkParks[[#This Row],[Total Assets Cost (at Base Year)]]/SUMIFS($AE$17:$AE$189,$X$17:$X$189,"2024",$E$17:$E$189,FutureTrunkParks[[#This Row],[Service Catchment]])) -> 0.0313923864 | AC34: =IF(AND(FutureTrunkParks[[#This Row],[Spare Capacity %]]>30%,FutureTrunkParks[[#This Row],[Share of the total Cost with the same year of provision %]]>20%),1-FutureTrunkParks[[#This Row],[Spare Capacity %]],1) -> 1 | AD34: =IF(FutureTrunkParks[[#This Row],[ Terminal Value Analysis]]<0,0,FutureTrunkParks[[#This Row],[ Terminal Value Analysis]]) -> 1 | AE34: 3133875 | AF34: 3794116 | AG34: 2396707 | AH34: =ROUND(FutureTrunkParks[[#This Row],[Net Present Value of Total Asset Cost]]*FutureTrunkParks[[#This Row],[Terminal Value Adjustment]],0) -> 2396707 | AI34: y | AO34: 1 | AT34: 1 | AV34: 2396707 | BB34: 2396707
B35: PCF173 | C35: BUL-A8-001 | D35: District | E35: East | F35: Acquire and embellish land to provide DISTRICT OR METRO ACCESS/RECREATION CORRIDOR PARK | G35: =MID(C35,5,2)&"-"&LEFT(D35,1) -> A8-D | H35: =IFERROR(INDEX(UnitRateParks[],MATCH(G35,UnitRateParks[LGIP Code],0),3),"") -> 30000 | I35: =IFERROR(MIN(K35/H35,INDEX(UnitRateParks[],MATCH(FutureTrunkParks[[#This Row],[LGIP Code (*)]], UnitRateParks[LGIP Code],0),4)),"") -> 0.14 | K35: 4200 | L35: 5000 | M35: 21000000 | N35: =IFERROR((VLOOKUP(FutureTrunkParks[[#This Row],[LGIP Code (*)]],UnitRateParks[],7,FALSE)*FutureTrunkParks[[#This Row],[Scaling factor (*)]]+VLOOKUP(FutureTrunkParks[[#This Row],[LGIP Code (*)]],UnitRateParks[],8,FALSE)-VLOOKUP(FutureTrunkParks[[#This Row],[LGIP Code (*)]],UnitRateParks[],6,FALSE))*18.5%+VLOOKUP(FutureTrunkParks[[#This Row],[LGIP Code (*)]],UnitRateParks[],7,FALSE)*FutureTrunkParks[[#This Row],[Scaling factor (*)]]+VLOOKUP(FutureTrunkParks[[#This Row],[LGIP Code (*)]],UnitRateParks[],8,FALSE),"Error") -> 138278.4241 | O35: 138278 | P35: 2016 | Q35: 0.17 | R35: 23507 | S35: 1 | T35: 0.075 | U35: 21032 | V35: 196528 | W35: 13711 | X35: 2019 | Y35: 0.025 | Z35: 0.01871653255 | AA35: =IF(FutureTrunkParks[[#This Row],[Asset Class]]="Local",VLOOKUP(FutureTrunkParks[[#This Row],[Service Catchment]],'Catchment Demand - Parks'!$C$8:$M$12,11),'Catchment Demand - Parks'!$M$12) -> 0.2213928202 | AB35: =_xlfn.IFS(FutureTrunkParks[[#This Row],[Year of Provision]]=2019,0,FutureTrunkParks[[#This Row],[Year of Provision]]=2024,FutureTrunkParks[[#This Row],[Total Assets Cost (at Base Year)]]/SUMIFS($AE$17:$AE$189,$X$17:$X$189,"2024",$E$17:$E$189,FutureTrunkParks[[#This Row],[Service Catchment]])) -> 0 | AC35: =IF(AND(FutureTrunkParks[[#This Row],[Spare Capacity %]]>30%,FutureTrunkParks[[#This Row],[Share of the total Cost with the same year of provision %]]>20%),1-FutureTrunkParks[[#This Row],[Spare Capacity %]],1) -> 1 | AD35: =IF(FutureTrunkParks[[#This Row],[ Terminal Value Analysis]]<0,0,FutureTrunkParks[[#This Row],[ Terminal Value Analysis]]) -> 1 | AE35: 21196528 | AF35: 22822474 | AG35: 19211082 | AH35: =ROUND(FutureTrunkParks[[#This Row],[Net Present Value of Total Asset Cost]]*FutureTrunkParks[[#This Row],[Terminal Value Adjustment]],0) -> 19211082 | AM35: y | AS35: 1 | AT35: 1 | AZ35: 19211082 | BF35: 19211082
B36: PCF174 | C36: BUL-A8-010 | D36: Metropolitan | E36: East | F36: Acquire and embellish land to provide DISTRICT OR METRO ACCESS/RECREATION CORRIDOR PARK | G36: =MID(C36,5,2)&"-"&LEFT(D36,1) -> A8-M | H36: =IFERROR(INDEX(UnitRateParks[],MATCH(G36,UnitRateParks[LGIP Code],0),3),"") -> 30000 | I36: =IFERROR(MIN(K36/H36,INDEX(UnitRateParks[],MATCH(FutureTrunkParks[[#This Row],[LGIP Code (*)]], UnitRateParks[LGIP Code],0),4)),"") -> 0.8666666667 | K36: 26000 | L36: 350 | M36: 9100000 | N36: =IFERROR((VLOOKUP(FutureTrunkParks[[#This Row],[LGIP Code (*)]],UnitRateParks[],7,FALSE)*FutureTrunkParks[[#This Row],[Scaling factor (*)]]+VLOOKUP(FutureTrunkParks[[#This Row],[LGIP Code (*)]],UnitRateParks[],8,FALSE)-VLOOKUP(FutureTrunkParks[[#This Row],[LGIP Code (*)]],UnitRateParks[],6,FALSE))*18.5%+VLOOKUP(FutureTrunkParks[[#This Row],[LGIP Code (*)]],UnitRateParks[],7,FALSE)*FutureTrunkParks[[#This Row],[Scaling factor (*)]]+VLOOKUP(FutureTrunkParks[[#This Row],[LGIP Code (*)]],UnitRateParks[],8,FALSE),"Error") -> 570409.5352 | O36: 570410 | P36: 2016 | Q36: 0.17 | R36: 96970 | S36: 1 | T36: 0.075 | U36: 86759 | V36: 810699 | W36: 56560 | X36: 2019 | Y36: 0.025 | Z36: 0.01871653255 | AA36: =IF(FutureTrunkParks[[#This Row],[Asset Class]]="Local",VLOOKUP(FutureTrunkParks[[#This Row],[Service Catchment]],'Catchment Demand - Parks'!$C$8:$M$12,11),'Catchment Demand - Parks'!$M$12) -> 0.2213928202 | AB36: =_xlfn.IFS(FutureTrunkParks[[#This Row],[Year of Provision]]=2019,0,FutureTrunkParks[[#This Row],[Year of Provision]]=2024,FutureTrunkParks[[#This Row],[Total Assets Cost (at Base Year)]]/SUMIFS($AE$17:$AE$189,$X$17:$X$189,"2024",$E$17:$E$189,FutureTrunkParks[[#This Row],[Service Catchment]])) -> 0 | AC36: =IF(AND(FutureTrunkParks[[#This Row],[Spare Capacity %]]>30%,FutureTrunkParks[[#This Row],[Share of the total Cost with the same year of provision %]]>20%),1-FutureTrunkParks[[#This Row],[Spare Capacity %]],1) -> 1 | AD36: =IF(FutureTrunkParks[[#This Row],[ Terminal Value Analysis]]<0,0,FutureTrunkParks[[#This Row],[ Terminal Value Analysis]]) -> 1 | AE36: 9910699 | AF36: 10656781 | AG36: 8970469 | AH36: =ROUND(FutureTrunkParks[[#This Row],[Net Present Value of Total Asset Cost]]*FutureTrunkParks[[#This Row],[Terminal Value Adjustment]],0) -> 8970469 | AM36: y | AS36: 1 | AT36: 1 | AZ36: 8970469 | BF36: 8970469
B37: PCF72 | C37: CDE-U3-010 | D37: District | E37: North | F37: Upgrade existing park infrastructure to value of up to $500k (District) | G37: =MID(C37,5,2) -> U3 | H37: =IFERROR(INDEX(UnitRateParks[],MATCH(G37,UnitRateParks[LGIP Code],0),3),"") -> 0 | I37: =IFERROR(MIN(K37/H37,INDEX(UnitRateParks[],MATCH(G37,UnitRateParks[LGIP Code],0),4)),"") ->  | K37: 154800 | L37: 0 | M37: 0 | N37: =IFERROR(INDEX(UnitRateParks[],MATCH($G37,UnitRateParks[LGIP Code],0),15),"Error") -> 500000 | O37: 500000 | P37: 2016 | Q37: 0.17 | R37: 85000 | S37: 1 | T37: 0.075 | U37: 76050 | V37: 710629 | W37: 49579 | X37: 2019 | Y37: 0.025 | Z37: 0.01871653255 | AA37: =IF(FutureTrunkParks[[#This Row],[Asset Class]]="Local",VLOOKUP(FutureTrunkParks[[#This Row],[Service Catchment]],'Catchment Demand - Parks'!$C$8:$M$12,11),'Catchment Demand - Parks'!$M$12) -> 0.2213928202 | AB37: =_xlfn.IFS(FutureTrunkParks[[#This Row],[Year of Provision]]=2019,0,FutureTrunkParks[[#This Row],[Year of Provision]]=2024,FutureTrunkParks[[#This Row],[Total Assets Cost (at Base Year)]]/SUMIFS($AE$17:$AE$189,$X$17:$X$189,"2024",$E$17:$E$189,FutureTrunkParks[[#This Row],[Service Catchment]])) -> 0 | AC37: =IF(AND(FutureTrunkParks[[#This Row],[Spare Capacity %]]>30%,FutureTrunkParks[[#This Row],[Share of the total Cost with the same year of provision %]]>20%),1-FutureTrunkParks[[#This Row],[Spare Capacity %]],1) -> 1 | AD37: =IF(FutureTrunkParks[[#This Row],[ Terminal Value Analysis]]<0,0,FutureTrunkParks[[#This Row],[ Terminal Value Analysis]]) -> 1 | AE37: 710629 | AF37: 751282 | AG37: 632400 | AH37: =ROUND(FutureTrunkParks[[#This Row],[Net Present Value of Total Asset Cost]]*FutureTrunkParks[[#This Row],[Terminal Value Adjustment]],0) -> 632400 | AM37: y | AS37: 1 | AT37: 1 | AZ37: 632400 | BF37: 632400
B38: PCF113 | C38: CHE-U1-011 | D38: District | E38: North | F38: Upgrade existing park infrastructure to the value of $1m+ (District) | G38: =MID(C38,5,2) -> U1 | H38: =IFERROR(INDEX(UnitRateParks[],MATCH(G38,UnitRateParks[LGIP Code],0),3),"") -> 0 | I38: =IFERROR(MIN(K38/H38,INDEX(UnitRateParks[],MATCH(G38,UnitRateParks[LGIP Code],0),4)),"") ->  | K38: 33800 | L38: 0 | M38: 0 | N38: =IFERROR(INDEX(UnitRateParks[],MATCH($G38,UnitRateParks[LGIP Code],0),15),"Error") -> 1000000 | O38: 1000000 | P38: 2016 | Q38: 0.17 | R38: 170000 | S38: 1 | T38: 0.15 | U38: 152100 | V38: 1520415 | W38: 198315 | X38: 2024 | Y38: 0.025 | Z38: 0.01871653255 | AA38: =IF(FutureTrunkParks[[#This Row],[Asset Class]]="Local",VLOOKUP(FutureTrunkParks[[#This Row],[Service Catchment]],'Catchment Demand - Parks'!$C$8:$M$12,11),'Catchment Demand - Parks'!$M$12) -> 0.2213928202 | AB38: =_xlfn.IFS(FutureTrunkParks[[#This Row],[Year of Provision]]=2019,0,FutureTrunkParks[[#This Row],[Year of Provision]]=2024,FutureTrunkParks[[#This Row],[Total Assets Cost (at Base Year)]]/SUMIFS($AE$17:$AE$189,$X$17:$X$189,"2024",$E$17:$E$189,FutureTrunkParks[[#This Row],[Service Catchment]])) -> 0.04016405815 | AC38: =IF(AND(FutureTrunkParks[[#This Row],[Spare Capacity %]]>30%,FutureTrunkParks[[#This Row],[Share of the total Cost with the same year of provision %]]>20%),1-FutureTrunkParks[[#This Row],[Spare Capacity %]],1) -> 1 | AD38: =IF(FutureTrunkParks[[#This Row],[ Terminal Value Analysis]]<0,0,FutureTrunkParks[[#This Row],[ Terminal Value Analysis]]) -> 1 | AE38: 1520415 | AF38: 1763555 | AG38: 1114021 | AH38: =ROUND(FutureTrunkParks[[#This Row],[Net Present Value of Total Asset Cost]]*FutureTrunkParks[[#This Row],[Terminal Value Adjustment]],0) -> 1114021 | AM38: y | AS38: 1 | AT38: 1 | AZ38: 1114021 | BF38: 1114021
B39: PCF210 | C39: CHL-A7-001 | D39: Local | E39: West | F39: Acquire and embellish land to provide LOCAL ACCESS/RECREATION corridor park | G39: =MID(C39,5,2)&"-"&LEFT(D39,1) -> A7-L | H39: =IFERROR(INDEX(UnitRateParks[],MATCH(G39,UnitRateParks[LGIP Code],0),3),"") -> 8000 | I39: =IFERROR(MIN(K39/H39,INDEX(UnitRateParks[],MATCH(FutureTrunkParks[[#This Row],[LGIP Code (*)]], UnitRateParks[LGIP Code],0),4)),"") -> 0.875 | K39: 7000 | L39: 53.33328571 | M39: 373333 | N39: =IFERROR((VLOOKUP(FutureTrunkParks[[#This Row],[LGIP Code (*)]],UnitRateParks[],7,FALSE)*FutureTrunkParks[[#This Row],[Scaling factor (*)]]+VLOOKUP(FutureTrunkParks[[#This Row],[LGIP Code (*)]],UnitRateParks[],8,FALSE)-VLOOKUP(FutureTrunkParks[[#This Row],[LGIP Code (*)]],UnitRateParks[],6,FALSE))*18.5%+VLOOKUP(FutureTrunkParks[[#This Row],[LGIP Code (*)]],UnitRateParks[],7,FALSE)*FutureTrunkParks[[#This Row],[Scaling factor (*)]]+VLOOKUP(FutureTrunkParks[[#This Row],[LGIP Code (*)]],UnitRateParks[],8,FALSE),"Error") -> 217670.2789 | O39: 217670 | P39: 2016 | Q39: 0.17 | R39: 37004 | S39: 1 | T39: 0.15 | U39: 33108 | V39: 330949 | W39: 43167 | X39: 2024 | Y39: 0.025 | Z39: 0.01871653255 | AA39: =IF(FutureTrunkParks[[#This Row],[Asset Class]]="Local",VLOOKUP(FutureTrunkParks[[#This Row],[Service Catchment]],'Catchment Demand - Parks'!$C$8:$M$12,11),'Catchment Demand - Parks'!$M$12) -> 0.1760134606 | AB39: =_xlfn.IFS(FutureTrunkParks[[#This Row],[Year of Provision]]=2019,0,FutureTrunkParks[[#This Row],[Year of Provision]]=2024,FutureTrunkParks[[#This Row],[Total Assets Cost (at Base Year)]]/SUMIFS($AE$17:$AE$189,$X$17:$X$189,"2024",$E$17:$E$189,FutureTrunkParks[[#This Row],[Service Catchment]])) -> 0.01172641617 | AC39: =IF(AND(FutureTrunkParks[[#This Row],[Spare Capacity %]]>30%,FutureTrunkParks[[#This Row],[Share of the total Cost with the same year of provision %]]>20%),1-FutureTrunkParks[[#This Row],[Spare Capacity %]],1) -> 1 | AD39: =IF(FutureTrunkParks[[#This Row],[ Terminal Value Analysis]]<0,0,FutureTrunkParks[[#This Row],[ Terminal Value Analysis]]) -> 1 | AE39: 704282 | AF39: 838743 | AG39: 529826 | AH39: =ROUND(FutureTrunkParks[[#This Row],[Net Present Value of Total Asset Cost]]*FutureTrunkParks[[#This Row],[Terminal Value Adjustment]],0) -> 529826 | AL39: y | AR39: 1 | AT39: 1 | AY39: 529826 | BE39: 529826
B40: PCF210 | C40: CHL-A7-002 | D40: Local | E40: West | F40: Acquire and embellish land to provide LOCAL ACCESS/RECREATION corridor park | G40: =MID(C40,5,2)&"-"&LEFT(D40,1) -> A7-L | H40: =IFERROR(INDEX(UnitRateParks[],MATCH(G40,UnitRateParks[LGIP Code],0),3),"") -> 8000 | I40: =IFERROR(MIN(K40/H40,INDEX(UnitRateParks[],MATCH(FutureTrunkParks[[#This Row],[LGIP Code (*)]], UnitRateParks[LGIP Code],0),4)),"") -> 0.1875 | K40: 1500 | L40: 10 | M40: 15000 | N40: =IFERROR((VLOOKUP(FutureTrunkParks[[#This Row],[LGIP Code (*)]],UnitRateParks[],7,FALSE)*FutureTrunkParks[[#This Row],[Scaling factor (*)]]+VLOOKUP(FutureTrunkParks[[#This Row],[LGIP Code (*)]],UnitRateParks[],8,FALSE)-VLOOKUP(FutureTrunkParks[[#This Row],[LGIP Code (*)]],UnitRateParks[],6,FALSE))*18.5%+VLOOKUP(FutureTrunkParks[[#This Row],[LGIP Code (*)]],UnitRateParks[],7,FALSE)*FutureTrunkParks[[#This Row],[Scaling factor (*)]]+VLOOKUP(FutureTrunkParks[[#This Row],[LGIP Code (*)]],UnitRateParks[],8,FALSE),"Error") -> 80244.79297 | O40: 80245 | P40: 2016 | Q40: 0.17 | R40: 13642 | S40: 1 | T40: 0.075 | U40: 12205 | V40: 114049 | W40: 7957 | X40: 2019 | Y40: 0.025 | Z40: 0.01871653255 | AA40: =IF(FutureTrunkParks[[#This Row],[Asset Class]]="Local",VLOOKUP(FutureTrunkParks[[#This Row],[Service Catchment]],'Catchment Demand - Parks'!$C$8:$M$12,11),'Catchment Demand - Parks'!$M$12) -> 0.1760134606 | AB40: =_xlfn.IFS(FutureTrunkParks[[#This Row],[Year of Provision]]=2019,0,FutureTrunkParks[[#This Row],[Year of Provision]]=2024,FutureTrunkParks[[#This Row],[Total Assets Cost (at Base Year)]]/SUMIFS($AE$17:$AE$189,$X$17:$X$189,"2024",$E$17:$E$189,FutureTrunkParks[[#This Row],[Service Catchment]])) -> 0 | AC40: =IF(AND(FutureTrunkParks[[#This Row],[Spare Capacity %]]>30%,FutureTrunkParks[[#This Row],[Share of the total Cost with the same year of provision %]]>20%),1-FutureTrunkParks[[#This Row],[Spare Capacity %]],1) -> 1 | AD40: =IF(FutureTrunkParks[[#This Row],[ Terminal Value Analysis]]<0,0,FutureTrunkParks[[#This Row],[ Terminal Value Analysis]]) -> 1 | AE40: 129049 | AF40: 136727 | AG40: 115092 | AH40: =ROUND(FutureTrunkParks[[#This Row],[Net Present Value of Total Asset Cost]]*FutureTrunkParks[[#This Row],[Terminal Value Adjustment]],0) -> 115092 | AL40: y | AR40: 1 | AT40: 1 | AY40: 115092 | BE40: 115092
B41: PCF112 | C41: CHW-U3-010 | D41: District | E41: West | F41: Upgrade existing park infrastructure to value of up to $500k (District) | G41: =MID(C41,5,2) -> U3 | H41: =IFERROR(INDEX(UnitRateParks[],MATCH(G41,UnitRateParks[LGIP Code],0),3),"") -> 0 | I41: =IFERROR(MIN(K41/H41,INDEX(UnitRateParks[],MATCH(G41,UnitRateParks[LGIP Code],0),4)),"") ->  | K41: 75100 | L41: 0 | M41: 0 | N41: =IFERROR(INDEX(UnitRateParks[],MATCH($G41,UnitRateParks[LGIP Code],0),15),"Error") -> 500000 | O41: 500000 | P41: 2016 | Q41: 0.17 | R41: 85000 | S41: 1 | T41: 0.075 | U41: 76050 | V41: 710629 | W41: 49579 | X41: 2019 | Y41: 0.025 | Z41: 0.01871653255 | AA41: =IF(FutureTrunkParks[[#This Row],[Asset Class]]="Local",VLOOKUP(FutureTrunkParks[[#This Row],[Service Catchment]],'Catchment Demand - Parks'!$C$8:$M$12,11),'Catchment Demand - Parks'!$M$12) -> 0.2213928202 | AB41: =_xlfn.IFS(FutureTrunkParks[[#This Row],[Year of Provision]]=2019,0,FutureTrunkParks[[#This Row],[Year of Provision]]=2024,FutureTrunkParks[[#This Row],[Total Assets Cost (at Base Year)]]/SUMIFS($AE$17:$AE$189,$X$17:$X$189,"2024",$E$17:$E$189,FutureTrunkParks[[#This Row],[Service Catchment]])) -> 0 | AC41: =IF(AND(FutureTrunkParks[[#This Row],[Spare Capacity %]]>30%,FutureTrunkParks[[#This Row],[Share of the total Cost with the same year of provision %]]>20%),1-FutureTrunkParks[[#This Row],[Spare Capacity %]],1) -> 1 | AD41: =IF(FutureTrunkParks[[#This Row],[ Terminal Value Analysis]]<0,0,FutureTrunkParks[[#This Row],[ Terminal Value Analysis]]) -> 1 | AE41: 710629 | AF41: 751282 | AG41: 632400 | AH41: =ROUND(FutureTrunkParks[[#This Row],[Net Present Value of Total Asset Cost]]*FutureTrunkParks[[#This Row],[Terminal Value Adjustment]],0) -> 632400 | AM41: y | AS41: 1 | AT41: 1 | AZ41: 632400 | BF41: 632400
B42: PCF133 | C42: CLF-A1-001 | D42: Local | E42: North | F42: Acquire and embellish land to provide LOCAL RECREATION infrastructure | G42: =MID(C42,5,2)&"-"&LEFT(D42,1) -> A1-L | H42: =IFERROR(INDEX(UnitRateParks[],MATCH(G42,UnitRateParks[LGIP Code],0),3),"") -> 8000 | I42: =IFERROR(MIN(K42/H42,INDEX(UnitRateParks[],MATCH(FutureTrunkParks[[#This Row],[LGIP Code (*)]], UnitRateParks[LGIP Code],0),4)),"") -> 0.25 | K42: 2000 | L42: 2000 | M42: 4000000 | N42: =IFERROR((VLOOKUP(FutureTrunkParks[[#This Row],[LGIP Code (*)]],UnitRateParks[],7,FALSE)*FutureTrunkParks[[#This Row],[Scaling factor (*)]]+VLOOKUP(FutureTrunkParks[[#This Row],[LGIP Code (*)]],UnitRateParks[],8,FALSE)-VLOOKUP(FutureTrunkParks[[#This Row],[LGIP Code (*)]],UnitRateParks[],6,FALSE))*18.5%+VLOOKUP(FutureTrunkParks[[#This Row],[LGIP Code (*)]],UnitRateParks[],7,FALSE)*FutureTrunkParks[[#This Row],[Scaling factor (*)]]+VLOOKUP(FutureTrunkParks[[#This Row],[LGIP Code (*)]],UnitRateParks[],8,FALSE),"Error") -> 88842.75869 | O42: 88843 | P42: 2016 | Q42: 0.17 | R42: 15103 | S42: 1 | T42: 0.075 | U42: 13513 | V42: 126268 | W42: 8809 | X42: 2019 | Y42: 0.025 | Z42: 0.01871653255 | AA42: =IF(FutureTrunkParks[[#This Row],[Asset Class]]="Local",VLOOKUP(FutureTrunkParks[[#This Row],[Service Catchment]],'Catchment Demand - Parks'!$C$8:$M$12,11),'Catchment Demand - Parks'!$M$12) -> 0.2179675326 | AB42: =_xlfn.IFS(FutureTrunkParks[[#This Row],[Year of Provision]]=2019,0,FutureTrunkParks[[#This Row],[Year of Provision]]=2024,FutureTrunkParks[[#This Row],[Total Assets Cost (at Base Year)]]/SUMIFS($AE$17:$AE$189,$X$17:$X$189,"2024",$E$17:$E$189,FutureTrunkParks[[#This Row],[Service Catchment]])) -> 0 | AC42: =IF(AND(FutureTrunkParks[[#This Row],[Spare Capacity %]]>30%,FutureTrunkParks[[#This Row],[Share of the total Cost with the same year of provision %]]>20%),1-FutureTrunkParks[[#This Row],[Spare Capacity %]],1) -> 1 | AD42: =IF(FutureTrunkParks[[#This Row],[ Terminal Value Analysis]]<0,0,FutureTrunkParks[[#This Row],[ Terminal Value Analysis]]) -> 1 | AE42: 4126268 | AF42: 4441054 | AG42: 3738309 | AH42: =ROUND(FutureTrunkParks[[#This Row],[Net Present Value of Total Asset Cost]]*FutureTrunkParks[[#This Row],[Terminal Value Adjustment]],0) -> 3738309 | AJ42: y | AP42: 1 | AT42: 1 | AW42: 3738309 | BC42: 3738309
B43: PCF195 | C43: CLL-A1-001 | D43: Local | E43: East | F43: Acquire and embellish land to provide LOCAL RECREATION infrastructure | G43: A1-L | H43: =IFERROR(INDEX(UnitRateParks[],MATCH(G43,UnitRateParks[LGIP Code],0),3),"") -> 8000 | I43: =IFERROR(MIN(K43/H43,INDEX(UnitRateParks[],MATCH(FutureTrunkParks[[#This Row],[LGIP Code (*)]], UnitRateParks[LGIP Code],0),4)),"") -> 0.3125 | K43: 2500 | L43: 750 | M43: 1875000 | N43: =IFERROR((VLOOKUP(FutureTrunkParks[[#This Row],[LGIP Code (*)]],UnitRateParks[],7,FALSE)*FutureTrunkParks[[#This Row],[Scaling factor (*)]]+VLOOKUP(FutureTrunkParks[[#This Row],[LGIP Code (*)]],UnitRateParks[],8,FALSE)-VLOOKUP(FutureTrunkParks[[#This Row],[LGIP Code (*)]],UnitRateParks[],6,FALSE))*18.5%+VLOOKUP(FutureTrunkParks[[#This Row],[LGIP Code (*)]],UnitRateParks[],7,FALSE)*FutureTrunkParks[[#This Row],[Scaling factor (*)]]+VLOOKUP(FutureTrunkParks[[#This Row],[LGIP Code (*)]],UnitRateParks[],8,FALSE),"Error") -> 104123.5077 | O43: 104124 | P43: 2016 | Q43: 0.17 | R43: 17701 | S43: 1 | T43: 0.15 | U43: 15837 | V43: 158311 | W43: 20649 | X43: 2024 | Y43: 0.025 | Z43: 0.01871653255 | AA43: =IF(FutureTrunkParks[[#This Row],[Asset Class]]="Local",VLOOKUP(FutureTrunkParks[[#This Row],[Service Catchment]],'Catchment Demand - Parks'!$C$8:$M$12,11),'Catchment Demand - Parks'!$M$12) -> 0.2396431883 | AB43: =_xlfn.IFS(FutureTrunkParks[[#This Row],[Year of Provision]]=2019,0,FutureTrunkParks[[#This Row],[Year of Provision]]=2024,FutureTrunkParks[[#This Row],[Total Assets Cost (at Base Year)]]/SUMIFS($AE$17:$AE$189,$X$17:$X$189,"2024",$E$17:$E$189,FutureTrunkParks[[#This Row],[Service Catchment]])) -> 0.0203679102 | AC43: =IF(AND(FutureTrunkParks[[#This Row],[Spare Capacity %]]>30%,FutureTrunkParks[[#This Row],[Share of the total Cost with the same year of provision %]]>20%),1-FutureTrunkParks[[#This Row],[Spare Capacity %]],1) -> 1 | AD43: =IF(FutureTrunkParks[[#This Row],[ Terminal Value Analysis]]<0,0,FutureTrunkParks[[#This Row],[ Terminal Value Analysis]]) -> 1 | AE43: 2033311 | AF43: 2468133 | AG43: 1559096 | AH43: =ROUND(FutureTrunkParks[[#This Row],[Net Present Value of Total Asset Cost]]*FutureTrunkParks[[#This Row],[Terminal Value Adjustment]],0) -> 1559096 | AI43: y | AO43: 1 | AT43: 1 | AV43: 1559096 | BB43: 1559096
B44: PCF195 | C44: CLL-A1-010 | D44: Local | E44: East | F44: Acquire and embellish land to provide LOCAL RECREATION infrastructure | G44: A1-L | H44: =IFERROR(INDEX(UnitRateParks[],MATCH(G44,UnitRateParks[LGIP Code],0),3),"") -> 8000 | I44: =IFERROR(MIN(K44/H44,INDEX(UnitRateParks[],MATCH(FutureTrunkParks[[#This Row],[LGIP Code (*)]], UnitRateParks[LGIP Code],0),4)),"") -> 0.375 | K44: 3000 | L44: 750 | M44: 2250000 | N44: =IFERROR((VLOOKUP(FutureTrunkParks[[#This Row],[LGIP Code (*)]],UnitRateParks[],7,FALSE)*FutureTrunkParks[[#This Row],[Scaling factor (*)]]+VLOOKUP(FutureTrunkParks[[#This Row],[LGIP Code (*)]],UnitRateParks[],8,FALSE)-VLOOKUP(FutureTrunkParks[[#This Row],[LGIP Code (*)]],UnitRateParks[],6,FALSE))*18.5%+VLOOKUP(FutureTrunkParks[[#This Row],[LGIP Code (*)]],UnitRateParks[],7,FALSE)*FutureTrunkParks[[#This Row],[Scaling factor (*)]]+VLOOKUP(FutureTrunkParks[[#This Row],[LGIP Code (*)]],UnitRateParks[],8,FALSE),"Error") -> 119404.2568 | O44: 119404 | P44: 2016 | Q44: 0.17 | R44: 20299 | S44: 1 | T44: 0.075 | U44: 18161 | V44: 169704 | W44: 11840 | X44: 2019 | Y44: 0.025 | Z44: 0.01871653255 | AA44: =IF(FutureTrunkParks[[#This Row],[Asset Class]]="Local",VLOOKUP(FutureTrunkParks[[#This Row],[Service Catchment]],'Catchment Demand - Parks'!$C$8:$M$12,11),'Catchment Demand - Parks'!$M$12) -> 0.2396431883 | AB44: =_xlfn.IFS(FutureTrunkParks[[#This Row],[Year of Provision]]=2019,0,FutureTrunkParks[[#This Row],[Year of Provision]]=2024,FutureTrunkParks[[#This Row],[Total Assets Cost (at Base Year)]]/SUMIFS($AE$17:$AE$189,$X$17:$X$189,"2024",$E$17:$E$189,FutureTrunkParks[[#This Row],[Service Catchment]])) -> 0 | AC44: =IF(AND(FutureTrunkParks[[#This Row],[Spare Capacity %]]>30%,FutureTrunkParks[[#This Row],[Share of the total Cost with the same year of provision %]]>20%),1-FutureTrunkParks[[#This Row],[Spare Capacity %]],1) -> 1 | AD44: =IF(FutureTrunkParks[[#This Row],[ Terminal Value Analysis]]<0,0,FutureTrunkParks[[#This Row],[ Terminal Value Analysis]]) -> 1 | AE44: 2419704 | AF44: 2602416 | AG44: 2190614 | AH44: =ROUND(FutureTrunkParks[[#This Row],[Net Present Value of Total Asset Cost]]*FutureTrunkParks[[#This Row],[Terminal Value Adjustment]],0) -> 2190614 | AI44: y | AO44: 1 | AT44: 1 | AV44: 2190614 | BB44: 2190614
B45: PCF213 | C45: COO-E8-001 | D45: District | E45: East | F45: Provide DISTRICT OR METRO ACCESS/RECREATION CORRIDOR PARK infrastructure | G45: E8-D | H45: =IFERROR(INDEX(UnitRateParks[],MATCH(G45,UnitRateParks[LGIP Code],0),3),"") -> 30000 | I45: =IFERROR(MIN(K45/H45,INDEX(UnitRateParks[],MATCH(FutureTrunkParks[[#This Row],[LGIP Code (*)]], UnitRateParks[LGIP Code],0),4)),"") -> 0.5666666667 | K45: 17000 | L45: 0 | M45: 0 | N45: =IFERROR((VLOOKUP(FutureTrunkParks[[#This Row],[LGIP Code (*)]],UnitRateParks[],10,FALSE)*FutureTrunkParks[[#This Row],[Scaling factor (*)]]+VLOOKUP(FutureTrunkParks[[#This Row],[LGIP Code (*)]],UnitRateParks[],11,FALSE))*18.5%+VLOOKUP(FutureTrunkParks[[#This Row],[LGIP Code (*)]],UnitRateParks[],11,FALSE)+VLOOKUP(FutureTrunkParks[[#This Row],[LGIP Code (*)]],UnitRateParks[],10,FALSE)*FutureTrunkParks[[#This Row],[Scaling factor (*)]]+(VLOOKUP(FutureTrunkParks[[#This Row],[LGIP Code (*)]],UnitRateParks[],13,FALSE)*FutureTrunkParks[[#This Row],[Scaling factor (*)]]+VLOOKUP(FutureTrunkParks[[#This Row],[LGIP Code (*)]],UnitRateParks[],14,FALSE))*18.5%+VLOOKUP(FutureTrunkParks[[#This Row],[LGIP Code (*)]],UnitRateParks[],14,FALSE)+VLOOKUP(FutureTrunkParks[[#This Row],[LGIP Code (*)]],UnitRateParks[],13,FALSE)*FutureTrunkParks[[#This Row],[Scaling factor (*)]],"Error") -> 1355728.765 | O45: 1355729 | P45: 2016 | Q45: 0.17 | R45: 230474 | S45: 1 | T45: 0.075 | U45: 206206 | V45: 1926840 | W45: 134431 | X45: 2019 | Y45: 0.025 | Z45: 0.01871653255 | AA45: =IF(FutureTrunkParks[[#This Row],[Asset Class]]="Local",VLOOKUP(FutureTrunkParks[[#This Row],[Service Catchment]],'Catchment Demand - Parks'!$C$8:$M$12,11),'Catchment Demand - Parks'!$M$12) -> 0.2213928202 | AB45: =_xlfn.IFS(FutureTrunkParks[[#This Row],[Year of Provision]]=2019,0,FutureTrunkParks[[#This Row],[Year of Provision]]=2024,FutureTrunkParks[[#This Row],[Total Assets Cost (at Base Year)]]/SUMIFS($AE$17:$AE$189,$X$17:$X$189,"2024",$E$17:$E$189,FutureTrunkParks[[#This Row],[Service Catchment]])) -> 0 | AC45: =IF(AND(FutureTrunkParks[[#This Row],[Spare Capacity %]]>30%,FutureTrunkParks[[#This Row],[Share of the total Cost with the same year of provision %]]>20%),1-FutureTrunkParks[[#This Row],[Spare Capacity %]],1) -> 1 | AD45: =IF(FutureTrunkParks[[#This Row],[ Terminal Value Analysis]]<0,0,FutureTrunkParks[[#This Row],[ Terminal Value Analysis]]) -> 1 | AE45: 1926840 | AF45: 2037069 | AG45: 1714726 | AH45: =ROUND(FutureTrunkParks[[#This Row],[Net Present Value of Total Asset Cost]]*FutureTrunkParks[[#This Row],[Terminal Value Adjustment]],0) -> 1714726 | AM45: y | AS45: 1 | AT45: 1 | AZ45: 1714726 | BF45: 1714726
B46: PCF273 | C46: COP-A1-001 | D46: Local | E46: South | F46: Acquire and embellish land to provide LOCAL RECREATION infrastructure | G46: A1-L | H46: =IFERROR(INDEX(UnitRateParks[],MATCH(G46,UnitRateParks[LGIP Code],0),3),"") -> 8000 | I46: =IFERROR(MIN(K46/H46,INDEX(UnitRateParks[],MATCH(FutureTrunkParks[[#This Row],[LGIP Code (*)]], UnitRateParks[LGIP Code],0),4)),"") -> 0.525 | K46: 4200 | L46: 600 | M46: 2520000 | N46: =IFERROR((VLOOKUP(FutureTrunkParks[[#This Row],[LGIP Code (*)]],UnitRateParks[],7,FALSE)*FutureTrunkParks[[#This Row],[Scaling factor (*)]]+VLOOKUP(FutureTrunkParks[[#This Row],[LGIP Code (*)]],UnitRateParks[],8,FALSE)-VLOOKUP(FutureTrunkParks[[#This Row],[LGIP Code (*)]],UnitRateParks[],6,FALSE))*18.5%+VLOOKUP(FutureTrunkParks[[#This Row],[LGIP Code (*)]],UnitRateParks[],7,FALSE)*FutureTrunkParks[[#This Row],[Scaling factor (*)]]+VLOOKUP(FutureTrunkParks[[#This Row],[LGIP Code (*)]],UnitRateParks[],8,FALSE),"Error") -> 156078.0545 | O46: 156078 | P46: 2016 | Q46: 0.17 | R46: 26533 | S46: 1 | T46: 0.075 | U46: 23739 | V46: 221826 | W46: 15476 | X46: 2019 | Y46: 0.025 | Z46: 0.01871653255 | AA46: =IF(FutureTrunkParks[[#This Row],[Asset Class]]="Local",VLOOKUP(FutureTrunkParks[[#This Row],[Service Catchment]],'Catchment Demand - Parks'!$C$8:$M$12,11),'Catchment Demand - Parks'!$M$12) -> 0.2365306507 | AB46: =_xlfn.IFS(FutureTrunkParks[[#This Row],[Year of Provision]]=2019,0,FutureTrunkParks[[#This Row],[Year of Provision]]=2024,FutureTrunkParks[[#This Row],[Total Assets Cost (at Base Year)]]/SUMIFS($AE$17:$AE$189,$X$17:$X$189,"2024",$E$17:$E$189,FutureTrunkParks[[#This Row],[Service Catchment]])) -> 0 | AC46: =IF(AND(FutureTrunkParks[[#This Row],[Spare Capacity %]]>30%,FutureTrunkParks[[#This Row],[Share of the total Cost with the same year of provision %]]>20%),1-FutureTrunkParks[[#This Row],[Spare Capacity %]],1) -> 1 | AD46: =IF(FutureTrunkParks[[#This Row],[ Terminal Value Analysis]]<0,0,FutureTrunkParks[[#This Row],[ Terminal Value Analysis]]) -> 1 | AE46: 2741826 | AF46: 2948280 | AG46: 2481749 | AH46: =ROUND(FutureTrunkParks[[#This Row],[Net Present Value of Total Asset Cost]]*FutureTrunkParks[[#This Row],[Terminal Value Adjustment]],0) -> 2481749 | AK46: y | AQ46: 1 | AT46: 1 | AX46: 2481749 | BD46: 2481749
B47: PCF313 | C47: CVE-A1-001 | D47: Local | E47: South | F47: Acquire and embellish land to provide LOCAL RECREATION infrastructure | G47: A1-L | H47: =IFERROR(INDEX(UnitRateParks[],MATCH(G47,UnitRateParks[LGIP Code],0),3),"") -> 8000 | I47: =IFERROR(MIN(K47/H47,INDEX(UnitRateParks[],MATCH(FutureTrunkParks[[#This Row],[LGIP Code (*)]], UnitRateParks[LGIP Code],0),4)),"") -> 0.5 | K47: 4000 | L47: 175 | M47: 700000 | N47: =IFERROR((VLOOKUP(FutureTrunkParks[[#This Row],[LGIP Code (*)]],UnitRateParks[],7,FALSE)*FutureTrunkParks[[#This Row],[Scaling factor (*)]]+VLOOKUP(FutureTrunkParks[[#This Row],[LGIP Code (*)]],UnitRateParks[],8,FALSE)-VLOOKUP(FutureTrunkParks[[#This Row],[LGIP Code (*)]],UnitRateParks[],6,FALSE))*18.5%+VLOOKUP(FutureTrunkParks[[#This Row],[LGIP Code (*)]],UnitRateParks[],7,FALSE)*FutureTrunkParks[[#This Row],[Scaling factor (*)]]+VLOOKUP(FutureTrunkParks[[#This Row],[LGIP Code (*)]],UnitRateParks[],8,FALSE),"Error") -> 149965.7549 | O47: 149966 | P47: 2016 | Q47: 0.17 | R47: 25494 | S47: 1 | T47: 0.15 | U47: 22810 | V47: 228011 | W47: =ROUND((O47+R47+U47)*T47,0) -> 29741 | X47: 2024 | Y47: 0.025 | Z47: 0.01871653255 | AA47: =IF(FutureTrunkParks[[#This Row],[Asset Class]]="Local",VLOOKUP(FutureTrunkParks[[#This Row],[Service Catchment]],'Catchment Demand - Parks'!$C$8:$M$12,11),'Catchment Demand - Parks'!$M$12) -> 0.2365306507 | AB47: =_xlfn.IFS(FutureTrunkParks[[#This Row],[Year of Provision]]=2019,0,FutureTrunkParks[[#This Row],[Year of Provision]]=2024,FutureTrunkParks[[#This Row],[Total Assets Cost (at Base Year)]]/SUMIFS($AE$17:$AE$189,$X$17:$X$189,"2024",$E$17:$E$189,FutureTrunkParks[[#This Row],[Service Catchment]])) -> 0.005548459531 | AC47: =IF(AND(FutureTrunkParks[[#This Row],[Spare Capacity %]]>30%,FutureTrunkParks[[#This Row],[Share of the total Cost with the same year of provision %]]>20%),1-FutureTrunkParks[[#This Row],[Spare Capacity %]],1) -> 1 | AD47: =IF(FutureTrunkParks[[#This Row],[ Terminal Value Analysis]]<0,0,FutureTrunkParks[[#This Row],[ Terminal Value Analysis]]) -> 1 | AE47: 928011 | AF47: 1117356 | AG47: 705823 | AH47: =ROUND(FutureTrunkParks[[#This Row],[Net Present Value of Total Asset Cost]]*FutureTrunkParks[[#This Row],[Terminal Value Adjustment]],0) -> 705823 | AK47: y | AQ47: 1 | AT47: 1 | AX47: 705823 | BD47: 705823
B48: PCF333 | C48: CVE-A1-002 | D48: Local | E48: South | F48: Acquire and embellish land to provide LOCAL RECREATION infrastructure | G48: A1-L | H48: =IFERROR(INDEX(UnitRateParks[],MATCH(G48,UnitRateParks[LGIP Code],0),3),"") -> 8000 | I48: =IFERROR(MIN(K48/H48,INDEX(UnitRateParks[],MATCH(FutureTrunkParks[[#This Row],[LGIP Code (*)]], UnitRateParks[LGIP Code],0),4)),"") -> 1.08575 | K48: 8686 | L48: 57.08335252 | M48: 495826 | N48: =IFERROR((VLOOKUP(FutureTrunkParks[[#This Row],[LGIP Code (*)]],UnitRateParks[],7,FALSE)*FutureTrunkParks[[#This Row],[Scaling factor (*)]]+VLOOKUP(FutureTrunkParks[[#This Row],[LGIP Code (*)]],UnitRateParks[],8,FALSE)-VLOOKUP(FutureTrunkParks[[#This Row],[LGIP Code (*)]],UnitRateParks[],6,FALSE))*18.5%+VLOOKUP(FutureTrunkParks[[#This Row],[LGIP Code (*)]],UnitRateParks[],7,FALSE)*FutureTrunkParks[[#This Row],[Scaling factor (*)]]+VLOOKUP(FutureTrunkParks[[#This Row],[LGIP Code (*)]],UnitRateParks[],8,FALSE),"Error") -> 293176.9349 | O48: 293177 | P48: 2016 | Q48: 0.17 | R48: 49840 | S48: 1 | T48: 0.15 | U48: 44592 | V48: 445750 | W48: 58141 | X48: 2024 | Y48: =Landind -> 0.025 | Z48: =PPI -> 0.01871653255 | AA48: =IF(FutureTrunkParks[[#This Row],[Asset Class]]="Local",VLOOKUP(FutureTrunkParks[[#This Row],[Service Catchment]],'Catchment Demand - Parks'!$C$8:$M$12,11),'Catchment Demand - Parks'!$M$12) -> 0.2365306507 | AB48: =_xlfn.IFS(FutureTrunkParks[[#This Row],[Year of Provision]]=2019,0,FutureTrunkParks[[#This Row],[Year of Provision]]=2024,FutureTrunkParks[[#This Row],[Total Assets Cost (at Base Year)]]/SUMIFS($AE$17:$AE$189,$X$17:$X$189,"2024",$E$17:$E$189,FutureTrunkParks[[#This Row],[Service Catchment]])) -> 0.005629562937 | AC48: =IF(AND(FutureTrunkParks[[#This Row],[Spare Capacity %]]>30%,FutureTrunkParks[[#This Row],[Share of the total Cost with the same year of provision %]]>20%),1-FutureTrunkParks[[#This Row],[Spare Capacity %]],1) -> 1 | AD48: =IF(FutureTrunkParks[[#This Row],[ Terminal Value Analysis]]<0,0,FutureTrunkParks[[#This Row],[ Terminal Value Analysis]]) -> 1 | AE48: 941576 | AF48: 1121149 | AG48: 708219 | AH48: =ROUND(FutureTrunkParks[[#This Row],[Net Present Value of Total Asset Cost]]*FutureTrunkParks[[#This Row],[Terminal Value Adjustment]],0) -> 708219 | AK48: y | AQ48: 1 | AT48: 1 | AX48: 708219 | BD48: 708219
B49: PCF333 | C49: CVE-A1-003 | D49: Local | E49: South | F49: Acquire and embellish land to provide LOCAL RECREATION infrastructure | G49: A1-L | H49: =IFERROR(INDEX(UnitRateParks[],MATCH(G49,UnitRateParks[LGIP Code],0),3),"") -> 8000 | I49: =IFERROR(MIN(K49/H49,INDEX(UnitRateParks[],MATCH(FutureTrunkParks[[#This Row],[LGIP Code (*)]], UnitRateParks[LGIP Code],0),4)),"") -> 1 | K49: 8000 | L49: 175 | M49: 1400000 | N49: =IFERROR((VLOOKUP(FutureTrunkParks[[#This Row],[LGIP Code (*)]],UnitRateParks[],7,FALSE)*FutureTrunkParks[[#This Row],[Scaling factor (*)]]+VLOOKUP(FutureTrunkParks[[#This Row],[LGIP Code (*)]],UnitRateParks[],8,FALSE)-VLOOKUP(FutureTrunkParks[[#This Row],[LGIP Code (*)]],UnitRateParks[],6,FALSE))*18.5%+VLOOKUP(FutureTrunkParks[[#This Row],[LGIP Code (*)]],UnitRateParks[],7,FALSE)*FutureTrunkParks[[#This Row],[Scaling factor (*)]]+VLOOKUP(FutureTrunkParks[[#This Row],[LGIP Code (*)]],UnitRateParks[],8,FALSE),"Error") -> 272211.7473 | O49: 272212 | P49: 2016 | Q49: 0.17 | R49: 46276 | S49: 1 | T49: 0.075 | U49: 41403 | V49: 386883 | W49: 26992 | X49: 2019 | Y49: 0.025 | Z49: 0.01871653255 | AA49: =IF(FutureTrunkParks[[#This Row],[Asset Class]]="Local",VLOOKUP(FutureTrunkParks[[#This Row],[Service Catchment]],'Catchment Demand - Parks'!$C$8:$M$12,11),'Catchment Demand - Parks'!$M$12) -> 0.2365306507 | AB49: =_xlfn.IFS(FutureTrunkParks[[#This Row],[Year of Provision]]=2019,0,FutureTrunkParks[[#This Row],[Year of Provision]]=2024,FutureTrunkParks[[#This Row],[Total Assets Cost (at Base Year)]]/SUMIFS($AE$17:$AE$189,$X$17:$X$189,"2024",$E$17:$E$189,FutureTrunkParks[[#This Row],[Service Catchment]])) -> 0 | AC49: =IF(AND(FutureTrunkParks[[#This Row],[Spare Capacity %]]>30%,FutureTrunkParks[[#This Row],[Share of the total Cost with the same year of provision %]]>20%),1-FutureTrunkParks[[#This Row],[Spare Capacity %]],1) -> 1 | AD49: =IF(FutureTrunkParks[[#This Row],[ Terminal Value Analysis]]<0,0,FutureTrunkParks[[#This Row],[ Terminal Value Analysis]]) -> 1 | AE49: 1786883 | AF49: =ROUND(V49*(1+Z49)^(X49-YEAR)+M49*(1+Y49)^(X49-YEAR),0) -> 1916662 | AG49: =ROUND(AF49*(1/(1+WACC))^(X49-YEAR),0) -> 1613372 | AH49: =ROUND(FutureTrunkParks[[#This Row],[Net Present Value of Total Asset Cost]]*FutureTrunkParks[[#This Row],[Terminal Value Adjustment]],0) -> 1613372 | AK49: y | AO49: =IF(AI49="y",1,"") ->  | AP49: =IF(AJ49="y",1,"") ->  | AQ49: =IF(AK49="y",1,"") -> 1 | AR49: =IF(AL49="y",1,"") ->  | AS49: =IF(AM49="y",1,"") ->  | AT49: =SUM(AO49:AS49) -> 1 | AV49: =IF(AO49="","",(AO49/$AT49)*$AG49) ->  | AW49: =IF(AP49="","",(AP49/$AT49)*$AG49) ->  | AX49: =IF(AQ49="","",(AQ49/$AT49)*$AG49) -> 1613372 | AY49: =IF(AR49="","",(AR49/$AT49)*$AG49) ->  | AZ49: =IF(AS49="","",(AS49/$AT49)*$AG49) ->  | BB49: =IF(AO49="","",(AO49/$AT49)*$AH49) ->  | BC49: =IF(AP49="","",(AP49/$AT49)*$AH49) ->  | BD49: =IF(AQ49="","",(AQ49/$AT49)*$AH49) -> 1613372 | BE49: =IF(AR49="","",(AR49/$AT49)*$AH49) ->  | BF49: =IF(AS49="","",(AS49/$AT49)*$AH49) -> 
B50: PCF333 | C50: CVE-E2-002 | D50: District | E50: South | F50: Provide DISTRICT RECREATION infrastructure | G50: E2-D | H50: =IFERROR(INDEX(UnitRateParks[],MATCH(G50,UnitRateParks[LGIP Code],0),3),"") -> 30000 | I50: =IFERROR(MIN(K50/H50,INDEX(UnitRateParks[],MATCH(FutureTrunkParks[[#This Row],[LGIP Code (*)]], UnitRateParks[LGIP Code],0),4)),"") -> 1 | K50: 30000 | L50: 0 | M50: 0 | N50: =IFERROR((VLOOKUP(FutureTrunkParks[[#This Row],[LGIP Code (*)]],UnitRateParks[],10,FALSE)*FutureTrunkParks[[#This Row],[Scaling factor (*)]]+VLOOKUP(FutureTrunkParks[[#This Row],[LGIP Code (*)]],UnitRateParks[],11,FALSE))*18.5%+VLOOKUP(FutureTrunkParks[[#This Row],[LGIP Code (*)]],UnitRateParks[],11,FALSE)+VLOOKUP(FutureTrunkParks[[#This Row],[LGIP Code (*)]],UnitRateParks[],10,FALSE)*FutureTrunkParks[[#This Row],[Scaling factor (*)]]+(VLOOKUP(FutureTrunkParks[[#This Row],[LGIP Code (*)]],UnitRateParks[],13,FALSE)*FutureTrunkParks[[#This Row],[Scaling factor (*)]]+VLOOKUP(FutureTrunkParks[[#This Row],[LGIP Code (*)]],UnitRateParks[],14,FALSE))*18.5%+VLOOKUP(FutureTrunkParks[[#This Row],[LGIP Code (*)]],UnitRateParks[],14,FALSE)+VLOOKUP(FutureTrunkParks[[#This Row],[LGIP Code (*)]],UnitRateParks[],13,FALSE)*FutureTrunkParks[[#This Row],[Scaling factor (*)]],"Error") -> 6979589.101 | O50: 6979589 | P50: 2016 | Q50: 0.17 | R50: 1186530 | S50: 1 | T50: 0.15 | U50: 1061595 | V50: 10611871 | W50: 1384157 | X50: 2024 | Y50: 0.025 | Z50: 0.01871653255 | AA50: =IF(FutureTrunkParks[[#This Row],[Asset Class]]="Local",VLOOKUP(FutureTrunkParks[[#This Row],[Service Catchment]],'Catchment Demand - Parks'!$C$8:$M$12,11),'Catchment Demand - Parks'!$M$12) -> 0.2213928202 | AB50: =_xlfn.IFS(FutureTrunkParks[[#This Row],[Year of Provision]]=2019,0,FutureTrunkParks[[#This Row],[Year of Provision]]=2024,FutureTrunkParks[[#This Row],[Total Assets Cost (at Base Year)]]/SUMIFS($AE$17:$AE$189,$X$17:$X$189,"2024",$E$17:$E$189,FutureTrunkParks[[#This Row],[Service Catchment]])) -> 0.06344702464 | AC50: =IF(AND(FutureTrunkParks[[#This Row],[Spare Capacity %]]>30%,FutureTrunkParks[[#This Row],[Share of the total Cost with the same year of provision %]]>20%),1-FutureTrunkParks[[#This Row],[Spare Capacity %]],1) -> 1 | AD50: =IF(FutureTrunkParks[[#This Row],[ Terminal Value Analysis]]<0,0,FutureTrunkParks[[#This Row],[ Terminal Value Analysis]]) -> 1 | AE50: 10611871 | AF50: 12308887 | AG50: 7775405 | AH50: =ROUND(FutureTrunkParks[[#This Row],[Net Present Value of Total Asset Cost]]*FutureTrunkParks[[#This Row],[Terminal Value Adjustment]],0) -> 7775405 | AI50: =IF(AND($D50="Local",AI$13=$E50),"y","") ->  | AM50: y | AS50: 1 | AT50: 1 | AZ50: 7775405 | BF50: 7775405
B51: PCF270 | C51: DAR-U1-011 | D51: District | E51: South | F51: Upgrade existing park infrastructure to the value of $1m+ (District) | G51: =MID(C51,5,2) -> U1 | H51: =IFERROR(INDEX(UnitRateParks[],MATCH(G51,UnitRateParks[LGIP Code],0),3),"") -> 0 | I51: =IFERROR(MIN(K51/H51,INDEX(UnitRateParks[],MATCH(G51,UnitRateParks[LGIP Code],0),4)),"") ->  | K51: 100500 | L51: 0 | M51: 0 | N51: =IFERROR(INDEX(UnitRateParks[],MATCH($G51,UnitRateParks[LGIP Code],0),15),"Error") -> 1000000 | O51: 1000000 | P51: 2016 | Q51: 0.17 | R51: 170000 | S51: 1 | T51: 0.075 | U51: 152100 | V51: 1421258 | W51: 99158 | X51: 2019 | Y51: 0.025 | Z51: 0.01871653255 | AA51: =IF(FutureTrunkParks[[#This Row],[Asset Class]]="Local",VLOOKUP(FutureTrunkParks[[#This Row],[Service Catchment]],'Catchment Demand - Parks'!$C$8:$M$12,11),'Catchment Demand - Parks'!$M$12) -> 0.2213928202 | AB51: =_xlfn.IFS(FutureTrunkParks[[#This Row],[Year of Provision]]=2019,0,FutureTrunkParks[[#This Row],[Year of Provision]]=2024,FutureTrunkParks[[#This Row],[Total Assets Cost (at Base Year)]]/SUMIFS($AE$17:$AE$189,$X$17:$X$189,"2024",$E$17:$E$189,FutureTrunkParks[[#This Row],[Service Catchment]])) -> 0 | AC51: =IF(AND(FutureTrunkParks[[#This Row],[Spare Capacity %]]>30%,FutureTrunkParks[[#This Row],[Share of the total Cost with the same year of provision %]]>20%),1-FutureTrunkParks[[#This Row],[Spare Capacity %]],1) -> 1 | AD51: =IF(FutureTrunkParks[[#This Row],[ Terminal Value Analysis]]<0,0,FutureTrunkParks[[#This Row],[ Terminal Value Analysis]]) -> 1 | AE51: 1421258 | AF51: 1502564 | AG51: 1264801 | AH51: =ROUND(FutureTrunkParks[[#This Row],[Net Present Value of Total Asset Cost]]*FutureTrunkParks[[#This Row],[Terminal Value Adjustment]],0) -> 1264801 | AM51: y | AS51: 1 | AT51: 1 | AZ51: 1264801 | BF51: 1264801
B52: PCF270 | C52: DAR-U3-010 | D52: District | E52: South | F52: Upgrade existing park infrastructure to value of up to $500k (District) | G52: =MID(C52,5,2) -> U3 | H52: =IFERROR(INDEX(UnitRateParks[],MATCH(G52,UnitRateParks[LGIP Code],0),3),"") -> 0 | I52: =IFERROR(MIN(K52/H52,INDEX(UnitRateParks[],MATCH(G52,UnitRateParks[LGIP Code],0),4)),"") ->  | K52: 55500 | L52: 0 | M52: 0 | N52: =IFERROR(INDEX(UnitRateParks[],MATCH($G52,UnitRateParks[LGIP Code],0),15),"Error") -> 500000 | O52: 500000 | P52: 2016 | Q52: 0.17 | R52: 85000 | S52: 1 | T52: 0.075 | U52: 76050 | V52: 710629 | W52: 49579 | X52: 2019 | Y52: 0.025 | Z52: 0.01871653255 | AA52: =IF(FutureTrunkParks[[#This Row],[Asset Class]]="Local",VLOOKUP(FutureTrunkParks[[#This Row],[Service Catchment]],'Catchment Demand - Parks'!$C$8:$M$12,11),'Catchment Demand - Parks'!$M$12) -> 0.2213928202 | AB52: =_xlfn.IFS(FutureTrunkParks[[#This Row],[Year of Provision]]=2019,0,FutureTrunkParks[[#This Row],[Year of Provision]]=2024,FutureTrunkParks[[#This Row],[Total Assets Cost (at Base Year)]]/SUMIFS($AE$17:$AE$189,$X$17:$X$189,"2024",$E$17:$E$189,FutureTrunkParks[[#This Row],[Service Catchment]])) -> 0 | AC52: =IF(AND(FutureTrunkParks[[#This Row],[Spare Capacity %]]>30%,FutureTrunkParks[[#This Row],[Share of the total Cost with the same year of provision %]]>20%),1-FutureTrunkParks[[#This Row],[Spare Capacity %]],1) -> 1 | AD52: =IF(FutureTrunkParks[[#This Row],[ Terminal Value Analysis]]<0,0,FutureTrunkParks[[#This Row],[ Terminal Value Analysis]]) -> 1 | AE52: 710629 | AF52: 751282 | AG52: 632400 | AH52: =ROUND(FutureTrunkParks[[#This Row],[Net Present Value of Total Asset Cost]]*FutureTrunkParks[[#This Row],[Terminal Value Adjustment]],0) -> 632400 | AM52: y | AS52: 1 | AT52: 1 | AZ52: 632400 | BF52: 632400
B53: PCF53 | C53: DEA-U2-010 | D53: District | E53: North | F53: Upgrade existing park infrastructure to the value of $500k-$1m (District) | G53: =MID(C53,5,2) -> U2 | H53: =IFERROR(INDEX(UnitRateParks[],MATCH(G53,UnitRateParks[LGIP Code],0),3),"") -> 0 | I53: =IFERROR(MIN(K53/H53,INDEX(UnitRateParks[],MATCH(G53,UnitRateParks[LGIP Code],0),4)),"") ->  | K53: 137300 | L53: 0 | M53: 0 | N53: =IFERROR(INDEX(UnitRateParks[],MATCH($G53,UnitRateParks[LGIP Code],0),15),"Error") -> 750000 | O53: 750000 | P53: 2016 | Q53: 0.17 | R53: 127500 | S53: 1 | T53: 0.075 | U53: 114075 | V53: 1065943 | W53: 74368 | X53: 2019 | Y53: 0.025 | Z53: 0.01871653255 | AA53: =IF(FutureTrunkParks[[#This Row],[Asset Class]]="Local",VLOOKUP(FutureTrunkParks[[#This Row],[Service Catchment]],'Catchment Demand - Parks'!$C$8:$M$12,11),'Catchment Demand - Parks'!$M$12) -> 0.2213928202 | AB53: =_xlfn.IFS(FutureTrunkParks[[#This Row],[Year of Provision]]=2019,0,FutureTrunkParks[[#This Row],[Year of Provision]]=2024,FutureTrunkParks[[#This Row],[Total Assets Cost (at Base Year)]]/SUMIFS($AE$17:$AE$189,$X$17:$X$189,"2024",$E$17:$E$189,FutureTrunkParks[[#This Row],[Service Catchment]])) -> 0 | AC53: =IF(AND(FutureTrunkParks[[#This Row],[Spare Capacity %]]>30%,FutureTrunkParks[[#This Row],[Share of the total Cost with the same year of provision %]]>20%),1-FutureTrunkParks[[#This Row],[Spare Capacity %]],1) -> 1 | AD53: =IF(FutureTrunkParks[[#This Row],[ Terminal Value Analysis]]<0,0,FutureTrunkParks[[#This Row],[ Terminal Value Analysis]]) -> 1 | AE53: 1065943 | AF53: 1126922 | AG53: 948600 | AH53: =ROUND(FutureTrunkParks[[#This Row],[Net Present Value of Total Asset Cost]]*FutureTrunkParks[[#This Row],[Terminal Value Adjustment]],0) -> 948600 | AM53: y | AS53: 1 | AT53: 1 | AZ53: 948600 | BF53: 948600
B54: PCF311 | C54: DOO-A1-001 | D54: Local | E54: South | F54: Acquire and embellish land to provide LOCAL RECREATION infrastructure | G54: =MID(C54,5,2)&"-"&LEFT(D54,1) -> A1-L | H54: =IFERROR(INDEX(UnitRateParks[],MATCH(G54,UnitRateParks[LGIP Code],0),3),"") -> 8000 | I54: =IFERROR(MIN(K54/H54,INDEX(UnitRateParks[],MATCH(FutureTrunkParks[[#This Row],[LGIP Code (*)]], UnitRateParks[LGIP Code],0),4)),"") -> 0.475 | K54: 3800 | L54: 103.3334211 | M54: 392667 | N54: =IFERROR((VLOOKUP(FutureTrunkParks[[#This Row],[LGIP Code (*)]],UnitRateParks[],7,FALSE)*FutureTrunkParks[[#This Row],[Scaling factor (*)]]+VLOOKUP(FutureTrunkParks[[#This Row],[LGIP Code (*)]],UnitRateParks[],8,FALSE)-VLOOKUP(FutureTrunkParks[[#This Row],[LGIP Code (*)]],UnitRateParks[],6,FALSE))*18.5%+VLOOKUP(FutureTrunkParks[[#This Row],[LGIP Code (*)]],UnitRateParks[],7,FALSE)*FutureTrunkParks[[#This Row],[Scaling factor (*)]]+VLOOKUP(FutureTrunkParks[[#This Row],[LGIP Code (*)]],UnitRateParks[],8,FALSE),"Error") -> 143853.4553 | O54: 143853 | P54: 2016 | Q54: 0.17 | R54: 24455 | S54: 1 | T54: 0.075 | U54: 21880 | V54: 204452 | W54: 14264 | X54: 2019 | Y54: 0.025 | Z54: 0.01871653255 | AA54: =IF(FutureTrunkParks[[#This Row],[Asset Class]]="Local",VLOOKUP(FutureTrunkParks[[#This Row],[Service Catchment]],'Catchment Demand - Parks'!$C$8:$M$12,11),'Catchment Demand - Parks'!$M$12) -> 0.2365306507 | AB54: =_xlfn.IFS(FutureTrunkParks[[#This Row],[Year of Provision]]=2019,0,FutureTrunkParks[[#This Row],[Year of Provision]]=2024,FutureTrunkParks[[#This Row],[Total Assets Cost (at Base Year)]]/SUMIFS($AE$17:$AE$189,$X$17:$X$189,"2024",$E$17:$E$189,FutureTrunkParks[[#This Row],[Service Catchment]])) -> 0 | AC54: =IF(AND(FutureTrunkParks[[#This Row],[Spare Capacity %]]>30%,FutureTrunkParks[[#This Row],[Share of the total Cost with the same year of provision %]]>20%),1-FutureTrunkParks[[#This Row],[Spare Capacity %]],1) -> 1 | AD54: =IF(FutureTrunkParks[[#This Row],[ Terminal Value Analysis]]<0,0,FutureTrunkParks[[#This Row],[ Terminal Value Analysis]]) -> 1 | AE54: 597119 | AF54: 639008 | AG54: 537892 | AH54: =ROUND(FutureTrunkParks[[#This Row],[Net Present Value of Total Asset Cost]]*FutureTrunkParks[[#This Row],[Terminal Value Adjustment]],0) -> 537892 | AK54: y | AQ54: 1 | AT54: 1 | AX54: 537892 | BD54: 537892
B55: PCF311 | C55: DOO-A1-002 | D55: Local | E55: South | F55: Acquire and embellish land to provide LOCAL RECREATION infrastructure | G55: A1-L | H55: =IFERROR(INDEX(UnitRateParks[],MATCH(G55,UnitRateParks[LGIP Code],0),3),"") -> 8000 | I55: =IFERROR(MIN(K55/H55,INDEX(UnitRateParks[],MATCH(FutureTrunkParks[[#This Row],[LGIP Code (*)]], UnitRateParks[LGIP Code],0),4)),"") -> 1.25 | K55: 10000 | L55: 150 | M55: 1500000 | N55: =IFERROR((VLOOKUP(FutureTrunkParks[[#This Row],[LGIP Code (*)]],UnitRateParks[],7,FALSE)*FutureTrunkParks[[#This Row],[Scaling factor (*)]]+VLOOKUP(FutureTrunkParks[[#This Row],[LGIP Code (*)]],UnitRateParks[],8,FALSE)-VLOOKUP(FutureTrunkParks[[#This Row],[LGIP Code (*)]],UnitRateParks[],6,FALSE))*18.5%+VLOOKUP(FutureTrunkParks[[#This Row],[LGIP Code (*)]],UnitRateParks[],7,FALSE)*FutureTrunkParks[[#This Row],[Scaling factor (*)]]+VLOOKUP(FutureTrunkParks[[#This Row],[LGIP Code (*)]],UnitRateParks[],8,FALSE),"Error") -> 333334.7434 | O55: 333335 | P55: 2016 | Q55: 0.17 | R55: 56667 | S55: 1 | T55: 0.075 | U55: 50700 | V55: 473755 | W55: 33053 | X55: 2019 | Y55: 0.025 | Z55: 0.01871653255 | AA55: =IF(FutureTrunkParks[[#This Row],[Asset Class]]="Local",VLOOKUP(FutureTrunkParks[[#This Row],[Service Catchment]],'Catchment Demand - Parks'!$C$8:$M$12,11),'Catchment Demand - Parks'!$M$12) -> 0.2365306507 | AB55: =_xlfn.IFS(FutureTrunkParks[[#This Row],[Year of Provision]]=2019,0,FutureTrunkParks[[#This Row],[Year of Provision]]=2024,FutureTrunkParks[[#This Row],[Total Assets Cost (at Base Year)]]/SUMIFS($AE$17:$AE$189,$X$17:$X$189,"2024",$E$17:$E$189,FutureTrunkParks[[#This Row],[Service Catchment]])) -> 0 | AC55: =IF(AND(FutureTrunkParks[[#This Row],[Spare Capacity %]]>30%,FutureTrunkParks[[#This Row],[Share of the total Cost with the same year of provision %]]>20%),1-FutureTrunkParks[[#This Row],[Spare Capacity %]],1) -> 1 | AD55: =IF(FutureTrunkParks[[#This Row],[ Terminal Value Analysis]]<0,0,FutureTrunkParks[[#This Row],[ Terminal Value Analysis]]) -> 1 | AE55: 1973755 | AF55: 2116193 | AG55: 1781330 | AH55: =ROUND(FutureTrunkParks[[#This Row],[Net Present Value of Total Asset Cost]]*FutureTrunkParks[[#This Row],[Terminal Value Adjustment]],0) -> 1781330 | AK55: y | AQ55: 1 | AT55: 1 | AX55: 1781330 | BD55: 1781330
B56: PCF311 | C56: DOO-A1-004 | D56: Local | E56: South | F56: Acquire and embellish land to provide LOCAL RECREATION infrastructure | G56: A1-L | H56: =IFERROR(INDEX(UnitRateParks[],MATCH(G56,UnitRateParks[LGIP Code],0),3),"") -> 8000 | I56: =IFERROR(MIN(K56/H56,INDEX(UnitRateParks[],MATCH(FutureTrunkParks[[#This Row],[LGIP Code (*)]], UnitRateParks[LGIP Code],0),4)),"") -> 1.902425 | K56: 15219.4 | L56: 64.00002628 | M56: 974042 | N56: =IFERROR((VLOOKUP(FutureTrunkParks[[#This Row],[LGIP Code (*)]],UnitRateParks[],7,FALSE)*FutureTrunkParks[[#This Row],[Scaling factor (*)]]+VLOOKUP(FutureTrunkParks[[#This Row],[LGIP Code (*)]],UnitRateParks[],8,FALSE)-VLOOKUP(FutureTrunkParks[[#This Row],[LGIP Code (*)]],UnitRateParks[],6,FALSE))*18.5%+VLOOKUP(FutureTrunkParks[[#This Row],[LGIP Code (*)]],UnitRateParks[],7,FALSE)*FutureTrunkParks[[#This Row],[Scaling factor (*)]]+VLOOKUP(FutureTrunkParks[[#This Row],[LGIP Code (*)]],UnitRateParks[],8,FALSE),"Error") -> 492847.4266 | O56: 492847 | P56: 2016 | Q56: 0.17 | R56: 83784 | S56: 1 | T56: 0.075 | U56: 74962 | V56: 700462 | W56: 48869 | X56: 2019 | Y56: 0.025 | Z56: 0.01871653255 | AA56: =IF(FutureTrunkParks[[#This Row],[Asset Class]]="Local",VLOOKUP(FutureTrunkParks[[#This Row],[Service Catchment]],'Catchment Demand - Parks'!$C$8:$M$12,11),'Catchment Demand - Parks'!$M$12) -> 0.2365306507 | AB56: =_xlfn.IFS(FutureTrunkParks[[#This Row],[Year of Provision]]=2019,0,FutureTrunkParks[[#This Row],[Year of Provision]]=2024,FutureTrunkParks[[#This Row],[Total Assets Cost (at Base Year)]]/SUMIFS($AE$17:$AE$189,$X$17:$X$189,"2024",$E$17:$E$189,FutureTrunkParks[[#This Row],[Service Catchment]])) -> 0 | AC56: =IF(AND(FutureTrunkParks[[#This Row],[Spare Capacity %]]>30%,FutureTrunkParks[[#This Row],[Share of the total Cost with the same year of provision %]]>20%),1-FutureTrunkParks[[#This Row],[Spare Capacity %]],1) -> 1 | AD56: =IF(FutureTrunkParks[[#This Row],[ Terminal Value Analysis]]<0,0,FutureTrunkParks[[#This Row],[ Terminal Value Analysis]]) -> 1 | AE56: 1674504 | AF56: 1789470 | AG56: 1506307 | AH56: =ROUND(FutureTrunkParks[[#This Row],[Net Present Value of Total Asset Cost]]*FutureTrunkParks[[#This Row],[Terminal Value Adjustment]],0) -> 1506307 | AK56: y | AQ56: 1 | AT56: 1 | AX56: 1506307 | BD56: 1506307
B57: PCF291 | C57: DUR-E2-001 | D57: District | E57: South | F57: Provide DISTRICT RECREATION infrastructure | G57: E2-D | H57: =IFERROR(INDEX(UnitRateParks[],MATCH(G57,UnitRateParks[LGIP Code],0),3),"") -> 30000 | I57: =IFERROR(MIN(K57/H57,INDEX(UnitRateParks[],MATCH(FutureTrunkParks[[#This Row],[LGIP Code (*)]], UnitRateParks[LGIP Code],0),4)),"") -> 1.4 | K57: 64000 | L57: 0 | M57: 0 | N57: =IFERROR((VLOOKUP(FutureTrunkParks[[#This Row],[LGIP Code (*)]],UnitRateParks[],10,FALSE)*FutureTrunkParks[[#This Row],[Scaling factor (*)]]+VLOOKUP(FutureTrunkParks[[#This Row],[LGIP Code (*)]],UnitRateParks[],11,FALSE))*18.5%+VLOOKUP(FutureTrunkParks[[#This Row],[LGIP Code (*)]],UnitRateParks[],11,FALSE)+VLOOKUP(FutureTrunkParks[[#This Row],[LGIP Code (*)]],UnitRateParks[],10,FALSE)*FutureTrunkParks[[#This Row],[Scaling factor (*)]]+(VLOOKUP(FutureTrunkParks[[#This Row],[LGIP Code (*)]],UnitRateParks[],13,FALSE)*FutureTrunkParks[[#This Row],[Scaling factor (*)]]+VLOOKUP(FutureTrunkParks[[#This Row],[LGIP Code (*)]],UnitRateParks[],14,FALSE))*18.5%+VLOOKUP(FutureTrunkParks[[#This Row],[LGIP Code (*)]],UnitRateParks[],14,FALSE)+VLOOKUP(FutureTrunkParks[[#This Row],[LGIP Code (*)]],UnitRateParks[],13,FALSE)*FutureTrunkParks[[#This Row],[Scaling factor (*)]],"Error") -> 7302489.713 | O57: 7302490 | P57: 2016 | Q57: 0.17 | R57: 1241423 | S57: 1 | T57: 0.15 | U57: 1110709 | V57: 11102815 | W57: 1448193 | X57: 2024 | Y57: 0.025 | Z57: 0.01871653255 | AA57: =IF(FutureTrunkParks[[#This Row],[Asset Class]]="Local",VLOOKUP(FutureTrunkParks[[#This Row],[Service Catchment]],'Catchment Demand - Parks'!$C$8:$M$12,11),'Catchment Demand - Parks'!$M$12) -> 0.2213928202 | AB57: =_xlfn.IFS(FutureTrunkParks[[#This Row],[Year of Provision]]=2019,0,FutureTrunkParks[[#This Row],[Year of Provision]]=2024,FutureTrunkParks[[#This Row],[Total Assets Cost (at Base Year)]]/SUMIFS($AE$17:$AE$189,$X$17:$X$189,"2024",$E$17:$E$189,FutureTrunkParks[[#This Row],[Service Catchment]])) -> 0.06638231627 | AC57: =IF(AND(FutureTrunkParks[[#This Row],[Spare Capacity %]]>30%,FutureTrunkParks[[#This Row],[Share of the total Cost with the same year of provision %]]>20%),1-FutureTrunkParks[[#This Row],[Spare Capacity %]],1) -> 1 | AD57: =IF(FutureTrunkParks[[#This Row],[ Terminal Value Analysis]]<0,0,FutureTrunkParks[[#This Row],[ Terminal Value Analysis]]) -> 1 | AE57: 11102815 | AF57: 12878342 | AG57: 8135125 | AH57: =ROUND(FutureTrunkParks[[#This Row],[Net Present Value of Total Asset Cost]]*FutureTrunkParks[[#This Row],[Terminal Value Adjustment]],0) -> 8135125 | AM57: y | AS57: 1 | AT57: 1 | AZ57: 8135125 | BF57: 8135125
B58: PCF311 | C58: DUR-E5-001 | D58: District | E58: South | F58: Provide DISTRICT SPORT infrastructure | G58: E5-D | H58: =IFERROR(INDEX(UnitRateParks[],MATCH(G58,UnitRateParks[LGIP Code],0),3),"") -> 40000 | I58: =IFERROR(MIN(K58/H58,INDEX(UnitRateParks[],MATCH(FutureTrunkParks[[#This Row],[LGIP Code (*)]], UnitRateParks[LGIP Code],0),4)),"") -> 3.25 | K58: 130000 | L58: 0 | M58: 0 | N58: =IFERROR((VLOOKUP(FutureTrunkParks[[#This Row],[LGIP Code (*)]],UnitRateParks[],10,FALSE)*FutureTrunkParks[[#This Row],[Scaling factor (*)]]+VLOOKUP(FutureTrunkParks[[#This Row],[LGIP Code (*)]],UnitRateParks[],11,FALSE))*18.5%+VLOOKUP(FutureTrunkParks[[#This Row],[LGIP Code (*)]],UnitRateParks[],11,FALSE)+VLOOKUP(FutureTrunkParks[[#This Row],[LGIP Code (*)]],UnitRateParks[],10,FALSE)*FutureTrunkParks[[#This Row],[Scaling factor (*)]]+(VLOOKUP(FutureTrunkParks[[#This Row],[LGIP Code (*)]],UnitRateParks[],13,FALSE)*FutureTrunkParks[[#This Row],[Scaling factor (*)]]+VLOOKUP(FutureTrunkParks[[#This Row],[LGIP Code (*)]],UnitRateParks[],14,FALSE))*18.5%+VLOOKUP(FutureTrunkParks[[#This Row],[LGIP Code (*)]],UnitRateParks[],14,FALSE)+VLOOKUP(FutureTrunkParks[[#This Row],[LGIP Code (*)]],UnitRateParks[],13,FALSE)*FutureTrunkParks[[#This Row],[Scaling factor (*)]],"Error") -> 8173411.324 | O58: 8173411 | P58: 2016 | Q58: 0.17 | R58: 1389480 | S58: 1 | T58: 0.075 | U58: 1243176 | V58: 11616522 | W58: 810455 | X58: 2019 | Y58: 0.025 | Z58: 0.01871653255 | AA58: =IF(FutureTrunkParks[[#This Row],[Asset Class]]="Local",VLOOKUP(FutureTrunkParks[[#This Row],[Service Catchment]],'Catchment Demand - Parks'!$C$8:$M$12,11),'Catchment Demand - Parks'!$M$12) -> 0.2213928202 | AB58: =_xlfn.IFS(FutureTrunkParks[[#This Row],[Year of Provision]]=2019,0,FutureTrunkParks[[#This Row],[Year of Provision]]=2024,FutureTrunkParks[[#This Row],[Total Assets Cost (at Base Year)]]/SUMIFS($AE$17:$AE$189,$X$17:$X$189,"2024",$E$17:$E$189,FutureTrunkParks[[#This Row],[Service Catchment]])) -> 0 | AC58: =IF(AND(FutureTrunkParks[[#This Row],[Spare Capacity %]]>30%,FutureTrunkParks[[#This Row],[Share of the total Cost with the same year of provision %]]>20%),1-FutureTrunkParks[[#This Row],[Spare Capacity %]],1) -> 1 | AD58: =IF(FutureTrunkParks[[#This Row],[ Terminal Value Analysis]]<0,0,FutureTrunkParks[[#This Row],[ Terminal Value Analysis]]) -> 1 | AE58: 11616522 | AF58: 12281069 | AG58: 10337732 | AH58: =ROUND(FutureTrunkParks[[#This Row],[Net Present Value of Total Asset Cost]]*FutureTrunkParks[[#This Row],[Terminal Value Adjustment]],0) -> 10337732 | AM58: y | AS58: 1 | AT58: 1 | AZ58: 10337732 | BF58: 10337732
B59: PCF213 | C59: EAB-E8-001 | D59: District | E59: East | F59: Provide DISTRICT OR METRO ACCESS/RECREATION CORRIDOR PARK infrastructure | G59: E8-D | H59: =IFERROR(INDEX(UnitRateParks[],MATCH(G59,UnitRateParks[LGIP Code],0),3),"") -> 30000 | I59: =IFERROR(MIN(K59/H59,INDEX(UnitRateParks[],MATCH(FutureTrunkParks[[#This Row],[LGIP Code (*)]], UnitRateParks[LGIP Code],0),4)),"") -> 0.03333333333 | K59: 1000 | L59: 0 | M59: 0 | N59: =IFERROR((VLOOKUP(FutureTrunkParks[[#This Row],[LGIP Code (*)]],UnitRateParks[],10,FALSE)*FutureTrunkParks[[#This Row],[Scaling factor (*)]]+VLOOKUP(FutureTrunkParks[[#This Row],[LGIP Code (*)]],UnitRateParks[],11,FALSE))*18.5%+VLOOKUP(FutureTrunkParks[[#This Row],[LGIP Code (*)]],UnitRateParks[],11,FALSE)+VLOOKUP(FutureTrunkParks[[#This Row],[LGIP Code (*)]],UnitRateParks[],10,FALSE)*FutureTrunkParks[[#This Row],[Scaling factor (*)]]+(VLOOKUP(FutureTrunkParks[[#This Row],[LGIP Code (*)]],UnitRateParks[],13,FALSE)*FutureTrunkParks[[#This Row],[Scaling factor (*)]]+VLOOKUP(FutureTrunkParks[[#This Row],[LGIP Code (*)]],UnitRateParks[],14,FALSE))*18.5%+VLOOKUP(FutureTrunkParks[[#This Row],[LGIP Code (*)]],UnitRateParks[],14,FALSE)+VLOOKUP(FutureTrunkParks[[#This Row],[LGIP Code (*)]],UnitRateParks[],13,FALSE)*FutureTrunkParks[[#This Row],[Scaling factor (*)]],"Error") -> 939120.3424 | O59: 939120 | P59: 2016 | Q59: 0.17 | R59: 159650 | S59: 1 | T59: 0.075 | U59: 142840 | V59: 1334731 | W59: 93121 | X59: 2019 | Y59: 0.025 | Z59: 0.01871653255 | AA59: =IF(FutureTrunkParks[[#This Row],[Asset Class]]="Local",VLOOKUP(FutureTrunkParks[[#This Row],[Service Catchment]],'Catchment Demand - Parks'!$C$8:$M$12,11),'Catchment Demand - Parks'!$M$12) -> 0.2213928202 | AB59: =_xlfn.IFS(FutureTrunkParks[[#This Row],[Year of Provision]]=2019,0,FutureTrunkParks[[#This Row],[Year of Provision]]=2024,FutureTrunkParks[[#This Row],[Total Assets Cost (at Base Year)]]/SUMIFS($AE$17:$AE$189,$X$17:$X$189,"2024",$E$17:$E$189,FutureTrunkParks[[#This Row],[Service Catchment]])) -> 0 | AC59: =IF(AND(FutureTrunkParks[[#This Row],[Spare Capacity %]]>30%,FutureTrunkParks[[#This Row],[Share of the total Cost with the same year of provision %]]>20%),1-FutureTrunkParks[[#This Row],[Spare Capacity %]],1) -> 1 | AD59: =IF(FutureTrunkParks[[#This Row],[ Terminal Value Analysis]]<0,0,FutureTrunkParks[[#This Row],[ Terminal Value Analysis]]) -> 1 | AE59: 1334731 | AF59: 1411087 | AG59: 1187799 | AH59: =ROUND(FutureTrunkParks[[#This Row],[Net Present Value of Total Asset Cost]]*FutureTrunkParks[[#This Row],[Terminal Value Adjustment]],0) -> 1187799 | AM59: y | AS59: 1 | AT59: 1 | AZ59: 1187799 | BF59: 1187799
B60: PCF154 | C60: EAF-A1-001 | D60: Local | E60: North | F60: Acquire and embellish land to provide LOCAL RECREATION infrastructure | G60: A1-L | H60: =IFERROR(INDEX(UnitRateParks[],MATCH(G60,UnitRateParks[LGIP Code],0),3),"") -> 8000 | I60: =IFERROR(MIN(K60/H60,INDEX(UnitRateParks[],MATCH(FutureTrunkParks[[#This Row],[LGIP Code (*)]], UnitRateParks[LGIP Code],0),4)),"") -> 1.25 | K60: 10000 | L60: 400 | M60: 4000000 | N60: =IFERROR((VLOOKUP(FutureTrunkParks[[#This Row],[LGIP Code (*)]],UnitRateParks[],7,FALSE)*FutureTrunkParks[[#This Row],[Scaling factor (*)]]+VLOOKUP(FutureTrunkParks[[#This Row],[LGIP Code (*)]],UnitRateParks[],8,FALSE)-VLOOKUP(FutureTrunkParks[[#This Row],[LGIP Code (*)]],UnitRateParks[],6,FALSE))*18.5%+VLOOKUP(FutureTrunkParks[[#This Row],[LGIP Code (*)]],UnitRateParks[],7,FALSE)*FutureTrunkParks[[#This Row],[Scaling factor (*)]]+VLOOKUP(FutureTrunkParks[[#This Row],[LGIP Code (*)]],UnitRateParks[],8,FALSE),"Error") -> 333334.7434 | O60: 333335 | P60: 2016 | Q60: 0.17 | R60: 56667 | S60: 1 | T60: 0.15 | U60: 50700 | V60: 506807 | W60: 66105 | X60: 2024 | Y60: 0.025 | Z60: 0.01871653255 | AA60: =IF(FutureTrunkParks[[#This Row],[Asset Class]]="Local",VLOOKUP(FutureTrunkParks[[#This Row],[Service Catchment]],'Catchment Demand - Parks'!$C$8:$M$12,11),'Catchment Demand - Parks'!$M$12) -> 0.2179675326 | AB60: =_xlfn.IFS(FutureTrunkParks[[#This Row],[Year of Provision]]=2019,0,FutureTrunkParks[[#This Row],[Year of Provision]]=2024,FutureTrunkParks[[#This Row],[Total Assets Cost (at Base Year)]]/SUMIFS($AE$17:$AE$189,$X$17:$X$189,"2024",$E$17:$E$189,FutureTrunkParks[[#This Row],[Service Catchment]])) -> 0.1190541125 | AC60: =IF(AND(FutureTrunkParks[[#This Row],[Spare Capacity %]]>30%,FutureTrunkParks[[#This Row],[Share of the total Cost with the same year of provision %]]>20%),1-FutureTrunkParks[[#This Row],[Spare Capacity %]],1) -> 1 | AD60: =IF(FutureTrunkParks[[#This Row],[ Terminal Value Analysis]]<0,0,FutureTrunkParks[[#This Row],[ Terminal Value Analysis]]) -> 1 | AE60: 4506807 | AF60: 5461466 | AG60: 3449955 | AH60: =ROUND(FutureTrunkParks[[#This Row],[Net Present Value of Total Asset Cost]]*FutureTrunkParks[[#This Row],[Terminal Value Adjustment]],0) -> 3449955 | AJ60: y | AP60: 1 | AT60: 1 | AW60: 3449955 | BC60: 3449955
B61: PCF310 | C61: ELG-A8-001 | D61: District | E61: South | F61: Acquire and embellish land to provide DISTRICT OR METRO ACCESS/RECREATION CORRIDOR PARK | G61: A8-D | H61: =IFERROR(INDEX(UnitRateParks[],MATCH(G61,UnitRateParks[LGIP Code],0),3),"") -> 30000 | I61: =IFERROR(MIN(K61/H61,INDEX(UnitRateParks[],MATCH(FutureTrunkParks[[#This Row],[LGIP Code (*)]], UnitRateParks[LGIP Code],0),4)),"") -> 2 | K61: 190300 | L61: 10 | M61: 1903000 | N61: =IFERROR((VLOOKUP(FutureTrunkParks[[#This Row],[LGIP Code (*)]],UnitRateParks[],7,FALSE)*FutureTrunkParks[[#This Row],[Scaling factor (*)]]+VLOOKUP(FutureTrunkParks[[#This Row],[LGIP Code (*)]],UnitRateParks[],8,FALSE)-VLOOKUP(FutureTrunkParks[[#This Row],[LGIP Code (*)]],UnitRateParks[],6,FALSE))*18.5%+VLOOKUP(FutureTrunkParks[[#This Row],[LGIP Code (*)]],UnitRateParks[],7,FALSE)*FutureTrunkParks[[#This Row],[Scaling factor (*)]]+VLOOKUP(FutureTrunkParks[[#This Row],[LGIP Code (*)]],UnitRateParks[],8,FALSE),"Error") -> 1170895.243 | O61: 1170895 | P61: 2016 | Q61: 0.17 | R61: 199052 | S61: 1 | T61: 0.15 | U61: 178093 | V61: 1780246 | W61: 232206 | X61: 2024 | Y61: 0.025 | Z61: 0.01871653255 | AA61: =IF(FutureTrunkParks[[#This Row],[Asset Class]]="Local",VLOOKUP(FutureTrunkParks[[#This Row],[Service Catchment]],'Catchment Demand - Parks'!$C$8:$M$12,11),'Catchment Demand - Parks'!$M$12) -> 0.2213928202 | AB61: =_xlfn.IFS(FutureTrunkParks[[#This Row],[Year of Provision]]=2019,0,FutureTrunkParks[[#This Row],[Year of Provision]]=2024,FutureTrunkParks[[#This Row],[Total Assets Cost (at Base Year)]]/SUMIFS($AE$17:$AE$189,$X$17:$X$189,"2024",$E$17:$E$189,FutureTrunkParks[[#This Row],[Service Catchment]])) -> 0.02202165855 | AC61: =IF(AND(FutureTrunkParks[[#This Row],[Spare Capacity %]]>30%,FutureTrunkParks[[#This Row],[Share of the total Cost with the same year of provision %]]>20%),1-FutureTrunkParks[[#This Row],[Spare Capacity %]],1) -> 1 | AD61: =IF(FutureTrunkParks[[#This Row],[ Terminal Value Analysis]]<0,0,FutureTrunkParks[[#This Row],[ Terminal Value Analysis]]) -> 1 | AE61: 3683246 | AF61: 4383558 | AG61: 2769051 | AH61: =ROUND(FutureTrunkParks[[#This Row],[Net Present Value of Total Asset Cost]]*FutureTrunkParks[[#This Row],[Terminal Value Adjustment]],0) -> 2769051 | AM61: y | AS61: 1 | AT61: 1 | AZ61: 2769051 | BF61: 2769051
B62: PCF310 | C62: ELG-E2-001 | D62: District | E62: South | F62: Provide DISTRICT RECREATION infrastructure | G62: E2-D | H62: =IFERROR(INDEX(UnitRateParks[],MATCH(G62,UnitRateParks[LGIP Code],0),3),"") -> 30000 | I62: =IFERROR(MIN(K62/H62,INDEX(UnitRateParks[],MATCH(FutureTrunkParks[[#This Row],[LGIP Code (*)]], UnitRateParks[LGIP Code],0),4)),"") -> 0.8333333333 | K62: 25000 | L62: 0 | M62: 0 | N62: =IFERROR((VLOOKUP(FutureTrunkParks[[#This Row],[LGIP Code (*)]],UnitRateParks[],10,FALSE)*FutureTrunkParks[[#This Row],[Scaling factor (*)]]+VLOOKUP(FutureTrunkParks[[#This Row],[LGIP Code (*)]],UnitRateParks[],11,FALSE))*18.5%+VLOOKUP(FutureTrunkParks[[#This Row],[LGIP Code (*)]],UnitRateParks[],11,FALSE)+VLOOKUP(FutureTrunkParks[[#This Row],[LGIP Code (*)]],UnitRateParks[],10,FALSE)*FutureTrunkParks[[#This Row],[Scaling factor (*)]]+(VLOOKUP(FutureTrunkParks[[#This Row],[LGIP Code (*)]],UnitRateParks[],13,FALSE)*FutureTrunkParks[[#This Row],[Scaling factor (*)]]+VLOOKUP(FutureTrunkParks[[#This Row],[LGIP Code (*)]],UnitRateParks[],14,FALSE))*18.5%+VLOOKUP(FutureTrunkParks[[#This Row],[LGIP Code (*)]],UnitRateParks[],14,FALSE)+VLOOKUP(FutureTrunkParks[[#This Row],[LGIP Code (*)]],UnitRateParks[],13,FALSE)*FutureTrunkParks[[#This Row],[Scaling factor (*)]],"Error") -> 6845047.179 | O62: 6845047 | P62: 2016 | Q62: 0.17 | R62: 1163658 | S62: 1 | T62: 0.15 | U62: 1041132 | V62: 10407313 | W62: 1357476 | X62: 2024 | Y62: 0.025 | Z62: 0.01871653255 | AA62: =IF(FutureTrunkParks[[#This Row],[Asset Class]]="Local",VLOOKUP(FutureTrunkParks[[#This Row],[Service Catchment]],'Catchment Demand - Parks'!$C$8:$M$12,11),'Catchment Demand - Parks'!$M$12) -> 0.2213928202 | AB62: =_xlfn.IFS(FutureTrunkParks[[#This Row],[Year of Provision]]=2019,0,FutureTrunkParks[[#This Row],[Year of Provision]]=2024,FutureTrunkParks[[#This Row],[Total Assets Cost (at Base Year)]]/SUMIFS($AE$17:$AE$189,$X$17:$X$189,"2024",$E$17:$E$189,FutureTrunkParks[[#This Row],[Service Catchment]])) -> 0.06222399843 | AC62: =IF(AND(FutureTrunkParks[[#This Row],[Spare Capacity %]]>30%,FutureTrunkParks[[#This Row],[Share of the total Cost with the same year of provision %]]>20%),1-FutureTrunkParks[[#This Row],[Spare Capacity %]],1) -> 1 | AD62: =IF(FutureTrunkParks[[#This Row],[ Terminal Value Analysis]]<0,0,FutureTrunkParks[[#This Row],[ Terminal Value Analysis]]) -> 1 | AE62: 10407313 | AF62: 12071617 | AG62: 7625524 | AH62: =ROUND(FutureTrunkParks[[#This Row],[Net Present Value of Total Asset Cost]]*FutureTrunkParks[[#This Row],[Terminal Value Adjustment]],0) -> 7625524 | AM62: y | AS62: 1 | AT62: 1 | AZ62: 7625524 | BF62: 7625524
B63: PCF310 | C63: ELG-E5-001 | D63: District | E63: South | F63: Provide DISTRICT SPORT infrastructure | G63: E5-D | H63: =IFERROR(INDEX(UnitRateParks[],MATCH(G63,UnitRateParks[LGIP Code],0),3),"") -> 40000 | I63: =IFERROR(MIN(K63/H63,INDEX(UnitRateParks[],MATCH(FutureTrunkParks[[#This Row],[LGIP Code (*)]], UnitRateParks[LGIP Code],0),4)),"") -> 1.37 | K63: 54800 | L63: 0 | M63: 0 | N63: =IFERROR((VLOOKUP(FutureTrunkParks[[#This Row],[LGIP Code (*)]],UnitRateParks[],10,FALSE)*FutureTrunkParks[[#This Row],[Scaling factor (*)]]+VLOOKUP(FutureTrunkParks[[#This Row],[LGIP Code (*)]],UnitRateParks[],11,FALSE))*18.5%+VLOOKUP(FutureTrunkParks[[#This Row],[LGIP Code (*)]],UnitRateParks[],11,FALSE)+VLOOKUP(FutureTrunkParks[[#This Row],[LGIP Code (*)]],UnitRateParks[],10,FALSE)*FutureTrunkParks[[#This Row],[Scaling factor (*)]]+(VLOOKUP(FutureTrunkParks[[#This Row],[LGIP Code (*)]],UnitRateParks[],13,FALSE)*FutureTrunkParks[[#This Row],[Scaling factor (*)]]+VLOOKUP(FutureTrunkParks[[#This Row],[LGIP Code (*)]],UnitRateParks[],14,FALSE))*18.5%+VLOOKUP(FutureTrunkParks[[#This Row],[LGIP Code (*)]],UnitRateParks[],14,FALSE)+VLOOKUP(FutureTrunkParks[[#This Row],[LGIP Code (*)]],UnitRateParks[],13,FALSE)*FutureTrunkParks[[#This Row],[Scaling factor (*)]],"Error") -> 6785043.95 | O63: 6785044 | P63: 2016 | Q63: 0.17 | R63: 1153457 | S63: 1 | T63: 0.075 | U63: 1032005 | V63: 9643294 | W63: 672788 | X63: 2019 | Y63: 0.025 | Z63: 0.01871653255 | AA63: =IF(FutureTrunkParks[[#This Row],[Asset Class]]="Local",VLOOKUP(FutureTrunkParks[[#This Row],[Service Catchment]],'Catchment Demand - Parks'!$C$8:$M$12,11),'Catchment Demand - Parks'!$M$12) -> 0.2213928202 | AB63: =_xlfn.IFS(FutureTrunkParks[[#This Row],[Year of Provision]]=2019,0,FutureTrunkParks[[#This Row],[Year of Provision]]=2024,FutureTrunkParks[[#This Row],[Total Assets Cost (at Base Year)]]/SUMIFS($AE$17:$AE$189,$X$17:$X$189,"2024",$E$17:$E$189,FutureTrunkParks[[#This Row],[Service Catchment]])) -> 0 | AC63: =IF(AND(FutureTrunkParks[[#This Row],[Spare Capacity %]]>30%,FutureTrunkParks[[#This Row],[Share of the total Cost with the same year of provision %]]>20%),1-FutureTrunkParks[[#This Row],[Spare Capacity %]],1) -> 1 | AD63: =IF(FutureTrunkParks[[#This Row],[ Terminal Value Analysis]]<0,0,FutureTrunkParks[[#This Row],[ Terminal Value Analysis]]) -> 1 | AE63: 9643294 | AF63: 10194959 | AG63: 8581725 | AH63: =ROUND(FutureTrunkParks[[#This Row],[Net Present Value of Total Asset Cost]]*FutureTrunkParks[[#This Row],[Terminal Value Adjustment]],0) -> 8581725 | AM63: y | AS63: 1 | AT63: 1 | AZ63: 8581725 | BF63: 8581725
B64: PCF111 | C64: EVP-A1-001 | D64: Local | E64: West | F64: Acquire and embellish land to provide LOCAL RECREATION infrastructure | G64: A1-L | H64: =IFERROR(INDEX(UnitRateParks[],MATCH(G64,UnitRateParks[LGIP Code],0),3),"") -> 8000 | I64: =IFERROR(MIN(K64/H64,INDEX(UnitRateParks[],MATCH(FutureTrunkParks[[#This Row],[LGIP Code (*)]], UnitRateParks[LGIP Code],0),4)),"") -> 0.625 | K64: 5000 | L64: 140 | M64: 700000 | N64: =IFERROR((VLOOKUP(FutureTrunkParks[[#This Row],[LGIP Code (*)]],UnitRateParks[],7,FALSE)*FutureTrunkParks[[#This Row],[Scaling factor (*)]]+VLOOKUP(FutureTrunkParks[[#This Row],[LGIP Code (*)]],UnitRateParks[],8,FALSE)-VLOOKUP(FutureTrunkParks[[#This Row],[LGIP Code (*)]],UnitRateParks[],6,FALSE))*18.5%+VLOOKUP(FutureTrunkParks[[#This Row],[LGIP Code (*)]],UnitRateParks[],7,FALSE)*FutureTrunkParks[[#This Row],[Scaling factor (*)]]+VLOOKUP(FutureTrunkParks[[#This Row],[LGIP Code (*)]],UnitRateParks[],8,FALSE),"Error") -> 180527.253 | O64: 180527 | P64: 2016 | Q64: 0.17 | R64: 30690 | S64: 1 | T64: 0.15 | U64: 27458 | V64: 274476 | W64: 35801 | X64: 2024 | Y64: 0.025 | Z64: 0.01871653255 | AA64: =IF(FutureTrunkParks[[#This Row],[Asset Class]]="Local",VLOOKUP(FutureTrunkParks[[#This Row],[Service Catchment]],'Catchment Demand - Parks'!$C$8:$M$12,11),'Catchment Demand - Parks'!$M$12) -> 0.1760134606 | AB64: =_xlfn.IFS(FutureTrunkParks[[#This Row],[Year of Provision]]=2019,0,FutureTrunkParks[[#This Row],[Year of Provision]]=2024,FutureTrunkParks[[#This Row],[Total Assets Cost (at Base Year)]]/SUMIFS($AE$17:$AE$189,$X$17:$X$189,"2024",$E$17:$E$189,FutureTrunkParks[[#This Row],[Service Catchment]])) -> 0.01622519264 | AC64: =IF(AND(FutureTrunkParks[[#This Row],[Spare Capacity %]]>30%,FutureTrunkParks[[#This Row],[Share of the total Cost with the same year of provision %]]>20%),1-FutureTrunkParks[[#This Row],[Spare Capacity %]],1) -> 1 | AD64: =IF(FutureTrunkParks[[#This Row],[ Terminal Value Analysis]]<0,0,FutureTrunkParks[[#This Row],[ Terminal Value Analysis]]) -> 1 | AE64: 974476 | AF64: 1171251 | AG64: 739868 | AH64: =ROUND(FutureTrunkParks[[#This Row],[Net Present Value of Total Asset Cost]]*FutureTrunkParks[[#This Row],[Terminal Value Adjustment]],0) -> 739868 | AL64: y | AR64: 1 | AT64: 1 | AY64: 739868 | BE64: 739868
B65: PCF310 | C65: FLK-E1-001 | D65: Local | E65: South | F65: Provide LOCAL RECREATION infrastructure | G65: E1-L | H65: =IFERROR(INDEX(UnitRateParks[],MATCH(G65,UnitRateParks[LGIP Code],0),3),"") -> 8000 | I65: =IFERROR(MIN(K65/H65,INDEX(UnitRateParks[],MATCH(FutureTrunkParks[[#This Row],[LGIP Code (*)]], UnitRateParks[LGIP Code],0),4)),"") -> 0.25 | K65: 2000 | L65: 0 | M65: 0 | N65: =IFERROR((VLOOKUP(FutureTrunkParks[[#This Row],[LGIP Code (*)]],UnitRateParks[],10,FALSE)*FutureTrunkParks[[#This Row],[Scaling factor (*)]]+VLOOKUP(FutureTrunkParks[[#This Row],[LGIP Code (*)]],UnitRateParks[],11,FALSE))*18.5%+VLOOKUP(FutureTrunkParks[[#This Row],[LGIP Code (*)]],UnitRateParks[],11,FALSE)+VLOOKUP(FutureTrunkParks[[#This Row],[LGIP Code (*)]],UnitRateParks[],10,FALSE)*FutureTrunkParks[[#This Row],[Scaling factor (*)]]+(VLOOKUP(FutureTrunkParks[[#This Row],[LGIP Code (*)]],UnitRateParks[],13,FALSE)*FutureTrunkParks[[#This Row],[Scaling factor (*)]]+VLOOKUP(FutureTrunkParks[[#This Row],[LGIP Code (*)]],UnitRateParks[],14,FALSE))*18.5%+VLOOKUP(FutureTrunkParks[[#This Row],[LGIP Code (*)]],UnitRateParks[],14,FALSE)+VLOOKUP(FutureTrunkParks[[#This Row],[LGIP Code (*)]],UnitRateParks[],13,FALSE)*FutureTrunkParks[[#This Row],[Scaling factor (*)]],"Error") -> 379844.4902 | O65: 379844 | P65: 2016 | Q65: 0.17 | R65: 64573 | S65: 1 | T65: 0.075 | U65: 57774 | V65: 539855 | W65: 37664 | X65: 2019 | Y65: 0.025 | Z65: 0.01871653255 | AA65: =IF(FutureTrunkParks[[#This Row],[Asset Class]]="Local",VLOOKUP(FutureTrunkParks[[#This Row],[Service Catchment]],'Catchment Demand - Parks'!$C$8:$M$12,11),'Catchment Demand - Parks'!$M$12) -> 0.2365306507 | AB65: =_xlfn.IFS(FutureTrunkParks[[#This Row],[Year of Provision]]=2019,0,FutureTrunkParks[[#This Row],[Year of Provision]]=2024,FutureTrunkParks[[#This Row],[Total Assets Cost (at Base Year)]]/SUMIFS($AE$17:$AE$189,$X$17:$X$189,"2024",$E$17:$E$189,FutureTrunkParks[[#This Row],[Service Catchment]])) -> 0 | AC65: =IF(AND(FutureTrunkParks[[#This Row],[Spare Capacity %]]>30%,FutureTrunkParks[[#This Row],[Share of the total Cost with the same year of provision %]]>20%),1-FutureTrunkParks[[#This Row],[Spare Capacity %]],1) -> 1 | AD65: =IF(FutureTrunkParks[[#This Row],[ Terminal Value Analysis]]<0,0,FutureTrunkParks[[#This Row],[ Terminal Value Analysis]]) -> 1 | AE65: 539855 | AF65: 570739 | AG65: 480426 | AH65: =ROUND(FutureTrunkParks[[#This Row],[Net Present Value of Total Asset Cost]]*FutureTrunkParks[[#This Row],[Terminal Value Adjustment]],0) -> 480426 | AK65: y | AQ65: 1 | AT65: 1 | AX65: 480426 | BD65: 480426
B66: PCF73 | C66: FTZ-E2-001 | D66: District | E66: North | F66: Provide DISTRICT RECREATION infrastructure | G66: E2-D | H66: =IFERROR(INDEX(UnitRateParks[],MATCH(G66,UnitRateParks[LGIP Code],0),3),"") -> 30000 | I66: =IFERROR(MIN(K66/H66,INDEX(UnitRateParks[],MATCH(FutureTrunkParks[[#This Row],[LGIP Code (*)]], UnitRateParks[LGIP Code],0),4)),"") -> 1.4 | K66: 140000 | L66: 0 | M66: 0 | N66: =IFERROR((VLOOKUP(FutureTrunkParks[[#This Row],[LGIP Code (*)]],UnitRateParks[],10,FALSE)*FutureTrunkParks[[#This Row],[Scaling factor (*)]]+VLOOKUP(FutureTrunkParks[[#This Row],[LGIP Code (*)]],UnitRateParks[],11,FALSE))*18.5%+VLOOKUP(FutureTrunkParks[[#This Row],[LGIP Code (*)]],UnitRateParks[],11,FALSE)+VLOOKUP(FutureTrunkParks[[#This Row],[LGIP Code (*)]],UnitRateParks[],10,FALSE)*FutureTrunkParks[[#This Row],[Scaling factor (*)]]+(VLOOKUP(FutureTrunkParks[[#This Row],[LGIP Code (*)]],UnitRateParks[],13,FALSE)*FutureTrunkParks[[#This Row],[Scaling factor (*)]]+VLOOKUP(FutureTrunkParks[[#This Row],[LGIP Code (*)]],UnitRateParks[],14,FALSE))*18.5%+VLOOKUP(FutureTrunkParks[[#This Row],[LGIP Code (*)]],UnitRateParks[],14,FALSE)+VLOOKUP(FutureTrunkParks[[#This Row],[LGIP Code (*)]],UnitRateParks[],13,FALSE)*FutureTrunkParks[[#This Row],[Scaling factor (*)]],"Error") -> 7302489.713 | O66: 7302490 | P66: 2016 | Q66: 0.17 | R66: 1241423 | S66: 1 | T66: 0.075 | U66: 1110709 | V66: 10378719 | W66: 724097 | X66: 2019 | Y66: 0.025 | Z66: 0.01871653255 | AA66: =IF(FutureTrunkParks[[#This Row],[Asset Class]]="Local",VLOOKUP(FutureTrunkParks[[#This Row],[Service Catchment]],'Catchment Demand - Parks'!$C$8:$M$12,11),'Catchment Demand - Parks'!$M$12) -> 0.2213928202 | AB66: =_xlfn.IFS(FutureTrunkParks[[#This Row],[Year of Provision]]=2019,0,FutureTrunkParks[[#This Row],[Year of Provision]]=2024,FutureTrunkParks[[#This Row],[Total Assets Cost (at Base Year)]]/SUMIFS($AE$17:$AE$189,$X$17:$X$189,"2024",$E$17:$E$189,FutureTrunkParks[[#This Row],[Service Catchment]])) -> 0 | AC66: =IF(AND(FutureTrunkParks[[#This Row],[Spare Capacity %]]>30%,FutureTrunkParks[[#This Row],[Share of the total Cost with the same year of provision %]]>20%),1-FutureTrunkParks[[#This Row],[Spare Capacity %]],1) -> 1 | AD66: =IF(FutureTrunkParks[[#This Row],[ Terminal Value Analysis]]<0,0,FutureTrunkParks[[#This Row],[ Terminal Value Analysis]]) -> 1 | AE66: 10378719 | AF66: 10972455 | AG66: 9236191 | AH66: =ROUND(FutureTrunkParks[[#This Row],[Net Present Value of Total Asset Cost]]*FutureTrunkParks[[#This Row],[Terminal Value Adjustment]],0) -> 9236191 | AM66: y | AS66: 1 | AT66: 1 | AZ66: 9236191 | BF66: 9236191
B67: PCF73 | C67: FTZ-E5-001 | D67: District | E67: North | F67: Provide DISTRICT SPORT infrastructure | G67: E5-D | H67: =IFERROR(INDEX(UnitRateParks[],MATCH(G67,UnitRateParks[LGIP Code],0),3),"") -> 40000 | I67: =IFERROR(MIN(K67/H67,INDEX(UnitRateParks[],MATCH(FutureTrunkParks[[#This Row],[LGIP Code (*)]], UnitRateParks[LGIP Code],0),4)),"") -> 1.5 | K67: 60000 | L67: 0 | M67: 0 | N67: =IFERROR((VLOOKUP(FutureTrunkParks[[#This Row],[LGIP Code (*)]],UnitRateParks[],10,FALSE)*FutureTrunkParks[[#This Row],[Scaling factor (*)]]+VLOOKUP(FutureTrunkParks[[#This Row],[LGIP Code (*)]],UnitRateParks[],11,FALSE))*18.5%+VLOOKUP(FutureTrunkParks[[#This Row],[LGIP Code (*)]],UnitRateParks[],11,FALSE)+VLOOKUP(FutureTrunkParks[[#This Row],[LGIP Code (*)]],UnitRateParks[],10,FALSE)*FutureTrunkParks[[#This Row],[Scaling factor (*)]]+(VLOOKUP(FutureTrunkParks[[#This Row],[LGIP Code (*)]],UnitRateParks[],13,FALSE)*FutureTrunkParks[[#This Row],[Scaling factor (*)]]+VLOOKUP(FutureTrunkParks[[#This Row],[LGIP Code (*)]],UnitRateParks[],14,FALSE))*18.5%+VLOOKUP(FutureTrunkParks[[#This Row],[LGIP Code (*)]],UnitRateParks[],14,FALSE)+VLOOKUP(FutureTrunkParks[[#This Row],[LGIP Code (*)]],UnitRateParks[],13,FALSE)*FutureTrunkParks[[#This Row],[Scaling factor (*)]],"Error") -> 6881048.077 | O67: 6881048 | P67: 2016 | Q67: 0.17 | R67: 1169778 | S67: 1 | T67: 0.075 | U67: 1046607 | V67: 9779740 | W67: 682307 | X67: 2019 | Y67: 0.025 | Z67: 0.01871653255 | AA67: =IF(FutureTrunkParks[[#This Row],[Asset Class]]="Local",VLOOKUP(FutureTrunkParks[[#This Row],[Service Catchment]],'Catchment Demand - Parks'!$C$8:$M$12,11),'Catchment Demand - Parks'!$M$12) -> 0.2213928202 | AB67: =_xlfn.IFS(FutureTrunkParks[[#This Row],[Year of Provision]]=2019,0,FutureTrunkParks[[#This Row],[Year of Provision]]=2024,FutureTrunkParks[[#This Row],[Total Assets Cost (at Base Year)]]/SUMIFS($AE$17:$AE$189,$X$17:$X$189,"2024",$E$17:$E$189,FutureTrunkParks[[#This Row],[Service Catchment]])) -> 0 | AC67: =IF(AND(FutureTrunkParks[[#This Row],[Spare Capacity %]]>30%,FutureTrunkParks[[#This Row],[Share of the total Cost with the same year of provision %]]>20%),1-FutureTrunkParks[[#This Row],[Spare Capacity %]],1) -> 1 | AD67: =IF(FutureTrunkParks[[#This Row],[ Terminal Value Analysis]]<0,0,FutureTrunkParks[[#This Row],[ Terminal Value Analysis]]) -> 1 | AE67: 9779740 | AF67: 10339210 | AG67: 8703150 | AH67: =ROUND(FutureTrunkParks[[#This Row],[Net Present Value of Total Asset Cost]]*FutureTrunkParks[[#This Row],[Terminal Value Adjustment]],0) -> 8703150 | AM67: y | AS67: 1 | AT67: 1 | AZ67: 8703150 | BF67: 8703150
B68: PCF213 | C68: GRE-U1-010 | D68: District | E68: East | F68: Upgrade existing park infrastructure to the value of $1m+ (District) | G68: =MID(C68,5,2) -> U1 | H68: =IFERROR(INDEX(UnitRateParks[],MATCH(G68,UnitRateParks[LGIP Code],0),3),"") -> 0 | I68: =IFERROR(MIN(K68/H68,INDEX(UnitRateParks[],MATCH(G68,UnitRateParks[LGIP Code],0),4)),"") ->  | K68: 10000 | L68: 0 | M68: 0 | N68: =IFERROR(INDEX(UnitRateParks[],MATCH($G68,UnitRateParks[LGIP Code],0),15),"Error") -> 1000000 | O68: 1000000 | P68: 2016 | Q68: 0.17 | R68: 170000 | S68: 1 | T68: 0.15 | U68: 152100 | V68: 1520415 | W68: 198315 | X68: 2024 | Y68: 0.025 | Z68: 0.01871653255 | AA68: =IF(FutureTrunkParks[[#This Row],[Asset Class]]="Local",VLOOKUP(FutureTrunkParks[[#This Row],[Service Catchment]],'Catchment Demand - Parks'!$C$8:$M$12,11),'Catchment Demand - Parks'!$M$12) -> 0.2213928202 | AB68: =_xlfn.IFS(FutureTrunkParks[[#This Row],[Year of Provision]]=2019,0,FutureTrunkParks[[#This Row],[Year of Provision]]=2024,FutureTrunkParks[[#This Row],[Total Assets Cost (at Base Year)]]/SUMIFS($AE$17:$AE$189,$X$17:$X$189,"2024",$E$17:$E$189,FutureTrunkParks[[#This Row],[Service Catchment]])) -> 0.01523017197 | AC68: =IF(AND(FutureTrunkParks[[#This Row],[Spare Capacity %]]>30%,FutureTrunkParks[[#This Row],[Share of the total Cost with the same year of provision %]]>20%),1-FutureTrunkParks[[#This Row],[Spare Capacity %]],1) -> 1 | AD68: =IF(FutureTrunkParks[[#This Row],[ Terminal Value Analysis]]<0,0,FutureTrunkParks[[#This Row],[ Terminal Value Analysis]]) -> 1 | AE68: 1520415 | AF68: 1763555 | AG68: 1114021 | AH68: =ROUND(FutureTrunkParks[[#This Row],[Net Present Value of Total Asset Cost]]*FutureTrunkParks[[#This Row],[Terminal Value Adjustment]],0) -> 1114021 | AM68: y | AS68: 1 | AT68: 1 | AZ68: 1114021 | BF68: 1114021
B69: PCF217 | C69: GUM-A7-001 | D69: Local | E69: East | F69: Acquire and embellish land to provide LOCAL ACCESS/RECREATION corridor park | G69: =MID(C69,5,2)&"-"&LEFT(D69,1) -> A7-L | H69: =IFERROR(INDEX(UnitRateParks[],MATCH(G69,UnitRateParks[LGIP Code],0),3),"") -> 8000 | I69: =IFERROR(MIN(K69/H69,INDEX(UnitRateParks[],MATCH(FutureTrunkParks[[#This Row],[LGIP Code (*)]], UnitRateParks[LGIP Code],0),4)),"") -> 0.1125 | K69: 900 | L69: 96.66666667 | M69: 87000 | N69: =IFERROR((VLOOKUP(FutureTrunkParks[[#This Row],[LGIP Code (*)]],UnitRateParks[],7,FALSE)*FutureTrunkParks[[#This Row],[Scaling factor (*)]]+VLOOKUP(FutureTrunkParks[[#This Row],[LGIP Code (*)]],UnitRateParks[],8,FALSE)-VLOOKUP(FutureTrunkParks[[#This Row],[LGIP Code (*)]],UnitRateParks[],6,FALSE))*18.5%+VLOOKUP(FutureTrunkParks[[#This Row],[LGIP Code (*)]],UnitRateParks[],7,FALSE)*FutureTrunkParks[[#This Row],[Scaling factor (*)]]+VLOOKUP(FutureTrunkParks[[#This Row],[LGIP Code (*)]],UnitRateParks[],8,FALSE),"Error") -> 65252.92178 | O69: 65253 | P69: 2016 | Q69: 0.17 | R69: 11093 | S69: 1 | T69: 0.15 | U69: 9925 | V69: 99212 | W69: 12941 | X69: 2024 | Y69: 0.025 | Z69: 0.01871653255 | AA69: =IF(FutureTrunkParks[[#This Row],[Asset Class]]="Local",VLOOKUP(FutureTrunkParks[[#This Row],[Service Catchment]],'Catchment Demand - Parks'!$C$8:$M$12,11),'Catchment Demand - Parks'!$M$12) -> 0.2396431883 | AB69: =_xlfn.IFS(FutureTrunkParks[[#This Row],[Year of Provision]]=2019,0,FutureTrunkParks[[#This Row],[Year of Provision]]=2024,FutureTrunkParks[[#This Row],[Total Assets Cost (at Base Year)]]/SUMIFS($AE$17:$AE$189,$X$17:$X$189,"2024",$E$17:$E$189,FutureTrunkParks[[#This Row],[Service Catchment]])) -> 0.001865307026 | AC69: =IF(AND(FutureTrunkParks[[#This Row],[Spare Capacity %]]>30%,FutureTrunkParks[[#This Row],[Share of the total Cost with the same year of provision %]]>20%),1-FutureTrunkParks[[#This Row],[Spare Capacity %]],1) -> 1 | AD69: =IF(FutureTrunkParks[[#This Row],[ Terminal Value Analysis]]<0,0,FutureTrunkParks[[#This Row],[ Terminal Value Analysis]]) -> 1 | AE69: 186212 | AF69: 221079 | AG69: 139653 | AH69: =ROUND(FutureTrunkParks[[#This Row],[Net Present Value of Total Asset Cost]]*FutureTrunkParks[[#This Row],[Terminal Value Adjustment]],0) -> 139653 | AI69: y | AO69: 1 | AT69: 1 | AV69: 139653 | BB69: 139653
B70: PCF331 | C70: HEA-A1-001 | D70: Local | E70: South | F70: Acquire and embellish land to provide LOCAL RECREATION infrastructure | G70: =MID(C70,5,2)&"-"&LEFT(D70,1) -> A1-L | H70: =IFERROR(INDEX(UnitRateParks[],MATCH(G70,UnitRateParks[LGIP Code],0),3),"") -> 8000 | I70: =IFERROR(MIN(K70/H70,INDEX(UnitRateParks[],MATCH(FutureTrunkParks[[#This Row],[LGIP Code (*)]], UnitRateParks[LGIP Code],0),4)),"") -> 1.25 | K70: 10000 | L70: 140 | M70: 1400000 | N70: =IFERROR((VLOOKUP(FutureTrunkParks[[#This Row],[LGIP Code (*)]],UnitRateParks[],7,FALSE)*FutureTrunkParks[[#This Row],[Scaling factor (*)]]+VLOOKUP(FutureTrunkParks[[#This Row],[LGIP Code (*)]],UnitRateParks[],8,FALSE)-VLOOKUP(FutureTrunkParks[[#This Row],[LGIP Code (*)]],UnitRateParks[],6,FALSE))*18.5%+VLOOKUP(FutureTrunkParks[[#This Row],[LGIP Code (*)]],UnitRateParks[],7,FALSE)*FutureTrunkParks[[#This Row],[Scaling factor (*)]]+VLOOKUP(FutureTrunkParks[[#This Row],[LGIP Code (*)]],UnitRateParks[],8,FALSE),"Error") -> 333334.7434 | O70: 333335 | P70: 2016 | Q70: 0.17 | R70: 56667 | S70: 1 | T70: 0.075 | U70: 50700 | V70: 473755 | W70: 33053 | X70: 2019 | Y70: 0.025 | Z70: 0.01871653255 | AA70: =IF(FutureTrunkParks[[#This Row],[Asset Class]]="Local",VLOOKUP(FutureTrunkParks[[#This Row],[Service Catchment]],'Catchment Demand - Parks'!$C$8:$M$12,11),'Catchment Demand - Parks'!$M$12) -> 0.2365306507 | AB70: =_xlfn.IFS(FutureTrunkParks[[#This Row],[Year of Provision]]=2019,0,FutureTrunkParks[[#This Row],[Year of Provision]]=2024,FutureTrunkParks[[#This Row],[Total Assets Cost (at Base Year)]]/SUMIFS($AE$17:$AE$189,$X$17:$X$189,"2024",$E$17:$E$189,FutureTrunkParks[[#This Row],[Service Catchment]])) -> 0 | AC70: =IF(AND(FutureTrunkParks[[#This Row],[Spare Capacity %]]>30%,FutureTrunkParks[[#This Row],[Share of the total Cost with the same year of provision %]]>20%),1-FutureTrunkParks[[#This Row],[Spare Capacity %]],1) -> 1 | AD70: =IF(FutureTrunkParks[[#This Row],[ Terminal Value Analysis]]<0,0,FutureTrunkParks[[#This Row],[ Terminal Value Analysis]]) -> 1 | AE70: 1873755 | AF70: 2008504 | AG70: 1690681 | AH70: =ROUND(FutureTrunkParks[[#This Row],[Net Present Value of Total Asset Cost]]*FutureTrunkParks[[#This Row],[Terminal Value Adjustment]],0) -> 1690681 | AK70: y | AQ70: 1 | AT70: 1 | AX70: 1690681 | BD70: 1690681
B71: PCF351 | C71: HEA-A1-003 | D71: Local | E71: South | F71: Acquire and embellish land to provide LOCAL RECREATION infrastructure | G71: =MID(C71,5,2)&"-"&LEFT(D71,1) -> A1-L | H71: =IFERROR(INDEX(UnitRateParks[],MATCH(G71,UnitRateParks[LGIP Code],0),3),"") -> 8000 | I71: =IFERROR(MIN(K71/H71,INDEX(UnitRateParks[],MATCH(FutureTrunkParks[[#This Row],[LGIP Code (*)]], UnitRateParks[LGIP Code],0),4)),"") -> 0.625 | K71: 5000 | L71: 205 | M71: 1025000 | N71: =IFERROR((VLOOKUP(FutureTrunkParks[[#This Row],[LGIP Code (*)]],UnitRateParks[],7,FALSE)*FutureTrunkParks[[#This Row],[Scaling factor (*)]]+VLOOKUP(FutureTrunkParks[[#This Row],[LGIP Code (*)]],UnitRateParks[],8,FALSE)-VLOOKUP(FutureTrunkParks[[#This Row],[LGIP Code (*)]],UnitRateParks[],6,FALSE))*18.5%+VLOOKUP(FutureTrunkParks[[#This Row],[LGIP Code (*)]],UnitRateParks[],7,FALSE)*FutureTrunkParks[[#This Row],[Scaling factor (*)]]+VLOOKUP(FutureTrunkParks[[#This Row],[LGIP Code (*)]],UnitRateParks[],8,FALSE),"Error") -> 180527.253 | O71: 180527 | P71: 2016 | Q71: 0.17 | R71: 30690 | S71: 1 | T71: 0.075 | U71: 27458 | V71: 256576 | W71: 17901 | X71: 2019 | Y71: 0.025 | Z71: 0.01871653255 | AA71: =IF(FutureTrunkParks[[#This Row],[Asset Class]]="Local",VLOOKUP(FutureTrunkParks[[#This Row],[Service Catchment]],'Catchment Demand - Parks'!$C$8:$M$12,11),'Catchment Demand - Parks'!$M$12) -> 0.2365306507 | AB71: =_xlfn.IFS(FutureTrunkParks[[#This Row],[Year of Provision]]=2019,0,FutureTrunkParks[[#This Row],[Year of Provision]]=2024,FutureTrunkParks[[#This Row],[Total Assets Cost (at Base Year)]]/SUMIFS($AE$17:$AE$189,$X$17:$X$189,"2024",$E$17:$E$189,FutureTrunkParks[[#This Row],[Service Catchment]])) -> 0 | AC71: =IF(AND(FutureTrunkParks[[#This Row],[Spare Capacity %]]>30%,FutureTrunkParks[[#This Row],[Share of the total Cost with the same year of provision %]]>20%),1-FutureTrunkParks[[#This Row],[Spare Capacity %]],1) -> 1 | AD71: =IF(FutureTrunkParks[[#This Row],[ Terminal Value Analysis]]<0,0,FutureTrunkParks[[#This Row],[ Terminal Value Analysis]]) -> 1 | AE71: 1281576 | AF71: 1375067 | AG71: 1157479 | AH71: =ROUND(FutureTrunkParks[[#This Row],[Net Present Value of Total Asset Cost]]*FutureTrunkParks[[#This Row],[Terminal Value Adjustment]],0) -> 1157479 | AK71: y | AQ71: 1 | AT71: 1 | AX71: 1157479 | BD71: 1157479
B72: PCF156 | C72: HEM-A2-001 | D72: District | E72: East | F72: Acquire and embellish land to provide DISTRICT RECREATION infrastructure | G72: =MID(C72,5,2)&"-"&LEFT(D72,1) -> A2-D | H72: =IFERROR(INDEX(UnitRateParks[],MATCH(G72,UnitRateParks[LGIP Code],0),3),"") -> 30000 | I72: =IFERROR(MIN(K72/H72,INDEX(UnitRateParks[],MATCH(FutureTrunkParks[[#This Row],[LGIP Code (*)]], UnitRateParks[LGIP Code],0),4)),"") -> 0.06832666667 | K72: 2049.8 | L72: 500 | M72: 1024900 | N72: =IFERROR((VLOOKUP(FutureTrunkParks[[#This Row],[LGIP Code (*)]],UnitRateParks[],7,FALSE)*FutureTrunkParks[[#This Row],[Scaling factor (*)]]+VLOOKUP(FutureTrunkParks[[#This Row],[LGIP Code (*)]],UnitRateParks[],8,FALSE)-VLOOKUP(FutureTrunkParks[[#This Row],[LGIP Code (*)]],UnitRateParks[],6,FALSE))*18.5%+VLOOKUP(FutureTrunkParks[[#This Row],[LGIP Code (*)]],UnitRateParks[],7,FALSE)*FutureTrunkParks[[#This Row],[Scaling factor (*)]]+VLOOKUP(FutureTrunkParks[[#This Row],[LGIP Code (*)]],UnitRateParks[],8,FALSE),"Error") -> 408793.5875 | O72: 408794 | P72: 2016 | Q72: 0.17 | R72: 69495 | S72: 1 | T72: 0.15 | U72: 62178 | V72: 621537 | W72: 81070 | X72: 2024 | Y72: 0.025 | Z72: 0.01871653255 | AA72: =IF(FutureTrunkParks[[#This Row],[Asset Class]]="Local",VLOOKUP(FutureTrunkParks[[#This Row],[Service Catchment]],'Catchment Demand - Parks'!$C$8:$M$12,11),'Catchment Demand - Parks'!$M$12) -> 0.2213928202 | AB72: =_xlfn.IFS(FutureTrunkParks[[#This Row],[Year of Provision]]=2019,0,FutureTrunkParks[[#This Row],[Year of Provision]]=2024,FutureTrunkParks[[#This Row],[Total Assets Cost (at Base Year)]]/SUMIFS($AE$17:$AE$189,$X$17:$X$189,"2024",$E$17:$E$189,FutureTrunkParks[[#This Row],[Service Catchment]])) -> 0.01649254884 | AC72: =IF(AND(FutureTrunkParks[[#This Row],[Spare Capacity %]]>30%,FutureTrunkParks[[#This Row],[Share of the total Cost with the same year of provision %]]>20%),1-FutureTrunkParks[[#This Row],[Spare Capacity %]],1) -> 1 | AD72: =IF(FutureTrunkParks[[#This Row],[ Terminal Value Analysis]]<0,0,FutureTrunkParks[[#This Row],[ Terminal Value Analysis]]) -> 1 | AE72: 1646437 | AF72: 1969672 | AG72: 1244223 | AH72: =ROUND(FutureTrunkParks[[#This Row],[Net Present Value of Total Asset Cost]]*FutureTrunkParks[[#This Row],[Terminal Value Adjustment]],0) -> 1244223 | AM72: y | AS72: 1 | AT72: 1 | AZ72: 1244223 | BF72: 1244223
B73: PCF176 | C73: HEM-U1-010 | D73: District | E73: East | F73: Upgrade existing park infrastructure to the value of $1m+ (District) | G73: =MID(C73,5,2) -> U1 | H73: =IFERROR(INDEX(UnitRateParks[],MATCH(G73,UnitRateParks[LGIP Code],0),3),"") -> 0 | I73: =IFERROR(MIN(K73/H73,INDEX(UnitRateParks[],MATCH(G73,UnitRateParks[LGIP Code],0),4)),"") ->  | K73: 102000 | L73: 0 | M73: 0 | N73: =IFERROR(INDEX(UnitRateParks[],MATCH($G73,UnitRateParks[LGIP Code],0),15),"Error") -> 1000000 | O73: 1000000 | P73: 2016 | Q73: 0.17 | R73: 170000 | S73: 1 | T73: 0.15 | U73: 152100 | V73: 1520415 | W73: 198315 | X73: 2024 | Y73: 0.025 | Z73: 0.01871653255 | AA73: =IF(FutureTrunkParks[[#This Row],[Asset Class]]="Local",VLOOKUP(FutureTrunkParks[[#This Row],[Service Catchment]],'Catchment Demand - Parks'!$C$8:$M$12,11),'Catchment Demand - Parks'!$M$12) -> 0.2213928202 | AB73: =_xlfn.IFS(FutureTrunkParks[[#This Row],[Year of Provision]]=2019,0,FutureTrunkParks[[#This Row],[Year of Provision]]=2024,FutureTrunkParks[[#This Row],[Total Assets Cost (at Base Year)]]/SUMIFS($AE$17:$AE$189,$X$17:$X$189,"2024",$E$17:$E$189,FutureTrunkParks[[#This Row],[Service Catchment]])) -> 0.01523017197 | AC73: =IF(AND(FutureTrunkParks[[#This Row],[Spare Capacity %]]>30%,FutureTrunkParks[[#This Row],[Share of the total Cost with the same year of provision %]]>20%),1-FutureTrunkParks[[#This Row],[Spare Capacity %]],1) -> 1 | AD73: =IF(FutureTrunkParks[[#This Row],[ Terminal Value Analysis]]<0,0,FutureTrunkParks[[#This Row],[ Terminal Value Analysis]]) -> 1 | AE73: 1520415 | AF73: 1763555 | AG73: 1114021 | AH73: =ROUND(FutureTrunkParks[[#This Row],[Net Present Value of Total Asset Cost]]*FutureTrunkParks[[#This Row],[Terminal Value Adjustment]],0) -> 1114021 | AM73: y | AS73: 1 | AT73: 1 | AZ73: 1114021 | BF73: 1114021
B74: PCF154 | C74: HEN-A1-001 | D74: Local | E74: North | F74: Acquire and embellish land to provide LOCAL RECREATION infrastructure | G74: =MID(C74,5,2)&"-"&LEFT(D74,1) -> A1-L | H74: =IFERROR(INDEX(UnitRateParks[],MATCH(G74,UnitRateParks[LGIP Code],0),3),"") -> 8000 | I74: =IFERROR(MIN(K74/H74,INDEX(UnitRateParks[],MATCH(FutureTrunkParks[[#This Row],[LGIP Code (*)]], UnitRateParks[LGIP Code],0),4)),"") -> 1.25 | K74: 10000 | L74: 175 | M74: 1750000 | N74: =IFERROR((VLOOKUP(FutureTrunkParks[[#This Row],[LGIP Code (*)]],UnitRateParks[],7,FALSE)*FutureTrunkParks[[#This Row],[Scaling factor (*)]]+VLOOKUP(FutureTrunkParks[[#This Row],[LGIP Code (*)]],UnitRateParks[],8,FALSE)-VLOOKUP(FutureTrunkParks[[#This Row],[LGIP Code (*)]],UnitRateParks[],6,FALSE))*18.5%+VLOOKUP(FutureTrunkParks[[#This Row],[LGIP Code (*)]],UnitRateParks[],7,FALSE)*FutureTrunkParks[[#This Row],[Scaling factor (*)]]+VLOOKUP(FutureTrunkParks[[#This Row],[LGIP Code (*)]],UnitRateParks[],8,FALSE),"Error") -> 333334.7434 | O74: 333335 | P74: 2016 | Q74: 0.17 | R74: 56667 | S74: 1 | T74: 0.15 | U74: 50700 | V74: 506807 | W74: 66105 | X74: 2024 | Y74: 0.025 | Z74: 0.01871653255 | AA74: =IF(FutureTrunkParks[[#This Row],[Asset Class]]="Local",VLOOKUP(FutureTrunkParks[[#This Row],[Service Catchment]],'Catchment Demand - Parks'!$C$8:$M$12,11),'Catchment Demand - Parks'!$M$12) -> 0.2179675326 | AB74: =_xlfn.IFS(FutureTrunkParks[[#This Row],[Year of Provision]]=2019,0,FutureTrunkParks[[#This Row],[Year of Provision]]=2024,FutureTrunkParks[[#This Row],[Total Assets Cost (at Base Year)]]/SUMIFS($AE$17:$AE$189,$X$17:$X$189,"2024",$E$17:$E$189,FutureTrunkParks[[#This Row],[Service Catchment]])) -> 0.05961696483 | AC74: =IF(AND(FutureTrunkParks[[#This Row],[Spare Capacity %]]>30%,FutureTrunkParks[[#This Row],[Share of the total Cost with the same year of provision %]]>20%),1-FutureTrunkParks[[#This Row],[Spare Capacity %]],1) -> 1 | AD74: =IF(FutureTrunkParks[[#This Row],[ Terminal Value Analysis]]<0,0,FutureTrunkParks[[#This Row],[ Terminal Value Analysis]]) -> 1 | AE74: 2256807 | AF74: 2720059 | AG74: 1718235 | AH74: =ROUND(FutureTrunkParks[[#This Row],[Net Present Value of Total Asset Cost]]*FutureTrunkParks[[#This Row],[Terminal Value Adjustment]],0) -> 1718235 | AJ74: y | AP74: 1 | AT74: 1 | AW74: 1718235 | BC74: 1718235
B75: PCF233 | C75: HPW-A7-001 | D75: Local | E75: East | F75: Acquire and embellish land to provide LOCAL ACCESS/RECREATION corridor park | G75: =MID(C75,5,2)&"-"&LEFT(D75,1) -> A7-L | H75: =IFERROR(INDEX(UnitRateParks[],MATCH(G75,UnitRateParks[LGIP Code],0),3),"") -> 8000 | I75: =IFERROR(MIN(K75/H75,INDEX(UnitRateParks[],MATCH(FutureTrunkParks[[#This Row],[LGIP Code (*)]], UnitRateParks[LGIP Code],0),4)),"") -> 2 | K75: 16000 | L75: 10 | M75: 160000 | N75: =IFERROR((VLOOKUP(FutureTrunkParks[[#This Row],[LGIP Code (*)]],UnitRateParks[],7,FALSE)*FutureTrunkParks[[#This Row],[Scaling factor (*)]]+VLOOKUP(FutureTrunkParks[[#This Row],[LGIP Code (*)]],UnitRateParks[],8,FALSE)-VLOOKUP(FutureTrunkParks[[#This Row],[LGIP Code (*)]],UnitRateParks[],6,FALSE))*18.5%+VLOOKUP(FutureTrunkParks[[#This Row],[LGIP Code (*)]],UnitRateParks[],7,FALSE)*FutureTrunkParks[[#This Row],[Scaling factor (*)]]+VLOOKUP(FutureTrunkParks[[#This Row],[LGIP Code (*)]],UnitRateParks[],8,FALSE),"Error") -> 442548.3467 | O75: 442548 | P75: 2016 | Q75: 0.17 | R75: 75233 | S75: 1 | T75: 0.15 | U75: 67312 | V75: 672857 | W75: 87764 | X75: 2024 | Y75: 0.025 | Z75: 0.01871653255 | AA75: =IF(FutureTrunkParks[[#This Row],[Asset Class]]="Local",VLOOKUP(FutureTrunkParks[[#This Row],[Service Catchment]],'Catchment Demand - Parks'!$C$8:$M$12,11),'Catchment Demand - Parks'!$M$12) -> 0.2396431883 | AB75: =_xlfn.IFS(FutureTrunkParks[[#This Row],[Year of Provision]]=2019,0,FutureTrunkParks[[#This Row],[Year of Provision]]=2024,FutureTrunkParks[[#This Row],[Total Assets Cost (at Base Year)]]/SUMIFS($AE$17:$AE$189,$X$17:$X$189,"2024",$E$17:$E$189,FutureTrunkParks[[#This Row],[Service Catchment]])) -> 0.008342824383 | AC75: =IF(AND(FutureTrunkParks[[#This Row],[Spare Capacity %]]>30%,FutureTrunkParks[[#This Row],[Share of the total Cost with the same year of provision %]]>20%),1-FutureTrunkParks[[#This Row],[Spare Capacity %]],1) -> 1 | AD75: =IF(FutureTrunkParks[[#This Row],[ Terminal Value Analysis]]<0,0,FutureTrunkParks[[#This Row],[ Terminal Value Analysis]]) -> 1 | AE75: 832857 | AF75: 975403 | AG75: 616153 | AH75: =ROUND(FutureTrunkParks[[#This Row],[Net Present Value of Total Asset Cost]]*FutureTrunkParks[[#This Row],[Terminal Value Adjustment]],0) -> 616153 | AI75: y | AO75: 1 | AT75: 1 | AV75: 616153 | BB75: 616153
B76: PCF233 | C76: HPW-A7-002 | D76: Local | E76: East | F76: Acquire and embellish land to provide LOCAL ACCESS/RECREATION corridor park | G76: =MID(C76,5,2)&"-"&LEFT(D76,1) -> A7-L | H76: =IFERROR(INDEX(UnitRateParks[],MATCH(G76,UnitRateParks[LGIP Code],0),3),"") -> 8000 | I76: =IFERROR(MIN(K76/H76,INDEX(UnitRateParks[],MATCH(FutureTrunkParks[[#This Row],[LGIP Code (*)]], UnitRateParks[LGIP Code],0),4)),"") -> 0.175 | K76: 1400 | L76: 10 | M76: 14000 | N76: =IFERROR((VLOOKUP(FutureTrunkParks[[#This Row],[LGIP Code (*)]],UnitRateParks[],7,FALSE)*FutureTrunkParks[[#This Row],[Scaling factor (*)]]+VLOOKUP(FutureTrunkParks[[#This Row],[LGIP Code (*)]],UnitRateParks[],8,FALSE)-VLOOKUP(FutureTrunkParks[[#This Row],[LGIP Code (*)]],UnitRateParks[],6,FALSE))*18.5%+VLOOKUP(FutureTrunkParks[[#This Row],[LGIP Code (*)]],UnitRateParks[],7,FALSE)*FutureTrunkParks[[#This Row],[Scaling factor (*)]]+VLOOKUP(FutureTrunkParks[[#This Row],[LGIP Code (*)]],UnitRateParks[],8,FALSE),"Error") -> 77746.14777 | O76: 77746 | P76: 2016 | Q76: 0.17 | R76: 13217 | S76: 1 | T76: 0.15 | U76: 11825 | V76: 118206 | W76: 15418 | X76: 2024 | Y76: 0.025 | Z76: 0.01871653255 | AA76: =IF(FutureTrunkParks[[#This Row],[Asset Class]]="Local",VLOOKUP(FutureTrunkParks[[#This Row],[Service Catchment]],'Catchment Demand - Parks'!$C$8:$M$12,11),'Catchment Demand - Parks'!$M$12) -> 0.2396431883 | AB76: =_xlfn.IFS(FutureTrunkParks[[#This Row],[Year of Provision]]=2019,0,FutureTrunkParks[[#This Row],[Year of Provision]]=2024,FutureTrunkParks[[#This Row],[Total Assets Cost (at Base Year)]]/SUMIFS($AE$17:$AE$189,$X$17:$X$189,"2024",$E$17:$E$189,FutureTrunkParks[[#This Row],[Service Catchment]])) -> 0.001324322711 | AC76: =IF(AND(FutureTrunkParks[[#This Row],[Spare Capacity %]]>30%,FutureTrunkParks[[#This Row],[Share of the total Cost with the same year of provision %]]>20%),1-FutureTrunkParks[[#This Row],[Spare Capacity %]],1) -> 1 | AD76: =IF(FutureTrunkParks[[#This Row],[ Terminal Value Analysis]]<0,0,FutureTrunkParks[[#This Row],[ Terminal Value Analysis]]) -> 1 | AE76: 132206 | AF76: 154167 | AG76: 97386 | AH76: =ROUND(FutureTrunkParks[[#This Row],[Net Present Value of Total Asset Cost]]*FutureTrunkParks[[#This Row],[Terminal Value Adjustment]],0) -> 97386 | AI76: y | AO76: 1 | AT76: 1 | AV76: 97386 | BB76: 97386
B77: PCF211 | C77: IND-E2-001 | D77: District | E77: West | F77: Provide DISTRICT RECREATION infrastructure | G77: =MID(C77,5,2)&"-"&LEFT(D77,1) -> E2-D | H77: =IFERROR(INDEX(UnitRateParks[],MATCH(G77,UnitRateParks[LGIP Code],0),3),"") -> 30000 | I77: =IFERROR(MIN(K77/H77,INDEX(UnitRateParks[],MATCH(FutureTrunkParks[[#This Row],[LGIP Code (*)]], UnitRateParks[LGIP Code],0),4)),"") -> 0.5 | K77: 15000 | L77: =M77/K77 -> 0 | M77: 0 | N77: =IFERROR((VLOOKUP(FutureTrunkParks[[#This Row],[LGIP Code (*)]],UnitRateParks[],10,FALSE)*FutureTrunkParks[[#This Row],[Scaling factor (*)]]+VLOOKUP(FutureTrunkParks[[#This Row],[LGIP Code (*)]],UnitRateParks[],11,FALSE))*18.5%+VLOOKUP(FutureTrunkParks[[#This Row],[LGIP Code (*)]],UnitRateParks[],11,FALSE)+VLOOKUP(FutureTrunkParks[[#This Row],[LGIP Code (*)]],UnitRateParks[],10,FALSE)*FutureTrunkParks[[#This Row],[Scaling factor (*)]]+(VLOOKUP(FutureTrunkParks[[#This Row],[LGIP Code (*)]],UnitRateParks[],13,FALSE)*FutureTrunkParks[[#This Row],[Scaling factor (*)]]+VLOOKUP(FutureTrunkParks[[#This Row],[LGIP Code (*)]],UnitRateParks[],14,FALSE))*18.5%+VLOOKUP(FutureTrunkParks[[#This Row],[LGIP Code (*)]],UnitRateParks[],14,FALSE)+VLOOKUP(FutureTrunkParks[[#This Row],[LGIP Code (*)]],UnitRateParks[],13,FALSE)*FutureTrunkParks[[#This Row],[Scaling factor (*)]],"Error") -> 6575963.336 | O77: 6575963 | P77: 2016 | Q77: 0.17 | R77: 1117914 | S77: 1 | T77: =IF(X77="","",IF(X77<=YEAR+5,0.075,IF(AND(X77>YEAR+5,X77<=YEAR+10),0.15,IF(AND(X77>YEAR+10,X77<=YEAR+20),0.2,IF(X77>YEAR+20,0.25,""))))) -> 0.075 | U77: 1000204 | V77: 9346137 | W77: 652056 | X77: 2019 | Y77: =Landind -> 0.025 | Z77: =PPI -> 0.01871653255 | AA77: =IF(FutureTrunkParks[[#This Row],[Asset Class]]="Local",VLOOKUP(FutureTrunkParks[[#This Row],[Service Catchment]],'Catchment Demand - Parks'!$C$8:$M$12,11),'Catchment Demand - Parks'!$M$12) -> 0.2213928202 | AB77: =_xlfn.IFS(FutureTrunkParks[[#This Row],[Year of Provision]]=2019,0,FutureTrunkParks[[#This Row],[Year of Provision]]=2024,FutureTrunkParks[[#This Row],[Total Assets Cost (at Base Year)]]/SUMIFS($AE$17:$AE$189,$X$17:$X$189,"2024",$E$17:$E$189,FutureTrunkParks[[#This Row],[Service Catchment]])) -> 0 | AC77: =IF(AND(FutureTrunkParks[[#This Row],[Spare Capacity %]]>30%,FutureTrunkParks[[#This Row],[Share of the total Cost with the same year of provision %]]>20%),1-FutureTrunkParks[[#This Row],[Spare Capacity %]],1) -> 1 | AD77: =IF(FutureTrunkParks[[#This Row],[ Terminal Value Analysis]]<0,0,FutureTrunkParks[[#This Row],[ Terminal Value Analysis]]) -> 1 | AE77: 9346137 | AF77: 9880802 | AG77: 8317279 | AH77: =ROUND(FutureTrunkParks[[#This Row],[Net Present Value of Total Asset Cost]]*FutureTrunkParks[[#This Row],[Terminal Value Adjustment]],0) -> 8317279 | AM77: y | AS77: 1 | AT77: 1 | AZ77: 8317279 | BF77: 8317279
B78: PCF210 | C78: IND-U2-010 | D78: District | E78: West | F78: Upgrade existing park infrastructure to the value of $500k-$1m (District) | G78: =MID(C78,5,2) -> U2 | H78: =IFERROR(INDEX(UnitRateParks[],MATCH(G78,UnitRateParks[LGIP Code],0),3),"") -> 0 | I78: =IFERROR(MIN(K78/H78,INDEX(UnitRateParks[],MATCH(G78,UnitRateParks[LGIP Code],0),4)),"") ->  | K78: 44000 | L78: 0 | M78: 0 | N78: =IFERROR(INDEX(UnitRateParks[],MATCH($G78,UnitRateParks[LGIP Code],0),15),"Error") -> 750000 | O78: 750000 | P78: 2016 | Q78: 0.17 | R78: 127500 | S78: 1 | T78: 0.15 | U78: 114075 | V78: 1140311 | W78: 148736 | X78: 2024 | Y78: 0.025 | Z78: 0.01871653255 | AA78: =IF(FutureTrunkParks[[#This Row],[Asset Class]]="Local",VLOOKUP(FutureTrunkParks[[#This Row],[Service Catchment]],'Catchment Demand - Parks'!$C$8:$M$12,11),'Catchment Demand - Parks'!$M$12) -> 0.2213928202 | AB78: =_xlfn.IFS(FutureTrunkParks[[#This Row],[Year of Provision]]=2019,0,FutureTrunkParks[[#This Row],[Year of Provision]]=2024,FutureTrunkParks[[#This Row],[Total Assets Cost (at Base Year)]]/SUMIFS($AE$17:$AE$189,$X$17:$X$189,"2024",$E$17:$E$189,FutureTrunkParks[[#This Row],[Service Catchment]])) -> 0.01898637385 | AC78: =IF(AND(FutureTrunkParks[[#This Row],[Spare Capacity %]]>30%,FutureTrunkParks[[#This Row],[Share of the total Cost with the same year of provision %]]>20%),1-FutureTrunkParks[[#This Row],[Spare Capacity %]],1) -> 1 | AD78: =IF(FutureTrunkParks[[#This Row],[ Terminal Value Analysis]]<0,0,FutureTrunkParks[[#This Row],[ Terminal Value Analysis]]) -> 1 | AE78: 1140311 | AF78: 1322666 | AG78: 835515 | AH78: =ROUND(FutureTrunkParks[[#This Row],[Net Present Value of Total Asset Cost]]*FutureTrunkParks[[#This Row],[Terminal Value Adjustment]],0) -> 835515 | AM78: y | AS78: 1 | AT78: 1 | AZ78: 835515 | BF78: 835515
B79: PCF112 | C79: KED-U1-010 | D79: District | E79: West | F79: Upgrade existing park infrastructure to the value of $1m+ (District) | G79: =MID(C79,5,2) -> U1 | H79: =IFERROR(INDEX(UnitRateParks[],MATCH(G79,UnitRateParks[LGIP Code],0),3),"") -> 0 | I79: =IFERROR(MIN(K79/H79,INDEX(UnitRateParks[],MATCH(G79,UnitRateParks[LGIP Code],0),4)),"") ->  | K79: 29000 | L79: 0 | M79: 0 | N79: =IFERROR(INDEX(UnitRateParks[],MATCH($G79,UnitRateParks[LGIP Code],0),15),"Error") -> 1000000 | O79: 1000000 | P79: 2016 | Q79: 0.17 | R79: 170000 | S79: 1 | T79: 0.15 | U79: 152100 | V79: 1520415 | W79: =ROUND((O79+R79+U79)*T79,0) -> 198315 | X79: 2024 | Y79: 0.025 | Z79: 0.01871653255 | AA79: =IF(FutureTrunkParks[[#This Row],[Asset Class]]="Local",VLOOKUP(FutureTrunkParks[[#This Row],[Service Catchment]],'Catchment Demand - Parks'!$C$8:$M$12,11),'Catchment Demand - Parks'!$M$12) -> 0.2213928202 | AB79: =_xlfn.IFS(FutureTrunkParks[[#This Row],[Year of Provision]]=2019,0,FutureTrunkParks[[#This Row],[Year of Provision]]=2024,FutureTrunkParks[[#This Row],[Total Assets Cost (at Base Year)]]/SUMIFS($AE$17:$AE$189,$X$17:$X$189,"2024",$E$17:$E$189,FutureTrunkParks[[#This Row],[Service Catchment]])) -> 0.02531517068 | AC79: =IF(AND(FutureTrunkParks[[#This Row],[Spare Capacity %]]>30%,FutureTrunkParks[[#This Row],[Share of the total Cost with the same year of provision %]]>20%),1-FutureTrunkParks[[#This Row],[Spare Capacity %]],1) -> 1 | AD79: =IF(FutureTrunkParks[[#This Row],[ Terminal Value Analysis]]<0,0,FutureTrunkParks[[#This Row],[ Terminal Value Analysis]]) -> 1 | AE79: 1520415 | AF79: 1763555 | AG79: 1114021 | AH79: =ROUND(FutureTrunkParks[[#This Row],[Net Present Value of Total Asset Cost]]*FutureTrunkParks[[#This Row],[Terminal Value Adjustment]],0) -> 1114021 | AM79: y | AS79: 1 | AT79: 1 | AZ79: 1114021 | BF79: 1114021
B80: PCF230 | C80: KEN-U2-010 | D80: District | E80: West | F80: Upgrade existing park infrastructure to the value of $500k-$1m (District) | G80: =MID(C80,5,2) -> U2 | H80: =IFERROR(INDEX(UnitRateParks[],MATCH(G80,UnitRateParks[LGIP Code],0),3),"") -> 0 | I80: =IFERROR(MIN(K80/H80,INDEX(UnitRateParks[],MATCH(G80,UnitRateParks[LGIP Code],0),4)),"") ->  | K80: 104300 | L80: 0 | M80: 0 | N80: =IFERROR(INDEX(UnitRateParks[],MATCH($G80,UnitRateParks[LGIP Code],0),15),"Error") -> 750000 | O80: 750000 | P80: 2016 | Q80: 0.17 | R80: 127500 | S80: 1 | T80: 0.075 | U80: 114075 | V80: 1065943 | W80: 74368 | X80: 2019 | Y80: 0.025 | Z80: 0.01871653255 | AA80: =IF(FutureTrunkParks[[#This Row],[Asset Class]]="Local",VLOOKUP(FutureTrunkParks[[#This Row],[Service Catchment]],'Catchment Demand - Parks'!$C$8:$M$12,11),'Catchment Demand - Parks'!$M$12) -> 0.2213928202 | AB80: =_xlfn.IFS(FutureTrunkParks[[#This Row],[Year of Provision]]=2019,0,FutureTrunkParks[[#This Row],[Year of Provision]]=2024,FutureTrunkParks[[#This Row],[Total Assets Cost (at Base Year)]]/SUMIFS($AE$17:$AE$189,$X$17:$X$189,"2024",$E$17:$E$189,FutureTrunkParks[[#This Row],[Service Catchment]])) -> 0 | AC80: =IF(AND(FutureTrunkParks[[#This Row],[Spare Capacity %]]>30%,FutureTrunkParks[[#This Row],[Share of the total Cost with the same year of provision %]]>20%),1-FutureTrunkParks[[#This Row],[Spare Capacity %]],1) -> 1 | AD80: =IF(FutureTrunkParks[[#This Row],[ Terminal Value Analysis]]<0,0,FutureTrunkParks[[#This Row],[ Terminal Value Analysis]]) -> 1 | AE80: 1065943 | AF80: 1126922 | AG80: 948600 | AH80: =ROUND(FutureTrunkParks[[#This Row],[Net Present Value of Total Asset Cost]]*FutureTrunkParks[[#This Row],[Terminal Value Adjustment]],0) -> 948600 | AM80: y | AS80: 1 | AT80: 1 | AZ80: 948600 | BF80: 948600
B81: PCF315 | C81: KUR-A1-001 | D81: Local | E81: South | F81: Acquire and embellish land to provide LOCAL RECREATION infrastructure | G81: =MID(C81,5,2)&"-"&LEFT(D81,1) -> A1-L | H81: =IFERROR(INDEX(UnitRateParks[],MATCH(G81,UnitRateParks[LGIP Code],0),3),"") -> 8000 | I81: =IFERROR(MIN(K81/H81,INDEX(UnitRateParks[],MATCH(FutureTrunkParks[[#This Row],[LGIP Code (*)]], UnitRateParks[LGIP Code],0),4)),"") -> 0.625 | K81: 5000 | L81: 100 | M81: 500000 | N81: =IFERROR((VLOOKUP(FutureTrunkParks[[#This Row],[LGIP Code (*)]],UnitRateParks[],7,FALSE)*FutureTrunkParks[[#This Row],[Scaling factor (*)]]+VLOOKUP(FutureTrunkParks[[#This Row],[LGIP Code (*)]],UnitRateParks[],8,FALSE)-VLOOKUP(FutureTrunkParks[[#This Row],[LGIP Code (*)]],UnitRateParks[],6,FALSE))*18.5%+VLOOKUP(FutureTrunkParks[[#This Row],[LGIP Code (*)]],UnitRateParks[],7,FALSE)*FutureTrunkParks[[#This Row],[Scaling factor (*)]]+VLOOKUP(FutureTrunkParks[[#This Row],[LGIP Code (*)]],UnitRateParks[],8,FALSE),"Error") -> 180527.253 | O81: 180527 | P81: 2016 | Q81: 0.17 | R81: 30690 | S81: 1 | T81: 0.075 | U81: 27458 | V81: 256576 | W81: 17901 | X81: 2019 | Y81: 0.025 | Z81: 0.01871653255 | AA81: =IF(FutureTrunkParks[[#This Row],[Asset Class]]="Local",VLOOKUP(FutureTrunkParks[[#This Row],[Service Catchment]],'Catchment Demand - Parks'!$C$8:$M$12,11),'Catchment Demand - Parks'!$M$12) -> 0.2365306507 | AB81: =_xlfn.IFS(FutureTrunkParks[[#This Row],[Year of Provision]]=2019,0,FutureTrunkParks[[#This Row],[Year of Provision]]=2024,FutureTrunkParks[[#This Row],[Total Assets Cost (at Base Year)]]/SUMIFS($AE$17:$AE$189,$X$17:$X$189,"2024",$E$17:$E$189,FutureTrunkParks[[#This Row],[Service Catchment]])) -> 0 | AC81: =IF(AND(FutureTrunkParks[[#This Row],[Spare Capacity %]]>30%,FutureTrunkParks[[#This Row],[Share of the total Cost with the same year of provision %]]>20%),1-FutureTrunkParks[[#This Row],[Spare Capacity %]],1) -> 1 | AD81: =IF(FutureTrunkParks[[#This Row],[ Terminal Value Analysis]]<0,0,FutureTrunkParks[[#This Row],[ Terminal Value Analysis]]) -> 1 | AE81: 756576 | AF81: =ROUND(V81*(1+Z81)^(X81-YEAR)+M81*(1+Y81)^(X81-YEAR),0) -> 809699 | AG81: =ROUND(AF81*(1/(1+WACC))^(X81-YEAR),0) -> 681574 | AH81: =ROUND(FutureTrunkParks[[#This Row],[Net Present Value of Total Asset Cost]]*FutureTrunkParks[[#This Row],[Terminal Value Adjustment]],0) -> 681574 | AK81: y | AO81: =IF(AI81="y",1,"") ->  | AP81: =IF(AJ81="y",1,"") ->  | AQ81: =IF(AK81="y",1,"") -> 1 | AR81: =IF(AL81="y",1,"") ->  | AS81: =IF(AM81="y",1,"") ->  | AT81: =SUM(AO81:AS81) -> 1 | AV81: =IF(AO81="","",(AO81/$AT81)*$AG81) ->  | AW81: =IF(AP81="","",(AP81/$AT81)*$AG81) ->  | AX81: =IF(AQ81="","",(AQ81/$AT81)*$AG81) -> 681574 | AY81: =IF(AR81="","",(AR81/$AT81)*$AG81) ->  | AZ81: =IF(AS81="","",(AS81/$AT81)*$AG81) ->  | BB81: =IF(AO81="","",(AO81/$AT81)*$AH81) ->  | BC81: =IF(AP81="","",(AP81/$AT81)*$AH81) ->  | BD81: =IF(AQ81="","",(AQ81/$AT81)*$AH81) -> 681574 | BE81: =IF(AR81="","",(AR81/$AT81)*$AH81) ->  | BF81: =IF(AS81="","",(AS81/$AT81)*$AH81) -> 
B82: PCF153 | C82: LUT-A1-001 | D82: Local | E82: North | F82: Acquire and embellish land to provide LOCAL RECREATION infrastructure | G82: =MID(C82,5,2)&"-"&LEFT(D82,1) -> A1-L | H82: =IFERROR(INDEX(UnitRateParks[],MATCH(G82,UnitRateParks[LGIP Code],0),3),"") -> 8000 | I82: =IFERROR(MIN(K82/H82,INDEX(UnitRateParks[],MATCH(FutureTrunkParks[[#This Row],[LGIP Code (*)]], UnitRateParks[LGIP Code],0),4)),"") -> 0.625 | K82: 5000 | L82: 1000 | M82: 5000000 | N82: =IFERROR((VLOOKUP(FutureTrunkParks[[#This Row],[LGIP Code (*)]],UnitRateParks[],7,FALSE)*FutureTrunkParks[[#This Row],[Scaling factor (*)]]+VLOOKUP(FutureTrunkParks[[#This Row],[LGIP Code (*)]],UnitRateParks[],8,FALSE)-VLOOKUP(FutureTrunkParks[[#This Row],[LGIP Code (*)]],UnitRateParks[],6,FALSE))*18.5%+VLOOKUP(FutureTrunkParks[[#This Row],[LGIP Code (*)]],UnitRateParks[],7,FALSE)*FutureTrunkParks[[#This Row],[Scaling factor (*)]]+VLOOKUP(FutureTrunkParks[[#This Row],[LGIP Code (*)]],UnitRateParks[],8,FALSE),"Error") -> 180527.253 | O82: 180527 | P82: 2016 | Q82: 0.17 | R82: =ROUND(O82*Q82,0) -> 30690 | S82: 1 | T82: 0.15 | U82: =ROUND((O82+R82)*13%,0) -> 27458 | V82: =ROUND(O82+R82+U82+(O82+R82+U82)*T82,0) -> 274476 | W82: 35801 | X82: 2024 | Y82: 0.025 | Z82: 0.01871653255 | AA82: =IF(FutureTrunkParks[[#This Row],[Asset Class]]="Local",VLOOKUP(FutureTrunkParks[[#This Row],[Service Catchment]],'Catchment Demand - Parks'!$C$8:$M$12,11),'Catchment Demand - Parks'!$M$12) -> 0.2179675326 | AB82: =_xlfn.IFS(FutureTrunkParks[[#This Row],[Year of Provision]]=2019,0,FutureTrunkParks[[#This Row],[Year of Provision]]=2024,FutureTrunkParks[[#This Row],[Total Assets Cost (at Base Year)]]/SUMIFS($AE$17:$AE$189,$X$17:$X$189,"2024",$E$17:$E$189,FutureTrunkParks[[#This Row],[Service Catchment]])) -> 0.1393332483 | AC82: =IF(AND(FutureTrunkParks[[#This Row],[Spare Capacity %]]>30%,FutureTrunkParks[[#This Row],[Share of the total Cost with the same year of provision %]]>20%),1-FutureTrunkParks[[#This Row],[Spare Capacity %]],1) -> 1 | AD82: =IF(FutureTrunkParks[[#This Row],[ Terminal Value Analysis]]<0,0,FutureTrunkParks[[#This Row],[ Terminal Value Analysis]]) -> 1 | AE82: =ROUND(V82+M82,0) -> 5274476 | AF82: 6410384 | AG82: 4049378 | AH82: =ROUND(FutureTrunkParks[[#This Row],[Net Present Value of Total Asset Cost]]*FutureTrunkParks[[#This Row],[Terminal Value Adjustment]],0) -> 4049378 | AI82: =IF(AND($D82="Local",AI$13=$E82),"y","") ->  | AJ82: y | AM82: =IF($D82<>"Local","y","") ->  | AP82: 1 | AT82: 1 | AW82: 4049378 | BC82: 4049378
B83: PCF274 | C83: MCG-A1-001 | D83: Local | E83: South | F83: Acquire and embellish land to provide LOCAL RECREATION infrastructure | G83: =MID(C83,5,2)&"-"&LEFT(D83,1) -> A1-L | H83: =IFERROR(INDEX(UnitRateParks[],MATCH(G83,UnitRateParks[LGIP Code],0),3),"") -> 8000 | I83: =IFERROR(MIN(K83/H83,INDEX(UnitRateParks[],MATCH(FutureTrunkParks[[#This Row],[LGIP Code (*)]], UnitRateParks[LGIP Code],0),4)),"") -> 0.664625 | K83: 5317 | L83: 394.9595637 | M83: 2100000 | N83: =IFERROR((VLOOKUP(FutureTrunkParks[[#This Row],[LGIP Code (*)]],UnitRateParks[],7,FALSE)*FutureTrunkParks[[#This Row],[Scaling factor (*)]]+VLOOKUP(FutureTrunkParks[[#This Row],[LGIP Code (*)]],UnitRateParks[],8,FALSE)-VLOOKUP(FutureTrunkParks[[#This Row],[LGIP Code (*)]],UnitRateParks[],6,FALSE))*18.5%+VLOOKUP(FutureTrunkParks[[#This Row],[LGIP Code (*)]],UnitRateParks[],7,FALSE)*FutureTrunkParks[[#This Row],[Scaling factor (*)]]+VLOOKUP(FutureTrunkParks[[#This Row],[LGIP Code (*)]],UnitRateParks[],8,FALSE),"Error") -> 190215.2479 | O83: 190215 | P83: 2016 | Q83: 0.17 | R83: 32337 | S83: 1 | T83: 0.075 | U83: 28932 | V83: 270345 | W83: 18861 | X83: 2019 | Y83: 0.025 | Z83: 0.01871653255 | AA83: =IF(FutureTrunkParks[[#This Row],[Asset Class]]="Local",VLOOKUP(FutureTrunkParks[[#This Row],[Service Catchment]],'Catchment Demand - Parks'!$C$8:$M$12,11),'Catchment Demand - Parks'!$M$12) -> 0.2365306507 | AB83: =_xlfn.IFS(FutureTrunkParks[[#This Row],[Year of Provision]]=2019,0,FutureTrunkParks[[#This Row],[Year of Provision]]=2024,FutureTrunkParks[[#This Row],[Total Assets Cost (at Base Year)]]/SUMIFS($AE$17:$AE$189,$X$17:$X$189,"2024",$E$17:$E$189,FutureTrunkParks[[#This Row],[Service Catchment]])) -> 0 | AC83: =IF(AND(FutureTrunkParks[[#This Row],[Spare Capacity %]]>30%,FutureTrunkParks[[#This Row],[Share of the total Cost with the same year of provision %]]>20%),1-FutureTrunkParks[[#This Row],[Spare Capacity %]],1) -> 1 | AD83: =IF(FutureTrunkParks[[#This Row],[ Terminal Value Analysis]]<0,0,FutureTrunkParks[[#This Row],[ Terminal Value Analysis]]) -> 1 | AE83: 2370345 | AF83: 2547281 | AG83: 2144203 | AH83: =ROUND(FutureTrunkParks[[#This Row],[Net Present Value of Total Asset Cost]]*FutureTrunkParks[[#This Row],[Terminal Value Adjustment]],0) -> 2144203 | AK83: y | AQ83: 1 | AT83: 1 | AX83: 2144203 | BD83: 2144203
B84: PCF274 | C84: MCG-E1-001 | D84: Local | E84: South | F84: Provide LOCAL RECREATION infrastructure | G84: =MID(C84,5,2)&"-"&LEFT(D84,1) -> E1-L | H84: =IFERROR(INDEX(UnitRateParks[],MATCH(G84,UnitRateParks[LGIP Code],0),3),"") -> 8000 | I84: =IFERROR(MIN(K84/H84,INDEX(UnitRateParks[],MATCH(FutureTrunkParks[[#This Row],[LGIP Code (*)]], UnitRateParks[LGIP Code],0),4)),"") -> 0.25 | K84: 2000 | L84: 0 | M84: 0 | N84: =IFERROR((VLOOKUP(FutureTrunkParks[[#This Row],[LGIP Code (*)]],UnitRateParks[],10,FALSE)*FutureTrunkParks[[#This Row],[Scaling factor (*)]]+VLOOKUP(FutureTrunkParks[[#This Row],[LGIP Code (*)]],UnitRateParks[],11,FALSE))*18.5%+VLOOKUP(FutureTrunkParks[[#This Row],[LGIP Code (*)]],UnitRateParks[],11,FALSE)+VLOOKUP(FutureTrunkParks[[#This Row],[LGIP Code (*)]],UnitRateParks[],10,FALSE)*FutureTrunkParks[[#This Row],[Scaling factor (*)]]+(VLOOKUP(FutureTrunkParks[[#This Row],[LGIP Code (*)]],UnitRateParks[],13,FALSE)*FutureTrunkParks[[#This Row],[Scaling factor (*)]]+VLOOKUP(FutureTrunkParks[[#This Row],[LGIP Code (*)]],UnitRateParks[],14,FALSE))*18.5%+VLOOKUP(FutureTrunkParks[[#This Row],[LGIP Code (*)]],UnitRateParks[],14,FALSE)+VLOOKUP(FutureTrunkParks[[#This Row],[LGIP Code (*)]],UnitRateParks[],13,FALSE)*FutureTrunkParks[[#This Row],[Scaling factor (*)]],"Error") -> 379844.4902 | O84: 379844 | P84: 2016 | Q84: 0.17 | R84: 64573 | S84: 1 | T84: 0.075 | U84: 57774 | V84: 539855 | W84: 37664 | X84: 2019 | Y84: 0.025 | Z84: 0.01871653255 | AA84: =IF(FutureTrunkParks[[#This Row],[Asset Class]]="Local",VLOOKUP(FutureTrunkParks[[#This Row],[Service Catchment]],'Catchment Demand - Parks'!$C$8:$M$12,11),'Catchment Demand - Parks'!$M$12) -> 0.2365306507 | AB84: =_xlfn.IFS(FutureTrunkParks[[#This Row],[Year of Provision]]=2019,0,FutureTrunkParks[[#This Row],[Year of Provision]]=2024,FutureTrunkParks[[#This Row],[Total Assets Cost (at Base Year)]]/SUMIFS($AE$17:$AE$189,$X$17:$X$189,"2024",$E$17:$E$189,FutureTrunkParks[[#This Row],[Service Catchment]])) -> 0 | AC84: =IF(AND(FutureTrunkParks[[#This Row],[Spare Capacity %]]>30%,FutureTrunkParks[[#This Row],[Share of the total Cost with the same year of provision %]]>20%),1-FutureTrunkParks[[#This Row],[Spare Capacity %]],1) -> 1 | AD84: =IF(FutureTrunkParks[[#This Row],[ Terminal Value Analysis]]<0,0,FutureTrunkParks[[#This Row],[ Terminal Value Analysis]]) -> 1 | AE84: 539855 | AF84: 570739 | AG84: 480426 | AH84: =ROUND(FutureTrunkParks[[#This Row],[Net Present Value of Total Asset Cost]]*FutureTrunkParks[[#This Row],[Terminal Value Adjustment]],0) -> 480426 | AK84: y | AQ84: 1 | AT84: 1 | AX84: 480426 | BD84: 480426
B85: PCF190 | C85: MCO-U1-010 | D85: Metropolitan | E85: West | F85: Upgrade existing park infrastructure to the value of $1m+ (Metropolitan) | G85: =MID(C85,5,2) -> U1 | H85: =IFERROR(INDEX(UnitRateParks[],MATCH(G85,UnitRateParks[LGIP Code],0),3),"") -> 0 | I85: =IFERROR(MIN(K85/H85,INDEX(UnitRateParks[],MATCH(G85,UnitRateParks[LGIP Code],0),4)),"") ->  | K85: 54700 | L85: 0 | M85: 0 | N85: =IFERROR(INDEX(UnitRateParks[],MATCH($G85,UnitRateParks[LGIP Code],0),15),"Error") -> 1000000 | O85: 1000000 | P85: 2016 | Q85: 0.17 | R85: 170000 | S85: 1 | T85: 0.075 | U85: 152100 | V85: 1421258 | W85: 99158 | X85: 2019 | Y85: 0.025 | Z85: 0.01871653255 | AA85: =IF(FutureTrunkParks[[#This Row],[Asset Class]]="Local",VLOOKUP(FutureTrunkParks[[#This Row],[Service Catchment]],'Catchment Demand - Parks'!$C$8:$M$12,11),'Catchment Demand - Parks'!$M$12) -> 0.2213928202 | AB85: =_xlfn.IFS(FutureTrunkParks[[#This Row],[Year of Provision]]=2019,0,FutureTrunkParks[[#This Row],[Year of Provision]]=2024,FutureTrunkParks[[#This Row],[Total Assets Cost (at Base Year)]]/SUMIFS($AE$17:$AE$189,$X$17:$X$189,"2024",$E$17:$E$189,FutureTrunkParks[[#This Row],[Service Catchment]])) -> 0 | AC85: =IF(AND(FutureTrunkParks[[#This Row],[Spare Capacity %]]>30%,FutureTrunkParks[[#This Row],[Share of the total Cost with the same year of provision %]]>20%),1-FutureTrunkParks[[#This Row],[Spare Capacity %]],1) -> 1 | AD85: =IF(FutureTrunkParks[[#This Row],[ Terminal Value Analysis]]<0,0,FutureTrunkParks[[#This Row],[ Terminal Value Analysis]]) -> 1 | AE85: 1421258 | AF85: 1502564 | AG85: 1264801 | AH85: =ROUND(FutureTrunkParks[[#This Row],[Net Present Value of Total Asset Cost]]*FutureTrunkParks[[#This Row],[Terminal Value Adjustment]],0) -> 1264801 | AM85: y | AS85: 1 | AT85: 1 | AZ85: 1264801 | BF85: 1264801
B86: PCF111 | C86: MDW-A1-001 | D86: Local | E86: West | F86: Acquire and embellish land to provide LOCAL RECREATION infrastructure | G86: =MID(C86,5,2)&"-"&LEFT(D86,1) -> A1-L | H86: =IFERROR(INDEX(UnitRateParks[],MATCH(G86,UnitRateParks[LGIP Code],0),3),"") -> 8000 | I86: =IFERROR(MIN(K86/H86,INDEX(UnitRateParks[],MATCH(FutureTrunkParks[[#This Row],[LGIP Code (*)]], UnitRateParks[LGIP Code],0),4)),"") -> 1.25 | K86: 10000 | L86: 100 | M86: 1000000 | N86: =IFERROR((VLOOKUP(FutureTrunkParks[[#This Row],[LGIP Code (*)]],UnitRateParks[],7,FALSE)*FutureTrunkParks[[#This Row],[Scaling factor (*)]]+VLOOKUP(FutureTrunkParks[[#This Row],[LGIP Code (*)]],UnitRateParks[],8,FALSE)-VLOOKUP(FutureTrunkParks[[#This Row],[LGIP Code (*)]],UnitRateParks[],6,FALSE))*18.5%+VLOOKUP(FutureTrunkParks[[#This Row],[LGIP Code (*)]],UnitRateParks[],7,FALSE)*FutureTrunkParks[[#This Row],[Scaling factor (*)]]+VLOOKUP(FutureTrunkParks[[#This Row],[LGIP Code (*)]],UnitRateParks[],8,FALSE),"Error") -> 333334.7434 | O86: 333335 | P86: 2016 | Q86: 0.17 | R86: 56667 | S86: 1 | T86: 0.075 | U86: 50700 | V86: 473755 | W86: 33053 | X86: 2019 | Y86: 0.025 | Z86: 0.01871653255 | AA86: =IF(FutureTrunkParks[[#This Row],[Asset Class]]="Local",VLOOKUP(FutureTrunkParks[[#This Row],[Service Catchment]],'Catchment Demand - Parks'!$C$8:$M$12,11),'Catchment Demand - Parks'!$M$12) -> 0.1760134606 | AB86: =_xlfn.IFS(FutureTrunkParks[[#This Row],[Year of Provision]]=2019,0,FutureTrunkParks[[#This Row],[Year of Provision]]=2024,FutureTrunkParks[[#This Row],[Total Assets Cost (at Base Year)]]/SUMIFS($AE$17:$AE$189,$X$17:$X$189,"2024",$E$17:$E$189,FutureTrunkParks[[#This Row],[Service Catchment]])) -> 0 | AC86: =IF(AND(FutureTrunkParks[[#This Row],[Spare Capacity %]]>30%,FutureTrunkParks[[#This Row],[Share of the total Cost with the same year of provision %]]>20%),1-FutureTrunkParks[[#This Row],[Spare Capacity %]],1) -> 1 | AD86: =IF(FutureTrunkParks[[#This Row],[ Terminal Value Analysis]]<0,0,FutureTrunkParks[[#This Row],[ Terminal Value Analysis]]) -> 1 | AE86: 1473755 | AF86: 1577748 | AG86: 1328088 | AH86: =ROUND(FutureTrunkParks[[#This Row],[Net Present Value of Total Asset Cost]]*FutureTrunkParks[[#This Row],[Terminal Value Adjustment]],0) -> 1328088 | AL86: y | AR86: 1 | AT86: 1 | AY86: 1328088 | BE86: 1328088
B87: PCF192 | C87: MIL-E4-001 | D87: District | E87: West | F87: Provide URBAN COMMON infrastructure | G87: E4-D | H87: =IFERROR(INDEX(UnitRateParks[],MATCH(G87,UnitRateParks[LGIP Code],0),3),"") -> 1000 | I87: =IFERROR(MIN(K87/H87,INDEX(UnitRateParks[],MATCH(FutureTrunkParks[[#This Row],[LGIP Code (*)]], UnitRateParks[LGIP Code],0),4)),"") -> 1.5 | K87: 1500 | L87: 0 | M87: 0 | N87: =IFERROR((VLOOKUP(FutureTrunkParks[[#This Row],[LGIP Code (*)]],UnitRateParks[],10,FALSE)*FutureTrunkParks[[#This Row],[Scaling factor (*)]]+VLOOKUP(FutureTrunkParks[[#This Row],[LGIP Code (*)]],UnitRateParks[],11,FALSE))*18.5%+VLOOKUP(FutureTrunkParks[[#This Row],[LGIP Code (*)]],UnitRateParks[],11,FALSE)+VLOOKUP(FutureTrunkParks[[#This Row],[LGIP Code (*)]],UnitRateParks[],10,FALSE)*FutureTrunkParks[[#This Row],[Scaling factor (*)]]+(VLOOKUP(FutureTrunkParks[[#This Row],[LGIP Code (*)]],UnitRateParks[],13,FALSE)*FutureTrunkParks[[#This Row],[Scaling factor (*)]]+VLOOKUP(FutureTrunkParks[[#This Row],[LGIP Code (*)]],UnitRateParks[],14,FALSE))*18.5%+VLOOKUP(FutureTrunkParks[[#This Row],[LGIP Code (*)]],UnitRateParks[],14,FALSE)+VLOOKUP(FutureTrunkParks[[#This Row],[LGIP Code (*)]],UnitRateParks[],13,FALSE)*FutureTrunkParks[[#This Row],[Scaling factor (*)]],"Error") -> 515797.2083 | O87: 515797 | P87: 2016 | Q87: 0.17 | R87: 87685 | S87: 1 | T87: 0.075 | U87: 78453 | V87: 733080 | W87: 51145 | X87: 2019 | Y87: 0.025 | Z87: 0.01871653255 | AA87: =IF(FutureTrunkParks[[#This Row],[Asset Class]]="Local",VLOOKUP(FutureTrunkParks[[#This Row],[Service Catchment]],'Catchment Demand - Parks'!$C$8:$M$12,11),'Catchment Demand - Parks'!$M$12) -> 0.2213928202 | AB87: =_xlfn.IFS(FutureTrunkParks[[#This Row],[Year of Provision]]=2019,0,FutureTrunkParks[[#This Row],[Year of Provision]]=2024,FutureTrunkParks[[#This Row],[Total Assets Cost (at Base Year)]]/SUMIFS($AE$17:$AE$189,$X$17:$X$189,"2024",$E$17:$E$189,FutureTrunkParks[[#This Row],[Service Catchment]])) -> 0 | AC87: =IF(AND(FutureTrunkParks[[#This Row],[Spare Capacity %]]>30%,FutureTrunkParks[[#This Row],[Share of the total Cost with the same year of provision %]]>20%),1-FutureTrunkParks[[#This Row],[Spare Capacity %]],1) -> 1 | AD87: =IF(FutureTrunkParks[[#This Row],[ Terminal Value Analysis]]<0,0,FutureTrunkParks[[#This Row],[ Terminal Value Analysis]]) -> 1 | AE87: 733080 | AF87: 775017 | AG87: 652380 | AH87: =ROUND(FutureTrunkParks[[#This Row],[Net Present Value of Total Asset Cost]]*FutureTrunkParks[[#This Row],[Terminal Value Adjustment]],0) -> 652380 | AM87: y | AS87: 1 | AT87: 1 | AZ87: 652380 | BF87: 652380
B88: PCF177 | C88: MNW-A7-001 | D88: Local | E88: East | F88: Acquire and embellish land to provide LOCAL ACCESS/RECREATION corridor park | G88: A7-L | H88: =IFERROR(INDEX(UnitRateParks[],MATCH(G88,UnitRateParks[LGIP Code],0),3),"") -> 8000 | I88: =IFERROR(MIN(K88/H88,INDEX(UnitRateParks[],MATCH(FutureTrunkParks[[#This Row],[LGIP Code (*)]], UnitRateParks[LGIP Code],0),4)),"") -> 1.375 | K88: 11000 | L88: 18.25 | M88: 200750 | N88: =IFERROR((VLOOKUP(FutureTrunkParks[[#This Row],[LGIP Code (*)]],UnitRateParks[],7,FALSE)*FutureTrunkParks[[#This Row],[Scaling factor (*)]]+VLOOKUP(FutureTrunkParks[[#This Row],[LGIP Code (*)]],UnitRateParks[],8,FALSE)-VLOOKUP(FutureTrunkParks[[#This Row],[LGIP Code (*)]],UnitRateParks[],6,FALSE))*18.5%+VLOOKUP(FutureTrunkParks[[#This Row],[LGIP Code (*)]],UnitRateParks[],7,FALSE)*FutureTrunkParks[[#This Row],[Scaling factor (*)]]+VLOOKUP(FutureTrunkParks[[#This Row],[LGIP Code (*)]],UnitRateParks[],8,FALSE),"Error") -> 317616.0868 | O88: 317616 | P88: 2016 | Q88: 0.17 | R88: 53995 | S88: 1 | T88: 0.075 | U88: 48309 | V88: 451414 | W88: 31494 | X88: 2019 | Y88: 0.025 | Z88: 0.01871653255 | AA88: =IF(FutureTrunkParks[[#This Row],[Asset Class]]="Local",VLOOKUP(FutureTrunkParks[[#This Row],[Service Catchment]],'Catchment Demand - Parks'!$C$8:$M$12,11),'Catchment Demand - Parks'!$M$12) -> 0.2396431883 | AB88: =_xlfn.IFS(FutureTrunkParks[[#This Row],[Year of Provision]]=2019,0,FutureTrunkParks[[#This Row],[Year of Provision]]=2024,FutureTrunkParks[[#This Row],[Total Assets Cost (at Base Year)]]/SUMIFS($AE$17:$AE$189,$X$17:$X$189,"2024",$E$17:$E$189,FutureTrunkParks[[#This Row],[Service Catchment]])) -> 0 | AC88: =IF(AND(FutureTrunkParks[[#This Row],[Spare Capacity %]]>30%,FutureTrunkParks[[#This Row],[Share of the total Cost with the same year of provision %]]>20%),1-FutureTrunkParks[[#This Row],[Spare Capacity %]],1) -> 1 | AD88: =IF(FutureTrunkParks[[#This Row],[ Terminal Value Analysis]]<0,0,FutureTrunkParks[[#This Row],[ Terminal Value Analysis]]) -> 1 | AE88: 652164 | AF88: 693424 | AG88: 583698 | AH88: =ROUND(FutureTrunkParks[[#This Row],[Net Present Value of Total Asset Cost]]*FutureTrunkParks[[#This Row],[Terminal Value Adjustment]],0) -> 583698 | AI88: y | AO88: 1 | AT88: 1 | AV88: 583698 | BB88: 583698
B89: PCF177 | C89: MNW-A7-002 | D89: Local | E89: East | F89: Acquire and embellish land to provide LOCAL ACCESS/RECREATION corridor park | G89: A7-L | H89: =IFERROR(INDEX(UnitRateParks[],MATCH(G89,UnitRateParks[LGIP Code],0),3),"") -> 8000 | I89: =IFERROR(MIN(K89/H89,INDEX(UnitRateParks[],MATCH(FutureTrunkParks[[#This Row],[LGIP Code (*)]], UnitRateParks[LGIP Code],0),4)),"") -> 0.375 | K89: 3000 | L89: 10 | M89: 30000 | N89: =IFERROR((VLOOKUP(FutureTrunkParks[[#This Row],[LGIP Code (*)]],UnitRateParks[],7,FALSE)*FutureTrunkParks[[#This Row],[Scaling factor (*)]]+VLOOKUP(FutureTrunkParks[[#This Row],[LGIP Code (*)]],UnitRateParks[],8,FALSE)-VLOOKUP(FutureTrunkParks[[#This Row],[LGIP Code (*)]],UnitRateParks[],6,FALSE))*18.5%+VLOOKUP(FutureTrunkParks[[#This Row],[LGIP Code (*)]],UnitRateParks[],7,FALSE)*FutureTrunkParks[[#This Row],[Scaling factor (*)]]+VLOOKUP(FutureTrunkParks[[#This Row],[LGIP Code (*)]],UnitRateParks[],8,FALSE),"Error") -> 117724.4709 | O89: 117724 | P89: 2016 | Q89: 0.17 | R89: 20013 | S89: 1 | T89: 0.075 | U89: 17906 | V89: 167316 | W89: 11673 | X89: 2019 | Y89: 0.025 | Z89: 0.01871653255 | AA89: =IF(FutureTrunkParks[[#This Row],[Asset Class]]="Local",VLOOKUP(FutureTrunkParks[[#This Row],[Service Catchment]],'Catchment Demand - Parks'!$C$8:$M$12,11),'Catchment Demand - Parks'!$M$12) -> 0.2396431883 | AB89: =_xlfn.IFS(FutureTrunkParks[[#This Row],[Year of Provision]]=2019,0,FutureTrunkParks[[#This Row],[Year of Provision]]=2024,FutureTrunkParks[[#This Row],[Total Assets Cost (at Base Year)]]/SUMIFS($AE$17:$AE$189,$X$17:$X$189,"2024",$E$17:$E$189,FutureTrunkParks[[#This Row],[Service Catchment]])) -> 0 | AC89: =IF(AND(FutureTrunkParks[[#This Row],[Spare Capacity %]]>30%,FutureTrunkParks[[#This Row],[Share of the total Cost with the same year of provision %]]>20%),1-FutureTrunkParks[[#This Row],[Spare Capacity %]],1) -> 1 | AD89: =IF(FutureTrunkParks[[#This Row],[ Terminal Value Analysis]]<0,0,FutureTrunkParks[[#This Row],[ Terminal Value Analysis]]) -> 1 | AE89: 197316 | AF89: 209194 | AG89: 176091 | AH89: =ROUND(FutureTrunkParks[[#This Row],[Net Present Value of Total Asset Cost]]*FutureTrunkParks[[#This Row],[Terminal Value Adjustment]],0) -> 176091 | AI89: y | AO89: 1 | AT89: 1 | AV89: 176091 | BB89: 176091
B90: PCF197, PCF196 | C90: MNW-A7-003 | D90: Local | E90: East | F90: Acquire and embellish land to provide LOCAL ACCESS/RECREATION corridor park | G90: A7-L | H90: =IFERROR(INDEX(UnitRateParks[],MATCH(G90,UnitRateParks[LGIP Code],0),3),"") -> 8000 | I90: =IFERROR(MIN(K90/H90,INDEX(UnitRateParks[],MATCH(FutureTrunkParks[[#This Row],[LGIP Code (*)]], UnitRateParks[LGIP Code],0),4)),"") -> 0.375 | K90: 3000 | L90: 152.5 | M90: 457500 | N90: =IFERROR((VLOOKUP(FutureTrunkParks[[#This Row],[LGIP Code (*)]],UnitRateParks[],7,FALSE)*FutureTrunkParks[[#This Row],[Scaling factor (*)]]+VLOOKUP(FutureTrunkParks[[#This Row],[LGIP Code (*)]],UnitRateParks[],8,FALSE)-VLOOKUP(FutureTrunkParks[[#This Row],[LGIP Code (*)]],UnitRateParks[],6,FALSE))*18.5%+VLOOKUP(FutureTrunkParks[[#This Row],[LGIP Code (*)]],UnitRateParks[],7,FALSE)*FutureTrunkParks[[#This Row],[Scaling factor (*)]]+VLOOKUP(FutureTrunkParks[[#This Row],[LGIP Code (*)]],UnitRateParks[],8,FALSE),"Error") -> 117724.4709 | O90: 117724 | P90: 2016 | Q90: 0.17 | R90: 20013 | S90: 1 | T90: 0.15 | U90: 17906 | V90: 178989 | W90: 23346 | X90: 2024 | Y90: 0.025 | Z90: 0.01871653255 | AA90: =IF(FutureTrunkParks[[#This Row],[Asset Class]]="Local",VLOOKUP(FutureTrunkParks[[#This Row],[Service Catchment]],'Catchment Demand - Parks'!$C$8:$M$12,11),'Catchment Demand - Parks'!$M$12) -> 0.2396431883 | AB90: =_xlfn.IFS(FutureTrunkParks[[#This Row],[Year of Provision]]=2019,0,FutureTrunkParks[[#This Row],[Year of Provision]]=2024,FutureTrunkParks[[#This Row],[Total Assets Cost (at Base Year)]]/SUMIFS($AE$17:$AE$189,$X$17:$X$189,"2024",$E$17:$E$189,FutureTrunkParks[[#This Row],[Service Catchment]])) -> 0.006375783536 | AC90: =IF(AND(FutureTrunkParks[[#This Row],[Spare Capacity %]]>30%,FutureTrunkParks[[#This Row],[Share of the total Cost with the same year of provision %]]>20%),1-FutureTrunkParks[[#This Row],[Spare Capacity %]],1) -> 1 | AD90: =IF(FutureTrunkParks[[#This Row],[ Terminal Value Analysis]]<0,0,FutureTrunkParks[[#This Row],[ Terminal Value Analysis]]) -> 1 | AE90: 636489 | AF90: 765032 | AG90: 483263 | AH90: =ROUND(FutureTrunkParks[[#This Row],[Net Present Value of Total Asset Cost]]*FutureTrunkParks[[#This Row],[Terminal Value Adjustment]],0) -> 483263 | AI90: y | AO90: 1 | AT90: 1 | AV90: 483263 | BB90: 483263
B91: PCF287 | C91: MOG-E5-001 | D91: District | E91: West | F91: Provide DISTRICT SPORT infrastructure | G91: E5-D | H91: =IFERROR(INDEX(UnitRateParks[],MATCH(G91,UnitRateParks[LGIP Code],0),3),"") -> 40000 | I91: =IFERROR(MIN(K91/H91,INDEX(UnitRateParks[],MATCH(FutureTrunkParks[[#This Row],[LGIP Code (*)]], UnitRateParks[LGIP Code],0),4)),"") -> 2.3 | K91: 92000 | L91: 0 | M91: 0 | N91: =IFERROR((VLOOKUP(FutureTrunkParks[[#This Row],[LGIP Code (*)]],UnitRateParks[],10,FALSE)*FutureTrunkParks[[#This Row],[Scaling factor (*)]]+VLOOKUP(FutureTrunkParks[[#This Row],[LGIP Code (*)]],UnitRateParks[],11,FALSE))*18.5%+VLOOKUP(FutureTrunkParks[[#This Row],[LGIP Code (*)]],UnitRateParks[],11,FALSE)+VLOOKUP(FutureTrunkParks[[#This Row],[LGIP Code (*)]],UnitRateParks[],10,FALSE)*FutureTrunkParks[[#This Row],[Scaling factor (*)]]+(VLOOKUP(FutureTrunkParks[[#This Row],[LGIP Code (*)]],UnitRateParks[],13,FALSE)*FutureTrunkParks[[#This Row],[Scaling factor (*)]]+VLOOKUP(FutureTrunkParks[[#This Row],[LGIP Code (*)]],UnitRateParks[],14,FALSE))*18.5%+VLOOKUP(FutureTrunkParks[[#This Row],[LGIP Code (*)]],UnitRateParks[],14,FALSE)+VLOOKUP(FutureTrunkParks[[#This Row],[LGIP Code (*)]],UnitRateParks[],13,FALSE)*FutureTrunkParks[[#This Row],[Scaling factor (*)]],"Error") -> 7471842.704 | O91: 7471843 | P91: 2016 | Q91: 0.17 | R91: 1270213 | S91: 1 | T91: 0.075 | U91: 1136467 | V91: 10619412 | W91: 740889 | X91: 2019 | Y91: 0.025 | Z91: 0.01871653255 | AA91: =IF(FutureTrunkParks[[#This Row],[Asset Class]]="Local",VLOOKUP(FutureTrunkParks[[#This Row],[Service Catchment]],'Catchment Demand - Parks'!$C$8:$M$12,11),'Catchment Demand - Parks'!$M$12) -> 0.2213928202 | AB91: =_xlfn.IFS(FutureTrunkParks[[#This Row],[Year of Provision]]=2019,0,FutureTrunkParks[[#This Row],[Year of Provision]]=2024,FutureTrunkParks[[#This Row],[Total Assets Cost (at Base Year)]]/SUMIFS($AE$17:$AE$189,$X$17:$X$189,"2024",$E$17:$E$189,FutureTrunkParks[[#This Row],[Service Catchment]])) -> 0 | AC91: =IF(AND(FutureTrunkParks[[#This Row],[Spare Capacity %]]>30%,FutureTrunkParks[[#This Row],[Share of the total Cost with the same year of provision %]]>20%),1-FutureTrunkParks[[#This Row],[Spare Capacity %]],1) -> 1 | AD91: =IF(FutureTrunkParks[[#This Row],[ Terminal Value Analysis]]<0,0,FutureTrunkParks[[#This Row],[ Terminal Value Analysis]]) -> 1 | AE91: 10619412 | AF91: 11226918 | AG91: 9450388 | AH91: =ROUND(FutureTrunkParks[[#This Row],[Net Present Value of Total Asset Cost]]*FutureTrunkParks[[#This Row],[Terminal Value Adjustment]],0) -> 9450388 | AM91: y | AS91: 1 | AT91: 1 | AZ91: 9450388 | BF91: 9450388
B92: PCF332 | C92: PAL-A1-001 | D92: Local | E92: South | F92: Acquire and embellish land to provide LOCAL RECREATION infrastructure | G92: =MID(C92,5,2)&"-"&LEFT(D92,1) -> A1-L | H92: =IFERROR(INDEX(UnitRateParks[],MATCH(G92,UnitRateParks[LGIP Code],0),3),"") -> 8000 | I92: =IFERROR(MIN(K92/H92,INDEX(UnitRateParks[],MATCH(FutureTrunkParks[[#This Row],[LGIP Code (*)]], UnitRateParks[LGIP Code],0),4)),"") -> 1.25 | K92: 10000 | L92: 50 | M92: 500000 | N92: =IFERROR((VLOOKUP(FutureTrunkParks[[#This Row],[LGIP Code (*)]],UnitRateParks[],7,FALSE)*FutureTrunkParks[[#This Row],[Scaling factor (*)]]+VLOOKUP(FutureTrunkParks[[#This Row],[LGIP Code (*)]],UnitRateParks[],8,FALSE)-VLOOKUP(FutureTrunkParks[[#This Row],[LGIP Code (*)]],UnitRateParks[],6,FALSE))*18.5%+VLOOKUP(FutureTrunkParks[[#This Row],[LGIP Code (*)]],UnitRateParks[],7,FALSE)*FutureTrunkParks[[#This Row],[Scaling factor (*)]]+VLOOKUP(FutureTrunkParks[[#This Row],[LGIP Code (*)]],UnitRateParks[],8,FALSE),"Error") -> 333334.7434 | O92: 333335 | P92: 2016 | Q92: 0.17 | R92: 56667 | S92: 1 | T92: 0.15 | U92: 50700 | V92: 506807 | W92: 66105 | X92: 2024 | Y92: 0.025 | Z92: 0.01871653255 | AA92: =IF(FutureTrunkParks[[#This Row],[Asset Class]]="Local",VLOOKUP(FutureTrunkParks[[#This Row],[Service Catchment]],'Catchment Demand - Parks'!$C$8:$M$12,11),'Catchment Demand - Parks'!$M$12) -> 0.2365306507 | AB92: =_xlfn.IFS(FutureTrunkParks[[#This Row],[Year of Provision]]=2019,0,FutureTrunkParks[[#This Row],[Year of Provision]]=2024,FutureTrunkParks[[#This Row],[Total Assets Cost (at Base Year)]]/SUMIFS($AE$17:$AE$189,$X$17:$X$189,"2024",$E$17:$E$189,FutureTrunkParks[[#This Row],[Service Catchment]])) -> 0.006019570775 | AC92: =IF(AND(FutureTrunkParks[[#This Row],[Spare Capacity %]]>30%,FutureTrunkParks[[#This Row],[Share of the total Cost with the same year of provision %]]>20%),1-FutureTrunkParks[[#This Row],[Spare Capacity %]],1) -> 1 | AD92: =IF(FutureTrunkParks[[#This Row],[ Terminal Value Analysis]]<0,0,FutureTrunkParks[[#This Row],[ Terminal Value Analysis]]) -> 1 | AE92: 1006807 | AF92: 1197055 | AG92: 756168 | AH92: =ROUND(FutureTrunkParks[[#This Row],[Net Present Value of Total Asset Cost]]*FutureTrunkParks[[#This Row],[Terminal Value Adjustment]],0) -> 756168 | AK92: y | AQ92: 1 | AT92: 1 | AX92: 756168 | BD92: 756168
B93: PCF312 | C93: PAL-A1-002 | D93: Local | E93: South | F93: Acquire and embellish land to provide LOCAL RECREATION infrastructure | G93: =MID(C93,5,2)&"-"&LEFT(D93,1) -> A1-L | H93: =IFERROR(INDEX(UnitRateParks[],MATCH(G93,UnitRateParks[LGIP Code],0),3),"") -> 8000 | I93: =IFERROR(MIN(K93/H93,INDEX(UnitRateParks[],MATCH(FutureTrunkParks[[#This Row],[LGIP Code (*)]], UnitRateParks[LGIP Code],0),4)),"") -> 1.25 | K93: 10000 | L93: 50 | M93: 500000 | N93: =IFERROR((VLOOKUP(FutureTrunkParks[[#This Row],[LGIP Code (*)]],UnitRateParks[],7,FALSE)*FutureTrunkParks[[#This Row],[Scaling factor (*)]]+VLOOKUP(FutureTrunkParks[[#This Row],[LGIP Code (*)]],UnitRateParks[],8,FALSE)-VLOOKUP(FutureTrunkParks[[#This Row],[LGIP Code (*)]],UnitRateParks[],6,FALSE))*18.5%+VLOOKUP(FutureTrunkParks[[#This Row],[LGIP Code (*)]],UnitRateParks[],7,FALSE)*FutureTrunkParks[[#This Row],[Scaling factor (*)]]+VLOOKUP(FutureTrunkParks[[#This Row],[LGIP Code (*)]],UnitRateParks[],8,FALSE),"Error") -> 333334.7434 | O93: 333335 | P93: 2016 | Q93: 0.17 | R93: 56667 | S93: 1 | T93: 0.075 | U93: 50700 | V93: 473755 | W93: 33053 | X93: 2019 | Y93: 0.025 | Z93: 0.01871653255 | AA93: =IF(FutureTrunkParks[[#This Row],[Asset Class]]="Local",VLOOKUP(FutureTrunkParks[[#This Row],[Service Catchment]],'Catchment Demand - Parks'!$C$8:$M$12,11),'Catchment Demand - Parks'!$M$12) -> 0.2365306507 | AB93: =_xlfn.IFS(FutureTrunkParks[[#This Row],[Year of Provision]]=2019,0,FutureTrunkParks[[#This Row],[Year of Provision]]=2024,FutureTrunkParks[[#This Row],[Total Assets Cost (at Base Year)]]/SUMIFS($AE$17:$AE$189,$X$17:$X$189,"2024",$E$17:$E$189,FutureTrunkParks[[#This Row],[Service Catchment]])) -> 0 | AC93: =IF(AND(FutureTrunkParks[[#This Row],[Spare Capacity %]]>30%,FutureTrunkParks[[#This Row],[Share of the total Cost with the same year of provision %]]>20%),1-FutureTrunkParks[[#This Row],[Spare Capacity %]],1) -> 1 | AD93: =IF(FutureTrunkParks[[#This Row],[ Terminal Value Analysis]]<0,0,FutureTrunkParks[[#This Row],[ Terminal Value Analysis]]) -> 1 | AE93: 973755 | AF93: 1039302 | AG93: 874844 | AH93: =ROUND(FutureTrunkParks[[#This Row],[Net Present Value of Total Asset Cost]]*FutureTrunkParks[[#This Row],[Terminal Value Adjustment]],0) -> 874844 | AK93: y | AQ93: 1 | AT93: 1 | AX93: 874844 | BD93: 874844
B94: PCF312 | C94: PAL-A2-001 | D94: District | E94: South | F94: Acquire and embellish land to provide DISTRICT RECREATION infrastructure | G94: =MID(C94,5,2)&"-"&LEFT(D94,1) -> A2-D | H94: =IFERROR(INDEX(UnitRateParks[],MATCH(G94,UnitRateParks[LGIP Code],0),3),"") -> 30000 | I94: =IFERROR(MIN(K94/H94,INDEX(UnitRateParks[],MATCH(FutureTrunkParks[[#This Row],[LGIP Code (*)]], UnitRateParks[LGIP Code],0),4)),"") -> 1.4 | K94: 97122 | L94: 74.13356397 | M94: 7200000 | N94: =IFERROR((VLOOKUP(FutureTrunkParks[[#This Row],[LGIP Code (*)]],UnitRateParks[],7,FALSE)*FutureTrunkParks[[#This Row],[Scaling factor (*)]]+VLOOKUP(FutureTrunkParks[[#This Row],[LGIP Code (*)]],UnitRateParks[],8,FALSE)-VLOOKUP(FutureTrunkParks[[#This Row],[LGIP Code (*)]],UnitRateParks[],6,FALSE))*18.5%+VLOOKUP(FutureTrunkParks[[#This Row],[LGIP Code (*)]],UnitRateParks[],7,FALSE)*FutureTrunkParks[[#This Row],[Scaling factor (*)]]+VLOOKUP(FutureTrunkParks[[#This Row],[LGIP Code (*)]],UnitRateParks[],8,FALSE),"Error") -> 1513934.316 | O94: 1513934 | P94: 2016 | Q94: 0.17 | R94: 257369 | S94: 1 | T94: 0.15 | U94: 230269 | V94: 2301808 | W94: 300236 | X94: 2024 | Y94: 0.025 | Z94: 0.01871653255 | AA94: =IF(FutureTrunkParks[[#This Row],[Asset Class]]="Local",VLOOKUP(FutureTrunkParks[[#This Row],[Service Catchment]],'Catchment Demand - Parks'!$C$8:$M$12,11),'Catchment Demand - Parks'!$M$12) -> 0.2213928202 | AB94: =_xlfn.IFS(FutureTrunkParks[[#This Row],[Year of Provision]]=2019,0,FutureTrunkParks[[#This Row],[Year of Provision]]=2024,FutureTrunkParks[[#This Row],[Total Assets Cost (at Base Year)]]/SUMIFS($AE$17:$AE$189,$X$17:$X$189,"2024",$E$17:$E$189,FutureTrunkParks[[#This Row],[Service Catchment]])) -> 0.0568100994 | AC94: =IF(AND(FutureTrunkParks[[#This Row],[Spare Capacity %]]>30%,FutureTrunkParks[[#This Row],[Share of the total Cost with the same year of provision %]]>20%),1-FutureTrunkParks[[#This Row],[Spare Capacity %]],1) -> 1 | AD94: =IF(FutureTrunkParks[[#This Row],[ Terminal Value Analysis]]<0,0,FutureTrunkParks[[#This Row],[ Terminal Value Analysis]]) -> 1 | AE94: 9501808 | AF94: 11442407 | AG94: 7228058 | AH94: =ROUND(FutureTrunkParks[[#This Row],[Net Present Value of Total Asset Cost]]*FutureTrunkParks[[#This Row],[Terminal Value Adjustment]],0) -> 7228058 | AM94: y | AS94: 1 | AT94: 1 | AZ94: 7228058 | BF94: 7228058
B95: PCF331 | C95: PAL-A5-001 | D95: District | E95: South | F95: Acquire and embellish land to provide DISTRICT SPORT infrastructure | G95: =MID(C95,5,2)&"-"&LEFT(D95,1) -> A5-D | H95: =IFERROR(INDEX(UnitRateParks[],MATCH(G95,UnitRateParks[LGIP Code],0),3),"") -> 40000 | I95: =IFERROR(MIN(K95/H95,INDEX(UnitRateParks[],MATCH(FutureTrunkParks[[#This Row],[LGIP Code (*)]], UnitRateParks[LGIP Code],0),4)),"") -> 3.237475 | K95: 129499 | L95: 60 | M95: 7769940 | N95: =IFERROR((VLOOKUP(FutureTrunkParks[[#This Row],[LGIP Code (*)]],UnitRateParks[],7,FALSE)*FutureTrunkParks[[#This Row],[Scaling factor (*)]]+VLOOKUP(FutureTrunkParks[[#This Row],[LGIP Code (*)]],UnitRateParks[],8,FALSE)-VLOOKUP(FutureTrunkParks[[#This Row],[LGIP Code (*)]],UnitRateParks[],6,FALSE))*18.5%+VLOOKUP(FutureTrunkParks[[#This Row],[LGIP Code (*)]],UnitRateParks[],7,FALSE)*FutureTrunkParks[[#This Row],[Scaling factor (*)]]+VLOOKUP(FutureTrunkParks[[#This Row],[LGIP Code (*)]],UnitRateParks[],8,FALSE),"Error") -> 4299993.803 | O95: 4299994 | P95: 2016 | Q95: 0.17 | R95: 730999 | S95: 1 | T95: 0.15 | U95: 654029 | V95: 6537775 | W95: 852753 | X95: 2024 | Y95: 0.025 | Z95: 0.01871653255 | AA95: =IF(FutureTrunkParks[[#This Row],[Asset Class]]="Local",VLOOKUP(FutureTrunkParks[[#This Row],[Service Catchment]],'Catchment Demand - Parks'!$C$8:$M$12,11),'Catchment Demand - Parks'!$M$12) -> 0.2213928202 | AB95: =_xlfn.IFS(FutureTrunkParks[[#This Row],[Year of Provision]]=2019,0,FutureTrunkParks[[#This Row],[Year of Provision]]=2024,FutureTrunkParks[[#This Row],[Total Assets Cost (at Base Year)]]/SUMIFS($AE$17:$AE$189,$X$17:$X$189,"2024",$E$17:$E$189,FutureTrunkParks[[#This Row],[Service Catchment]])) -> 0.08554400503 | AC95: =IF(AND(FutureTrunkParks[[#This Row],[Spare Capacity %]]>30%,FutureTrunkParks[[#This Row],[Share of the total Cost with the same year of provision %]]>20%),1-FutureTrunkParks[[#This Row],[Spare Capacity %]],1) -> 1 | AD95: =IF(FutureTrunkParks[[#This Row],[ Terminal Value Analysis]]<0,0,FutureTrunkParks[[#This Row],[ Terminal Value Analysis]]) -> 1 | AE95: 14307715 | AF95: 17050192 | AG95: 10770442 | AH95: =ROUND(FutureTrunkParks[[#This Row],[Net Present Value of Total Asset Cost]]*FutureTrunkParks[[#This Row],[Terminal Value Adjustment]],0) -> 10770442 | AM95: y | AS95: 1 | AT95: 1 | AZ95: 10770442 | BF95: 10770442
B96: PCF312 | C96: PAL-U3-010 | D96: District | E96: South | F96: Upgrade existing park infrastructure to value of up to $500k (District) | G96: =MID(C96,5,2) -> U3 | H96: =IFERROR(INDEX(UnitRateParks[],MATCH(G96,UnitRateParks[LGIP Code],0),3),"") -> 0 | I96: =IFERROR(MIN(K96/H96,INDEX(UnitRateParks[],MATCH(G96,UnitRateParks[LGIP Code],0),4)),"") ->  | K96: 57500 | L96: 0 | M96: 0 | N96: =IFERROR(INDEX(UnitRateParks[],MATCH($G96,UnitRateParks[LGIP Code],0),15),"Error") -> 500000 | O96: 500000 | P96: 2016 | Q96: 0.17 | R96: 85000 | S96: 1 | T96: 0.075 | U96: 76050 | V96: 710629 | W96: 49579 | X96: 2019 | Y96: 0.025 | Z96: 0.01871653255 | AA96: =IF(FutureTrunkParks[[#This Row],[Asset Class]]="Local",VLOOKUP(FutureTrunkParks[[#This Row],[Service Catchment]],'Catchment Demand - Parks'!$C$8:$M$12,11),'Catchment Demand - Parks'!$M$12) -> 0.2213928202 | AB96: =_xlfn.IFS(FutureTrunkParks[[#This Row],[Year of Provision]]=2019,0,FutureTrunkParks[[#This Row],[Year of Provision]]=2024,FutureTrunkParks[[#This Row],[Total Assets Cost (at Base Year)]]/SUMIFS($AE$17:$AE$189,$X$17:$X$189,"2024",$E$17:$E$189,FutureTrunkParks[[#This Row],[Service Catchment]])) -> 0 | AC96: =IF(AND(FutureTrunkParks[[#This Row],[Spare Capacity %]]>30%,FutureTrunkParks[[#This Row],[Share of the total Cost with the same year of provision %]]>20%),1-FutureTrunkParks[[#This Row],[Spare Capacity %]],1) -> 1 | AD96: =IF(FutureTrunkParks[[#This Row],[ Terminal Value Analysis]]<0,0,FutureTrunkParks[[#This Row],[ Terminal Value Analysis]]) -> 1 | AE96: 710629 | AF96: 751282 | AG96: 632400 | AH96: =ROUND(FutureTrunkParks[[#This Row],[Net Present Value of Total Asset Cost]]*FutureTrunkParks[[#This Row],[Terminal Value Adjustment]],0) -> 632400 | AM96: y | AS96: 1 | AT96: 1 | AZ96: 632400 | BF96: 632400
B97: PCF290 | C97: RIC-A1-003 | D97: Local | E97: South | F97: Acquire and embellish land to provide LOCAL RECREATION infrastructure | G97: =MID(C97,5,2)&"-"&LEFT(D97,1) -> A1-L | H97: =IFERROR(INDEX(UnitRateParks[],MATCH(G97,UnitRateParks[LGIP Code],0),3),"") -> 8000 | I97: =IFERROR(MIN(K97/H97,INDEX(UnitRateParks[],MATCH(FutureTrunkParks[[#This Row],[LGIP Code (*)]], UnitRateParks[LGIP Code],0),4)),"") -> 0.625 | K97: 5000 | L97: 200 | M97: 1000000 | N97: =IFERROR((VLOOKUP(FutureTrunkParks[[#This Row],[LGIP Code (*)]],UnitRateParks[],7,FALSE)*FutureTrunkParks[[#This Row],[Scaling factor (*)]]+VLOOKUP(FutureTrunkParks[[#This Row],[LGIP Code (*)]],UnitRateParks[],8,FALSE)-VLOOKUP(FutureTrunkParks[[#This Row],[LGIP Code (*)]],UnitRateParks[],6,FALSE))*18.5%+VLOOKUP(FutureTrunkParks[[#This Row],[LGIP Code (*)]],UnitRateParks[],7,FALSE)*FutureTrunkParks[[#This Row],[Scaling factor (*)]]+VLOOKUP(FutureTrunkParks[[#This Row],[LGIP Code (*)]],UnitRateParks[],8,FALSE),"Error") -> 180527.253 | O97: 180527 | P97: 2016 | Q97: 0.17 | R97: 30690 | S97: 1 | T97: 0.075 | U97: 27458 | V97: 256576 | W97: 17901 | X97: 2019 | Y97: 0.025 | Z97: 0.01871653255 | AA97: =IF(FutureTrunkParks[[#This Row],[Asset Class]]="Local",VLOOKUP(FutureTrunkParks[[#This Row],[Service Catchment]],'Catchment Demand - Parks'!$C$8:$M$12,11),'Catchment Demand - Parks'!$M$12) -> 0.2365306507 | AB97: =_xlfn.IFS(FutureTrunkParks[[#This Row],[Year of Provision]]=2019,0,FutureTrunkParks[[#This Row],[Year of Provision]]=2024,FutureTrunkParks[[#This Row],[Total Assets Cost (at Base Year)]]/SUMIFS($AE$17:$AE$189,$X$17:$X$189,"2024",$E$17:$E$189,FutureTrunkParks[[#This Row],[Service Catchment]])) -> 0 | AC97: =IF(AND(FutureTrunkParks[[#This Row],[Spare Capacity %]]>30%,FutureTrunkParks[[#This Row],[Share of the total Cost with the same year of provision %]]>20%),1-FutureTrunkParks[[#This Row],[Spare Capacity %]],1) -> 1 | AD97: =IF(FutureTrunkParks[[#This Row],[ Terminal Value Analysis]]<0,0,FutureTrunkParks[[#This Row],[ Terminal Value Analysis]]) -> 1 | AE97: 1256576 | AF97: 1348145 | AG97: 1134817 | AH97: =ROUND(FutureTrunkParks[[#This Row],[Net Present Value of Total Asset Cost]]*FutureTrunkParks[[#This Row],[Terminal Value Adjustment]],0) -> 1134817 | AK97: y | AQ97: 1 | AT97: 1 | AX97: 1134817 | BD97: 1134817
B98: PCF290 | C98: RIC-A1-005 | D98: Local | E98: South | F98: Acquire and embellish land to provide LOCAL RECREATION infrastructure | G98: A1-L | H98: =IFERROR(INDEX(UnitRateParks[],MATCH(G98,UnitRateParks[LGIP Code],0),3),"") -> 8000 | I98: =IFERROR(MIN(K98/H98,INDEX(UnitRateParks[],MATCH(FutureTrunkParks[[#This Row],[LGIP Code (*)]], UnitRateParks[LGIP Code],0),4)),"") -> 1.145 | K98: 9160 | L98: 140 | M98: 1282400 | N98: =IFERROR((VLOOKUP(FutureTrunkParks[[#This Row],[LGIP Code (*)]],UnitRateParks[],7,FALSE)*FutureTrunkParks[[#This Row],[Scaling factor (*)]]+VLOOKUP(FutureTrunkParks[[#This Row],[LGIP Code (*)]],UnitRateParks[],8,FALSE)-VLOOKUP(FutureTrunkParks[[#This Row],[LGIP Code (*)]],UnitRateParks[],6,FALSE))*18.5%+VLOOKUP(FutureTrunkParks[[#This Row],[LGIP Code (*)]],UnitRateParks[],7,FALSE)*FutureTrunkParks[[#This Row],[Scaling factor (*)]]+VLOOKUP(FutureTrunkParks[[#This Row],[LGIP Code (*)]],UnitRateParks[],8,FALSE),"Error") -> 307663.085 | O98: 307663 | P98: 2016 | Q98: 0.17 | R98: 52303 | S98: 1 | T98: 0.075 | U98: 46796 | V98: 437269 | W98: 30507 | X98: 2019 | Y98: 0.025 | Z98: 0.01871653255 | AA98: =IF(FutureTrunkParks[[#This Row],[Asset Class]]="Local",VLOOKUP(FutureTrunkParks[[#This Row],[Service Catchment]],'Catchment Demand - Parks'!$C$8:$M$12,11),'Catchment Demand - Parks'!$M$12) -> 0.2365306507 | AB98: =_xlfn.IFS(FutureTrunkParks[[#This Row],[Year of Provision]]=2019,0,FutureTrunkParks[[#This Row],[Year of Provision]]=2024,FutureTrunkParks[[#This Row],[Total Assets Cost (at Base Year)]]/SUMIFS($AE$17:$AE$189,$X$17:$X$189,"2024",$E$17:$E$189,FutureTrunkParks[[#This Row],[Service Catchment]])) -> 0 | AC98: =IF(AND(FutureTrunkParks[[#This Row],[Spare Capacity %]]>30%,FutureTrunkParks[[#This Row],[Share of the total Cost with the same year of provision %]]>20%),1-FutureTrunkParks[[#This Row],[Spare Capacity %]],1) -> 1 | AD98: =IF(FutureTrunkParks[[#This Row],[ Terminal Value Analysis]]<0,0,FutureTrunkParks[[#This Row],[ Terminal Value Analysis]]) -> 1 | AE98: 1719669 | AF98: 1843288 | AG98: 1551609 | AH98: =ROUND(FutureTrunkParks[[#This Row],[Net Present Value of Total Asset Cost]]*FutureTrunkParks[[#This Row],[Terminal Value Adjustment]],0) -> 1551609 | AK98: y | AQ98: 1 | AT98: 1 | AX98: 1551609 | BD98: 1551609
B99: PCF290 | C99: RIC-E1-001 | D99: Local | E99: South | F99: Provide LOCAL RECREATION infrastructure | G99: E1-L | H99: =IFERROR(INDEX(UnitRateParks[],MATCH(G99,UnitRateParks[LGIP Code],0),3),"") -> 8000 | I99: =IFERROR(MIN(K99/H99,INDEX(UnitRateParks[],MATCH(FutureTrunkParks[[#This Row],[LGIP Code (*)]], UnitRateParks[LGIP Code],0),4)),"") -> 2.9125 | K99: 23300 | L99: 0 | M99: 0 | N99: =IFERROR((VLOOKUP(FutureTrunkParks[[#This Row],[LGIP Code (*)]],UnitRateParks[],10,FALSE)*FutureTrunkParks[[#This Row],[Scaling factor (*)]]+VLOOKUP(FutureTrunkParks[[#This Row],[LGIP Code (*)]],UnitRateParks[],11,FALSE))*18.5%+VLOOKUP(FutureTrunkParks[[#This Row],[LGIP Code (*)]],UnitRateParks[],11,FALSE)+VLOOKUP(FutureTrunkParks[[#This Row],[LGIP Code (*)]],UnitRateParks[],10,FALSE)*FutureTrunkParks[[#This Row],[Scaling factor (*)]]+(VLOOKUP(FutureTrunkParks[[#This Row],[LGIP Code (*)]],UnitRateParks[],13,FALSE)*FutureTrunkParks[[#This Row],[Scaling factor (*)]]+VLOOKUP(FutureTrunkParks[[#This Row],[LGIP Code (*)]],UnitRateParks[],14,FALSE))*18.5%+VLOOKUP(FutureTrunkParks[[#This Row],[LGIP Code (*)]],UnitRateParks[],14,FALSE)+VLOOKUP(FutureTrunkParks[[#This Row],[LGIP Code (*)]],UnitRateParks[],13,FALSE)*FutureTrunkParks[[#This Row],[Scaling factor (*)]],"Error") -> 514515.1779 | O99: 514515 | P99: 2016 | Q99: 0.17 | R99: 87468 | S99: 1 | T99: 0.075 | U99: 78258 | V99: 731259 | W99: 51018 | X99: 2019 | Y99: 0.025 | Z99: 0.01871653255 | AA99: =IF(FutureTrunkParks[[#This Row],[Asset Class]]="Local",VLOOKUP(FutureTrunkParks[[#This Row],[Service Catchment]],'Catchment Demand - Parks'!$C$8:$M$12,11),'Catchment Demand - Parks'!$M$12) -> 0.2365306507 | AB99: =_xlfn.IFS(FutureTrunkParks[[#This Row],[Year of Provision]]=2019,0,FutureTrunkParks[[#This Row],[Year of Provision]]=2024,FutureTrunkParks[[#This Row],[Total Assets Cost (at Base Year)]]/SUMIFS($AE$17:$AE$189,$X$17:$X$189,"2024",$E$17:$E$189,FutureTrunkParks[[#This Row],[Service Catchment]])) -> 0 | AC99: =IF(AND(FutureTrunkParks[[#This Row],[Spare Capacity %]]>30%,FutureTrunkParks[[#This Row],[Share of the total Cost with the same year of provision %]]>20%),1-FutureTrunkParks[[#This Row],[Spare Capacity %]],1) -> 1 | AD99: =IF(FutureTrunkParks[[#This Row],[ Terminal Value Analysis]]<0,0,FutureTrunkParks[[#This Row],[ Terminal Value Analysis]]) -> 1 | AE99: 731259 | AF99: 773092 | AG99: 650759 | AH99: =ROUND(FutureTrunkParks[[#This Row],[Net Present Value of Total Asset Cost]]*FutureTrunkParks[[#This Row],[Terminal Value Adjustment]],0) -> 650759 | AK99: y | AQ99: 1 | AT99: 1 | AX99: 650759 | BD99: 650759
B100: PCF290 | C100: RIC-E5-001 | D100: District | E100: South | F100: Provide DISTRICT SPORT infrastructure | G100: E5-D | H100: =IFERROR(INDEX(UnitRateParks[],MATCH(G100,UnitRateParks[LGIP Code],0),3),"") -> 40000 | I100: =IFERROR(MIN(K100/H100,INDEX(UnitRateParks[],MATCH(FutureTrunkParks[[#This Row],[LGIP Code (*)]], UnitRateParks[LGIP Code],0),4)),"") -> 1.355 | K100: 54200 | L100: 0 | M100: 0 | N100: =IFERROR((VLOOKUP(FutureTrunkParks[[#This Row],[LGIP Code (*)]],UnitRateParks[],10,FALSE)*FutureTrunkParks[[#This Row],[Scaling factor (*)]]+VLOOKUP(FutureTrunkParks[[#This Row],[LGIP Code (*)]],UnitRateParks[],11,FALSE))*18.5%+VLOOKUP(FutureTrunkParks[[#This Row],[LGIP Code (*)]],UnitRateParks[],11,FALSE)+VLOOKUP(FutureTrunkParks[[#This Row],[LGIP Code (*)]],UnitRateParks[],10,FALSE)*FutureTrunkParks[[#This Row],[Scaling factor (*)]]+(VLOOKUP(FutureTrunkParks[[#This Row],[LGIP Code (*)]],UnitRateParks[],13,FALSE)*FutureTrunkParks[[#This Row],[Scaling factor (*)]]+VLOOKUP(FutureTrunkParks[[#This Row],[LGIP Code (*)]],UnitRateParks[],14,FALSE))*18.5%+VLOOKUP(FutureTrunkParks[[#This Row],[LGIP Code (*)]],UnitRateParks[],14,FALSE)+VLOOKUP(FutureTrunkParks[[#This Row],[LGIP Code (*)]],UnitRateParks[],13,FALSE)*FutureTrunkParks[[#This Row],[Scaling factor (*)]],"Error") -> 6773966.55 | O100: 6773967 | P100: 2016 | Q100: 0.17 | R100: 1151574 | S100: 1 | T100: 0.15 | U100: 1030320 | V100: 10299240 | W100: 1343379 | X100: 2024 | Y100: 0.025 | Z100: 0.01871653255 | AA100: =IF(FutureTrunkParks[[#This Row],[Asset Class]]="Local",VLOOKUP(FutureTrunkParks[[#This Row],[Service Catchment]],'Catchment Demand - Parks'!$C$8:$M$12,11),'Catchment Demand - Parks'!$M$12) -> 0.2213928202 | AB100: =_xlfn.IFS(FutureTrunkParks[[#This Row],[Year of Provision]]=2019,0,FutureTrunkParks[[#This Row],[Year of Provision]]=2024,FutureTrunkParks[[#This Row],[Total Assets Cost (at Base Year)]]/SUMIFS($AE$17:$AE$189,$X$17:$X$189,"2024",$E$17:$E$189,FutureTrunkParks[[#This Row],[Service Catchment]])) -> 0.06157784373 | AC100: =IF(AND(FutureTrunkParks[[#This Row],[Spare Capacity %]]>30%,FutureTrunkParks[[#This Row],[Share of the total Cost with the same year of provision %]]>20%),1-FutureTrunkParks[[#This Row],[Spare Capacity %]],1) -> 1 | AD100: =IF(FutureTrunkParks[[#This Row],[ Terminal Value Analysis]]<0,0,FutureTrunkParks[[#This Row],[ Terminal Value Analysis]]) -> 1 | AE100: 10299240 | AF100: 11946261 | AG100: 7546338 | AH100: =ROUND(FutureTrunkParks[[#This Row],[Net Present Value of Total Asset Cost]]*FutureTrunkParks[[#This Row],[Terminal Value Adjustment]],0) -> 7546338 | AM100: y | AS100: 1 | AT100: 1 | AZ100: 7546338 | BF100: 7546338
B101: PCF273 | C101: ROB-A1-001 | D101: Local | E101: South | F101: Acquire and embellish land to provide LOCAL RECREATION infrastructure | G101: A1-L | H101: =IFERROR(INDEX(UnitRateParks[],MATCH(G101,UnitRateParks[LGIP Code],0),3),"") -> 8000 | I101: =IFERROR(MIN(K101/H101,INDEX(UnitRateParks[],MATCH(FutureTrunkParks[[#This Row],[LGIP Code (*)]], UnitRateParks[LGIP Code],0),4)),"") -> 0.625 | K101: 5000 | L101: 350 | M101: 1750000 | N101: =IFERROR((VLOOKUP(FutureTrunkParks[[#This Row],[LGIP Code (*)]],UnitRateParks[],7,FALSE)*FutureTrunkParks[[#This Row],[Scaling factor (*)]]+VLOOKUP(FutureTrunkParks[[#This Row],[LGIP Code (*)]],UnitRateParks[],8,FALSE)-VLOOKUP(FutureTrunkParks[[#This Row],[LGIP Code (*)]],UnitRateParks[],6,FALSE))*18.5%+VLOOKUP(FutureTrunkParks[[#This Row],[LGIP Code (*)]],UnitRateParks[],7,FALSE)*FutureTrunkParks[[#This Row],[Scaling factor (*)]]+VLOOKUP(FutureTrunkParks[[#This Row],[LGIP Code (*)]],UnitRateParks[],8,FALSE),"Error") -> 180527.253 | O101: 180527 | P101: 2016 | Q101: 0.17 | R101: 30690 | S101: 1 | T101: 0.075 | U101: 27458 | V101: 256576 | W101: 17901 | X101: 2019 | Y101: 0.025 | Z101: 0.01871653255 | AA101: =IF(FutureTrunkParks[[#This Row],[Asset Class]]="Local",VLOOKUP(FutureTrunkParks[[#This Row],[Service Catchment]],'Catchment Demand - Parks'!$C$8:$M$12,11),'Catchment Demand - Parks'!$M$12) -> 0.2365306507 | AB101: =_xlfn.IFS(FutureTrunkParks[[#This Row],[Year of Provision]]=2019,0,FutureTrunkParks[[#This Row],[Year of Provision]]=2024,FutureTrunkParks[[#This Row],[Total Assets Cost (at Base Year)]]/SUMIFS($AE$17:$AE$189,$X$17:$X$189,"2024",$E$17:$E$189,FutureTrunkParks[[#This Row],[Service Catchment]])) -> 0 | AC101: =IF(AND(FutureTrunkParks[[#This Row],[Spare Capacity %]]>30%,FutureTrunkParks[[#This Row],[Share of the total Cost with the same year of provision %]]>20%),1-FutureTrunkParks[[#This Row],[Spare Capacity %]],1) -> 1 | AD101: =IF(FutureTrunkParks[[#This Row],[ Terminal Value Analysis]]<0,0,FutureTrunkParks[[#This Row],[ Terminal Value Analysis]]) -> 1 | AE101: 2006576 | AF101: 2155813 | AG101: 1814681 | AH101: =ROUND(FutureTrunkParks[[#This Row],[Net Present Value of Total Asset Cost]]*FutureTrunkParks[[#This Row],[Terminal Value Adjustment]],0) -> 1814681 | AK101: y | AQ101: 1 | AT101: 1 | AX101: 1814681 | BD101: 1814681
B102: PCF295 | C102: ROC-A1-002 | D102: Local | E102: East | F102: Acquire and embellish land to provide LOCAL RECREATION infrastructure | G102: A1-L | H102: =IFERROR(INDEX(UnitRateParks[],MATCH(G102,UnitRateParks[LGIP Code],0),3),"") -> 8000 | I102: =IFERROR(MIN(K102/H102,INDEX(UnitRateParks[],MATCH(FutureTrunkParks[[#This Row],[LGIP Code (*)]], UnitRateParks[LGIP Code],0),4)),"") -> 0.75 | K102: 6000 | L102: 166.75 | M102: 1000500 | N102: =IFERROR((VLOOKUP(FutureTrunkParks[[#This Row],[LGIP Code (*)]],UnitRateParks[],7,FALSE)*FutureTrunkParks[[#This Row],[Scaling factor (*)]]+VLOOKUP(FutureTrunkParks[[#This Row],[LGIP Code (*)]],UnitRateParks[],8,FALSE)-VLOOKUP(FutureTrunkParks[[#This Row],[LGIP Code (*)]],UnitRateParks[],6,FALSE))*18.5%+VLOOKUP(FutureTrunkParks[[#This Row],[LGIP Code (*)]],UnitRateParks[],7,FALSE)*FutureTrunkParks[[#This Row],[Scaling factor (*)]]+VLOOKUP(FutureTrunkParks[[#This Row],[LGIP Code (*)]],UnitRateParks[],8,FALSE),"Error") -> 211088.7511 | O102: 211089 | P102: 2016 | Q102: 0.17 | R102: 35885 | S102: 1 | T102: 0.15 | U102: 32107 | V102: 320943 | W102: 41862 | X102: 2024 | Y102: 0.025 | Z102: 0.01871653255 | AA102: =IF(FutureTrunkParks[[#This Row],[Asset Class]]="Local",VLOOKUP(FutureTrunkParks[[#This Row],[Service Catchment]],'Catchment Demand - Parks'!$C$8:$M$12,11),'Catchment Demand - Parks'!$M$12) -> 0.2396431883 | AB102: =_xlfn.IFS(FutureTrunkParks[[#This Row],[Year of Provision]]=2019,0,FutureTrunkParks[[#This Row],[Year of Provision]]=2024,FutureTrunkParks[[#This Row],[Total Assets Cost (at Base Year)]]/SUMIFS($AE$17:$AE$189,$X$17:$X$189,"2024",$E$17:$E$189,FutureTrunkParks[[#This Row],[Service Catchment]])) -> 0.01323704655 | AC102: =IF(AND(FutureTrunkParks[[#This Row],[Spare Capacity %]]>30%,FutureTrunkParks[[#This Row],[Share of the total Cost with the same year of provision %]]>20%),1-FutureTrunkParks[[#This Row],[Spare Capacity %]],1) -> 1 | AD102: =IF(FutureTrunkParks[[#This Row],[ Terminal Value Analysis]]<0,0,FutureTrunkParks[[#This Row],[ Terminal Value Analysis]]) -> 1 | AE102: 1321443 | AF102: 1591279 | AG102: 1005196 | AH102: =ROUND(FutureTrunkParks[[#This Row],[Net Present Value of Total Asset Cost]]*FutureTrunkParks[[#This Row],[Terminal Value Adjustment]],0) -> 1005196 | AI102: y | AO102: 1 | AT102: 1 | AV102: 1005196 | BB102: 1005196
B103: PCF295 | C103: ROC-A1-003 | D103: Local | E103: East | F103: Acquire and embellish land to provide LOCAL RECREATION infrastructure | G103: A1-L | H103: =IFERROR(INDEX(UnitRateParks[],MATCH(G103,UnitRateParks[LGIP Code],0),3),"") -> 8000 | I103: =IFERROR(MIN(K103/H103,INDEX(UnitRateParks[],MATCH(FutureTrunkParks[[#This Row],[LGIP Code (*)]], UnitRateParks[LGIP Code],0),4)),"") -> 0.625 | K103: 5000 | L103: 145 | M103: 725000 | N103: =IFERROR((VLOOKUP(FutureTrunkParks[[#This Row],[LGIP Code (*)]],UnitRateParks[],7,FALSE)*FutureTrunkParks[[#This Row],[Scaling factor (*)]]+VLOOKUP(FutureTrunkParks[[#This Row],[LGIP Code (*)]],UnitRateParks[],8,FALSE)-VLOOKUP(FutureTrunkParks[[#This Row],[LGIP Code (*)]],UnitRateParks[],6,FALSE))*18.5%+VLOOKUP(FutureTrunkParks[[#This Row],[LGIP Code (*)]],UnitRateParks[],7,FALSE)*FutureTrunkParks[[#This Row],[Scaling factor (*)]]+VLOOKUP(FutureTrunkParks[[#This Row],[LGIP Code (*)]],UnitRateParks[],8,FALSE),"Error") -> 180527.253 | O103: 180527 | P103: 2016 | Q103: 0.17 | R103: 30690 | S103: 1 | T103: 0.075 | U103: 27458 | V103: 256576 | W103: 17901 | X103: 2019 | Y103: 0.025 | Z103: 0.01871653255 | AA103: =IF(FutureTrunkParks[[#This Row],[Asset Class]]="Local",VLOOKUP(FutureTrunkParks[[#This Row],[Service Catchment]],'Catchment Demand - Parks'!$C$8:$M$12,11),'Catchment Demand - Parks'!$M$12) -> 0.2396431883 | AB103: =_xlfn.IFS(FutureTrunkParks[[#This Row],[Year of Provision]]=2019,0,FutureTrunkParks[[#This Row],[Year of Provision]]=2024,FutureTrunkParks[[#This Row],[Total Assets Cost (at Base Year)]]/SUMIFS($AE$17:$AE$189,$X$17:$X$189,"2024",$E$17:$E$189,FutureTrunkParks[[#This Row],[Service Catchment]])) -> 0 | AC103: =IF(AND(FutureTrunkParks[[#This Row],[Spare Capacity %]]>30%,FutureTrunkParks[[#This Row],[Share of the total Cost with the same year of provision %]]>20%),1-FutureTrunkParks[[#This Row],[Spare Capacity %]],1) -> 1 | AD103: =IF(FutureTrunkParks[[#This Row],[ Terminal Value Analysis]]<0,0,FutureTrunkParks[[#This Row],[ Terminal Value Analysis]]) -> 1 | AE103: 981576 | AF103: 1052000 | AG103: 885533 | AH103: =ROUND(FutureTrunkParks[[#This Row],[Net Present Value of Total Asset Cost]]*FutureTrunkParks[[#This Row],[Terminal Value Adjustment]],0) -> 885533 | AI103: y | AO103: 1 | AT103: 1 | AV103: 885533 | BB103: 885533
B104: PCF275 | C104: ROC-A1-007 | D104: Local | E104: East | F104: Acquire and embellish land to provide LOCAL RECREATION infrastructure | G104: A1-L | H104: =IFERROR(INDEX(UnitRateParks[],MATCH(G104,UnitRateParks[LGIP Code],0),3),"") -> 8000 | I104: =IFERROR(MIN(K104/H104,INDEX(UnitRateParks[],MATCH(FutureTrunkParks[[#This Row],[LGIP Code (*)]], UnitRateParks[LGIP Code],0),4)),"") -> 0.875 | K104: 7000 | L104: 109 | M104: 763000 | N104: =IFERROR((VLOOKUP(FutureTrunkParks[[#This Row],[LGIP Code (*)]],UnitRateParks[],7,FALSE)*FutureTrunkParks[[#This Row],[Scaling factor (*)]]+VLOOKUP(FutureTrunkParks[[#This Row],[LGIP Code (*)]],UnitRateParks[],8,FALSE)-VLOOKUP(FutureTrunkParks[[#This Row],[LGIP Code (*)]],UnitRateParks[],6,FALSE))*18.5%+VLOOKUP(FutureTrunkParks[[#This Row],[LGIP Code (*)]],UnitRateParks[],7,FALSE)*FutureTrunkParks[[#This Row],[Scaling factor (*)]]+VLOOKUP(FutureTrunkParks[[#This Row],[LGIP Code (*)]],UnitRateParks[],8,FALSE),"Error") -> 241650.2492 | O104: 241650 | P104: 2016 | Q104: 0.17 | R104: 41081 | S104: 1 | T104: 0.075 | U104: 36755 | V104: 343447 | W104: 23961 | X104: 2019 | Y104: =Landind -> 0.025 | Z104: =PPI -> 0.01871653255 | AA104: =IF(FutureTrunkParks[[#This Row],[Asset Class]]="Local",VLOOKUP(FutureTrunkParks[[#This Row],[Service Catchment]],'Catchment Demand - Parks'!$C$8:$M$12,11),'Catchment Demand - Parks'!$M$12) -> 0.2396431883 | AB104: =_xlfn.IFS(FutureTrunkParks[[#This Row],[Year of Provision]]=2019,0,FutureTrunkParks[[#This Row],[Year of Provision]]=2024,FutureTrunkParks[[#This Row],[Total Assets Cost (at Base Year)]]/SUMIFS($AE$17:$AE$189,$X$17:$X$189,"2024",$E$17:$E$189,FutureTrunkParks[[#This Row],[Service Catchment]])) -> 0 | AC104: =IF(AND(FutureTrunkParks[[#This Row],[Spare Capacity %]]>30%,FutureTrunkParks[[#This Row],[Share of the total Cost with the same year of provision %]]>20%),1-FutureTrunkParks[[#This Row],[Spare Capacity %]],1) -> 1 | AD104: =IF(FutureTrunkParks[[#This Row],[ Terminal Value Analysis]]<0,0,FutureTrunkParks[[#This Row],[ Terminal Value Analysis]]) -> 1 | AE104: 1106447 | AF104: 1184762 | AG104: 997287 | AH104: =ROUND(FutureTrunkParks[[#This Row],[Net Present Value of Total Asset Cost]]*FutureTrunkParks[[#This Row],[Terminal Value Adjustment]],0) -> 997287 | AI104: y | AO104: 1 | AT104: 1 | AV104: 997287 | BB104: 997287
B105: PCF276 | C105: ROC-A1-010 | D105: Local | E105: East | F105: Acquire and embellish land to provide LOCAL RECREATION infrastructure | G105: A1-L | H105: =IFERROR(INDEX(UnitRateParks[],MATCH(G105,UnitRateParks[LGIP Code],0),3),"") -> 8000 | I105: =IFERROR(MIN(K105/H105,INDEX(UnitRateParks[],MATCH(FutureTrunkParks[[#This Row],[LGIP Code (*)]], UnitRateParks[LGIP Code],0),4)),"") -> 1.25 | K105: 10000 | L105: 145 | M105: 1450000 | N105: =IFERROR((VLOOKUP(FutureTrunkParks[[#This Row],[LGIP Code (*)]],UnitRateParks[],7,FALSE)*FutureTrunkParks[[#This Row],[Scaling factor (*)]]+VLOOKUP(FutureTrunkParks[[#This Row],[LGIP Code (*)]],UnitRateParks[],8,FALSE)-VLOOKUP(FutureTrunkParks[[#This Row],[LGIP Code (*)]],UnitRateParks[],6,FALSE))*18.5%+VLOOKUP(FutureTrunkParks[[#This Row],[LGIP Code (*)]],UnitRateParks[],7,FALSE)*FutureTrunkParks[[#This Row],[Scaling factor (*)]]+VLOOKUP(FutureTrunkParks[[#This Row],[LGIP Code (*)]],UnitRateParks[],8,FALSE),"Error") -> 333334.7434 | O105: 333335 | P105: 2016 | Q105: 0.17 | R105: 56667 | S105: 1 | T105: 0.15 | U105: 50700 | V105: 506807 | W105: 66105 | X105: 2024 | Y105: 0.025 | Z105: 0.01871653255 | AA105: =IF(FutureTrunkParks[[#This Row],[Asset Class]]="Local",VLOOKUP(FutureTrunkParks[[#This Row],[Service Catchment]],'Catchment Demand - Parks'!$C$8:$M$12,11),'Catchment Demand - Parks'!$M$12) -> 0.2396431883 | AB105: =_xlfn.IFS(FutureTrunkParks[[#This Row],[Year of Provision]]=2019,0,FutureTrunkParks[[#This Row],[Year of Provision]]=2024,FutureTrunkParks[[#This Row],[Total Assets Cost (at Base Year)]]/SUMIFS($AE$17:$AE$189,$X$17:$X$189,"2024",$E$17:$E$189,FutureTrunkParks[[#This Row],[Service Catchment]])) -> 0.01960156083 | AC105: =IF(AND(FutureTrunkParks[[#This Row],[Spare Capacity %]]>30%,FutureTrunkParks[[#This Row],[Share of the total Cost with the same year of provision %]]>20%),1-FutureTrunkParks[[#This Row],[Spare Capacity %]],1) -> 1 | AD105: =IF(FutureTrunkParks[[#This Row],[ Terminal Value Analysis]]<0,0,FutureTrunkParks[[#This Row],[ Terminal Value Analysis]]) -> 1 | AE105: 1956807 | AF105: 2354538 | AG105: 1487339 | AH105: =ROUND(FutureTrunkParks[[#This Row],[Net Present Value of Total Asset Cost]]*FutureTrunkParks[[#This Row],[Terminal Value Adjustment]],0) -> 1487339 | AI105: y | AO105: 1 | AT105: 1 | AV105: 1487339 | BB105: 1487339
B106: PCF276 | C106: ROC-A1-011 | D106: Local | E106: East | F106: Acquire and embellish land to provide LOCAL RECREATION infrastructure | G106: A1-L | H106: =IFERROR(INDEX(UnitRateParks[],MATCH(G106,UnitRateParks[LGIP Code],0),3),"") -> 8000 | I106: =IFERROR(MIN(K106/H106,INDEX(UnitRateParks[],MATCH(FutureTrunkParks[[#This Row],[LGIP Code (*)]], UnitRateParks[LGIP Code],0),4)),"") -> 0.625 | K106: 5000 | L106: 145 | M106: 725000 | N106: =IFERROR((VLOOKUP(FutureTrunkParks[[#This Row],[LGIP Code (*)]],UnitRateParks[],7,FALSE)*FutureTrunkParks[[#This Row],[Scaling factor (*)]]+VLOOKUP(FutureTrunkParks[[#This Row],[LGIP Code (*)]],UnitRateParks[],8,FALSE)-VLOOKUP(FutureTrunkParks[[#This Row],[LGIP Code (*)]],UnitRateParks[],6,FALSE))*18.5%+VLOOKUP(FutureTrunkParks[[#This Row],[LGIP Code (*)]],UnitRateParks[],7,FALSE)*FutureTrunkParks[[#This Row],[Scaling factor (*)]]+VLOOKUP(FutureTrunkParks[[#This Row],[LGIP Code (*)]],UnitRateParks[],8,FALSE),"Error") -> 180527.253 | O106: 180527 | P106: 2016 | Q106: 0.17 | R106: 30690 | S106: 1 | T106: 0.075 | U106: 27458 | V106: 256576 | W106: 17901 | X106: 2019 | Y106: 0.025 | Z106: 0.01871653255 | AA106: =IF(FutureTrunkParks[[#This Row],[Asset Class]]="Local",VLOOKUP(FutureTrunkParks[[#This Row],[Service Catchment]],'Catchment Demand - Parks'!$C$8:$M$12,11),'Catchment Demand - Parks'!$M$12) -> 0.2396431883 | AB106: =_xlfn.IFS(FutureTrunkParks[[#This Row],[Year of Provision]]=2019,0,FutureTrunkParks[[#This Row],[Year of Provision]]=2024,FutureTrunkParks[[#This Row],[Total Assets Cost (at Base Year)]]/SUMIFS($AE$17:$AE$189,$X$17:$X$189,"2024",$E$17:$E$189,FutureTrunkParks[[#This Row],[Service Catchment]])) -> 0 | AC106: =IF(AND(FutureTrunkParks[[#This Row],[Spare Capacity %]]>30%,FutureTrunkParks[[#This Row],[Share of the total Cost with the same year of provision %]]>20%),1-FutureTrunkParks[[#This Row],[Spare Capacity %]],1) -> 1 | AD106: =IF(FutureTrunkParks[[#This Row],[ Terminal Value Analysis]]<0,0,FutureTrunkParks[[#This Row],[ Terminal Value Analysis]]) -> 1 | AE106: 981576 | AF106: 1052000 | AG106: 885533 | AH106: =ROUND(FutureTrunkParks[[#This Row],[Net Present Value of Total Asset Cost]]*FutureTrunkParks[[#This Row],[Terminal Value Adjustment]],0) -> 885533 | AI106: y | AO106: 1 | AT106: 1 | AV106: 885533 | BB106: 885533
B107: PCF276 | C107: ROC-A1-012 | D107: Local | E107: East | F107: Acquire and embellish land to provide LOCAL RECREATION infrastructure | G107: A1-L | H107: =IFERROR(INDEX(UnitRateParks[],MATCH(G107,UnitRateParks[LGIP Code],0),3),"") -> 8000 | I107: =IFERROR(MIN(K107/H107,INDEX(UnitRateParks[],MATCH(FutureTrunkParks[[#This Row],[LGIP Code (*)]], UnitRateParks[LGIP Code],0),4)),"") -> 1.25 | K107: 10000 | L107: 175 | M107: 1750000 | N107: =IFERROR((VLOOKUP(FutureTrunkParks[[#This Row],[LGIP Code (*)]],UnitRateParks[],7,FALSE)*FutureTrunkParks[[#This Row],[Scaling factor (*)]]+VLOOKUP(FutureTrunkParks[[#This Row],[LGIP Code (*)]],UnitRateParks[],8,FALSE)-VLOOKUP(FutureTrunkParks[[#This Row],[LGIP Code (*)]],UnitRateParks[],6,FALSE))*18.5%+VLOOKUP(FutureTrunkParks[[#This Row],[LGIP Code (*)]],UnitRateParks[],7,FALSE)*FutureTrunkParks[[#This Row],[Scaling factor (*)]]+VLOOKUP(FutureTrunkParks[[#This Row],[LGIP Code (*)]],UnitRateParks[],8,FALSE),"Error") -> 333334.7434 | O107: 333335 | P107: 2016 | Q107: 0.17 | R107: 56667 | S107: 1 | T107: 0.15 | U107: 50700 | V107: 506807 | W107: 66105 | X107: 2024 | Y107: 0.025 | Z107: 0.01871653255 | AA107: =IF(FutureTrunkParks[[#This Row],[Asset Class]]="Local",VLOOKUP(FutureTrunkParks[[#This Row],[Service Catchment]],'Catchment Demand - Parks'!$C$8:$M$12,11),'Catchment Demand - Parks'!$M$12) -> 0.2396431883 | AB107: =_xlfn.IFS(FutureTrunkParks[[#This Row],[Year of Provision]]=2019,0,FutureTrunkParks[[#This Row],[Year of Provision]]=2024,FutureTrunkParks[[#This Row],[Total Assets Cost (at Base Year)]]/SUMIFS($AE$17:$AE$189,$X$17:$X$189,"2024",$E$17:$E$189,FutureTrunkParks[[#This Row],[Service Catchment]])) -> 0.02260669535 | AC107: =IF(AND(FutureTrunkParks[[#This Row],[Spare Capacity %]]>30%,FutureTrunkParks[[#This Row],[Share of the total Cost with the same year of provision %]]>20%),1-FutureTrunkParks[[#This Row],[Spare Capacity %]],1) -> 1 | AD107: =IF(FutureTrunkParks[[#This Row],[ Terminal Value Analysis]]<0,0,FutureTrunkParks[[#This Row],[ Terminal Value Analysis]]) -> 1 | AE107: 2256807 | AF107: 2720059 | AG107: 1718235 | AH107: =ROUND(FutureTrunkParks[[#This Row],[Net Present Value of Total Asset Cost]]*FutureTrunkParks[[#This Row],[Terminal Value Adjustment]],0) -> 1718235 | AI107: y | AO107: 1 | AT107: 1 | AV107: 1718235 | BB107: 1718235
B108: PCF276 | C108: ROC-A1-013 | D108: Local | E108: East | F108: Acquire and embellish land to provide LOCAL RECREATION infrastructure | G108: A1-L | H108: =IFERROR(INDEX(UnitRateParks[],MATCH(G108,UnitRateParks[LGIP Code],0),3),"") -> 8000 | I108: =IFERROR(MIN(K108/H108,INDEX(UnitRateParks[],MATCH(FutureTrunkParks[[#This Row],[LGIP Code (*)]], UnitRateParks[LGIP Code],0),4)),"") -> 1.25 | K108: 10000 | L108: 175 | M108: 1750000 | N108: =IFERROR((VLOOKUP(FutureTrunkParks[[#This Row],[LGIP Code (*)]],UnitRateParks[],7,FALSE)*FutureTrunkParks[[#This Row],[Scaling factor (*)]]+VLOOKUP(FutureTrunkParks[[#This Row],[LGIP Code (*)]],UnitRateParks[],8,FALSE)-VLOOKUP(FutureTrunkParks[[#This Row],[LGIP Code (*)]],UnitRateParks[],6,FALSE))*18.5%+VLOOKUP(FutureTrunkParks[[#This Row],[LGIP Code (*)]],UnitRateParks[],7,FALSE)*FutureTrunkParks[[#This Row],[Scaling factor (*)]]+VLOOKUP(FutureTrunkParks[[#This Row],[LGIP Code (*)]],UnitRateParks[],8,FALSE),"Error") -> 333334.7434 | O108: 333335 | P108: 2016 | Q108: 0.17 | R108: 56667 | S108: 1 | T108: 0.15 | U108: 50700 | V108: 506807 | W108: 66105 | X108: 2024 | Y108: 0.025 | Z108: 0.01871653255 | AA108: =IF(FutureTrunkParks[[#This Row],[Asset Class]]="Local",VLOOKUP(FutureTrunkParks[[#This Row],[Service Catchment]],'Catchment Demand - Parks'!$C$8:$M$12,11),'Catchment Demand - Parks'!$M$12) -> 0.2396431883 | AB108: =_xlfn.IFS(FutureTrunkParks[[#This Row],[Year of Provision]]=2019,0,FutureTrunkParks[[#This Row],[Year of Provision]]=2024,FutureTrunkParks[[#This Row],[Total Assets Cost (at Base Year)]]/SUMIFS($AE$17:$AE$189,$X$17:$X$189,"2024",$E$17:$E$189,FutureTrunkParks[[#This Row],[Service Catchment]])) -> 0.02260669535 | AC108: =IF(AND(FutureTrunkParks[[#This Row],[Spare Capacity %]]>30%,FutureTrunkParks[[#This Row],[Share of the total Cost with the same year of provision %]]>20%),1-FutureTrunkParks[[#This Row],[Spare Capacity %]],1) -> 1 | AD108: =IF(FutureTrunkParks[[#This Row],[ Terminal Value Analysis]]<0,0,FutureTrunkParks[[#This Row],[ Terminal Value Analysis]]) -> 1 | AE108: 2256807 | AF108: 2720059 | AG108: 1718235 | AH108: =ROUND(FutureTrunkParks[[#This Row],[Net Present Value of Total Asset Cost]]*FutureTrunkParks[[#This Row],[Terminal Value Adjustment]],0) -> 1718235 | AI108: y | AO108: 1 | AT108: 1 | AV108: 1718235 | BB108: 1718235
